Workbook

Sheet MainMenu
H3: Note:
H4: Do not add or remove any rows or columns from this worksheet.
B6: Year | C6: Month | K6: Year | L6: Month
A7: Start | B7: 2013 | C7: 1 | K7: 2009 | L7: 1 | N7: TRUE
A8: End | B8: 2020 | C8: 12 | K8: =K7+1 -> 2010 | L8: =L7+1 -> 2 | N8: FALSE
K9: =K8+1 -> 2011 | L9: =L8+1 -> 3
K10: 2012 | L10: 4
K11: 2013 | L11: 5
K12: 2014 | L12: 6
B13: Project File | C13: MetrixNDReport | D13: XLTab | E13: Update Links | F13: UpdateLinksStartDt | G13: UpdateLinksEndDt | I13: RowCount | K13: 2015 | L13: 7
B14: TopDown_ClassSales.ndm | C14: CalMnthRpt | D14: CalMnth Sales | E14: FALSE | F14: 2000-01-01 | G14: 2020-12-31 | I14: =COUNTIF($B$14:$B$22, "<>" & "") -> 4 | K14: 2016 | L14: 8
B15: TopDown_ClassSales.ndm | C15: CustomerCount | D15: Customers | E15: FALSE | F15: 2000-01-01 | G15: 2020-12-31 | K15: 2017 | L15: 9
B16: ClassBillDmd.ndm | C16: DemandRpt | D16: Demand | E16: FALSE | F16: 2000-01-01 | G16: 2020-12-31 | K16: 2018 | L16: 10
B17: SysFcst.ndm | C17: SysFcst_Rpt | D17: System | E17: FALSE | F17: 2000-01-01 | G17: 2020-12-31 | K17: 2019 | L17: 11
K18: 2020 | L18: 12
K19: 2021
K20: 2022
K21: 2023
K22: 2024
K23: 2025

Sheet CalMnth Sales
A1: Year | B1: Period | C1: mFcstCDMAdj.Res_MWh | D1: mFcstCDMAdj.GS50_MWh | E1: mFcstCDMAdj.GS1000NI_MWh | F1: mFcstCDMAdj.GS1000I_MWh | G1: mFcstCDMAdj.GS1500_MWh | H1: mFcstCDMAdj.GS5000_MWh | I1: mFcstCDMAdj.GSLrg_MWh | J1: mFcstCDMAdj.StLight_MWh | K1: mFcstCDMAdj.MU_MWh | L1: mFcstCDMAdj.DCL_Mwh | M1: mFcstCDMAdj.Sales_MWh | N1: mSysDemand.EnergyAdj | O1: mSysDemand.PeakAdj
A2: 2013 | B2: 1 | C2: 221047.5677 | D2: 69698.4915 | E2: 154048.9112 | F2: 100224.2759 | G2: 30219.1802 | H2: 75194.0822 | I2: 53037.7711 | J2: 4957.4508 | K2: 1482.2818 | L2: 289.606 | M2: 710199.6184 | N2: 732740.523 | O2: 1283.1817
A3: 2013 | B3: 2 | C3: 204569.3808 | D3: 62424.0257 | E3: 132129.8513 | F3: 90706.5507 | G3: 27262.8252 | H3: 65554.7403 | I3: 47543.4215 | J3: 3925.7454 | K3: 1425.6522 | L3: 279.8492 | M3: 635822.0424 | N3: 656000.629 | O3: 1208.5504
A4: 2013 | B4: 3 | C4: 201552.9017 | D4: 59822.8967 | E4: 130116.4077 | F4: 89244.857 | G4: 28135.6339 | H4: 69205.4525 | I4: 49474.7295 | J4: 3757.6821 | K4: 1384.7768 | L4: 270.8128 | M4: 632966.1506 | N4: 652994.904 | O4: 1038.0026
A5: 2013 | B5: 4 | C5: 167962.4212 | D5: 54910.9682 | E5: 115595.913 | F5: 85003.8476 | G5: 26487.0397 | H5: 67307.2107 | I5: 50440.2093 | J5: 3158.2605 | K5: 1397.9569 | L5: 276.6757 | M5: 572540.5028 | N5: 590500.222 | O5: 995.8011
A6: 2013 | B6: 5 | C6: 160088.2752 | D6: 56459.3422 | E6: 106941.4755 | F6: 90203.2237 | G6: 28975.9033 | H6: 74985.7506 | I6: 57869.3803 | J6: 3390.8231 | K6: 1482.7283 | L6: 297.0984 | M6: 580694.0007 | N6: 598724.263 | O6: 1264.1083
A7: 2013 | B7: 6 | C7: 155992.8773 | D7: 56663.4364 | E7: 117433.64 | F7: 93575.1402 | G7: 29238.2849 | H7: 74137.5546 | I7: 56343.9239 | J7: 2500.5529 | K7: 1487.0446 | L7: 297.5483 | M7: 587670.0032 | N7: 605978.157 | O7: 1273.5979
A8: 2013 | B8: 7 | C8: 213293.7558 | D8: 62684.9146 | E8: 134247.5318 | F8: 107907.8824 | G8: 32173.9644 | H8: 79445.2984 | I8: 58393.5447 | J8: 2853.5702 | K8: 1421.923 | L8: 284.9149 | M8: 692707.3001 | N8: 714509.145 | O8: 1427.2117
A9: 2013 | B9: 8 | C9: 189546.3123 | D9: 57236.0892 | E9: 120791.0319 | F9: 95552.851 | G9: 29614.8267 | H9: 75386.3336 | I9: 55348.3275 | J9: 3189.235 | K9: 1425.0628 | L9: 286.874 | M9: 628376.9441 | N9: 648088.471 | O9: 1283.3157
A10: 2013 | B10: 9 | C10: 156741.3145 | D10: 51459.5999 | E10: 105630.8922 | F10: 85803.6966 | G10: 26553.8178 | H10: 68394.3941 | I10: 51705.2958 | J10: 3535.5923 | K10: 1393.8833 | L10: 281.2129 | M10: 551499.6993 | N10: 568713.323 | O10: 1107.9516
A11: 2013 | B11: 10 | C11: 162545.0794 | D11: 54132.3737 | E11: 113809.8101 | F11: 87374.8172 | G11: 27150.3311 | H11: 70668.1021 | I11: 53383.5545 | J11: 4230.8455 | K11: 1386.3828 | L11: 281.4432 | M11: 574962.7395 | N11: 592923.094 | O11: 961.9892
A12: 2013 | B12: 11 | C12: 186513.065 | D12: 59154.0117 | E12: 130595.4743 | F12: 90979.9492 | G12: 27466.7998 | H12: 66480.9257 | I12: 45925.3742 | J12: 4406.0126 | K12: 1371.674 | L12: 277.7846 | M12: 613171.0711 | N12: 632628.713 | O12: 1083.9157
A13: 2013 | B13: 12 | C13: 224410.3327 | D13: 70014.3044 | E13: 153419.1787 | F13: 101470.3026 | G13: 30470.6293 | H13: 74133.138 | I13: 45243.1764 | J13: 4869.36 | K13: 1425.2164 | L13: 289.098 | M13: 705744.7366 | N13: 728350.197 | O13: 1219.5882
A14: 2014 | B14: 1 | C14: 226375.8703 | D14: 71594.9075 | E14: 157160.8338 | F14: 103776.7153 | G14: 30804.6943 | H14: 76501.8386 | I14: 52360.2337 | J14: 4883.5304 | K14: 1277.3566 | L14: 289.9816 | M14: 725025.9619 | N14: 748086.697 | O14: 1254.2398
A15: 2014 | B15: 2 | C15: 203349.9977 | D15: 62174.4932 | E15: 130380.8779 | F15: 92446.3268 | G15: 27052.1365 | H15: 64981.2991 | I15: 45650.3395 | J15: 4318.4102 | K15: 1351.0322 | L15: 273.7563 | M15: 631978.6693 | N15: 652079.599 | O15: 1145.62
A16: 2014 | B16: 3 | C16: 214332.4812 | D16: 63623.5607 | E16: 138046.9057 | F16: 97320.2108 | G16: 24814.7883 | H16: 71034.6909 | I16: 48913.8948 | J16: 3034.8312 | K16: 1254.1361 | L16: 272.2616 | M16: 662647.7612 | N16: 683695.232 | O16: 1111.4343
A17: 2014 | B17: 4 | C17: 164260.6577 | D17: 53687.1625 | E17: 111233.7511 | F17: 86554.8998 | G17: 26175.5821 | H17: 66730.3309 | I17: 48775.4557 | J17: 3089.4528 | K17: 1358.0274 | L17: 271.9151 | M17: 562137.235 | N17: 579791.271 | O17: 946.8514
A18: 2014 | B18: 5 | C18: 145596.8109 | D18: 52746.43 | E18: 110947.0941 | F18: 85619.777 | G18: 27443.6084 | H18: 71686.8061 | I18: 54077.1067 | J18: 2927.2379 | K18: 1383.1388 | L18: 284.5953 | M18: 552712.6051 | N18: 569901.763 | O18: 1038.2575
A19: 2014 | B19: 6 | C19: 169215.7835 | D19: 56425.6057 | E19: 115974.6173 | F19: 97916.3554 | G19: 29357.9154 | H19: 73545.1189 | I19: 54589.0492 | J19: 2768.2562 | K19: 1450.346 | L19: 283.9159 | M19: 601526.9634 | N19: 620351.917 | O19: 1303.6529
A20: 2014 | B20: 7 | C20: 180923.855 | D20: 58753.4046 | E20: 122489.188 | F20: 103286.5567 | G20: 30663.3676 | H20: 77815.7192 | I20: 55927.4181 | J20: 2893.3506 | K20: 1396.3402 | L20: 291.0571 | M20: 634440.2571 | N20: 654340.741 | O20: 1283.3538
A21: 2014 | B21: 8 | C21: 186089.6132 | D21: 55791.9841 | E21: 115894.4941 | F21: 93709.4522 | G21: 29180.1175 | H21: 74422.63 | I21: 53386.7093 | J21: 3096.3146 | K21: 1386.0518 | L21: 280.5997 | M21: 613237.9664 | N21: 632491.9365 | O21: 1241.8283
A22: 2014 | B22: 9 | C22: 163927.1802 | D22: 52398.4734 | E22: 105614.6336 | F22: 88361.5486 | G22: 27327.506 | H22: 70576.2267 | I22: 52066.0391 | J22: 3590.0101 | K22: 1390.4466 | L22: 285.1738 | M22: 565537.2382 | N22: 583215.3742 | O22: 1097.8013
A23: 2014 | B23: 10 | C23: 165433.8734 | D23: 55078.8271 | E23: 113831.0846 | F23: 90874.1049 | G23: 27701.8915 | H23: 72555.1589 | I23: 53379.0487 | J23: 4277.7269 | K23: 1395.7964 | L23: 286.4132 | M23: 584813.9255 | N23: 603107.3745 | O23: 965.4447
A24: 2014 | B24: 11 | C24: 182864.2721 | D24: 58409.1338 | E24: 126210.9971 | F24: 93251.236 | G24: 27783.5493 | H24: 68153.6413 | I24: 46029.286 | J24: 4631.1247 | K24: 1379.3244 | L24: 284.4312 | M24: 608996.9959 | N24: 628310.6861 | O24: 1093.9996
A25: 2014 | B25: 12 | C25: 206132.1754 | D25: 65135.5108 | E25: 139546.6312 | F25: 99723.5003 | G25: 29290.6724 | H25: 72532.6838 | I25: 50498.2717 | J25: 4908.3762 | K25: 1370.1998 | L25: 283.2644 | M25: 669421.286 | N25: 690653.9732 | O25: 1200.8854
A26: 2015 | B26: 1 | C26: 221427.176 | D26: 70270.6905 | E26: 151707.7591 | F26: 105600.555 | G26: 30729.249 | H26: 77490.8845 | I26: 51996.198 | J26: 4982.1432 | K26: 1293.3894 | L26: 291.7499 | M26: 715789.7947 | N26: 738548.3947 | O26: 1231.0084
A27: 2015 | B27: 2 | C27: 201968.3045 | D27: 61999.2353 | E27: 127453.3587 | F27: 95062.8401 | G27: 27400.571 | H27: 66980.099 | I27: 46163.4035 | J27: 4092.3799 | K27: 1390.9917 | L27: 279.7993 | M27: 632790.983 | N27: 652905.2083 | O27: 1194.1398
A28: 2015 | B28: 3 | C28: 202813.6605 | D28: 60361.049 | E28: 127514.392 | F28: 95097.2551 | G28: 28847.0127 | H28: 72260.371 | I28: 49303.7208 | J28: 3763.4029 | K28: 1295.5964 | L28: 276.8619 | M28: 641533.3224 | N28: 661856.366 | O28: 1105.4184
A29: 2015 | B29: 4 | C29: 163815.1072 | D29: 53450.4923 | E29: 108381.5872 | F29: 88760.3127 | G29: 26448.6176 | H29: 68679.5888 | I29: 49264.0459 | J29: 3131.3455 | K29: 1395.3277 | L29: 276.5058 | M29: 563602.9307 | N29: 581293.0221 | O29: 950.2436
A30: 2015 | B30: 5 | C30: 154034.165 | D30: 54891.8785 | E30: 99589.9978 | F30: 92919.4194 | G30: 28639.6892 | H30: 75804.7803 | I30: 55971.4598 | J30: 3062.9213 | K30: 1443.6187 | L30: 295.1937 | M30: 566653.1238 | N30: 584261.1871 | O30: 1215.0839
A31: 2015 | B31: 6 | C31: 171848.6472 | D31: 57382.3729 | E31: 115702.3458 | F31: 99923.5206 | G31: 30046.1702 | H31: 76621.407 | I31: 55756.5677 | J31: 2493.6785 | K31: 1486.4423 | L31: 292.424 | M31: 611553.5762 | N31: 630685.2058 | O31: 1315.3764
A32: 2015 | B32: 7 | C32: 203484.3488 | D32: 60274.7137 | E32: 124850.2806 | F32: 107480.7529 | G32: 31473.3334 | H32: 79641.1747 | I32: 56208.3679 | J32: 2433.4009 | K32: 1353.3444 | L32: 282.4988 | M32: 667482.2161 | N32: 688491.764 | O32: 1379.5833
A33: 2015 | B33: 8 | C33: 198940.2843 | D33: 56917.4639 | E33: 116775.3807 | F33: 99198.4623 | G33: 29856.5799 | H33: 76745.6768 | I33: 54027.0435 | J33: 2672.4734 | K33: 1381.5196 | L33: 279.5857 | M33: 636794.4701 | N33: 656826.9768 | O33: 1310.4389
A34: 2015 | B34: 9 | C34: 163309.089 | D34: 52026.1977 | E34: 102830.107 | F34: 91296.0304 | G34: 27359.7889 | H34: 71772.0395 | I34: 51902.6344 | J34: 3335.1927 | K34: 1393.509 | L34: 285.8019 | M34: 565510.3905 | N34: 583192.129 | O34: 1097.9449
A35: 2015 | B35: 10 | C35: 164676.4617 | D35: 54764.2667 | E35: 111185.1199 | F35: 93194.5021 | G35: 27766.1329 | H35: 73883.8803 | I35: 53296.7034 | J35: 4127.4321 | K35: 1400.4401 | L35: 287.3661 | M35: 584582.3055 | N35: 602870.1984 | O35: 966.0168
A36: 2015 | B36: 11 | C36: 181972.744 | D36: 58109.0005 | E36: 123594.4388 | F36: 95281.8979 | G36: 27847.9613 | H36: 69475.7998 | I36: 45968.1207 | J36: 4547.1841 | K36: 1384.6485 | L36: 285.5291 | M36: 608467.3246 | N36: 627764.8 | O36: 1093.8968
A37: 2015 | B37: 12 | C37: 205130.0942 | D37: 64832.998 | E37: 136948.6522 | F37: 101611.769 | G37: 29350.8621 | H37: 73885.7816 | I37: 50446.917 | J37: 4862.374 | K37: 1374.9812 | L37: 284.2528 | M37: 668728.6822 | N37: 689939.3767 | O37: 1200.4069
A38: 2016 | B38: 1 | C38: 218782.7515 | D38: 69880.9953 | E38: 148845.1405 | F38: 107376.1438 | G38: 30764.8547 | H38: 78902.862 | I38: 51946.0745 | J38: 4958.3048 | K38: 1297.7125 | L38: 292.7251 | M38: 713047.5648 | N38: 735714.8609 | O38: 1227.9303
A39: 2016 | B39: 2 | C39: 200914.871 | D39: 62820.7677 | E39: 128872.2171 | F39: 98509.4624 | G39: 28074.7944 | H39: 70935.319 | I39: 46377.3152 | J39: 4105.2781 | K39: 1403.6436 | L39: 282.3442 | M39: 642296.0129 | N39: 662725.6042 | O39: 1174.0985
A40: 2016 | B40: 3 | C40: 200932.2159 | D40: 59941.5811 | E40: 124630.1339 | F40: 96559.2676 | G40: 28824.6211 | H40: 73616.4086 | I40: 49263.1924 | J40: 3760.1198 | K40: 1299.5962 | L40: 277.7166 | M40: 639104.8532 | N40: 659346.9331 | O40: 1102.7822
A41: 2016 | B41: 4 | C41: 162406.513 | D41: 53026.3862 | E41: 105437.8629 | F41: 90160.3845 | G41: 26403.6714 | H41: 70026.6573 | I41: 49245.9198 | J41: 3132.5382 | K41: 1399.9905 | L41: 277.4298 | M41: 561517.3535 | N41: 579137.4527 | O41: 948.1075
A42: 2016 | B42: 5 | C42: 152819.9345 | D42: 54455.7716 | E42: 96510.3619 | F42: 94425.9412 | G42: 28599.653 | H42: 77276.7956 | I42: 55949.7213 | J42: 3065.6736 | K42: 1447.8202 | L42: 296.0528 | M42: 564847.7258 | N42: 582395.3666 | O42: 1210.7924
A43: 2016 | B43: 6 | C43: 170782.2132 | D43: 56898.8444 | E43: 112511.4164 | F43: 101291.2119 | G43: 29966.151 | H43: 78030.5163 | I43: 55730.3384 | J43: 2496.6183 | K43: 1490.4605 | L43: 293.2145 | M43: 609490.985 | N43: 628553.6229 | O43: 1310.4202
A44: 2016 | B44: 7 | C44: 202610.3748 | D44: 59769.4953 | E44: 121675.95 | F44: 108679.9749 | G44: 31361.4831 | H44: 81034.3433 | I44: 56176.1255 | J44: 2436.8714 | K44: 1356.5461 | L44: 283.1671 | M44: 665384.3315 | N44: 686323.8608 | O44: 1374.601
A45: 2016 | B45: 8 | C45: 198129.9661 | D45: 56399.5578 | E45: 113563.4207 | F45: 100305.3777 | G45: 29725.1541 | H45: 78146.6632 | I45: 54002.3198 | J45: 2677.6545 | K45: 1384.9265 | L45: 280.2752 | M45: 634615.3156 | N45: 654574.8492 | O45: 1305.425
A46: 2016 | B46: 9 | C46: 162305.1721 | D46: 51487.3107 | E46: 99475.9375 | F46: 92399.1555 | G46: 27214.9966 | H46: 73194.4671 | I46: 51889.4509 | J46: 3343.7376 | K46: 1397.4543 | L46: 286.6111 | M46: 562994.2933 | N46: 580591.3515 | O46: 1093.2507
A47: 2016 | B47: 10 | C47: 163300.8008 | D47: 54210.0044 | E47: 107796.8146 | F47: 94253.7232 | G47: 27609.748 | H47: 75363.3095 | I47: 53283.6039 | J47: 4138.2163 | K47: 1404.2899 | L47: 288.1561 | M47: 581648.6667 | N47: 599837.7642 | O47: 962.4326
A48: 2016 | B48: 11 | C48: 180240.9079 | D48: 57511.0905 | E48: 120068.1417 | F48: 96225.0969 | G48: 27658.8589 | H48: 70906.0496 | I48: 45942.315 | J48: 4559.8398 | K48: 1388.6082 | L48: 286.3457 | M48: 604787.2541 | N48: 623961.0554 | O48: 1088.6878
A49: 2016 | B49: 12 | C49: 202818.5024 | D49: 64205.5997 | E49: 133343.3185 | F49: 102466.4216 | G49: 29141.4049 | H49: 75343.5947 | I49: 50412.7321 | J49: 4875.5316 | K49: 1378.7629 | L49: 285.0346 | M49: 664270.9029 | N49: 685331.8681 | O49: 1193.9175
A50: 2017 | B50: 1 | C50: 216497.1733 | D50: 69119.1095 | E50: 144812.0797 | F50: 108098.9951 | G50: 30511.0205 | H50: 80317.1328 | I50: 51893.1532 | J50: 4971.7194 | K50: 1301.2597 | L50: 293.5252 | M50: 707815.1684 | N50: 730307.07 | O50: 1220.5942
A51: 2017 | B51: 2 | C51: 197821.5525 | D51: 60805.6635 | E51: 120365.1273 | F51: 97191.3583 | G51: 27099.5385 | H51: 69498.694 | I51: 46075.4201 | J51: 4096.4581 | K51: 1400.6562 | L51: 281.7433 | M51: 624636.212 | N51: 644477.2344 | O51: 1182.3078
A52: 2017 | B52: 3 | C52: 199135.9961 | D52: 59235.3145 | E52: 120809.3538 | F52: 97193.6721 | G52: 28568.3203 | H52: 74982.9234 | I52: 49206.6161 | J52: 3771.1098 | K52: 1303.4123 | L52: 278.5321 | M52: 634485.2504 | N52: 654572.7493 | O52: 1096.4009
A53: 2017 | B53: 4 | C53: 160992.2898 | D53: 52359.0635 | E53: 101683.7217 | F53: 90832.4252 | G53: 26151.2105 | H53: 71385.1248 | I53: 49205.6079 | J53: 3142.7572 | K53: 1404.5718 | L53: 278.3376 | M53: 557435.1101 | N53: 574918.342 | O53: 942.6549
A54: 2017 | B54: 5 | C54: 151593.3287 | D54: 53813.2621 | E54: 92732.1289 | F54: 95292.7671 | G54: 28376.4863 | H54: 78757.5538 | I54: 55896.4488 | J54: 3074.5318 | K54: 1452.0136 | L54: 296.9103 | M54: 561285.4314 | N54: 578714.137 | O54: 1202.671
A55: 2017 | B55: 6 | C55: 169852.1592 | D55: 56229.9441 | E55: 108697.4901 | F55: 102086.5942 | G55: 29722.1366 | H55: 79434.8666 | I55: 55663.1126 | J55: 2503.1683 | K55: 1494.3786 | L55: 293.9853 | M55: 605977.8355 | N55: 624923.5844 | O55: 1302.3677
A56: 2017 | B56: 7 | C56: 202001.0673 | D56: 59100.6958 | E56: 117954.3874 | F56: 109377.6417 | G56: 31106.3089 | H56: 82414.2557 | I56: 56099.1085 | J56: 2442.4963 | K56: 1359.6817 | L56: 283.8216 | M56: 662139.4649 | N56: 682971.4435 | O56: 1367.4076
A57: 2017 | B57: 8 | C57: 197516.1697 | D57: 55746.2679 | E57: 109892.4202 | F57: 100996.0372 | G57: 29474.8259 | H57: 79535.1334 | I57: 53932.4143 | J57: 2684.3647 | K57: 1388.3996 | L57: 280.978 | M57: 631447.011 | N57: 651301.3854 | O57: 1298.447
A58: 2017 | B58: 9 | C58: 161370.8152 | D58: 50841.9082 | E58: 95752.6899 | F58: 93175.3581 | G58: 26976.8696 | H58: 74609.1496 | I58: 51832.7772 | J58: 3353.6645 | K58: 1401.6043 | L58: 287.4622 | M58: 559602.2988 | N58: 577086.2718 | O58: 1086.8659
A59: 2017 | B59: 10 | C59: 162006.8069 | D59: 53564.163 | E59: 104096.4309 | F59: 95057.4992 | G59: 27381.5846 | H59: 76831.7558 | I59: 53227.9611 | J59: 4150.4061 | K59: 1408.4272 | L59: 289.005 | M59: 578014.0398 | N59: 596081.8226 | O59: 957.7096
A60: 2017 | B60: 11 | C60: 178662.5942 | D60: 56828.8442 | E60: 116270.044 | F60: 96975.6422 | G60: 27417.2591 | H60: 72317.3757 | I60: 45871.1007 | J60: 4573.8165 | K60: 1392.8649 | L60: 287.2234 | M60: 600596.7651 | N60: 619630.8934 | O60: 1082.6055
A61: 2017 | B61: 12 | C61: 200808.5915 | D61: 63499.7192 | E61: 129515.4026 | F61: 103187.9166 | G61: 28899.292 | H61: 76784.3314 | I61: 50350.2822 | J61: 4889.4759 | K61: 1382.7065 | L61: 285.8499 | M61: 659603.5678 | N61: 680508.5006 | O61: 1187.1048
A62: 2018 | B62: 1 | C62: 216743.2902 | D62: 68397.5368 | E62: 140970.0867 | F62: 108879.445 | G62: 30283.1018 | H62: 81814.7776 | I62: 51809.6913 | J62: 4983.6717 | K62: 1304.3881 | L62: 294.2309 | M62: 705480.22 | N62: 727895.5039 | O62: 1218.0134
A63: 2018 | B63: 2 | C63: 198147.1879 | D63: 60084.962 | E63: 116494.546 | F63: 97863.136 | G63: 26848.5017 | H63: 70836.0395 | I63: 46009.7012 | J63: 4108.0127 | K63: 1404.6071 | L63: 282.538 | M63: 622079.2322 | N63: 641835.6425 | O63: 1179.0164
A64: 2018 | B64: 3 | C64: 199511.2942 | D64: 58598.9165 | E64: 117269.825 | F64: 97962.1187 | G64: 28360.3407 | H64: 76455.8084 | I64: 49150.9213 | J64: 3781.5685 | K64: 1307.0272 | L64: 279.3045 | M64: 632677.1252 | N64: 652705.0466 | O64: 1094.6645
A65: 2018 | B65: 4 | C65: 161410.6862 | D65: 51761.4602 | E65: 98216.5701 | F65: 91656.9387 | G65: 25952.4125 | H65: 72843.9499 | I65: 49165.6424 | J65: 3152.3932 | K65: 1408.8784 | L65: 279.1911 | M65: 555848.1227 | N65: 573278.8175 | O65: 941.6037
A66: 2018 | B66: 5 | C66: 152140.4207 | D66: 53244.6896 | E66: 89275.8176 | F66: 96331.1602 | G66: 28213.4019 | H66: 80338.1712 | I66: 55835.6103 | J66: 3082.3047 | K66: 1455.6846 | L66: 297.6609 | M66: 560214.9218 | N66: 577609.1233 | O66: 1199.3418
A67: 2018 | B67: 6 | C67: 170888.7652 | D67: 55646.6241 | E67: 105242.3444 | F67: 103080.7174 | G67: 29546.454 | H67: 80931.7546 | I67: 55578.2868 | J67: 2508.2959 | K67: 1497.4397 | L67: 294.5875 | M67: 605215.2695 | N67: 624137.5849 | O67: 1300.1054
A68: 2018 | B68: 7 | C68: 203486.9755 | D68: 58545.4681 | E68: 114665.6243 | F68: 110330.9104 | G68: 30936.6357 | H68: 83905.2219 | I68: 56011.3732 | J68: 2446.9829 | K68: 1362.1793 | L68: 284.343 | M68: 661975.714 | N68: 682804.5793 | O68: 1366.9151
A69: 2018 | B69: 8 | C69: 198821.2533 | D69: 55212.309 | E69: 106673.2042 | F69: 101968.5446 | G69: 29316.9203 | H69: 81036.8354 | I69: 53860.2346 | J69: 2690.1203 | K69: 1391.3765 | L69: 281.5805 | M69: 631252.3786 | N69: 651102.1665 | O69: 1297.6548
A70: 2018 | B70: 9 | C70: 162143.2403 | D70: 50306.3143 | E70: 92465.4269 | F70: 94233.3067 | G70: 26830.5407 | H70: 76124.4972 | I70: 51777.3675 | J70: 3362.4504 | K70: 1405.2763 | L70: 288.2153 | M70: 558936.6355 | N70: 576399.6385 | O70: 1085.849
A71: 2018 | B71: 10 | C71: 162576.5367 | D71: 53039.0339 | E71: 100868.5623 | F71: 96172.2514 | G71: 27253.6637 | H71: 78407.2445 | I71: 53179.2337 | J71: 4161.5168 | K71: 1412.1975 | L71: 289.7787 | M71: 577360.0192 | N71: 595407.041 | O71: 958.1437
A72: 2018 | B72: 11 | C72: 179228.9701 | D72: 56271.1536 | E72: 112961.7535 | F72: 98052.6299 | G72: 27279.8762 | H72: 73825.2394 | I72: 45804.5198 | J72: 4586.0283 | K72: 1396.5837 | L72: 287.9903 | M72: 599694.7448 | N72: 618700.2224 | O72: 1082.2568
A73: 2018 | B73: 12 | C73: 201313.2715 | D73: 62930.8783 | E73: 126210.6463 | F73: 104267.0795 | G73: 28769.7148 | H73: 78318.2799 | I73: 50284.3147 | J73: 4901.9439 | K73: 1386.2323 | L73: 286.5788 | M73: 658668.9398 | N73: 679544.1028 | O73: 1186.551
A74: 2019 | B74: 1 | C74: 217413.3884 | D74: 67916.6769 | E74: 137941.337 | F74: 110120.1341 | G74: 30193.4695 | H74: 83469.0759 | I74: 51710.2701 | J74: 4993.9589 | K74: 1307.0806 | L74: 294.8383 | M74: 705360.2296 | N74: 727774.2019 | O74: 1218.8732
A75: 2019 | B75: 2 | C75: 198809.8976 | D75: 59572.4086 | E75: 113323.3935 | F75: 98948.7752 | G75: 26721.5427 | H75: 72306.0772 | I75: 45924.6571 | J75: 4118.6712 | K75: 1408.2514 | L75: 283.2711 | M75: 621416.9457 | N75: 641153.318 | O75: 1178.9016
A76: 2019 | B76: 3 | C76: 200129.3626 | D76: 58144.479 | E76: 114353.1366 | F76: 99105.372 | G76: 28266.5431 | H76: 78060.4717 | I76: 49068.7654 | J76: 3791.4379 | K76: 1310.4383 | L76: 280.0335 | M76: 632510.0402 | N76: 652534.5816 | O76: 1095.4185
A77: 2019 | B77: 4 | C77: 161953.7177 | D77: 51302.6425 | E77: 95243.214 | F77: 92800.161 | G77: 25852.7805 | H77: 74416.6696 | I77: 49091.7956 | J77: 3161.6843 | K77: 1413.0308 | L77: 280.0139 | M77: 555515.7097 | N77: 572937.2072 | O77: 942.5108
A78: 2019 | B78: 5 | C78: 152706.7579 | D78: 52790.4464 | E78: 86243.8886 | F78: 97649.4716 | G78: 28139.9707 | H78: 82029.7502 | I78: 55729.1451 | J78: 3089.7849 | K78: 1459.2173 | L78: 298.3833 | M78: 560136.816 | N78: 577531.316 | O78: 1198.0209
A79: 2019 | B79: 6 | C79: 171877.7884 | D79: 55179.2933 | E79: 102193.4609 | F79: 104348.2647 | G79: 29458.5321 | H79: 82541.7313 | I79: 55443.8392 | J79: 2513.4186 | K79: 1500.498 | L79: 295.1891 | M79: 605352.0155 | N79: 624282.6636 | O79: 1299.8161
A80: 2019 | B80: 7 | C80: 204869.3083 | D80: 58108.2513 | E80: 111770.8985 | F80: 111548.6586 | G80: 30851.7221 | H80: 85511.538 | I80: 55870.1264 | J80: 2451.6275 | K80: 1364.7648 | L80: 284.8827 | M80: 662631.7782 | N80: 683486.7168 | O80: 1368.2929
A81: 2019 | B81: 8 | C81: 199989.8264 | D81: 54774.3977 | E81: 103776.8747 | F81: 103159.1443 | G81: 29229.4178 | H81: 82636.4824 | I81: 53727.0126 | J81: 2696.1233 | K81: 1394.4813 | L81: 282.2088 | M81: 631665.9693 | N81: 651533.4135 | O81: 1298.203
A82: 2019 | B82: 9 | C82: 162772.8163 | D82: 49838.6118 | E82: 89414.0356 | F82: 95452.7278 | G82: 26736.7958 | H82: 77714.083 | I82: 51649.4418 | J82: 3371.6064 | K82: 1409.1028 | L82: 289.0001 | M82: 558648.2215 | N82: 576105.0068 | O82: 1085.5485
A83: 2019 | B83: 10 | C83: 163014.9871 | D83: 52578.7856 | E83: 97856.0035 | F83: 97420.0002 | G83: 27168.4073 | H83: 80046.3454 | I83: 53047.3138 | J83: 4173.0914 | K83: 1416.1254 | L83: 290.5847 | M83: 577011.6444 | N83: 595050.5321 | O83: 958.9072
A84: 2019 | B84: 11 | C84: 179681.1496 | D84: 55785.2475 | E84: 109870.0237 | F84: 99247.3409 | G84: 27178.5624 | H84: 75389.1859 | I84: 45645.8514 | J84: 4598.9246 | K84: 1400.511 | L84: 288.8001 | M84: 599085.5971 | N84: 618074.8648 | O84: 1082.1307
A85: 2019 | B85: 12 | C85: 201764.9774 | D85: 62450.7104 | E85: 123163.9307 | F85: 105456.5883 | G85: 28672.9149 | H85: 79916.3505 | I85: 50127.6736 | J85: 4914.854 | K85: 1389.8832 | L85: 287.3335 | M85: 658145.2164 | N85: 679007.0009 | O85: 1186.3451
A86: 2020 | B86: 1 | C86: 217301.3018 | D86: 67438.2023 | E86: 134807.8682 | F86: 111340.3812 | G86: 30087.0526 | H86: 84998.7187 | I86: 51533.7509 | J86: 5005.9317 | K86: 1310.2142 | L86: 295.5451 | M86: 704118.9667 | N86: 726495.8563 | O86: 1217.3789
A87: 2020 | B87: 2 | C87: 199800.913 | D87: 60369.1805 | E87: 114729.7592 | F87: 102074.1968 | G87: 27317.9382 | H87: 76569.5671 | I87: 45999.5776 | J87: 4151.7017 | K87: 1419.5452 | L87: 285.5428 | M87: 632717.9221 | N87: 652834.1995 | O87: 1161.6711
A88: 2020 | B88: 3 | C88: 200077.0197 | D88: 57674.0816 | E88: 111300.6552 | F88: 100212.3034 | G88: 28153.9054 | H88: 79547.3027 | I88: 48915.6917 | J88: 3802.1379 | K88: 1314.1366 | L88: 280.8238 | M88: 631278.0579 | N88: 651265.1832 | O88: 1093.9368
A89: 2020 | B89: 4 | C89: 161874.9101 | D89: 50817.5583 | E89: 92112.048 | F89: 93905.1216 | G89: 25735.0525 | H89: 75882.4441 | I89: 48954.025 | J89: 3171.7893 | K89: 1417.5469 | L89: 280.9089 | M89: 554151.4047 | N89: 571530.5911 | O89: 941.2415
A90: 2020 | B90: 5 | C90: 152678.475 | D90: 52304.0998 | E90: 83028.5957 | F90: 98929.1201 | G90: 28049.2142 | H90: 83615.8646 | I90: 55566.2717 | J90: 3098.3361 | K90: 1463.2557 | L90: 299.2091 | M90: 559032.4422 | N90: 576394.1096 | O90: 1194.7007
A91: 2020 | B91: 6 | C91: 172336.7992 | D91: 54690.7661 | E91: 99001.0962 | F91: 105595.0493 | G91: 29359.7192 | H91: 84063.4086 | I91: 55258.214 | J91: 2519.3652 | K91: 1504.048 | L91: 295.8875 | M91: 604624.3535 | N91: 623535.5299 | O91: 1297.8387
A92: 2020 | B92: 7 | C92: 205757.5998 | D92: 57654.6977 | E92: 108754.0326 | F92: 112750.3618 | G92: 30757.9855 | H92: 87034.2307 | I92: 55679.3109 | J92: 2456.8036 | K92: 1367.6462 | L92: 285.4841 | M92: 662498.1529 | N92: 683353.8415 | O92: 1368.249
A93: 2020 | B93: 8 | C93: 200679.0389 | D93: 54315.3636 | E93: 100752.8573 | F93: 104325.4975 | G93: 29131.1608 | H93: 84153.2865 | I93: 53546.5379 | J93: 2702.5756 | K93: 1397.8186 | L93: 282.8842 | M93: 631287.0208 | N93: 651146.6377 | O93: 1297.2857
A94: 2020 | B94: 9 | C94: 162914.4176 | D94: 49344.3946 | E94: 86225.4067 | F94: 96641.0112 | G94: 26630.1314 | H94: 79223.8536 | I94: 51479.5536 | J94: 3381.3946 | K94: 1413.1936 | L94: 289.8391 | M94: 557543.1961 | N94: 574967.3204 | O94: 1083.6102
A95: 2020 | B95: 10 | C95: 162934.3827 | D95: 52098.1457 | E95: 94727.6572 | F95: 98635.9407 | G95: 27069.483 | H95: 81604.5442 | I95: 52875.838 | J95: 4185.1522 | K95: 1420.2181 | L95: 291.4245 | M95: 575842.7863 | N95: 593846.8993 | O95: 957.9659
A96: 2020 | B96: 11 | C96: 179602.2648 | D96: 55298.678 | E96: 106721.336 | F96: 100428.1621 | G96: 27068.2859 | H96: 76884.7748 | I96: 45451.7815 | J96: 4612.216 | K96: 1404.5587 | L96: 289.6348 | M96: 597761.6925 | N96: 616711.5685 | O96: 1080.3464
A97: 2020 | B97: 12 | C97: 201671.5218 | D97: 61986.8086 | E97: 120104.2652 | F97: 106641.6382 | G97: 28568.5322 | H97: 81443.7717 | I97: 49933.3325 | J97: 4927.9052 | K97: 1393.574 | L97: 288.0966 | M97: 656959.4459 | N97: 677786.5152 | O97: 1184.558

Sheet Customers
A1: Year | B1: Period | C1: mFcstCDMAdj.Res_Cust | D1: mFcstCDMAdj.GS50_Cust | E1: mFcstCDMAdj.GS1000NI_Cust | F1: mFcstCDMAdj.GS1000I_Cust | G1: mFcstCDMAdj.GS1500_Cust | H1: mFcstCDMAdj.GS5000_Cust | I1: mFcstCDMAdj.GSLrg_Cust | J1: mFcstCDMAdj.StLight_Cust | K1: mFcstCDMAdj.MU_Cust
A2: 2013 | B2: 1 | C2: 283254 | D2: 23938 | E2: 2651 | F2: 638 | G2: 56 | H2: 76 | I2: 11 | J2: 55708 | K2: 3370
A3: 2013 | B3: 2 | C3: 283551 | D3: 23948 | E3: 2658 | F3: 649 | G3: 57 | H3: 70 | I3: 11 | J3: 55673 | K3: 3370
A4: 2013 | B4: 3 | C4: 283751 | D4: 23956 | E4: 2658 | F4: 649 | G4: 58 | H4: 70 | I4: 11 | J4: 55748 | K4: 3375
A5: 2013 | B5: 4 | C5: 283995 | D5: 23962 | E5: 2670 | F5: 651 | G5: 58 | H5: 72 | I5: 11 | J5: 55833 | K5: 3374
A6: 2013 | B6: 5 | C6: 284272 | D6: 23886 | E6: 2666 | F6: 652 | G6: 58 | H6: 74 | I6: 11 | J6: 55833 | K6: 3373
A7: 2013 | B7: 6 | C7: 284644 | D7: 23900 | E7: 2678 | F7: 654 | G7: 58 | H7: 75 | I7: 11 | J7: 55802 | K7: 3367
A8: 2013 | B8: 7 | C8: 284786 | D8: 23918 | E8: 2703 | F8: 654 | G8: 59 | H8: 75 | I8: 11 | J8: 55800 | K8: 3369
A9: 2013 | B9: 8 | C9: 285346 | D9: 23935 | E9: 2729 | F9: 655 | G9: 60 | H9: 79 | I9: 11 | J9: 55798 | K9: 3368
A10: 2013 | B10: 9 | C10: 285551 | D10: 23926 | E10: 2732 | F10: 659 | G10: 61 | H10: 79 | I10: 11 | J10: 55793 | K10: 3369
A11: 2013 | B11: 10 | C11: 286390 | D11: 23947 | E11: 2720 | F11: 661 | G11: 61 | H11: 80 | I11: 11 | J11: 55764 | K11: 3384
A12: 2013 | B12: 11 | C12: 286840 | D12: 23947 | E12: 2726 | F12: 663 | G12: 61 | H12: 80 | I12: 11 | J12: 55763 | K12: 3393
A13: 2013 | B13: 12 | C13: 287191 | D13: 23972 | E13: 2745 | F13: 663 | G13: 60 | H13: 80 | I13: 11 | J13: 55571 | K13: 3402
A14: 2014 | B14: 1 | C14: 287933 | D14: 23927 | E14: 2748 | F14: 667 | G14: 60 | H14: 83 | I14: 11 | J14: 55571 | K14: 3404
A15: 2014 | B15: 2 | C15: 288065 | D15: 23877 | E15: 2756 | F15: 669 | G15: 60 | H15: 85 | I15: 11 | J15: 55521 | K15: 3439
A16: 2014 | B16: 3 | C16: 288094 | D16: 23891 | E16: 2768 | F16: 679 | G16: 60 | H16: 85 | I16: 11 | J16: 55492 | K16: 3439
A17: 2014 | B17: 4 | C17: 288163 | D17: 23866 | E17: 2766 | F17: 682 | G17: 61 | H17: 85 | I17: 11 | J17: 55495 | K17: 3452
A18: 2014 | B18: 5 | C18: 288360 | D18: 23893 | E18: 2779 | F18: 681 | G18: 61 | H18: 86 | I18: 11 | J18: 55517 | K18: 3452
A19: 2014 | B19: 6 | C19: 288837 | D19: 23923 | E19: 2783 | F19: 687 | G19: 61 | H19: 88 | I19: 11 | J19: 55517 | K19: 3441
A20: 2014 | B20: 7 | C20: 289221 | D20: 23923 | E20: 2772 | F20: 688 | G20: 61 | H20: 88 | I20: 11 | J20: 55517 | K20: 3441
A21: 2014 | B21: 8 | C21: 289602 | D21: 23979 | E21: 2774 | F21: 688 | G21: 62 | H21: 88 | I21: 11 | J21: 55517 | K21: 3448
A22: 2014 | B22: 9 | C22: 289798.0993 | D22: 23984.0572 | E22: 2774.6659 | F22: 690.2151 | G22: 62.0291 | H22: 88.0008 | I22: 11 | J22: 55515.8145 | K22: 3444.2985
A23: 2014 | B23: 10 | C23: 290616.4027 | D23: 24009.8798 | E23: 2774.6659 | F23: 692.4434 | G23: 62.0583 | H23: 88.0008 | I23: 11 | J23: 55515.8145 | K23: 3444.2985
A24: 2014 | B24: 11 | C24: 291037.5059 | D24: 24023.9563 | E24: 2774.6659 | F24: 694.6831 | G24: 62.0875 | H24: 88.0008 | I24: 11 | J24: 55515.8145 | K24: 3444.2985
A25: 2014 | B25: 12 | C25: 291372.4347 | D25: 24035.3033 | E25: 2774.6659 | F25: 696.9329 | G25: 62.1167 | H25: 88.0008 | I25: 11 | J25: 55515.8145 | K25: 3444.2985
A26: 2015 | B26: 1 | C26: 292047.5853 | D26: 24056.2646 | E26: 2774.6659 | F26: 699.1914 | G26: 62.1459 | H26: 88.0008 | I26: 11 | J26: 55515.8145 | K26: 3444.2985
A27: 2015 | B27: 2 | C27: 292191.955 | D27: 24061.7138 | E27: 2774.6659 | F27: 701.4578 | G27: 62.1751 | H27: 88.0008 | I27: 11 | J27: 55515.8145 | K27: 3444.2985
A28: 2015 | B28: 3 | C28: 292246.8159 | D28: 24064.4172 | E28: 2774.6659 | F28: 703.7309 | G28: 62.2043 | H28: 88.0008 | I28: 11 | J28: 55515.8145 | K28: 3444.2985
A29: 2015 | B29: 4 | C29: 292336.4822 | D29: 24067.9849 | E29: 2774.6659 | F29: 706.01 | G29: 62.2336 | H29: 88.0008 | I29: 11 | J29: 55515.8145 | K29: 3444.2985
A30: 2015 | B30: 5 | C30: 292537.5254 | D30: 24074.6459 | E30: 2774.6659 | F30: 708.2942 | G30: 62.2628 | H30: 88.0008 | I30: 11 | J30: 55515.8145 | K30: 3444.2985
A31: 2015 | B31: 6 | C31: 292982.7696 | D31: 24088.2514 | E31: 2774.6659 | F31: 710.5831 | G31: 62.2921 | H31: 88.0008 | I31: 11 | J31: 55515.8145 | K31: 3444.2985
A32: 2015 | B32: 7 | C32: 293347.0916 | D32: 24099.4259 | E32: 2774.6659 | F32: 712.8759 | G32: 62.3214 | H32: 88.0008 | I32: 11 | J32: 55515.8145 | K32: 3444.2985
A33: 2015 | B33: 8 | C33: 293708.8031 | D33: 24110.4428 | E33: 2774.6659 | F33: 715.1723 | G33: 62.3507 | H33: 88.0008 | I33: 11 | J33: 55515.8145 | K33: 3444.2985
A34: 2015 | B34: 9 | C34: 293910.6187 | D34: 24116.7704 | E34: 2774.6659 | F34: 717.4718 | G34: 62.38 | H34: 88.0008 | I34: 11 | J34: 55515.8145 | K34: 3444.2985
A35: 2015 | B35: 10 | C35: 294653.8342 | D35: 24138.6697 | E35: 2774.6659 | F35: 719.7739 | G35: 62.4093 | H35: 88.0008 | I35: 11 | J35: 55515.8145 | K35: 3444.2985
A36: 2015 | B36: 11 | C36: 295051.433 | D36: 24150.5334 | E36: 2774.6659 | F36: 722.0785 | G36: 62.4386 | H36: 88.0008 | I36: 11 | J36: 55515.8145 | K36: 3444.2985
A37: 2015 | B37: 12 | C37: 295377.0666 | D37: 24160.2708 | E37: 2774.6659 | F37: 724.3851 | G37: 62.468 | H37: 88.0008 | I37: 11 | J37: 55515.8145 | K37: 3444.2985
A38: 2016 | B38: 1 | C38: 295998.7384 | D38: 24178.5153 | E38: 2774.6659 | F38: 726.6935 | G38: 62.4974 | H38: 88.0008 | I38: 11 | J38: 55515.8145 | K38: 3444.2985
A39: 2016 | B39: 2 | C39: 296158.5603 | D39: 24183.3857 | E39: 2774.6659 | F39: 729.0035 | G39: 62.5268 | H39: 88.0008 | I39: 11 | J39: 55515.8145 | K39: 3444.2985
A40: 2016 | B40: 3 | C40: 296241.7613 | D40: 24186.0114 | E40: 2774.6659 | F40: 731.315 | G40: 62.5561 | H40: 88.0008 | I40: 11 | J40: 55515.8145 | K40: 3444.2985
A41: 2016 | B41: 4 | C41: 296355.2476 | D41: 24189.4836 | E41: 2774.6659 | F41: 733.6276 | G41: 62.5856 | H41: 88.0008 | I41: 11 | J41: 55515.8145 | K41: 3444.2985
A42: 2016 | B42: 5 | C42: 296565.6466 | D42: 24195.7299 | E42: 2774.6659 | F42: 735.9414 | G42: 62.615 | H42: 88.0008 | I42: 11 | J42: 55515.8145 | K42: 3444.2985
A43: 2016 | B43: 6 | C43: 296989.6191 | D43: 24208.1224 | E43: 2774.6659 | F43: 738.2561 | G43: 62.6444 | H43: 88.0008 | I43: 11 | J43: 55515.8145 | K43: 3444.2985
A44: 2016 | B44: 7 | C44: 297343.1783 | D44: 24218.4627 | E44: 2774.6659 | F44: 740.5716 | G44: 62.6739 | H44: 88.0008 | I44: 11 | J44: 55515.8145 | K44: 3444.2985
A45: 2016 | B45: 8 | C45: 297694.4662 | D45: 24228.7211 | E45: 2774.6659 | F45: 742.8878 | G45: 62.7033 | H45: 88.0008 | I45: 11 | J45: 55515.8145 | K45: 3444.2985
A46: 2016 | B46: 9 | C46: 297907.5214 | D46: 24234.9733 | E46: 2774.6659 | F46: 745.2047 | G46: 62.7328 | H46: 88.0008 | I46: 11 | J46: 55515.8145 | K46: 3444.2985
A47: 2016 | B47: 10 | C47: 298591.6665 | D47: 24254.817 | E47: 2774.6659 | F47: 747.5221 | G47: 62.7623 | H47: 88.0008 | I47: 11 | J47: 55515.8145 | K47: 3444.2985
A48: 2016 | B48: 11 | C48: 298975.0792 | D48: 24265.9653 | E48: 2774.6659 | F48: 749.84 | G48: 62.7918 | H48: 88.0008 | I48: 11 | J48: 55515.8145 | K48: 3444.2985
A49: 2016 | B49: 12 | C49: 299296.2798 | D49: 24275.3075 | E49: 2774.6659 | F49: 752.1584 | G49: 62.8213 | H49: 88.0008 | I49: 11 | J49: 55515.8145 | K49: 3444.2985
A50: 2017 | B50: 1 | C50: 299875.073 | D50: 24292.08 | E50: 2774.6659 | F50: 754.4771 | G50: 62.8509 | H50: 88.0008 | I50: 11 | J50: 55515.8145 | K50: 3444.2985
A51: 2017 | B51: 2 | C51: 300051.9955 | D51: 24297.24 | E51: 2774.6659 | F51: 756.7962 | G51: 62.8804 | H51: 88.0008 | I51: 11 | J51: 55515.8145 | K51: 3444.2985
A52: 2017 | B52: 3 | C52: 300162.8951 | D52: 24300.487 | E52: 2774.6659 | F52: 759.1155 | G52: 62.91 | H52: 88.0008 | I52: 11 | J52: 55515.8145 | K52: 3444.2985
A53: 2017 | B53: 4 | C53: 300300.1469 | D53: 24304.4894 | E53: 2774.6659 | F53: 761.4351 | G53: 62.9395 | H53: 88.0008 | I53: 11 | J53: 55515.8145 | K53: 3444.2985
A54: 2017 | B54: 5 | C54: 300521.7257 | D54: 24310.9221 | E54: 2774.6659 | F54: 763.755 | G54: 62.9691 | H54: 88.0008 | I54: 11 | J54: 55515.8145 | K54: 3444.2985
A55: 2017 | B55: 6 | C55: 300929.7369 | D55: 24322.7344 | E55: 2774.6659 | F55: 766.075 | G55: 62.9987 | H55: 88.0008 | I55: 11 | J55: 55515.8145 | K55: 3444.2985
A56: 2017 | B56: 7 | C56: 301276.4793 | D56: 24332.7735 | E56: 2774.6659 | F56: 768.3952 | G56: 63.0283 | H56: 88.0008 | I56: 11 | J56: 55515.8145 | K56: 3444.2985
A57: 2017 | B57: 8 | C57: 301621.2453 | D57: 24342.7524 | E57: 2774.6659 | F57: 770.7155 | G57: 63.058 | H57: 88.0008 | I57: 11 | J57: 55515.8145 | K57: 3444.2985
A58: 2017 | B58: 9 | C58: 301846.2632 | D58: 24349.2703 | E58: 2774.6659 | F58: 773.036 | G58: 63.0876 | H58: 88.0008 | I58: 11 | J58: 55515.8145 | K58: 3444.2985
A59: 2017 | B59: 10 | C59: 302481.1918 | D59: 24367.6231 | E59: 2774.6659 | F59: 775.3566 | G59: 63.1173 | H59: 88.0008 | I59: 11 | J59: 55515.8145 | K59: 3444.2985
A60: 2017 | B60: 11 | C60: 302854.4432 | D60: 24378.417 | E60: 2774.6659 | F60: 777.6773 | G60: 63.147 | H60: 88.0008 | I60: 11 | J60: 55515.8145 | K60: 3444.2985
A61: 2017 | B61: 12 | C61: 303174.0214 | D61: 24387.6591 | E61: 2774.6659 | F61: 779.998 | G61: 63.1766 | H61: 88.0008 | I61: 11 | J61: 55515.8145 | K61: 3444.2985
A62: 2018 | B62: 1 | C62: 303717.7393 | D62: 24403.3721 | E62: 2774.6659 | F62: 782.3189 | G62: 63.2063 | H62: 88.0008 | I62: 11 | J62: 55515.8145 | K62: 3444.2985
A63: 2018 | B63: 2 | C63: 303911.7764 | D63: 24408.9857 | E63: 2774.6659 | F63: 784.6398 | G63: 63.2361 | H63: 88.0008 | I63: 11 | J63: 55515.8145 | K63: 3444.2985
A64: 2018 | B64: 3 | C64: 304048.7826 | D64: 24412.951 | E64: 2774.6659 | F64: 786.9608 | G64: 63.2658 | H64: 88.0008 | I64: 11 | J64: 55515.8145 | K64: 3444.2985
A65: 2018 | B65: 4 | C65: 304208.7186 | D65: 24417.5774 | E65: 2774.6659 | F65: 789.2818 | G65: 63.2955 | H65: 88.0008 | I65: 11 | J65: 55515.8145 | K65: 3444.2985
A66: 2018 | B66: 5 | C66: 304442.0303 | D66: 24424.3217 | E66: 2774.6659 | F66: 791.6029 | G66: 63.3253 | H66: 88.0008 | I66: 11 | J66: 55515.8145 | K66: 3444.2985
A67: 2018 | B67: 6 | C67: 304837.9076 | D67: 24435.7598 | E67: 2774.6659 | F67: 793.924 | G67: 63.355 | H67: 88.0008 | I67: 11 | J67: 55515.8145 | K67: 3444.2985
A68: 2018 | B68: 7 | C68: 305180.4729 | D68: 24445.6575 | E68: 2774.6659 | F68: 796.2452 | G68: 63.3848 | H68: 88.0008 | I68: 11 | J68: 55515.8145 | K68: 3444.2985
A69: 2018 | B69: 8 | C69: 305521.3185 | D69: 24455.505 | E69: 2774.6659 | F69: 798.5664 | G69: 63.4146 | H69: 88.0008 | I69: 11 | J69: 55515.8145 | K69: 3444.2985
A70: 2018 | B70: 9 | C70: 305758.2597 | D70: 24462.3513 | E70: 2774.6659 | F70: 800.8876 | G70: 63.4444 | H70: 88.0008 | I70: 11 | J70: 55515.8145 | K70: 3444.2985
A71: 2018 | B71: 10 | C71: 306351.8776 | D71: 24479.4973 | E71: 2774.6659 | F71: 803.2088 | G71: 63.4743 | H71: 88.0008 | I71: 11 | J71: 55515.8145 | K71: 3444.2985
A72: 2018 | B72: 11 | C72: 306717.8016 | D72: 24490.0675 | E72: 2774.6659 | F72: 805.5301 | G72: 63.5041 | H72: 88.0008 | I72: 11 | J72: 55515.8145 | K72: 3444.2985
A73: 2018 | B73: 12 | C73: 307033.0475 | D73: 24499.1738 | E73: 2774.6659 | F73: 807.8514 | G73: 63.534 | H73: 88.0008 | I73: 11 | J73: 55515.8145 | K73: 3444.2985
A74: 2019 | B74: 1 | C74: 307543.3247 | D74: 24513.9119 | E74: 2774.6659 | F74: 810.1727 | G74: 63.5638 | H74: 88.0008 | I74: 11 | J74: 55515.8145 | K74: 3444.2985
A75: 2019 | B75: 2 | C75: 307749.3331 | D75: 24519.863 | E75: 2774.6659 | F75: 812.494 | G75: 63.5937 | H75: 88.0008 | I75: 11 | J75: 55515.8145 | K75: 3444.2985
A76: 2019 | B76: 3 | C76: 307905.813 | D76: 24524.3836 | E76: 2774.6659 | F76: 814.8153 | G76: 63.6236 | H76: 88.0008 | I76: 11 | J76: 55515.8145 | K76: 3444.2985
A77: 2019 | B77: 4 | C77: 308082.245 | D77: 24529.4801 | E77: 2774.6659 | F77: 817.1366 | G77: 63.6535 | H77: 88.0008 | I77: 11 | J77: 55515.8145 | K77: 3444.2985
A78: 2019 | B78: 5 | C78: 308322.5235 | D78: 24536.4202 | E78: 2774.6659 | F78: 819.458 | G78: 63.6834 | H78: 88.0008 | I78: 11 | J78: 55515.8145 | K78: 3444.2985
A79: 2019 | B79: 6 | C79: 308704.3518 | D79: 24547.4479 | E79: 2774.6659 | F79: 821.7793 | G79: 63.7134 | H79: 88.0008 | I79: 11 | J79: 55515.8145 | K79: 3444.2985
A80: 2019 | B80: 7 | C80: 309039.7917 | D80: 24557.1357 | E80: 2774.6659 | F80: 824.1007 | G80: 63.7433 | H80: 88.0008 | I80: 11 | J80: 55515.8145 | K80: 3444.2985
A81: 2019 | B81: 8 | C81: 309373.7351 | D81: 24566.7802 | E81: 2774.6659 | F81: 826.4221 | G81: 63.7733 | H81: 88.0008 | I81: 11 | J81: 55515.8145 | K81: 3444.2985
A82: 2019 | B82: 9 | C82: 309617.3645 | D82: 24573.8166 | E82: 2774.6659 | F82: 828.7434 | G82: 63.8033 | H82: 88.0008 | I82: 11 | J82: 55515.8145 | K82: 3444.2985
A83: 2019 | B83: 10 | C83: 310171.3499 | D83: 24589.8152 | E83: 2774.6659 | F83: 831.0648 | G83: 63.8333 | H83: 88.0008 | I83: 11 | J83: 55515.8145 | K83: 3444.2985
A84: 2019 | B84: 11 | C84: 310527.2114 | D84: 24600.0924 | E84: 2774.6659 | F84: 833.3862 | G84: 63.8633 | H84: 88.0008 | I84: 11 | J84: 55515.8145 | K84: 3444.2985
A85: 2019 | B85: 12 | C85: 310839.0729 | D85: 24609.0989 | E85: 2774.6659 | F85: 835.7076 | G85: 63.8933 | H85: 88.0008 | I85: 11 | J85: 55515.8145 | K85: 3444.2985
A86: 2020 | B86: 1 | C86: 311320.6375 | D86: 24623.006 | E86: 2774.6659 | F86: 838.0289 | G86: 63.9233 | H86: 88.0008 | I86: 11 | J86: 55515.8145 | K86: 3444.2985
A87: 2020 | B87: 2 | C87: 311537.4479 | D87: 24629.2674 | E87: 2774.6659 | F87: 840.3503 | G87: 63.9534 | H87: 88.0008 | I87: 11 | J87: 55515.8145 | K87: 3444.2985
A88: 2020 | B88: 3 | C88: 311711.2589 | D88: 24634.2871 | E88: 2774.6659 | F88: 842.6717 | G88: 63.9835 | H88: 88.0008 | I88: 11 | J88: 55515.8145 | K88: 3444.2985
A89: 2020 | B89: 4 | C89: 311902.4308 | D89: 24639.808 | E89: 2774.6659 | F89: 844.9931 | G89: 64.0135 | H89: 88.0008 | I89: 11 | J89: 55515.8145 | K89: 3444.2985
A90: 2020 | B90: 5 | C90: 312149.1576 | D90: 24646.9333 | E90: 2774.6659 | F90: 847.3145 | G90: 64.0436 | H90: 88.0008 | I90: 11 | J90: 55515.8145 | K90: 3444.2985
A91: 2020 | B91: 6 | C91: 312519.1489 | D91: 24657.6181 | E91: 2774.6659 | F91: 849.6359 | G91: 64.0737 | H91: 88.0008 | I91: 11 | J91: 55515.8145 | K91: 3444.2985
A92: 2020 | B92: 7 | C92: 312848.776 | D92: 24667.1373 | E92: 2774.6659 | F92: 851.9573 | G92: 64.1039 | H92: 88.0008 | I92: 11 | J92: 55515.8145 | K92: 3444.2985
A93: 2020 | B93: 8 | C93: 313177.101 | D93: 24676.6189 | E93: 2774.6659 | F93: 854.2787 | G93: 64.134 | H93: 88.0008 | I93: 11 | J93: 55515.8145 | K93: 3444.2985
A94: 2020 | B94: 9 | C94: 313426.9382 | D94: 24683.8338 | E94: 2774.6659 | F94: 856.6001 | G94: 64.1642 | H94: 88.0008 | I94: 11 | J94: 55515.8145 | K94: 3444.2985
A95: 2020 | B95: 10 | C95: 313946.8264 | D95: 24698.8473 | E95: 2774.6659 | F95: 858.9215 | G95: 64.1943 | H95: 88.0008 | I95: 11 | J95: 55515.8145 | K95: 3444.2985
A96: 2020 | B96: 11 | C96: 314294.3205 | D96: 24708.8823 | E96: 2774.6659 | F96: 861.2429 | G96: 64.2245 | H96: 88.0008 | I96: 11 | J96: 55515.8145 | K96: 3444.2985
A97: 2020 | B97: 12 | C97: 314603.6265 | D97: 24717.8146 | E97: 2774.6659 | F97: 863.5643 | G97: 64.2547 | H97: 88.0008 | I97: 11 | J97: 55515.8145 | K97: 3444.2985

Sheet Demand
A1: Year | B1: Period | C1: mFcstT.GS1000NI_KW | D1: mFcstT.GS1000I_KW | E1: mFcstT.GS1500_KW | F1: mFcstT.GS5000_KW | G1: mFcstT.GSLrg_KW | H1: mFcstT.StLight_KW
A2: 2013 | B2: 1 | C2: 387717 | D2: 210331 | E2: 59237 | F2: 149552 | G2: 121622 | H2: 10302
A3: 2013 | B3: 2 | C3: 303229 | D3: 212578 | E3: 61246 | F3: 132813 | G3: 59452 | H3: 10320
A4: 2013 | B4: 3 | C4: 310285 | D4: 200048 | E4: 57918 | F4: 141685 | G4: 88071 | H4: 10341
A5: 2013 | B5: 4 | C5: 341987 | D5: 207313 | E5: 60588 | F5: 145715 | G5: 83943 | H5: 10344
A6: 2013 | B6: 5 | C6: 345238 | D6: 206529 | E6: 61057 | F6: 145717 | G6: 100994 | H6: 10344
A7: 2013 | B7: 6 | C7: 302796 | D7: 254033 | E7: 70296 | F7: 191749 | G7: 116529 | H7: 10334
A8: 2013 | B8: 7 | C8: 349778 | D8: 239914 | E8: 68842 | F8: 179004 | G8: 109272 | H8: 10339
A9: 2013 | B9: 8 | C9: 265764 | D9: 225593 | E9: 65974 | F9: 166323 | G9: 101855 | H9: 10338
A10: 2013 | B10: 9 | C10: 311107 | D10: 219886 | E10: 66094 | F10: 164605 | G10: 89927 | H10: 10338
A11: 2013 | B11: 10 | C11: 351710 | D11: 211650 | E11: 62986 | F11: 157586 | G11: 101280 | H11: 10332
A12: 2013 | B12: 11 | C12: 309510 | D12: 205740 | E12: 63191 | F12: 147288 | G12: 86893 | H12: 10332
A13: 2013 | B13: 12 | C13: 352336 | D13: 209461 | E13: 61010 | F13: 144835 | G13: 75503 | H13: 10282
A14: 2014 | B14: 1 | C14: 346845 | D14: 212855 | E14: 59049 | F14: 146860 | G14: 91983 | H14: 10283
A15: 2014 | B15: 2 | C15: 325614 | D15: 212587 | E15: 59228 | F15: 151622 | G15: 76181 | H15: 9887
A16: 2014 | B16: 3 | C16: 215991 | D16: 196230 | E16: 57567 | F16: 137500 | G16: 79598 | H16: 10220
A17: 2014 | B17: 4 | C17: 357675 | D17: 198743 | E17: 58107 | F17: 138480 | G17: 102647 | H17: 10262
A18: 2014 | B18: 5 | C18: 332677 | D18: 226694 | E18: 60700 | F18: 155673 | G18: 97922 | H18: 10262
A19: 2014 | B19: 6 | C19: 289718 | D19: 232563 | E19: 62958 | F19: 166541 | G19: 99618 | H19: 10262
A20: 2014 | B20: 7 | C20: 351455.41 | D20: 231978.81 | E20: 64565.43 | F20: 165813.77 | G20: 99433.72 | H20: 10261.61
A21: 2014 | B21: 8 | C21: 276105.08 | D21: 220298.75 | E21: 63319.87 | F21: 163696.69 | G21: 98382.72 | H21: 10261.61
A22: 2014 | B22: 9 | C22: 267324.1069 | D22: 201083.6436 | E22: 60581.3856 | F22: 155239.429 | G22: 97501.1608 | H22: 10261.5861
A23: 2014 | B23: 10 | C23: 298918.7679 | D23: 209726.6815 | E23: 61452.2387 | F23: 156388.7247 | G23: 97414.133 | H23: 10261.5861
A24: 2014 | B24: 11 | C24: 345059.3921 | D24: 212654.0183 | E24: 63612.1524 | F24: 150090.7118 | G24: 84281.6955 | H24: 10261.5861
A25: 2014 | B25: 12 | C25: 365768.4463 | D25: 220387.6892 | E25: 63906.2464 | F25: 148139.1854 | G25: 87890.7554 | H25: 10261.5861
A26: 2015 | B26: 1 | C26: 367285.0609 | D26: 224432.3058 | E26: 63938.6606 | F26: 155871.8549 | G26: 91702.249 | H26: 10261.5861
A27: 2015 | B27: 2 | C27: 293078.128 | D27: 200082.4423 | E27: 57742.119 | F27: 136722.6334 | G27: 78493.6031 | H27: 10261.5861
A28: 2015 | B28: 3 | C28: 295259.0929 | D28: 201002.6469 | E28: 60519.4431 | F28: 146565.6977 | G28: 85944.6206 | H28: 10261.5861
A29: 2015 | B29: 4 | C29: 264059.3607 | D29: 190143.5751 | E29: 54859.3546 | F29: 140411.3878 | G29: 84546.353 | H29: 10261.5861
A30: 2015 | B30: 5 | C30: 260382.1799 | D30: 211874.2895 | E30: 67243.2031 | F30: 164525.344 | G30: 98023.5114 | H30: 10261.5861
A31: 2015 | B31: 6 | C31: 325741.4785 | D31: 241667.5635 | E31: 70055.1961 | F31: 174376.7555 | G31: 108056.1885 | H31: 10261.5861
A32: 2015 | B32: 7 | C32: 340720.6978 | D32: 257728.9818 | E32: 69902.8098 | F32: 176387.2099 | G32: 105345.0655 | H32: 10261.5861
A33: 2015 | B33: 8 | C33: 297411.3731 | D33: 227148.2854 | E33: 64657.0248 | F33: 169672.5499 | G33: 103086.8862 | H33: 10261.5861
A34: 2015 | B34: 9 | C34: 260276.1149 | D34: 207761.6195 | E34: 60652.9524 | F34: 157869.738 | G34: 97195.1619 | H34: 10261.5861
A35: 2015 | B35: 10 | C35: 291970.5031 | D35: 215081.8838 | E35: 61594.748 | F35: 159252.7119 | G35: 97263.857 | H35: 10261.5861
A36: 2015 | B36: 11 | C36: 337905.7522 | D36: 217284.8244 | E36: 63759.6275 | F36: 153002.4229 | G36: 84169.6991 | H36: 10261.5861
A37: 2015 | B37: 12 | C37: 358958.8319 | D37: 224560.7393 | E37: 64037.5681 | F37: 150902.7229 | G37: 87801.374 | H37: 10261.5861
A38: 2016 | B38: 1 | C38: 360354.6504 | D38: 228205.9552 | E38: 64012.7458 | F38: 158712.0285 | G38: 91613.8496 | H38: 10261.5861
A39: 2016 | B39: 2 | C39: 296340.7833 | D39: 207336.6818 | E39: 59162.932 | F39: 144796.1971 | G39: 78857.3262 | H39: 10261.5861
A40: 2016 | B40: 3 | C40: 288580.604 | D40: 204092.8348 | E40: 60472.4667 | F40: 149316.1485 | G40: 85873.9727 | H40: 10261.5861
A41: 2016 | B41: 4 | C41: 256887.3125 | D41: 193142.8285 | E41: 54766.1278 | F41: 143165.3903 | G41: 84515.2451 | H41: 10261.5861
A42: 2016 | B42: 5 | C42: 252330.3441 | D42: 215309.4513 | E42: 67149.2018 | F42: 167720.1799 | G42: 97985.4405 | H42: 10261.5861
A43: 2016 | B43: 6 | C43: 316757.9265 | D43: 244975.3596 | E43: 69868.6247 | F43: 177583.6389 | G43: 108005.3562 | H43: 10261.5861
A44: 2016 | B44: 7 | C44: 332057.8407 | D44: 260604.606 | E44: 69654.3882 | F44: 179472.7637 | G44: 105284.6372 | H44: 10261.5861
A45: 2016 | B45: 8 | C45: 289230.9377 | D45: 229682.941 | E45: 64372.4108 | F45: 172769.9093 | G45: 103039.7118 | H45: 10261.5861
A46: 2016 | B46: 9 | C46: 251786.2841 | D46: 210271.9921 | E46: 60331.9676 | F46: 160998.509 | G46: 97170.4738 | H46: 10261.5861
A47: 2016 | B47: 10 | C47: 283072.8628 | D47: 217526.4407 | E47: 61247.833 | F47: 162441.5416 | G47: 97239.951 | H47: 10261.5861
A48: 2016 | B48: 11 | C48: 328264.8973 | D48: 219435.7349 | E48: 63326.666 | F48: 156152.177 | G48: 84122.4477 | H48: 10261.5861
A49: 2016 | B49: 12 | C49: 349508.8202 | D49: 226449.5108 | E49: 63580.5755 | F49: 153880.129 | G49: 87741.8761 | H49: 10261.5861
A50: 2017 | B50: 1 | C50: 350590.595 | D50: 229742.2273 | E50: 63484.5905 | F50: 161556.8147 | G50: 91520.5157 | H50: 10261.5861
A51: 2017 | B51: 2 | C51: 276778.7884 | D51: 204562.417 | E51: 57107.7434 | F51: 141863.6969 | G51: 78344.0011 | H51: 10261.5861
A52: 2017 | B52: 3 | C52: 279733.6023 | D52: 205433.7462 | E52: 59934.762 | F52: 152087.8501 | G52: 85775.3507 | H52: 10261.5861
A53: 2017 | B53: 4 | C53: 247740.7762 | D53: 194582.4833 | E53: 54242.4769 | F53: 145942.6973 | G53: 84446.0625 | H53: 10261.5861
A54: 2017 | B54: 5 | C54: 242451.9971 | D54: 217285.9824 | E54: 66625.2282 | F54: 170933.9911 | G54: 97892.1437 | H54: 10261.5861
A55: 2017 | B55: 6 | C55: 306020.4261 | D55: 246899.0118 | E55: 69299.6843 | F55: 180779.6914 | G55: 107875.0725 | H55: 10261.5861
A56: 2017 | B56: 7 | C56: 321901.5688 | D56: 262277.5471 | E56: 69087.6419 | F56: 182528.9579 | G56: 105140.2929 | H56: 10261.5861
A57: 2017 | B57: 8 | C57: 279881.3874 | D57: 231264.4386 | E57: 63830.3033 | F57: 175839.5972 | G57: 102906.3279 | H57: 10261.5861
A58: 2017 | B58: 9 | C58: 242362.2697 | D58: 212038.3899 | E58: 59804.0721 | F58: 164110.2439 | G58: 97064.3443 | H58: 10261.5861
A59: 2017 | B59: 10 | C59: 273355.7094 | D59: 219381.4605 | E59: 60741.6889 | F59: 165606.6982 | G59: 97138.4057 | H59: 10261.5861
A60: 2017 | B60: 11 | C60: 317880.9425 | D60: 221147.3098 | E60: 62773.5084 | F60: 159260.2567 | G60: 83992.0512 | H60: 10261.5861
A61: 2017 | B61: 12 | C61: 339475.3937 | D61: 228044.0058 | E61: 63052.3347 | F61: 156822.6585 | G61: 87633.184 | H61: 10261.5861
A62: 2018 | B62: 1 | C62: 341289.1151 | D62: 231400.9134 | E62: 63010.3576 | F62: 164569.3069 | G62: 91373.3195 | H62: 10261.5861
A63: 2018 | B63: 2 | C63: 267878.4131 | D63: 205976.3336 | E63: 56578.7253 | F63: 144593.5436 | G63: 78232.2564 | H63: 10261.5861
A64: 2018 | B64: 3 | C64: 271537.8365 | D64: 207057.976 | E64: 59498.4322 | F64: 155075.3026 | G64: 85678.2655 | H64: 10261.5861
A65: 2018 | B65: 4 | C65: 239293.4573 | D65: 196348.7677 | E65: 53830.1329 | F65: 148925.1798 | G65: 84377.4741 | H65: 10261.5861
A66: 2018 | B66: 5 | C66: 233415.328 | D66: 219653.7199 | E66: 66242.3219 | F66: 174364.5348 | G66: 97785.5965 | H66: 10261.5861
A67: 2018 | B67: 6 | C67: 296293.015 | D67: 249303.3238 | E67: 68890.0654 | F67: 184186.3434 | G67: 107710.6802 | H67: 10261.5861
A68: 2018 | B68: 7 | C68: 312926.4215 | D68: 264563.3978 | E68: 68710.7949 | F68: 185831.1112 | G68: 104975.8604 | H68: 10261.5861
A69: 2018 | B69: 8 | C69: 271682.4723 | D69: 233491.3217 | E69: 63488.345 | F69: 179159.6226 | G69: 102768.6046 | H69: 10261.5861
A70: 2018 | B70: 9 | C70: 234041.7878 | D70: 214445.9548 | E70: 59479.6807 | F70: 167443.4016 | G70: 96960.5816 | H70: 10261.5861
A71: 2018 | B71: 10 | C71: 264879.3735 | D71: 221954.1768 | E71: 60457.9167 | F71: 169002.5789 | G71: 97049.4806 | H71: 10261.5861
A72: 2018 | B72: 11 | C72: 308836.1147 | D72: 223603.3176 | E72: 62458.9617 | F72: 162580.9351 | G72: 83870.1385 | H72: 10261.5861
A73: 2018 | B73: 12 | C73: 330813.2314 | D73: 230428.9423 | E73: 62769.6237 | F73: 159955.5617 | G73: 87518.3695 | H73: 10261.5861
A74: 2019 | B74: 1 | C74: 333956.5007 | D74: 234037.7435 | E74: 62823.8589 | F74: 167896.9052 | G74: 91197.977 | H74: 10261.5861
A75: 2019 | B75: 2 | C75: 260586.3696 | D75: 208261.3205 | E75: 56311.1804 | F75: 147594.2472 | G75: 78087.6524 | H75: 10261.5861
A76: 2019 | B76: 3 | C76: 264784.2558 | D76: 209474.4174 | E76: 59301.65 | F76: 158330.0409 | G76: 85535.054 | H76: 10261.5861
A77: 2019 | B77: 4 | C77: 232049.2146 | D77: 198797.7942 | E77: 53623.4775 | F77: 152140.5128 | G77: 84250.7392 | H77: 10261.5861
A78: 2019 | B78: 5 | C78: 225488.2237 | D78: 222659.7254 | E78: 66069.9126 | F78: 178035.9078 | G78: 97599.1427 | H78: 10261.5861
A79: 2019 | B79: 6 | C79: 287709.3705 | D79: 252368.919 | E79: 68685.068 | F79: 187850.3653 | G79: 107450.1208 | H79: 10261.5861
A80: 2019 | B80: 7 | C80: 305026.6156 | D80: 267483.4463 | E80: 68522.2003 | F80: 189388.7384 | G80: 104711.1373 | H80: 10261.5861
A81: 2019 | B81: 8 | C81: 264305.9059 | D81: 236217.6006 | E81: 63298.8506 | F81: 182696.1892 | G81: 102514.409 | H81: 10261.5861
A82: 2019 | B82: 9 | C82: 226318.3273 | D82: 217220.9814 | E82: 59271.8609 | F82: 170939.8536 | G82: 96721.0223 | H82: 10261.5861
A83: 2019 | B83: 10 | C83: 256968.438 | D83: 224833.8333 | E83: 60268.7889 | F83: 172535.5723 | G83: 96808.7332 | H83: 10261.5861
A84: 2019 | B84: 11 | C84: 300383.3616 | D84: 226327.7865 | E84: 62226.9974 | F84: 166025.1216 | G84: 83579.6096 | H84: 10261.5861
A85: 2019 | B85: 12 | C85: 322827.4245 | D85: 233057.7419 | E85: 62558.4262 | F85: 163219.4266 | G85: 87245.7402 | H85: 10261.5861
A86: 2020 | B86: 1 | C86: 326370.3608 | D86: 236631.1282 | E86: 62602.4362 | F86: 170973.7608 | G86: 90886.6618 | H86: 10261.5861
A87: 2020 | B87: 2 | C87: 263820.2979 | D87: 214839.5163 | E87: 57567.9841 | F87: 156297.0645 | G87: 78215.0429 | H87: 10261.5861
A88: 2020 | B88: 3 | C88: 257716.2465 | D88: 211814.0868 | E88: 59065.3422 | F88: 161345.7799 | G88: 85268.221 | H88: 10261.5861
A89: 2020 | B89: 4 | C89: 224420.4863 | D89: 201164.8562 | E89: 53379.2879 | F89: 155137.2027 | G89: 84014.2989 | H89: 10261.5861
A90: 2020 | B90: 5 | C90: 217081.7072 | D90: 225577.5721 | E90: 65856.8251 | F90: 181478.3823 | G90: 97313.9006 | H90: 10261.5861
A91: 2020 | B91: 6 | C91: 278721.7773 | D91: 255384.2993 | E91: 68454.6775 | F91: 191313.4335 | G91: 107090.3794 | H91: 10261.5861
A92: 2020 | B92: 7 | C92: 296793.4851 | D92: 270365.0202 | E92: 68314.0097 | F92: 192761.1588 | G92: 104353.513 | H92: 10261.5861
A93: 2020 | B93: 8 | C93: 256604.1355 | D93: 238888.3592 | E93: 63086.0666 | F93: 186049.603 | G93: 102170.0522 | H93: 10261.5861
A94: 2020 | B94: 9 | C94: 218247.501 | D94: 219925.148 | E94: 59035.4006 | F94: 174260.7442 | G94: 96402.8821 | H94: 10261.5861
A95: 2020 | B95: 10 | C95: 248753.4463 | D95: 227640.0802 | E95: 60049.341 | F95: 175894.1856 | G95: 96495.7983 | H95: 10261.5861
A96: 2020 | B96: 11 | C96: 291774.8864 | D96: 229020.5805 | E96: 61974.5125 | F96: 169318.768 | G96: 83224.2588 | H96: 10261.5861
A97: 2020 | B97: 12 | C97: 314807.6747 | D97: 235676.6874 | E97: 62330.6844 | F97: 166338.9987 | G97: 86907.4953 | H97: 10261.5861

Sheet System
A1: Year | B1: Period | C1: MoFcstT.Sys_PeakSAE | D1: MoFcstT.Sys_MWh | E1: MoFcstT.Sys_MWhWN
A2: 2013 | B2: 1 | C2: 1283.1817 | D2: 732740.523 | E2: 740186.4933
A3: 2013 | B3: 2 | C3: 1208.5504 | D3: 656000.629 | E3: 660493.558
A4: 2013 | B4: 3 | C4: 1038.0026 | D4: 652994.904 | E4: 653941.8749
A5: 2013 | B5: 4 | C5: 995.8011 | D5: 590500.222 | E5: 586919.7872
A6: 2013 | B6: 5 | C6: 1264.1083 | D6: 598724.263 | E6: 594572.0287
A7: 2013 | B7: 6 | C7: 1273.5979 | D7: 605978.157 | E7: 636350.446
A8: 2013 | B8: 7 | C8: 1427.2117 | D8: 714509.145 | E8: 703934.1721
A9: 2013 | B9: 8 | C9: 1283.3157 | D9: 648088.471 | E9: 673393.8088
A10: 2013 | B10: 9 | C10: 1107.9516 | D10: 568713.323 | E10: 578565.828
A11: 2013 | B11: 10 | C11: 961.9892 | D11: 592923.094 | E11: 597432.6898
A12: 2013 | B12: 11 | C12: 1083.9157 | D12: 632628.713 | E12: 620846.1521
A13: 2013 | B13: 12 | C13: 1219.5882 | D13: 728350.197 | E13: 706026.7231
A14: 2014 | B14: 1 | C14: 1254.2398 | D14: 748086.697 | E14: 740262.9833
A15: 2014 | B15: 2 | C15: 1145.62 | D15: 652079.599 | E15: 645207.3488
A16: 2014 | B16: 3 | C16: 1111.4343 | D16: 683695.232 | E16: 654619.2491
A17: 2014 | B17: 4 | C17: 946.8514 | D17: 579791.271 | E17: 575809.7896
A18: 2014 | B18: 5 | C18: 1038.2575 | D18: 569901.763 | E18: 576966.6887
A19: 2014 | B19: 6 | C19: 1303.6529 | D19: 620351.917 | E19: 618273.9101
A20: 2014 | B20: 7 | C20: 1283.3538 | D20: 654340.741 | E20: 698897.7933
A21: 2014 | B21: 8 | C21: 1241.8283 | D21: 632491.9365 | E21: 655144.4349
A22: 2014 | B22: 9 | C22: 1100.9747 | D22: 584901.2634
A23: 2014 | B23: 10 | C23: 968.4433 | D23: 604980.5847
A24: 2014 | B24: 11 | C24: 1097.5873 | D24: 630371.2174
A25: 2014 | B25: 12 | C25: 1204.7939 | D25: 692901.8255
A26: 2015 | B26: 1 | C26: 1235.5036 | D26: 741245.3315
A27: 2015 | B27: 2 | C27: 1199.5511 | D27: 655863.9086
A28: 2015 | B28: 3 | C28: 1110.7971 | D28: 665076.8297
A29: 2015 | B29: 4 | C29: 955.9361 | D29: 584775.2492
A30: 2015 | B30: 5 | C30: 1222.8702 | D30: 588005.1777
A31: 2015 | B31: 6 | C31: 1323.731 | D31: 634690.9599
A32: 2015 | B32: 7 | C32: 1388.1345 | D32: 692759.2816
A33: 2015 | B33: 8 | C33: 1319.4753 | D33: 661356.2578
A34: 2015 | B34: 9 | C34: 1106.9648 | D34: 587983.1735
A35: 2015 | B35: 10 | C35: 974.1132 | D35: 607923.0063
A36: 2015 | B36: 11 | C36: 1103.1576 | D36: 633079.3714
A37: 2015 | B37: 12 | C37: 1210.109 | D37: 695515.7116
A38: 2016 | B38: 1 | C38: 1238.5481 | D38: 742076.4861
A39: 2016 | B39: 2 | C39: 1186.2964 | D39: 669610.7564
A40: 2016 | B40: 3 | C40: 1115.1735 | D40: 666755.6122
A41: 2016 | B41: 4 | C41: 961.0933 | D41: 587069.6587
A42: 2016 | B42: 5 | C42: 1228.3718 | D42: 590851.0995
A43: 2016 | B43: 6 | C43: 1329.1403 | D43: 637532.8828
A44: 2016 | B44: 7 | C44: 1393.6336 | D44: 695826.6476
A45: 2016 | B45: 8 | C45: 1325.4206 | D45: 664601.1629
A46: 2016 | B46: 9 | C46: 1113.116 | D46: 591141.1922
A47: 2016 | B47: 10 | C47: 980.1997 | D47: 610911.1318
A48: 2016 | B48: 11 | C48: 1108.922 | D48: 635557.9499
A49: 2016 | B49: 12 | C49: 1215.0325 | D49: 697452.2895
A50: 2017 | B50: 1 | C50: 1242.6016 | D50: 743474.5453
A51: 2017 | B51: 2 | C51: 1207.4243 | D51: 658168.2366
A52: 2017 | B52: 3 | C52: 1120.2101 | D52: 668787.2784
A53: 2017 | B53: 4 | C53: 966.8199 | D53: 589656.398
A54: 2017 | B54: 5 | C54: 1234.3873 | D54: 593975.7199
A55: 2017 | B55: 6 | C55: 1335.2645 | D55: 640708.6943
A56: 2017 | B56: 7 | C56: 1400.0599 | D56: 699280.0803
A57: 2017 | B57: 8 | C57: 1332.004 | D57: 668133.5491
A58: 2017 | B58: 9 | C58: 1119.5531 | D58: 594441.9625
A59: 2017 | B59: 10 | C59: 986.4357 | D59: 613961.0402
A60: 2017 | B60: 11 | C60: 1114.7584 | D60: 638033.6379
A61: 2017 | B61: 12 | C61: 1220.1205 | D61: 699434.772
A62: 2018 | B62: 1 | C62: 1251.2895 | D62: 747781.5747
A63: 2018 | B63: 2 | C63: 1216.3474 | D63: 662157.9857
A64: 2018 | B64: 3 | C64: 1129.4791 | D64: 673463.6622
A65: 2018 | B65: 4 | C65: 976.4161 | D65: 594473.7056
A66: 2018 | B66: 5 | C66: 1244.2566 | D66: 599240.2838
A67: 2018 | B67: 6 | C67: 1346.0728 | D67: 646205.0178
A68: 2018 | B68: 7 | C68: 1411.9655 | D68: 705308.2846
A69: 2018 | B69: 8 | C69: 1343.3744 | D69: 674042.1444
A70: 2018 | B70: 9 | C70: 1129.8863 | D70: 599775.8887
A71: 2018 | B71: 10 | C71: 996.4634 | D71: 619219.5637
A72: 2018 | B72: 11 | C72: 1124.6738 | D72: 642949.0176
A73: 2018 | B73: 12 | C73: 1229.6535 | D73: 704229.1704
A74: 2019 | B74: 1 | C74: 1261.677 | D74: 753331.8144
A75: 2019 | B75: 2 | C75: 1226.697 | D75: 667147.2028
A76: 2019 | B76: 3 | C76: 1139.7871 | D76: 678964.7389
A77: 2019 | B77: 4 | C77: 986.7075 | D77: 599803.6369
A78: 2019 | B78: 5 | C78: 1254.6572 | D78: 604834.0182
A79: 2019 | B79: 6 | C79: 1357.5713 | D79: 652021.6382
A80: 2019 | B80: 7 | C80: 1424.6978 | D80: 711661.9639
A81: 2019 | B81: 8 | C81: 1355.2124 | D81: 680144.933
A82: 2019 | B82: 9 | C82: 1140.283 | D82: 605152.7987
A83: 2019 | B83: 10 | C83: 1006.4199 | D83: 624534.5964
A84: 2019 | B84: 11 | C84: 1134.5155 | D84: 647995.2016
A85: 2019 | B85: 12 | C85: 1239.3834 | D85: 709363.6102
A86: 2020 | B86: 1 | C86: 1269.7091 | D86: 757725.0104
A87: 2020 | B87: 2 | C87: 1218.0174 | D87: 684499.6261
A88: 2020 | B88: 3 | C88: 1147.8584 | D88: 683366.8822
A89: 2020 | B89: 4 | C89: 994.8276 | D89: 604068.5625
A90: 2020 | B90: 5 | C90: 1263.0469 | D90: 609368.3535
A91: 2020 | B91: 6 | C91: 1367.3799 | D91: 656946.0462
A92: 2020 | B92: 7 | C92: 1436.019 | D92: 717200.6302
A93: 2020 | B93: 8 | C93: 1365.5881 | D93: 685429.6988
A94: 2020 | B94: 9 | C94: 1149.0439 | D94: 609686.654
A95: 2020 | B95: 10 | C95: 1014.6773 | D95: 629002.5053
A96: 2020 | B96: 11 | C96: 1142.6957 | D96: 652303.447
A97: 2020 | B97: 12 | C97: 1247.5239 | D97: 713814.6661

Sheet Monthly Sales & Demand
A1: Row Offset | B1: 0 | C1: =B1+1 -> 1 | D1: =C1+1 -> 2 | E1: 3 | F1: 4 | G1: 5 | H1: 6 | I1: 7 | J1: 8 | K1: 9 | L1: 10 | M1: 11 | N1: 12 | O1: 13 | P1: 14 | Q1: 15 | R1: 16 | S1: 17 | T1: 18 | U1: 19 | V1: 20 | W1: 21 | X1: 22 | Y1: 23 | Z1: 24 | AA1: 25 | AB1: 26 | AC1: 27 | AD1: 28 | AE1: 29 | AF1: 30 | AG1: 31 | AH1: 32 | AI1: 33 | AJ1: 34 | AK1: 35 | AL1: 36 | AM1: 37 | AN1: 38 | AO1: 39 | AP1: 40 | AQ1: 41 | AR1: 42 | AS1: 43 | AT1: 44 | AU1: 45 | AV1: 46 | AW1: 47 | AX1: 48 | AY1: 49 | AZ1: 50 | BA1: 51 | BB1: 52 | BC1: 53 | BD1: 54 | BE1: 55 | BF1: 56 | BG1: 57 | BH1: 58 | BI1: 59 | BJ1: 60 | BK1: 61 | BL1: 62 | BM1: 63 | BN1: 64 | BO1: 65 | BP1: =BO1+1 -> 66 | BQ1: 67 | BR1: 68 | BS1: 69 | BT1: 70 | BU1: 71 | BV1: 72 | BW1: 73 | BX1: 74 | BY1: 75 | BZ1: 76 | CA1: 77 | CB1: 78 | CC1: 79 | CD1: 80 | CE1: 81 | CF1: 82 | CG1: 83 | CH1: =CG1+1 -> 84 | CI1: =CH1+1 -> 85 | CJ1: =CI1+1 -> 86 | CK1: =CJ1+1 -> 87 | CL1: =CK1+1 -> 88 | CM1: =CL1+1 -> 89 | CN1: =CM1+1 -> 90 | CO1: =CN1+1 -> 91 | CP1: =CO1+1 -> 92 | CQ1: =CP1+1 -> 93 | CR1: =CQ1+1 -> 94 | CS1: =CR1+1 -> 95
A2: Year | B2: =OFFSET('CalMnth Sales'!$A$2,B1,$B$1) -> 2013 | C2: =OFFSET('CalMnth Sales'!$A$2,C1,$B$1) -> 2013 | D2: =OFFSET('CalMnth Sales'!$A$2,D1,$B$1) -> 2013 | E2: =OFFSET('CalMnth Sales'!$A$2,E1,$B$1) -> 2013 | F2: =OFFSET('CalMnth Sales'!$A$2,F1,$B$1) -> 2013 | G2: =OFFSET('CalMnth Sales'!$A$2,G1,$B$1) -> 2013 | H2: =OFFSET('CalMnth Sales'!$A$2,H1,$B$1) -> 2013 | I2: =OFFSET('CalMnth Sales'!$A$2,I1,$B$1) -> 2013 | J2: =OFFSET('CalMnth Sales'!$A$2,J1,$B$1) -> 2013 | K2: =OFFSET('CalMnth Sales'!$A$2,K1,$B$1) -> 2013 | L2: =OFFSET('CalMnth Sales'!$A$2,L1,$B$1) -> 2013 | M2: =OFFSET('CalMnth Sales'!$A$2,M1,$B$1) -> 2013 | N2: =OFFSET('CalMnth Sales'!$A$2,N1,$B$1) -> 2014 | O2: =OFFSET('CalMnth Sales'!$A$2,O1,$B$1) -> 2014 | P2: =OFFSET('CalMnth Sales'!$A$2,P1,$B$1) -> 2014 | Q2: =OFFSET('CalMnth Sales'!$A$2,Q1,$B$1) -> 2014 | R2: =OFFSET('CalMnth Sales'!$A$2,R1,$B$1) -> 2014 | S2: =OFFSET('CalMnth Sales'!$A$2,S1,$B$1) -> 2014 | T2: =OFFSET('CalMnth Sales'!$A$2,T1,$B$1) -> 2014 | U2: =OFFSET('CalMnth Sales'!$A$2,U1,$B$1) -> 2014 | V2: =OFFSET('CalMnth Sales'!$A$2,V1,$B$1) -> 2014 | W2: =OFFSET('CalMnth Sales'!$A$2,W1,$B$1) -> 2014 | X2: =OFFSET('CalMnth Sales'!$A$2,X1,$B$1) -> 2014 | Y2: =OFFSET('CalMnth Sales'!$A$2,Y1,$B$1) -> 2014 | Z2: =OFFSET('CalMnth Sales'!$A$2,Z1,$B$1) -> 2015 | AA2: =OFFSET('CalMnth Sales'!$A$2,AA1,$B$1) -> 2015 | AB2: =OFFSET('CalMnth Sales'!$A$2,AB1,$B$1) -> 2015 | AC2: =OFFSET('CalMnth Sales'!$A$2,AC1,$B$1) -> 2015 | AD2: =OFFSET('CalMnth Sales'!$A$2,AD1,$B$1) -> 2015 | AE2: =OFFSET('CalMnth Sales'!$A$2,AE1,$B$1) -> 2015 | AF2: =OFFSET('CalMnth Sales'!$A$2,AF1,$B$1) -> 2015 | AG2: =OFFSET('CalMnth Sales'!$A$2,AG1,$B$1) -> 2015 | AH2: =OFFSET('CalMnth Sales'!$A$2,AH1,$B$1) -> 2015 | AI2: =OFFSET('CalMnth Sales'!$A$2,AI1,$B$1) -> 2015 | AJ2: =OFFSET('CalMnth Sales'!$A$2,AJ1,$B$1) -> 2015 | AK2: =OFFSET('CalMnth Sales'!$A$2,AK1,$B$1) -> 2015 | AL2: =OFFSET('CalMnth Sales'!$A$2,AL1,$B$1) -> 2016 | AM2: =OFFSET('CalMnth Sales'!$A$2,AM1,$B$1) -> 2016 | AN2: =OFFSET('CalMnth Sales'!$A$2,AN1,$B$1) -> 2016 | AO2: =OFFSET('CalMnth Sales'!$A$2,AO1,$B$1) -> 2016 | AP2: =OFFSET('CalMnth Sales'!$A$2,AP1,$B$1) -> 2016 | AQ2: =OFFSET('CalMnth Sales'!$A$2,AQ1,$B$1) -> 2016 | AR2: =OFFSET('CalMnth Sales'!$A$2,AR1,$B$1) -> 2016 | AS2: =OFFSET('CalMnth Sales'!$A$2,AS1,$B$1) -> 2016 | AT2: =OFFSET('CalMnth Sales'!$A$2,AT1,$B$1) -> 2016 | AU2: =OFFSET('CalMnth Sales'!$A$2,AU1,$B$1) -> 2016 | AV2: =OFFSET('CalMnth Sales'!$A$2,AV1,$B$1) -> 2016 | AW2: =OFFSET('CalMnth Sales'!$A$2,AW1,$B$1) -> 2016 | AX2: =OFFSET('CalMnth Sales'!$A$2,AX1,$B$1) -> 2017 | AY2: =OFFSET('CalMnth Sales'!$A$2,AY1,$B$1) -> 2017 | AZ2: =OFFSET('CalMnth Sales'!$A$2,AZ1,$B$1) -> 2017 | BA2: =OFFSET('CalMnth Sales'!$A$2,BA1,$B$1) -> 2017 | BB2: =OFFSET('CalMnth Sales'!$A$2,BB1,$B$1) -> 2017 | BC2: =OFFSET('CalMnth Sales'!$A$2,BC1,$B$1) -> 2017 | BD2: =OFFSET('CalMnth Sales'!$A$2,BD1,$B$1) -> 2017 | BE2: =OFFSET('CalMnth Sales'!$A$2,BE1,$B$1) -> 2017 | BF2: =OFFSET('CalMnth Sales'!$A$2,BF1,$B$1) -> 2017 | BG2: =OFFSET('CalMnth Sales'!$A$2,BG1,$B$1) -> 2017 | BH2: =OFFSET('CalMnth Sales'!$A$2,BH1,$B$1) -> 2017 | BI2: =OFFSET('CalMnth Sales'!$A$2,BI1,$B$1) -> 2017 | BJ2: =OFFSET('CalMnth Sales'!$A$2,BJ1,$B$1) -> 2018 | BK2: =OFFSET('CalMnth Sales'!$A$2,BK1,$B$1) -> 2018 | BL2: =OFFSET('CalMnth Sales'!$A$2,BL1,$B$1) -> 2018 | BM2: =OFFSET('CalMnth Sales'!$A$2,BM1,$B$1) -> 2018 | BN2: =OFFSET('CalMnth Sales'!$A$2,BN1,$B$1) -> 2018 | BO2: =OFFSET('CalMnth Sales'!$A$2,BO1,$B$1) -> 2018 | BP2: =OFFSET('CalMnth Sales'!$A$2,BP1,$B$1) -> 2018 | BQ2: =OFFSET('CalMnth Sales'!$A$2,BQ1,$B$1) -> 2018 | BR2: =OFFSET('CalMnth Sales'!$A$2,BR1,$B$1) -> 2018 | BS2: =OFFSET('CalMnth Sales'!$A$2,BS1,$B$1) -> 2018 | BT2: =OFFSET('CalMnth Sales'!$A$2,BT1,$B$1) -> 2018 | BU2: =OFFSET('CalMnth Sales'!$A$2,BU1,$B$1) -> 2018 | BV2: =OFFSET('CalMnth Sales'!$A$2,BV1,$B$1) -> 2019 | BW2: =OFFSET('CalMnth Sales'!$A$2,BW1,$B$1) -> 2019 | BX2: =OFFSET('CalMnth Sales'!$A$2,BX1,$B$1) -> 2019 | BY2: =OFFSET('CalMnth Sales'!$A$2,BY1,$B$1) -> 2019 | BZ2: =OFFSET('CalMnth Sales'!$A$2,BZ1,$B$1) -> 2019 | CA2: =OFFSET('CalMnth Sales'!$A$2,CA1,$B$1) -> 2019 | CB2: =OFFSET('CalMnth Sales'!$A$2,CB1,$B$1) -> 2019 | CC2: =OFFSET('CalMnth Sales'!$A$2,CC1,$B$1) -> 2019 | CD2: =OFFSET('CalMnth Sales'!$A$2,CD1,$B$1) -> 2019 | CE2: =OFFSET('CalMnth Sales'!$A$2,CE1,$B$1) -> 2019 | CF2: =OFFSET('CalMnth Sales'!$A$2,CF1,$B$1) -> 2019 | CG2: =OFFSET('CalMnth Sales'!$A$2,CG1,$B$1) -> 2019 | CH2: =OFFSET('CalMnth Sales'!$A$2,CH1,$B$1) -> 2020 | CI2: =OFFSET('CalMnth Sales'!$A$2,CI1,$B$1) -> 2020 | CJ2: =OFFSET('CalMnth Sales'!$A$2,CJ1,$B$1) -> 2020 | CK2: =OFFSET('CalMnth Sales'!$A$2,CK1,$B$1) -> 2020 | CL2: =OFFSET('CalMnth Sales'!$A$2,CL1,$B$1) -> 2020 | CM2: =OFFSET('CalMnth Sales'!$A$2,CM1,$B$1) -> 2020 | CN2: =OFFSET('CalMnth Sales'!$A$2,CN1,$B$1) -> 2020 | CO2: =OFFSET('CalMnth Sales'!$A$2,CO1,$B$1) -> 2020 | CP2: =OFFSET('CalMnth Sales'!$A$2,CP1,$B$1) -> 2020 | CQ2: =OFFSET('CalMnth Sales'!$A$2,CQ1,$B$1) -> 2020 | CR2: =OFFSET('CalMnth Sales'!$A$2,CR1,$B$1) -> 2020 | CS2: =OFFSET('CalMnth Sales'!$A$2,CS1,$B$1) -> 2020
A3: Month | B3: =OFFSET('CalMnth Sales'!$B$2,B1,$B$1) -> 1 | C3: =OFFSET('CalMnth Sales'!$B$2,C1,$B$1) -> 2 | D3: =OFFSET('CalMnth Sales'!$B$2,D1,$B$1) -> 3 | E3: =OFFSET('CalMnth Sales'!$B$2,E1,$B$1) -> 4 | F3: =OFFSET('CalMnth Sales'!$B$2,F1,$B$1) -> 5 | G3: =OFFSET('CalMnth Sales'!$B$2,G1,$B$1) -> 6 | H3: =OFFSET('CalMnth Sales'!$B$2,H1,$B$1) -> 7 | I3: =OFFSET('CalMnth Sales'!$B$2,I1,$B$1) -> 8 | J3: =OFFSET('CalMnth Sales'!$B$2,J1,$B$1) -> 9 | K3: =OFFSET('CalMnth Sales'!$B$2,K1,$B$1) -> 10 | L3: =OFFSET('CalMnth Sales'!$B$2,L1,$B$1) -> 11 | M3: =OFFSET('CalMnth Sales'!$B$2,M1,$B$1) -> 12 | N3: =OFFSET('CalMnth Sales'!$B$2,N1,$B$1) -> 1 | O3: =OFFSET('CalMnth Sales'!$B$2,O1,$B$1) -> 2 | P3: =OFFSET('CalMnth Sales'!$B$2,P1,$B$1) -> 3 | Q3: =OFFSET('CalMnth Sales'!$B$2,Q1,$B$1) -> 4 | R3: =OFFSET('CalMnth Sales'!$B$2,R1,$B$1) -> 5 | S3: =OFFSET('CalMnth Sales'!$B$2,S1,$B$1) -> 6 | T3: =OFFSET('CalMnth Sales'!$B$2,T1,$B$1) -> 7 | U3: =OFFSET('CalMnth Sales'!$B$2,U1,$B$1) -> 8 | V3: =OFFSET('CalMnth Sales'!$B$2,V1,$B$1) -> 9 | W3: =OFFSET('CalMnth Sales'!$B$2,W1,$B$1) -> 10 | X3: =OFFSET('CalMnth Sales'!$B$2,X1,$B$1) -> 11 | Y3: =OFFSET('CalMnth Sales'!$B$2,Y1,$B$1) -> 12 | Z3: =OFFSET('CalMnth Sales'!$B$2,Z1,$B$1) -> 1 | AA3: =OFFSET('CalMnth Sales'!$B$2,AA1,$B$1) -> 2 | AB3: =OFFSET('CalMnth Sales'!$B$2,AB1,$B$1) -> 3 | AC3: =OFFSET('CalMnth Sales'!$B$2,AC1,$B$1) -> 4 | AD3: =OFFSET('CalMnth Sales'!$B$2,AD1,$B$1) -> 5 | AE3: =OFFSET('CalMnth Sales'!$B$2,AE1,$B$1) -> 6 | AF3: =OFFSET('CalMnth Sales'!$B$2,AF1,$B$1) -> 7 | AG3: =OFFSET('CalMnth Sales'!$B$2,AG1,$B$1) -> 8 | AH3: =OFFSET('CalMnth Sales'!$B$2,AH1,$B$1) -> 9 | AI3: =OFFSET('CalMnth Sales'!$B$2,AI1,$B$1) -> 10 | AJ3: =OFFSET('CalMnth Sales'!$B$2,AJ1,$B$1) -> 11 | AK3: =OFFSET('CalMnth Sales'!$B$2,AK1,$B$1) -> 12 | AL3: =OFFSET('CalMnth Sales'!$B$2,AL1,$B$1) -> 1 | AM3: =OFFSET('CalMnth Sales'!$B$2,AM1,$B$1) -> 2 | AN3: =OFFSET('CalMnth Sales'!$B$2,AN1,$B$1) -> 3 | AO3: =OFFSET('CalMnth Sales'!$B$2,AO1,$B$1) -> 4 | AP3: =OFFSET('CalMnth Sales'!$B$2,AP1,$B$1) -> 5 | AQ3: =OFFSET('CalMnth Sales'!$B$2,AQ1,$B$1) -> 6 | AR3: =OFFSET('CalMnth Sales'!$B$2,AR1,$B$1) -> 7 | AS3: =OFFSET('CalMnth Sales'!$B$2,AS1,$B$1) -> 8 | AT3: =OFFSET('CalMnth Sales'!$B$2,AT1,$B$1) -> 9 | AU3: =OFFSET('CalMnth Sales'!$B$2,AU1,$B$1) -> 10 | AV3: =OFFSET('CalMnth Sales'!$B$2,AV1,$B$1) -> 11 | AW3: =OFFSET('CalMnth Sales'!$B$2,AW1,$B$1) -> 12 | AX3: =OFFSET('CalMnth Sales'!$B$2,AX1,$B$1) -> 1 | AY3: =OFFSET('CalMnth Sales'!$B$2,AY1,$B$1) -> 2 | AZ3: =OFFSET('CalMnth Sales'!$B$2,AZ1,$B$1) -> 3 | BA3: =OFFSET('CalMnth Sales'!$B$2,BA1,$B$1) -> 4 | BB3: =OFFSET('CalMnth Sales'!$B$2,BB1,$B$1) -> 5 | BC3: =OFFSET('CalMnth Sales'!$B$2,BC1,$B$1) -> 6 | BD3: =OFFSET('CalMnth Sales'!$B$2,BD1,$B$1) -> 7 | BE3: =OFFSET('CalMnth Sales'!$B$2,BE1,$B$1) -> 8 | BF3: =OFFSET('CalMnth Sales'!$B$2,BF1,$B$1) -> 9 | BG3: =OFFSET('CalMnth Sales'!$B$2,BG1,$B$1) -> 10 | BH3: =OFFSET('CalMnth Sales'!$B$2,BH1,$B$1) -> 11 | BI3: =OFFSET('CalMnth Sales'!$B$2,BI1,$B$1) -> 12 | BJ3: =OFFSET('CalMnth Sales'!$B$2,BJ1,$B$1) -> 1 | BK3: =OFFSET('CalMnth Sales'!$B$2,BK1,$B$1) -> 2 | BL3: =OFFSET('CalMnth Sales'!$B$2,BL1,$B$1) -> 3 | BM3: =OFFSET('CalMnth Sales'!$B$2,BM1,$B$1) -> 4 | BN3: =OFFSET('CalMnth Sales'!$B$2,BN1,$B$1) -> 5 | BO3: =OFFSET('CalMnth Sales'!$B$2,BO1,$B$1) -> 6 | BP3: =OFFSET('CalMnth Sales'!$B$2,BP1,$B$1) -> 7 | BQ3: =OFFSET('CalMnth Sales'!$B$2,BQ1,$B$1) -> 8 | BR3: =OFFSET('CalMnth Sales'!$B$2,BR1,$B$1) -> 9 | BS3: =OFFSET('CalMnth Sales'!$B$2,BS1,$B$1) -> 10 | BT3: =OFFSET('CalMnth Sales'!$B$2,BT1,$B$1) -> 11 | BU3: =OFFSET('CalMnth Sales'!$B$2,BU1,$B$1) -> 12 | BV3: =OFFSET('CalMnth Sales'!$B$2,BV1,$B$1) -> 1 | BW3: =OFFSET('CalMnth Sales'!$B$2,BW1,$B$1) -> 2 | BX3: =OFFSET('CalMnth Sales'!$B$2,BX1,$B$1) -> 3 | BY3: =OFFSET('CalMnth Sales'!$B$2,BY1,$B$1) -> 4 | BZ3: =OFFSET('CalMnth Sales'!$B$2,BZ1,$B$1) -> 5 | CA3: =OFFSET('CalMnth Sales'!$B$2,CA1,$B$1) -> 6 | CB3: =OFFSET('CalMnth Sales'!$B$2,CB1,$B$1) -> 7 | CC3: =OFFSET('CalMnth Sales'!$B$2,CC1,$B$1) -> 8 | CD3: =OFFSET('CalMnth Sales'!$B$2,CD1,$B$1) -> 9 | CE3: =OFFSET('CalMnth Sales'!$B$2,CE1,$B$1) -> 10 | CF3: =OFFSET('CalMnth Sales'!$B$2,CF1,$B$1) -> 11 | CG3: =OFFSET('CalMnth Sales'!$B$2,CG1,$B$1) -> 12 | CH3: =OFFSET('CalMnth Sales'!$B$2,CH1,$B$1) -> 1 | CI3: =OFFSET('CalMnth Sales'!$B$2,CI1,$B$1) -> 2 | CJ3: =OFFSET('CalMnth Sales'!$B$2,CJ1,$B$1) -> 3 | CK3: =OFFSET('CalMnth Sales'!$B$2,CK1,$B$1) -> 4 | CL3: =OFFSET('CalMnth Sales'!$B$2,CL1,$B$1) -> 5 | CM3: =OFFSET('CalMnth Sales'!$B$2,CM1,$B$1) -> 6 | CN3: =OFFSET('CalMnth Sales'!$B$2,CN1,$B$1) -> 7 | CO3: =OFFSET('CalMnth Sales'!$B$2,CO1,$B$1) -> 8 | CP3: =OFFSET('CalMnth Sales'!$B$2,CP1,$B$1) -> 9 | CQ3: =OFFSET('CalMnth Sales'!$B$2,CQ1,$B$1) -> 10 | CR3: =OFFSET('CalMnth Sales'!$B$2,CR1,$B$1) -> 11 | CS3: =OFFSET('CalMnth Sales'!$B$2,CS1,$B$1) -> 12
A4: RESIDENTIAL-Tier One | B4: =OFFSET('CalMnth Sales'!$C$2,B$1,$B$1) -> 221048 | C4: =OFFSET('CalMnth Sales'!$C$2,C1,$B$1) -> 204569 | D4: =OFFSET('CalMnth Sales'!$C$2,D1,$B$1) -> 201553 | E4: =OFFSET('CalMnth Sales'!$C$2,E1,$B$1) -> 167962 | F4: =OFFSET('CalMnth Sales'!$C$2,F1,$B$1) -> 160088 | G4: =OFFSET('CalMnth Sales'!$C$2,G1,$B$1) -> 155993 | H4: =OFFSET('CalMnth Sales'!$C$2,H1,$B$1) -> 213294 | I4: =OFFSET('CalMnth Sales'!$C$2,I1,$B$1) -> 189546 | J4: =OFFSET('CalMnth Sales'!$C$2,J1,$B$1) -> 156741 | K4: =OFFSET('CalMnth Sales'!$C$2,K1,$B$1) -> 162545 | L4: =OFFSET('CalMnth Sales'!$C$2,L1,$B$1) -> 186513 | M4: =OFFSET('CalMnth Sales'!$C$2,M1,$B$1) -> 224410 | N4: =OFFSET('CalMnth Sales'!$C$2,N1,$B$1) -> 226376 | O4: =OFFSET('CalMnth Sales'!$C$2,O1,$B$1) -> 203350 | P4: =OFFSET('CalMnth Sales'!$C$2,P1,$B$1) -> 214332 | Q4: =OFFSET('CalMnth Sales'!$C$2,Q1,$B$1) -> 164261 | R4: =OFFSET('CalMnth Sales'!$C$2,R1,$B$1) -> 145597 | S4: =OFFSET('CalMnth Sales'!$C$2,S1,$B$1) -> 169216 | T4: =OFFSET('CalMnth Sales'!$C$2,T1,$B$1) -> 180924 | U4: =OFFSET('CalMnth Sales'!$C$2,U1,$B$1) -> 186090 | V4: =OFFSET('CalMnth Sales'!$C$2,V1,$B$1) -> 163927 | W4: =OFFSET('CalMnth Sales'!$C$2,W1,$B$1) -> 165434 | X4: =OFFSET('CalMnth Sales'!$C$2,X1,$B$1) -> 182864 | Y4: =OFFSET('CalMnth Sales'!$C$2,Y1,$B$1) -> 206132 | Z4: =OFFSET('CalMnth Sales'!$C$2,Z1,$B$1) -> 221427 | AA4: =OFFSET('CalMnth Sales'!$C$2,AA1,$B$1) -> 201968 | AB4: =OFFSET('CalMnth Sales'!$C$2,AB1,$B$1) -> 202814 | AC4: =OFFSET('CalMnth Sales'!$C$2,AC1,$B$1) -> 163815 | AD4: =OFFSET('CalMnth Sales'!$C$2,AD1,$B$1) -> 154034 | AE4: =OFFSET('CalMnth Sales'!$C$2,AE1,$B$1) -> 171849 | AF4: =OFFSET('CalMnth Sales'!$C$2,AF1,$B$1) -> 203484 | AG4: =OFFSET('CalMnth Sales'!$C$2,AG1,$B$1) -> 198940 | AH4: =OFFSET('CalMnth Sales'!$C$2,AH1,$B$1) -> 163309 | AI4: =OFFSET('CalMnth Sales'!$C$2,AI1,$B$1) -> 164676 | AJ4: =OFFSET('CalMnth Sales'!$C$2,AJ1,$B$1) -> 181973 | AK4: =OFFSET('CalMnth Sales'!$C$2,AK1,$B$1) -> 205130 | AL4: =OFFSET('CalMnth Sales'!$C$2,AL1,$B$1) -> 218783 | AM4: =OFFSET('CalMnth Sales'!$C$2,AM1,$B$1) -> 200915 | AN4: =OFFSET('CalMnth Sales'!$C$2,AN1,$B$1) -> 200932 | AO4: =OFFSET('CalMnth Sales'!$C$2,AO1,$B$1) -> 162407 | AP4: =OFFSET('CalMnth Sales'!$C$2,AP1,$B$1) -> 152820 | AQ4: =OFFSET('CalMnth Sales'!$C$2,AQ1,$B$1) -> 170782 | AR4: =OFFSET('CalMnth Sales'!$C$2,AR1,$B$1) -> 202610 | AS4: =OFFSET('CalMnth Sales'!$C$2,AS1,$B$1) -> 198130 | AT4: =OFFSET('CalMnth Sales'!$C$2,AT1,$B$1) -> 162305 | AU4: =OFFSET('CalMnth Sales'!$C$2,AU1,$B$1) -> 163301 | AV4: =OFFSET('CalMnth Sales'!$C$2,AV1,$B$1) -> 180241 | AW4: =OFFSET('CalMnth Sales'!$C$2,AW1,$B$1) -> 202819 | AX4: =OFFSET('CalMnth Sales'!$C$2,AX1,$B$1) -> 216497 | AY4: =OFFSET('CalMnth Sales'!$C$2,AY1,$B$1) -> 197822 | AZ4: =OFFSET('CalMnth Sales'!$C$2,AZ1,$B$1) -> 199136 | BA4: =OFFSET('CalMnth Sales'!$C$2,BA1,$B$1) -> 160992 | BB4: =OFFSET('CalMnth Sales'!$C$2,BB1,$B$1) -> 151593 | BC4: =OFFSET('CalMnth Sales'!$C$2,BC1,$B$1) -> 169852 | BD4: =OFFSET('CalMnth Sales'!$C$2,BD1,$B$1) -> 202001 | BE4: =OFFSET('CalMnth Sales'!$C$2,BE1,$B$1) -> 197516 | BF4: =OFFSET('CalMnth Sales'!$C$2,BF1,$B$1) -> 161371 | BG4: =OFFSET('CalMnth Sales'!$C$2,BG1,$B$1) -> 162007 | BH4: =OFFSET('CalMnth Sales'!$C$2,BH1,$B$1) -> 178663 | BI4: =OFFSET('CalMnth Sales'!$C$2,BI1,$B$1) -> 200809 | BJ4: =OFFSET('CalMnth Sales'!$C$2,BJ1,$B$1) -> 216743 | BK4: =OFFSET('CalMnth Sales'!$C$2,BK1,$B$1) -> 198147 | BL4: =OFFSET('CalMnth Sales'!$C$2,BL1,$B$1) -> 199511 | BM4: =OFFSET('CalMnth Sales'!$C$2,BM1,$B$1) -> 161411 | BN4: =OFFSET('CalMnth Sales'!$C$2,BN1,$B$1) -> 152140 | BO4: =OFFSET('CalMnth Sales'!$C$2,BO1,$B$1) -> 170889 | BP4: =OFFSET('CalMnth Sales'!$C$2,BP1,$B$1) -> 203487 | BQ4: =OFFSET('CalMnth Sales'!$C$2,BQ1,$B$1) -> 198821 | BR4: =OFFSET('CalMnth Sales'!$C$2,BR1,$B$1) -> 162143 | BS4: =OFFSET('CalMnth Sales'!$C$2,BS1,$B$1) -> 162577 | BT4: =OFFSET('CalMnth Sales'!$C$2,BT1,$B$1) -> 179229 | BU4: =OFFSET('CalMnth Sales'!$C$2,BU1,$B$1) -> 201313 | BV4: =OFFSET('CalMnth Sales'!$C$2,BV1,$B$1) -> 217413 | BW4: =OFFSET('CalMnth Sales'!$C$2,BW1,$B$1) -> 198810 | BX4: =OFFSET('CalMnth Sales'!$C$2,BX1,$B$1) -> 200129 | BY4: =OFFSET('CalMnth Sales'!$C$2,BY1,$B$1) -> 161954 | BZ4: =OFFSET('CalMnth Sales'!$C$2,BZ1,$B$1) -> 152707 | CA4: =OFFSET('CalMnth Sales'!$C$2,CA1,$B$1) -> 171878 | CB4: =OFFSET('CalMnth Sales'!$C$2,CB1,$B$1) -> 204869 | CC4: =OFFSET('CalMnth Sales'!$C$2,CC1,$B$1) -> 199990 | CD4: =OFFSET('CalMnth Sales'!$C$2,CD1,$B$1) -> 162773 | CE4: =OFFSET('CalMnth Sales'!$C$2,CE1,$B$1) -> 163015 | CF4: =OFFSET('CalMnth Sales'!$C$2,CF1,$B$1) -> 179681 | CG4: =OFFSET('CalMnth Sales'!$C$2,CG1,$B$1) -> 201765 | CH4: =OFFSET('CalMnth Sales'!$C$2,CH1,$B$1) -> 217301 | CI4: =OFFSET('CalMnth Sales'!$C$2,CI1,$B$1) -> 199801 | CJ4: =OFFSET('CalMnth Sales'!$C$2,CJ1,$B$1) -> 200077 | CK4: =OFFSET('CalMnth Sales'!$C$2,CK1,$B$1) -> 161875 | CL4: =OFFSET('CalMnth Sales'!$C$2,CL1,$B$1) -> 152678 | CM4: =OFFSET('CalMnth Sales'!$C$2,CM1,$B$1) -> 172337 | CN4: =OFFSET('CalMnth Sales'!$C$2,CN1,$B$1) -> 205758 | CO4: =OFFSET('CalMnth Sales'!$C$2,CO1,$B$1) -> 200679 | CP4: =OFFSET('CalMnth Sales'!$C$2,CP1,$B$1) -> 162914 | CQ4: =OFFSET('CalMnth Sales'!$C$2,CQ1,$B$1) -> 162934 | CR4: =OFFSET('CalMnth Sales'!$C$2,CR1,$B$1) -> 179602 | CS4: =OFFSET('CalMnth Sales'!$C$2,CS1,$B$1) -> 201672
A5: RESIDENTIAL-Tier Two | B5: - | C5: - | D5: - | E5: - | F5: - | G5: - | H5: - | I5: - | J5: - | K5: - | L5: - | M5: - | N5: - | O5: - | P5: - | Q5: - | R5: - | S5: - | T5: - | U5: - | V5: - | W5: - | X5: - | Y5: - | Z5: - | AA5: - | AB5: - | AC5: - | AD5: - | AE5: - | AF5: - | AG5: - | AH5: - | AI5: - | AJ5: - | AK5: - | AL5: - | AM5: - | AN5: - | AO5: - | AP5: - | AQ5: - | AR5: - | AS5: - | AT5: - | AU5: - | AV5: - | AW5: - | AX5: - | AY5: - | AZ5: - | BA5: - | BB5: - | BC5: - | BD5: - | BE5: - | BF5: - | BG5: - | BH5: - | BI5: - | BJ5: - | BK5: - | BL5: - | BM5: - | BN5: - | BO5: - | BP5: - | BQ5: - | BR5: - | BS5: - | BT5: - | BU5: - | BV5: - | BW5: - | BX5: - | BY5: - | BZ5: - | CA5: - | CB5: - | CC5: - | CD5: - | CE5: - | CF5: - | CG5: - | CH5: - | CI5: - | CJ5: - | CK5: - | CL5: - | CM5: - | CN5: - | CO5: - | CP5: - | CQ5: - | CR5: - | CS5: -
A6: GENERAL SERVICE <50KW - Tier One | B6: =OFFSET('CalMnth Sales'!$D$2,B$1,$B$1) -> 69698 | C6: =OFFSET('CalMnth Sales'!$D$2,C1,$B$1) -> 62424 | D6: =OFFSET('CalMnth Sales'!$D$2,D1,$B$1) -> 59823 | E6: =OFFSET('CalMnth Sales'!$D$2,E1,$B$1) -> 54911 | F6: =OFFSET('CalMnth Sales'!$D$2,F1,$B$1) -> 56459 | G6: =OFFSET('CalMnth Sales'!$D$2,G1,$B$1) -> 56663 | H6: =OFFSET('CalMnth Sales'!$D$2,H1,$B$1) -> 62685 | I6: =OFFSET('CalMnth Sales'!$D$2,I1,$B$1) -> 57236 | J6: =OFFSET('CalMnth Sales'!$D$2,J1,$B$1) -> 51460 | K6: =OFFSET('CalMnth Sales'!$D$2,K1,$B$1) -> 54132 | L6: =OFFSET('CalMnth Sales'!$D$2,L1,$B$1) -> 59154 | M6: =OFFSET('CalMnth Sales'!$D$2,M1,$B$1) -> 70014 | N6: =OFFSET('CalMnth Sales'!$D$2,N1,$B$1) -> 71595 | O6: =OFFSET('CalMnth Sales'!$D$2,O1,$B$1) -> 62174 | P6: =OFFSET('CalMnth Sales'!$D$2,P1,$B$1) -> 63624 | Q6: =OFFSET('CalMnth Sales'!$D$2,Q1,$B$1) -> 53687 | R6: =OFFSET('CalMnth Sales'!$D$2,R1,$B$1) -> 52746 | S6: =OFFSET('CalMnth Sales'!$D$2,S1,$B$1) -> 56426 | T6: =OFFSET('CalMnth Sales'!$D$2,T1,$B$1) -> 58753 | U6: =OFFSET('CalMnth Sales'!$D$2,U1,$B$1) -> 55792 | V6: =OFFSET('CalMnth Sales'!$D$2,V1,$B$1) -> 52398 | W6: =OFFSET('CalMnth Sales'!$D$2,W1,$B$1) -> 55079 | X6: =OFFSET('CalMnth Sales'!$D$2,X1,$B$1) -> 58409 | Y6: =OFFSET('CalMnth Sales'!$D$2,Y1,$B$1) -> 65136 | Z6: =OFFSET('CalMnth Sales'!$D$2,Z1,$B$1) -> 70271 | AA6: =OFFSET('CalMnth Sales'!$D$2,AA1,$B$1) -> 61999 | AB6: =OFFSET('CalMnth Sales'!$D$2,AB1,$B$1) -> 60361 | AC6: =OFFSET('CalMnth Sales'!$D$2,AC1,$B$1) -> 53450 | AD6: =OFFSET('CalMnth Sales'!$D$2,AD1,$B$1) -> 54892 | AE6: =OFFSET('CalMnth Sales'!$D$2,AE1,$B$1) -> 57382 | AF6: =OFFSET('CalMnth Sales'!$D$2,AF1,$B$1) -> 60275 | AG6: =OFFSET('CalMnth Sales'!$D$2,AG1,$B$1) -> 56917 | AH6: =OFFSET('CalMnth Sales'!$D$2,AH1,$B$1) -> 52026 | AI6: =OFFSET('CalMnth Sales'!$D$2,AI1,$B$1) -> 54764 | AJ6: =OFFSET('CalMnth Sales'!$D$2,AJ1,$B$1) -> 58109 | AK6: =OFFSET('CalMnth Sales'!$D$2,AK1,$B$1) -> 64833 | AL6: =OFFSET('CalMnth Sales'!$D$2,AL1,$B$1) -> 69881 | AM6: =OFFSET('CalMnth Sales'!$D$2,AM1,$B$1) -> 62821 | AN6: =OFFSET('CalMnth Sales'!$D$2,AN1,$B$1) -> 59942 | AO6: =OFFSET('CalMnth Sales'!$D$2,AO1,$B$1) -> 53026 | AP6: =OFFSET('CalMnth Sales'!$D$2,AP1,$B$1) -> 54456 | AQ6: =OFFSET('CalMnth Sales'!$D$2,AQ1,$B$1) -> 56899 | AR6: =OFFSET('CalMnth Sales'!$D$2,AR1,$B$1) -> 59769 | AS6: =OFFSET('CalMnth Sales'!$D$2,AS1,$B$1) -> 56400 | AT6: =OFFSET('CalMnth Sales'!$D$2,AT1,$B$1) -> 51487 | AU6: =OFFSET('CalMnth Sales'!$D$2,AU1,$B$1) -> 54210 | AV6: =OFFSET('CalMnth Sales'!$D$2,AV1,$B$1) -> 57511 | AW6: =OFFSET('CalMnth Sales'!$D$2,AW1,$B$1) -> 64206 | AX6: =OFFSET('CalMnth Sales'!$D$2,AX1,$B$1) -> 69119 | AY6: =OFFSET('CalMnth Sales'!$D$2,AY1,$B$1) -> 60806 | AZ6: =OFFSET('CalMnth Sales'!$D$2,AZ1,$B$1) -> 59235 | BA6: =OFFSET('CalMnth Sales'!$D$2,BA1,$B$1) -> 52359 | BB6: =OFFSET('CalMnth Sales'!$D$2,BB1,$B$1) -> 53813 | BC6: =OFFSET('CalMnth Sales'!$D$2,BC1,$B$1) -> 56230 | BD6: =OFFSET('CalMnth Sales'!$D$2,BD1,$B$1) -> 59101 | BE6: =OFFSET('CalMnth Sales'!$D$2,BE1,$B$1) -> 55746 | BF6: =OFFSET('CalMnth Sales'!$D$2,BF1,$B$1) -> 50842 | BG6: =OFFSET('CalMnth Sales'!$D$2,BG1,$B$1) -> 53564 | BH6: =OFFSET('CalMnth Sales'!$D$2,BH1,$B$1) -> 56829 | BI6: =OFFSET('CalMnth Sales'!$D$2,BI1,$B$1) -> 63500 | BJ6: =OFFSET('CalMnth Sales'!$D$2,BJ1,$B$1) -> 68398 | BK6: =OFFSET('CalMnth Sales'!$D$2,BK1,$B$1) -> 60085 | BL6: =OFFSET('CalMnth Sales'!$D$2,BL1,$B$1) -> 58599 | BM6: =OFFSET('CalMnth Sales'!$D$2,BM1,$B$1) -> 51761 | BN6: =OFFSET('CalMnth Sales'!$D$2,BN1,$B$1) -> 53245 | BO6: =OFFSET('CalMnth Sales'!$D$2,BO1,$B$1) -> 55647 | BP6: =OFFSET('CalMnth Sales'!$D$2,BP1,$B$1) -> 58545 | BQ6: =OFFSET('CalMnth Sales'!$D$2,BQ1,$B$1) -> 55212 | BR6: =OFFSET('CalMnth Sales'!$D$2,BR1,$B$1) -> 50306 | BS6: =OFFSET('CalMnth Sales'!$D$2,BS1,$B$1) -> 53039 | BT6: =OFFSET('CalMnth Sales'!$D$2,BT1,$B$1) -> 56271 | BU6: =OFFSET('CalMnth Sales'!$D$2,BU1,$B$1) -> 62931 | BV6: =OFFSET('CalMnth Sales'!$D$2,BV1,$B$1) -> 67917 | BW6: =OFFSET('CalMnth Sales'!$D$2,BW1,$B$1) -> 59572 | BX6: =OFFSET('CalMnth Sales'!$D$2,BX1,$B$1) -> 58144 | BY6: =OFFSET('CalMnth Sales'!$D$2,BY1,$B$1) -> 51303 | BZ6: =OFFSET('CalMnth Sales'!$D$2,BZ1,$B$1) -> 52790 | CA6: =OFFSET('CalMnth Sales'!$D$2,CA1,$B$1) -> 55179 | CB6: =OFFSET('CalMnth Sales'!$D$2,CB1,$B$1) -> 58108 | CC6: =OFFSET('CalMnth Sales'!$D$2,CC1,$B$1) -> 54774 | CD6: =OFFSET('CalMnth Sales'!$D$2,CD1,$B$1) -> 49839 | CE6: =OFFSET('CalMnth Sales'!$D$2,CE1,$B$1) -> 52579 | CF6: =OFFSET('CalMnth Sales'!$D$2,CF1,$B$1) -> 55785 | CG6: =OFFSET('CalMnth Sales'!$D$2,CG1,$B$1) -> 62451 | CH6: =OFFSET('CalMnth Sales'!$D$2,CH1,$B$1) -> 67438 | CI6: =OFFSET('CalMnth Sales'!$D$2,CI1,$B$1) -> 60369 | CJ6: =OFFSET('CalMnth Sales'!$D$2,CJ1,$B$1) -> 57674 | CK6: =OFFSET('CalMnth Sales'!$D$2,CK1,$B$1) -> 50818 | CL6: =OFFSET('CalMnth Sales'!$D$2,CL1,$B$1) -> 52304 | CM6: =OFFSET('CalMnth Sales'!$D$2,CM1,$B$1) -> 54691 | CN6: =OFFSET('CalMnth Sales'!$D$2,CN1,$B$1) -> 57655 | CO6: =OFFSET('CalMnth Sales'!$D$2,CO1,$B$1) -> 54315 | CP6: =OFFSET('CalMnth Sales'!$D$2,CP1,$B$1) -> 49344 | CQ6: =OFFSET('CalMnth Sales'!$D$2,CQ1,$B$1) -> 52098 | CR6: =OFFSET('CalMnth Sales'!$D$2,CR1,$B$1) -> 55299 | CS6: =OFFSET('CalMnth Sales'!$D$2,CS1,$B$1) -> 61987
A7: GENERAL SERVICE <50KW - Tier Two | B7: - | C7: - | D7: - | E7: - | F7: - | G7: - | H7: - | I7: - | J7: - | K7: - | L7: - | M7: - | N7: - | O7: - | P7: - | Q7: - | R7: - | S7: - | T7: - | U7: - | V7: - | W7: - | X7: - | Y7: - | Z7: - | AA7: - | AB7: - | AC7: - | AD7: - | AE7: - | AF7: - | AG7: - | AH7: - | AI7: - | AJ7: - | AK7: - | AL7: - | AM7: - | AN7: - | AO7: - | AP7: - | AQ7: - | AR7: - | AS7: - | AT7: - | AU7: - | AV7: - | AW7: - | AX7: - | AY7: - | AZ7: - | BA7: - | BB7: - | BC7: - | BD7: - | BE7: - | BF7: - | BG7: - | BH7: - | BI7: - | BJ7: - | BK7: - | BL7: - | BM7: - | BN7: - | BO7: - | BP7: - | BQ7: - | BR7: - | BS7: - | BT7: - | BU7: - | BV7: - | BW7: - | BX7: - | BY7: - | BZ7: - | CA7: - | CB7: - | CC7: - | CD7: - | CE7: - | CF7: - | CG7: - | CH7: - | CI7: - | CJ7: - | CK7: - | CL7: - | CM7: - | CN7: - | CO7: - | CP7: - | CQ7: - | CR7: - | CS7: -
A8: GENERAL SERVICE 50-1000KW Non Interval | B8: =OFFSET('CalMnth Sales'!$E$2,B$1,$B$1) -> 154049 | C8: =OFFSET('CalMnth Sales'!$E$2,C$1,$B$1) -> 132130 | D8: =OFFSET('CalMnth Sales'!$E$2,D$1,$B$1) -> 130116 | E8: =OFFSET('CalMnth Sales'!$E$2,E$1,$B$1) -> 115596 | F8: =OFFSET('CalMnth Sales'!$E$2,F$1,$B$1) -> 106941 | G8: =OFFSET('CalMnth Sales'!$E$2,G$1,$B$1) -> 117434 | H8: =OFFSET('CalMnth Sales'!$E$2,H$1,$B$1) -> 134248 | I8: =OFFSET('CalMnth Sales'!$E$2,I$1,$B$1) -> 120791 | J8: =OFFSET('CalMnth Sales'!$E$2,J$1,$B$1) -> 105631 | K8: =OFFSET('CalMnth Sales'!$E$2,K$1,$B$1) -> 113810 | L8: =OFFSET('CalMnth Sales'!$E$2,L$1,$B$1) -> 130595 | M8: =OFFSET('CalMnth Sales'!$E$2,M$1,$B$1) -> 153419 | N8: =OFFSET('CalMnth Sales'!$E$2,N$1,$B$1) -> 157161 | O8: =OFFSET('CalMnth Sales'!$E$2,O$1,$B$1) -> 130381 | P8: =OFFSET('CalMnth Sales'!$E$2,P$1,$B$1) -> 138047 | Q8: =OFFSET('CalMnth Sales'!$E$2,Q$1,$B$1) -> 111234 | R8: =OFFSET('CalMnth Sales'!$E$2,R$1,$B$1) -> 110947 | S8: =OFFSET('CalMnth Sales'!$E$2,S$1,$B$1) -> 115975 | T8: =OFFSET('CalMnth Sales'!$E$2,T$1,$B$1) -> 122489 | U8: =OFFSET('CalMnth Sales'!$E$2,U$1,$B$1) -> 115894 | V8: =OFFSET('CalMnth Sales'!$E$2,V$1,$B$1) -> 105615 | W8: =OFFSET('CalMnth Sales'!$E$2,W$1,$B$1) -> 113831 | X8: =OFFSET('CalMnth Sales'!$E$2,X$1,$B$1) -> 126211 | Y8: =OFFSET('CalMnth Sales'!$E$2,Y$1,$B$1) -> 139547 | Z8: =OFFSET('CalMnth Sales'!$E$2,Z$1,$B$1) -> 151708 | AA8: =OFFSET('CalMnth Sales'!$E$2,AA$1,$B$1) -> 127453 | AB8: =OFFSET('CalMnth Sales'!$E$2,AB$1,$B$1) -> 127514 | AC8: =OFFSET('CalMnth Sales'!$E$2,AC$1,$B$1) -> 108382 | AD8: =OFFSET('CalMnth Sales'!$E$2,AD$1,$B$1) -> 99590 | AE8: =OFFSET('CalMnth Sales'!$E$2,AE$1,$B$1) -> 115702 | AF8: =OFFSET('CalMnth Sales'!$E$2,AF$1,$B$1) -> 124850 | AG8: =OFFSET('CalMnth Sales'!$E$2,AG$1,$B$1) -> 116775 | AH8: =OFFSET('CalMnth Sales'!$E$2,AH$1,$B$1) -> 102830 | AI8: =OFFSET('CalMnth Sales'!$E$2,AI$1,$B$1) -> 111185 | AJ8: =OFFSET('CalMnth Sales'!$E$2,AJ$1,$B$1) -> 123594 | AK8: =OFFSET('CalMnth Sales'!$E$2,AK$1,$B$1) -> 136949 | AL8: =OFFSET('CalMnth Sales'!$E$2,AL$1,$B$1) -> 148845 | AM8: =OFFSET('CalMnth Sales'!$E$2,AM$1,$B$1) -> 128872 | AN8: =OFFSET('CalMnth Sales'!$E$2,AN$1,$B$1) -> 124630 | AO8: =OFFSET('CalMnth Sales'!$E$2,AO$1,$B$1) -> 105438 | AP8: =OFFSET('CalMnth Sales'!$E$2,AP$1,$B$1) -> 96510 | AQ8: =OFFSET('CalMnth Sales'!$E$2,AQ$1,$B$1) -> 112511 | AR8: =OFFSET('CalMnth Sales'!$E$2,AR$1,$B$1) -> 121676 | AS8: =OFFSET('CalMnth Sales'!$E$2,AS$1,$B$1) -> 113563 | AT8: =OFFSET('CalMnth Sales'!$E$2,AT$1,$B$1) -> 99476 | AU8: =OFFSET('CalMnth Sales'!$E$2,AU$1,$B$1) -> 107797 | AV8: =OFFSET('CalMnth Sales'!$E$2,AV$1,$B$1) -> 120068 | AW8: =OFFSET('CalMnth Sales'!$E$2,AW$1,$B$1) -> 133343 | AX8: =OFFSET('CalMnth Sales'!$E$2,AX$1,$B$1) -> 144812 | AY8: =OFFSET('CalMnth Sales'!$E$2,AY$1,$B$1) -> 120365 | AZ8: =OFFSET('CalMnth Sales'!$E$2,AZ$1,$B$1) -> 120809 | BA8: =OFFSET('CalMnth Sales'!$E$2,BA$1,$B$1) -> 101684 | BB8: =OFFSET('CalMnth Sales'!$E$2,BB$1,$B$1) -> 92732 | BC8: =OFFSET('CalMnth Sales'!$E$2,BC$1,$B$1) -> 108697 | BD8: =OFFSET('CalMnth Sales'!$E$2,BD$1,$B$1) -> 117954 | BE8: =OFFSET('CalMnth Sales'!$E$2,BE$1,$B$1) -> 109892 | BF8: =OFFSET('CalMnth Sales'!$E$2,BF$1,$B$1) -> 95753 | BG8: =OFFSET('CalMnth Sales'!$E$2,BG$1,$B$1) -> 104096 | BH8: =OFFSET('CalMnth Sales'!$E$2,BH$1,$B$1) -> 116270 | BI8: =OFFSET('CalMnth Sales'!$E$2,BI$1,$B$1) -> 129515 | BJ8: =OFFSET('CalMnth Sales'!$E$2,BJ$1,$B$1) -> 140970 | BK8: =OFFSET('CalMnth Sales'!$E$2,BK$1,$B$1) -> 116495 | BL8: =OFFSET('CalMnth Sales'!$E$2,BL$1,$B$1) -> 117270 | BM8: =OFFSET('CalMnth Sales'!$E$2,BM$1,$B$1) -> 98217 | BN8: =OFFSET('CalMnth Sales'!$E$2,BN$1,$B$1) -> 89276 | BO8: =OFFSET('CalMnth Sales'!$E$2,BO$1,$B$1) -> 105242 | BP8: =OFFSET('CalMnth Sales'!$E$2,BP$1,$B$1) -> 114666 | BQ8: =OFFSET('CalMnth Sales'!$E$2,BQ$1,$B$1) -> 106673 | BR8: =OFFSET('CalMnth Sales'!$E$2,BR$1,$B$1) -> 92465 | BS8: =OFFSET('CalMnth Sales'!$E$2,BS$1,$B$1) -> 100869 | BT8: =OFFSET('CalMnth Sales'!$E$2,BT$1,$B$1) -> 112962 | BU8: =OFFSET('CalMnth Sales'!$E$2,BU$1,$B$1) -> 126211 | BV8: =OFFSET('CalMnth Sales'!$E$2,BV$1,$B$1) -> 137941 | BW8: =OFFSET('CalMnth Sales'!$E$2,BW$1,$B$1) -> 113323 | BX8: =OFFSET('CalMnth Sales'!$E$2,BX$1,$B$1) -> 114353 | BY8: =OFFSET('CalMnth Sales'!$E$2,BY$1,$B$1) -> 95243 | BZ8: =OFFSET('CalMnth Sales'!$E$2,BZ$1,$B$1) -> 86244 | CA8: =OFFSET('CalMnth Sales'!$E$2,CA$1,$B$1) -> 102193 | CB8: =OFFSET('CalMnth Sales'!$E$2,CB$1,$B$1) -> 111771 | CC8: =OFFSET('CalMnth Sales'!$E$2,CC$1,$B$1) -> 103777 | CD8: =OFFSET('CalMnth Sales'!$E$2,CD$1,$B$1) -> 89414 | CE8: =OFFSET('CalMnth Sales'!$E$2,CE$1,$B$1) -> 97856 | CF8: =OFFSET('CalMnth Sales'!$E$2,CF$1,$B$1) -> 109870 | CG8: =OFFSET('CalMnth Sales'!$E$2,CG$1,$B$1) -> 123164 | CH8: =OFFSET('CalMnth Sales'!$E$2,CH$1,$B$1) -> 134808 | CI8: =OFFSET('CalMnth Sales'!$E$2,CI$1,$B$1) -> 114730 | CJ8: =OFFSET('CalMnth Sales'!$E$2,CJ$1,$B$1) -> 111301 | CK8: =OFFSET('CalMnth Sales'!$E$2,CK$1,$B$1) -> 92112 | CL8: =OFFSET('CalMnth Sales'!$E$2,CL$1,$B$1) -> 83029 | CM8: =OFFSET('CalMnth Sales'!$E$2,CM$1,$B$1) -> 99001 | CN8: =OFFSET('CalMnth Sales'!$E$2,CN$1,$B$1) -> 108754 | CO8: =OFFSET('CalMnth Sales'!$E$2,CO$1,$B$1) -> 100753 | CP8: =OFFSET('CalMnth Sales'!$E$2,CP$1,$B$1) -> 86225 | CQ8: =OFFSET('CalMnth Sales'!$E$2,CQ$1,$B$1) -> 94728 | CR8: =OFFSET('CalMnth Sales'!$E$2,CR$1,$B$1) -> 106721 | CS8: =OFFSET('CalMnth Sales'!$E$2,CS$1,$B$1) -> 120104
A9: GENERAL SERVICE 50-1000KW Interval | B9: =OFFSET('CalMnth Sales'!$F$2,B$1,$B$1) -> 100224 | C9: =OFFSET('CalMnth Sales'!$F$2,C$1,$B$1) -> 90707 | D9: =OFFSET('CalMnth Sales'!$F$2,D$1,$B$1) -> 89245 | E9: =OFFSET('CalMnth Sales'!$F$2,E$1,$B$1) -> 85004 | F9: =OFFSET('CalMnth Sales'!$F$2,F$1,$B$1) -> 90203 | G9: =OFFSET('CalMnth Sales'!$F$2,G$1,$B$1) -> 93575 | H9: =OFFSET('CalMnth Sales'!$F$2,H$1,$B$1) -> 107908 | I9: =OFFSET('CalMnth Sales'!$F$2,I$1,$B$1) -> 95553 | J9: =OFFSET('CalMnth Sales'!$F$2,J$1,$B$1) -> 85804 | K9: =OFFSET('CalMnth Sales'!$F$2,K$1,$B$1) -> 87375 | L9: =OFFSET('CalMnth Sales'!$F$2,L$1,$B$1) -> 90980 | M9: =OFFSET('CalMnth Sales'!$F$2,M$1,$B$1) -> 101470 | N9: =OFFSET('CalMnth Sales'!$F$2,N$1,$B$1) -> 103777 | O9: =OFFSET('CalMnth Sales'!$F$2,O$1,$B$1) -> 92446 | P9: =OFFSET('CalMnth Sales'!$F$2,P$1,$B$1) -> 97320 | Q9: =OFFSET('CalMnth Sales'!$F$2,Q$1,$B$1) -> 86555 | R9: =OFFSET('CalMnth Sales'!$F$2,R$1,$B$1) -> 85620 | S9: =OFFSET('CalMnth Sales'!$F$2,S$1,$B$1) -> 97916 | T9: =OFFSET('CalMnth Sales'!$F$2,T$1,$B$1) -> 103287 | U9: =OFFSET('CalMnth Sales'!$F$2,U$1,$B$1) -> 93709 | V9: =OFFSET('CalMnth Sales'!$F$2,V$1,$B$1) -> 88362 | W9: =OFFSET('CalMnth Sales'!$F$2,W$1,$B$1) -> 90874 | X9: =OFFSET('CalMnth Sales'!$F$2,X$1,$B$1) -> 93251 | Y9: =OFFSET('CalMnth Sales'!$F$2,Y$1,$B$1) -> 99724 | Z9: =OFFSET('CalMnth Sales'!$F$2,Z$1,$B$1) -> 105601 | AA9: =OFFSET('CalMnth Sales'!$F$2,AA$1,$B$1) -> 95063 | AB9: =OFFSET('CalMnth Sales'!$F$2,AB$1,$B$1) -> 95097 | AC9: =OFFSET('CalMnth Sales'!$F$2,AC$1,$B$1) -> 88760 | AD9: =OFFSET('CalMnth Sales'!$F$2,AD$1,$B$1) -> 92919 | AE9: =OFFSET('CalMnth Sales'!$F$2,AE$1,$B$1) -> 99924 | AF9: =OFFSET('CalMnth Sales'!$F$2,AF$1,$B$1) -> 107481 | AG9: =OFFSET('CalMnth Sales'!$F$2,AG$1,$B$1) -> 99198 | AH9: =OFFSET('CalMnth Sales'!$F$2,AH$1,$B$1) -> 91296 | AI9: =OFFSET('CalMnth Sales'!$F$2,AI$1,$B$1) -> 93195 | AJ9: =OFFSET('CalMnth Sales'!$F$2,AJ$1,$B$1) -> 95282 | AK9: =OFFSET('CalMnth Sales'!$F$2,AK$1,$B$1) -> 101612 | AL9: =OFFSET('CalMnth Sales'!$F$2,AL$1,$B$1) -> 107376 | AM9: =OFFSET('CalMnth Sales'!$F$2,AM$1,$B$1) -> 98509 | AN9: =OFFSET('CalMnth Sales'!$F$2,AN$1,$B$1) -> 96559 | AO9: =OFFSET('CalMnth Sales'!$F$2,AO$1,$B$1) -> 90160 | AP9: =OFFSET('CalMnth Sales'!$F$2,AP$1,$B$1) -> 94426 | AQ9: =OFFSET('CalMnth Sales'!$F$2,AQ$1,$B$1) -> 101291 | AR9: =OFFSET('CalMnth Sales'!$F$2,AR$1,$B$1) -> 108680 | AS9: =OFFSET('CalMnth Sales'!$F$2,AS$1,$B$1) -> 100305 | AT9: =OFFSET('CalMnth Sales'!$F$2,AT$1,$B$1) -> 92399 | AU9: =OFFSET('CalMnth Sales'!$F$2,AU$1,$B$1) -> 94254 | AV9: =OFFSET('CalMnth Sales'!$F$2,AV$1,$B$1) -> 96225 | AW9: =OFFSET('CalMnth Sales'!$F$2,AW$1,$B$1) -> 102466 | AX9: =OFFSET('CalMnth Sales'!$F$2,AX$1,$B$1) -> 108099 | AY9: =OFFSET('CalMnth Sales'!$F$2,AY$1,$B$1) -> 97191 | AZ9: =OFFSET('CalMnth Sales'!$F$2,AZ$1,$B$1) -> 97194 | BA9: =OFFSET('CalMnth Sales'!$F$2,BA$1,$B$1) -> 90832 | BB9: =OFFSET('CalMnth Sales'!$F$2,BB$1,$B$1) -> 95293 | BC9: =OFFSET('CalMnth Sales'!$F$2,BC$1,$B$1) -> 102087 | BD9: =OFFSET('CalMnth Sales'!$F$2,BD$1,$B$1) -> 109378 | BE9: =OFFSET('CalMnth Sales'!$F$2,BE$1,$B$1) -> 100996 | BF9: =OFFSET('CalMnth Sales'!$F$2,BF$1,$B$1) -> 93175 | BG9: =OFFSET('CalMnth Sales'!$F$2,BG$1,$B$1) -> 95057 | BH9: =OFFSET('CalMnth Sales'!$F$2,BH$1,$B$1) -> 96976 | BI9: =OFFSET('CalMnth Sales'!$F$2,BI$1,$B$1) -> 103188 | BJ9: =OFFSET('CalMnth Sales'!$F$2,BJ$1,$B$1) -> 108879 | BK9: =OFFSET('CalMnth Sales'!$F$2,BK$1,$B$1) -> 97863 | BL9: =OFFSET('CalMnth Sales'!$F$2,BL$1,$B$1) -> 97962 | BM9: =OFFSET('CalMnth Sales'!$F$2,BM$1,$B$1) -> 91657 | BN9: =OFFSET('CalMnth Sales'!$F$2,BN$1,$B$1) -> 96331 | BO9: =OFFSET('CalMnth Sales'!$F$2,BO$1,$B$1) -> 103081 | BP9: =OFFSET('CalMnth Sales'!$F$2,BP$1,$B$1) -> 110331 | BQ9: =OFFSET('CalMnth Sales'!$F$2,BQ$1,$B$1) -> 101969 | BR9: =OFFSET('CalMnth Sales'!$F$2,BR$1,$B$1) -> 94233 | BS9: =OFFSET('CalMnth Sales'!$F$2,BS$1,$B$1) -> 96172 | BT9: =OFFSET('CalMnth Sales'!$F$2,BT$1,$B$1) -> 98053 | BU9: =OFFSET('CalMnth Sales'!$F$2,BU$1,$B$1) -> 104267 | BV9: =OFFSET('CalMnth Sales'!$F$2,BV$1,$B$1) -> 110120 | BW9: =OFFSET('CalMnth Sales'!$F$2,BW$1,$B$1) -> 98949 | BX9: =OFFSET('CalMnth Sales'!$F$2,BX$1,$B$1) -> 99105 | BY9: =OFFSET('CalMnth Sales'!$F$2,BY$1,$B$1) -> 92800 | BZ9: =OFFSET('CalMnth Sales'!$F$2,BZ$1,$B$1) -> 97649 | CA9: =OFFSET('CalMnth Sales'!$F$2,CA$1,$B$1) -> 104348 | CB9: =OFFSET('CalMnth Sales'!$F$2,CB$1,$B$1) -> 111549 | CC9: =OFFSET('CalMnth Sales'!$F$2,CC$1,$B$1) -> 103159 | CD9: =OFFSET('CalMnth Sales'!$F$2,CD$1,$B$1) -> 95453 | CE9: =OFFSET('CalMnth Sales'!$F$2,CE$1,$B$1) -> 97420 | CF9: =OFFSET('CalMnth Sales'!$F$2,CF$1,$B$1) -> 99247 | CG9: =OFFSET('CalMnth Sales'!$F$2,CG$1,$B$1) -> 105457 | CH9: =OFFSET('CalMnth Sales'!$F$2,CH$1,$B$1) -> 111340 | CI9: =OFFSET('CalMnth Sales'!$F$2,CI$1,$B$1) -> 102074 | CJ9: =OFFSET('CalMnth Sales'!$F$2,CJ$1,$B$1) -> 100212 | CK9: =OFFSET('CalMnth Sales'!$F$2,CK$1,$B$1) -> 93905 | CL9: =OFFSET('CalMnth Sales'!$F$2,CL$1,$B$1) -> 98929 | CM9: =OFFSET('CalMnth Sales'!$F$2,CM$1,$B$1) -> 105595 | CN9: =OFFSET('CalMnth Sales'!$F$2,CN$1,$B$1) -> 112750 | CO9: =OFFSET('CalMnth Sales'!$F$2,CO$1,$B$1) -> 104325 | CP9: =OFFSET('CalMnth Sales'!$F$2,CP$1,$B$1) -> 96641 | CQ9: =OFFSET('CalMnth Sales'!$F$2,CQ$1,$B$1) -> 98636 | CR9: =OFFSET('CalMnth Sales'!$F$2,CR$1,$B$1) -> 100428 | CS9: =OFFSET('CalMnth Sales'!$F$2,CS$1,$B$1) -> 106642
A10: GENERAL SERVICE 1000-1500KW | B10: =OFFSET('CalMnth Sales'!$G$2,B$1,$B$1) -> 30219 | C10: =OFFSET('CalMnth Sales'!$G$2,C$1,$B$1) -> 27263 | D10: =OFFSET('CalMnth Sales'!$G$2,D$1,$B$1) -> 28136 | E10: =OFFSET('CalMnth Sales'!$G$2,E$1,$B$1) -> 26487 | F10: =OFFSET('CalMnth Sales'!$G$2,F$1,$B$1) -> 28976 | G10: =OFFSET('CalMnth Sales'!$G$2,G$1,$B$1) -> 29238 | H10: =OFFSET('CalMnth Sales'!$G$2,H$1,$B$1) -> 32174 | I10: =OFFSET('CalMnth Sales'!$G$2,I$1,$B$1) -> 29615 | J10: =OFFSET('CalMnth Sales'!$G$2,J$1,$B$1) -> 26554 | K10: =OFFSET('CalMnth Sales'!$G$2,K$1,$B$1) -> 27150 | L10: =OFFSET('CalMnth Sales'!$G$2,L$1,$B$1) -> 27467 | M10: =OFFSET('CalMnth Sales'!$G$2,M$1,$B$1) -> 30471 | N10: =OFFSET('CalMnth Sales'!$G$2,N$1,$B$1) -> 30805 | O10: =OFFSET('CalMnth Sales'!$G$2,O$1,$B$1) -> 27052 | P10: =OFFSET('CalMnth Sales'!$G$2,P$1,$B$1) -> 24815 | Q10: =OFFSET('CalMnth Sales'!$G$2,Q$1,$B$1) -> 26176 | R10: =OFFSET('CalMnth Sales'!$G$2,R$1,$B$1) -> 27444 | S10: =OFFSET('CalMnth Sales'!$G$2,S$1,$B$1) -> 29358 | T10: =OFFSET('CalMnth Sales'!$G$2,T$1,$B$1) -> 30663 | U10: =OFFSET('CalMnth Sales'!$G$2,U$1,$B$1) -> 29180 | V10: =OFFSET('CalMnth Sales'!$G$2,V$1,$B$1) -> 27328 | W10: =OFFSET('CalMnth Sales'!$G$2,W$1,$B$1) -> 27702 | X10: =OFFSET('CalMnth Sales'!$G$2,X$1,$B$1) -> 27784 | Y10: =OFFSET('CalMnth Sales'!$G$2,Y$1,$B$1) -> 29291 | Z10: =OFFSET('CalMnth Sales'!$G$2,Z$1,$B$1) -> 30729 | AA10: =OFFSET('CalMnth Sales'!$G$2,AA$1,$B$1) -> 27401 | AB10: =OFFSET('CalMnth Sales'!$G$2,AB$1,$B$1) -> 28847 | AC10: =OFFSET('CalMnth Sales'!$G$2,AC$1,$B$1) -> 26449 | AD10: =OFFSET('CalMnth Sales'!$G$2,AD$1,$B$1) -> 28640 | AE10: =OFFSET('CalMnth Sales'!$G$2,AE$1,$B$1) -> 30046 | AF10: =OFFSET('CalMnth Sales'!$G$2,AF$1,$B$1) -> 31473 | AG10: =OFFSET('CalMnth Sales'!$G$2,AG$1,$B$1) -> 29857 | AH10: =OFFSET('CalMnth Sales'!$G$2,AH$1,$B$1) -> 27360 | AI10: =OFFSET('CalMnth Sales'!$G$2,AI$1,$B$1) -> 27766 | AJ10: =OFFSET('CalMnth Sales'!$G$2,AJ$1,$B$1) -> 27848 | AK10: =OFFSET('CalMnth Sales'!$G$2,AK$1,$B$1) -> 29351 | AL10: =OFFSET('CalMnth Sales'!$G$2,AL$1,$B$1) -> 30765 | AM10: =OFFSET('CalMnth Sales'!$G$2,AM$1,$B$1) -> 28075 | AN10: =OFFSET('CalMnth Sales'!$G$2,AN$1,$B$1) -> 28825 | AO10: =OFFSET('CalMnth Sales'!$G$2,AO$1,$B$1) -> 26404 | AP10: =OFFSET('CalMnth Sales'!$G$2,AP$1,$B$1) -> 28600 | AQ10: =OFFSET('CalMnth Sales'!$G$2,AQ$1,$B$1) -> 29966 | AR10: =OFFSET('CalMnth Sales'!$G$2,AR$1,$B$1) -> 31361 | AS10: =OFFSET('CalMnth Sales'!$G$2,AS$1,$B$1) -> 29725 | AT10: =OFFSET('CalMnth Sales'!$G$2,AT$1,$B$1) -> 27215 | AU10: =OFFSET('CalMnth Sales'!$G$2,AU$1,$B$1) -> 27610 | AV10: =OFFSET('CalMnth Sales'!$G$2,AV$1,$B$1) -> 27659 | AW10: =OFFSET('CalMnth Sales'!$G$2,AW$1,$B$1) -> 29141 | AX10: =OFFSET('CalMnth Sales'!$G$2,AX$1,$B$1) -> 30511 | AY10: =OFFSET('CalMnth Sales'!$G$2,AY$1,$B$1) -> 27100 | AZ10: =OFFSET('CalMnth Sales'!$G$2,AZ$1,$B$1) -> 28568 | BA10: =OFFSET('CalMnth Sales'!$G$2,BA$1,$B$1) -> 26151 | BB10: =OFFSET('CalMnth Sales'!$G$2,BB$1,$B$1) -> 28376 | BC10: =OFFSET('CalMnth Sales'!$G$2,BC$1,$B$1) -> 29722 | BD10: =OFFSET('CalMnth Sales'!$G$2,BD$1,$B$1) -> 31106 | BE10: =OFFSET('CalMnth Sales'!$G$2,BE$1,$B$1) -> 29475 | BF10: =OFFSET('CalMnth Sales'!$G$2,BF$1,$B$1) -> 26977 | BG10: =OFFSET('CalMnth Sales'!$G$2,BG$1,$B$1) -> 27382 | BH10: =OFFSET('CalMnth Sales'!$G$2,BH$1,$B$1) -> 27417 | BI10: =OFFSET('CalMnth Sales'!$G$2,BI$1,$B$1) -> 28899 | BJ10: =OFFSET('CalMnth Sales'!$G$2,BJ$1,$B$1) -> 30283 | BK10: =OFFSET('CalMnth Sales'!$G$2,BK$1,$B$1) -> 26849 | BL10: =OFFSET('CalMnth Sales'!$G$2,BL$1,$B$1) -> 28360 | BM10: =OFFSET('CalMnth Sales'!$G$2,BM$1,$B$1) -> 25952 | BN10: =OFFSET('CalMnth Sales'!$G$2,BN$1,$B$1) -> 28213 | BO10: =OFFSET('CalMnth Sales'!$G$2,BO$1,$B$1) -> 29546 | BP10: =OFFSET('CalMnth Sales'!$G$2,BP$1,$B$1) -> 30937 | BQ10: =OFFSET('CalMnth Sales'!$G$2,BQ$1,$B$1) -> 29317 | BR10: =OFFSET('CalMnth Sales'!$G$2,BR$1,$B$1) -> 26831 | BS10: =OFFSET('CalMnth Sales'!$G$2,BS$1,$B$1) -> 27254 | BT10: =OFFSET('CalMnth Sales'!$G$2,BT$1,$B$1) -> 27280 | BU10: =OFFSET('CalMnth Sales'!$G$2,BU$1,$B$1) -> 28770 | BV10: =OFFSET('CalMnth Sales'!$G$2,BV$1,$B$1) -> 30193 | BW10: =OFFSET('CalMnth Sales'!$G$2,BW$1,$B$1) -> 26722 | BX10: =OFFSET('CalMnth Sales'!$G$2,BX$1,$B$1) -> 28267 | BY10: =OFFSET('CalMnth Sales'!$G$2,BY$1,$B$1) -> 25853 | BZ10: =OFFSET('CalMnth Sales'!$G$2,BZ$1,$B$1) -> 28140 | CA10: =OFFSET('CalMnth Sales'!$G$2,CA$1,$B$1) -> 29459 | CB10: =OFFSET('CalMnth Sales'!$G$2,CB$1,$B$1) -> 30852 | CC10: =OFFSET('CalMnth Sales'!$G$2,CC$1,$B$1) -> 29229 | CD10: =OFFSET('CalMnth Sales'!$G$2,CD$1,$B$1) -> 26737 | CE10: =OFFSET('CalMnth Sales'!$G$2,CE$1,$B$1) -> 27168 | CF10: =OFFSET('CalMnth Sales'!$G$2,CF$1,$B$1) -> 27179 | CG10: =OFFSET('CalMnth Sales'!$G$2,CG$1,$B$1) -> 28673 | CH10: =OFFSET('CalMnth Sales'!$G$2,CH$1,$B$1) -> 30087 | CI10: =OFFSET('CalMnth Sales'!$G$2,CI$1,$B$1) -> 27318 | CJ10: =OFFSET('CalMnth Sales'!$G$2,CJ$1,$B$1) -> 28154 | CK10: =OFFSET('CalMnth Sales'!$G$2,CK$1,$B$1) -> 25735 | CL10: =OFFSET('CalMnth Sales'!$G$2,CL$1,$B$1) -> 28049 | CM10: =OFFSET('CalMnth Sales'!$G$2,CM$1,$B$1) -> 29360 | CN10: =OFFSET('CalMnth Sales'!$G$2,CN$1,$B$1) -> 30758 | CO10: =OFFSET('CalMnth Sales'!$G$2,CO$1,$B$1) -> 29131 | CP10: =OFFSET('CalMnth Sales'!$G$2,CP$1,$B$1) -> 26630 | CQ10: =OFFSET('CalMnth Sales'!$G$2,CQ$1,$B$1) -> 27069 | CR10: =OFFSET('CalMnth Sales'!$G$2,CR$1,$B$1) -> 27068 | CS10: =OFFSET('CalMnth Sales'!$G$2,CS$1,$B$1) -> 28569
A11: GENERAL SERVICE 1500-5000 KW | B11: =OFFSET('CalMnth Sales'!$H$2,B$1,$B$1) -> 75194 | C11: =OFFSET('CalMnth Sales'!$H$2,C$1,$B$1) -> 65555 | D11: =OFFSET('CalMnth Sales'!$H$2,D$1,$B$1) -> 69205 | E11: =OFFSET('CalMnth Sales'!$H$2,E$1,$B$1) -> 67307 | F11: =OFFSET('CalMnth Sales'!$H$2,F$1,$B$1) -> 74986 | G11: =OFFSET('CalMnth Sales'!$H$2,G$1,$B$1) -> 74138 | H11: =OFFSET('CalMnth Sales'!$H$2,H$1,$B$1) -> 79445 | I11: =OFFSET('CalMnth Sales'!$H$2,I$1,$B$1) -> 75386 | J11: =OFFSET('CalMnth Sales'!$H$2,J$1,$B$1) -> 68394 | K11: =OFFSET('CalMnth Sales'!$H$2,K$1,$B$1) -> 70668 | L11: =OFFSET('CalMnth Sales'!$H$2,L$1,$B$1) -> 66481 | M11: =OFFSET('CalMnth Sales'!$H$2,M$1,$B$1) -> 74133 | N11: =OFFSET('CalMnth Sales'!$H$2,N$1,$B$1) -> 76502 | O11: =OFFSET('CalMnth Sales'!$H$2,O$1,$B$1) -> 64981 | P11: =OFFSET('CalMnth Sales'!$H$2,P$1,$B$1) -> 71035 | Q11: =OFFSET('CalMnth Sales'!$H$2,Q$1,$B$1) -> 66730 | R11: =OFFSET('CalMnth Sales'!$H$2,R$1,$B$1) -> 71687 | S11: =OFFSET('CalMnth Sales'!$H$2,S$1,$B$1) -> 73545 | T11: =OFFSET('CalMnth Sales'!$H$2,T$1,$B$1) -> 77816 | U11: =OFFSET('CalMnth Sales'!$H$2,U$1,$B$1) -> 74423 | V11: =OFFSET('CalMnth Sales'!$H$2,V$1,$B$1) -> 70576 | W11: =OFFSET('CalMnth Sales'!$H$2,W$1,$B$1) -> 72555 | X11: =OFFSET('CalMnth Sales'!$H$2,X$1,$B$1) -> 68154 | Y11: =OFFSET('CalMnth Sales'!$H$2,Y$1,$B$1) -> 72533 | Z11: =OFFSET('CalMnth Sales'!$H$2,Z$1,$B$1) -> 77491 | AA11: =OFFSET('CalMnth Sales'!$H$2,AA$1,$B$1) -> 66980 | AB11: =OFFSET('CalMnth Sales'!$H$2,AB$1,$B$1) -> 72260 | AC11: =OFFSET('CalMnth Sales'!$H$2,AC$1,$B$1) -> 68680 | AD11: =OFFSET('CalMnth Sales'!$H$2,AD$1,$B$1) -> 75805 | AE11: =OFFSET('CalMnth Sales'!$H$2,AE$1,$B$1) -> 76621 | AF11: =OFFSET('CalMnth Sales'!$H$2,AF$1,$B$1) -> 79641 | AG11: =OFFSET('CalMnth Sales'!$H$2,AG$1,$B$1) -> 76746 | AH11: =OFFSET('CalMnth Sales'!$H$2,AH$1,$B$1) -> 71772 | AI11: =OFFSET('CalMnth Sales'!$H$2,AI$1,$B$1) -> 73884 | AJ11: =OFFSET('CalMnth Sales'!$H$2,AJ$1,$B$1) -> 69476 | AK11: =OFFSET('CalMnth Sales'!$H$2,AK$1,$B$1) -> 73886 | AL11: =OFFSET('CalMnth Sales'!$H$2,AL$1,$B$1) -> 78903 | AM11: =OFFSET('CalMnth Sales'!$H$2,AM$1,$B$1) -> 70935 | AN11: =OFFSET('CalMnth Sales'!$H$2,AN$1,$B$1) -> 73616 | AO11: =OFFSET('CalMnth Sales'!$H$2,AO$1,$B$1) -> 70027 | AP11: =OFFSET('CalMnth Sales'!$H$2,AP$1,$B$1) -> 77277 | AQ11: =OFFSET('CalMnth Sales'!$H$2,AQ$1,$B$1) -> 78031 | AR11: =OFFSET('CalMnth Sales'!$H$2,AR$1,$B$1) -> 81034 | AS11: =OFFSET('CalMnth Sales'!$H$2,AS$1,$B$1) -> 78147 | AT11: =OFFSET('CalMnth Sales'!$H$2,AT$1,$B$1) -> 73194 | AU11: =OFFSET('CalMnth Sales'!$H$2,AU$1,$B$1) -> 75363 | AV11: =OFFSET('CalMnth Sales'!$H$2,AV$1,$B$1) -> 70906 | AW11: =OFFSET('CalMnth Sales'!$H$2,AW$1,$B$1) -> 75344 | AX11: =OFFSET('CalMnth Sales'!$H$2,AX$1,$B$1) -> 80317 | AY11: =OFFSET('CalMnth Sales'!$H$2,AY$1,$B$1) -> 69499 | AZ11: =OFFSET('CalMnth Sales'!$H$2,AZ$1,$B$1) -> 74983 | BA11: =OFFSET('CalMnth Sales'!$H$2,BA$1,$B$1) -> 71385 | BB11: =OFFSET('CalMnth Sales'!$H$2,BB$1,$B$1) -> 78758 | BC11: =OFFSET('CalMnth Sales'!$H$2,BC$1,$B$1) -> 79435 | BD11: =OFFSET('CalMnth Sales'!$H$2,BD$1,$B$1) -> 82414 | BE11: =OFFSET('CalMnth Sales'!$H$2,BE$1,$B$1) -> 79535 | BF11: =OFFSET('CalMnth Sales'!$H$2,BF$1,$B$1) -> 74609 | BG11: =OFFSET('CalMnth Sales'!$H$2,BG$1,$B$1) -> 76832 | BH11: =OFFSET('CalMnth Sales'!$H$2,BH$1,$B$1) -> 72317 | BI11: =OFFSET('CalMnth Sales'!$H$2,BI$1,$B$1) -> 76784 | BJ11: =OFFSET('CalMnth Sales'!$H$2,BJ$1,$B$1) -> 81815 | BK11: =OFFSET('CalMnth Sales'!$H$2,BK$1,$B$1) -> 70836 | BL11: =OFFSET('CalMnth Sales'!$H$2,BL$1,$B$1) -> 76456 | BM11: =OFFSET('CalMnth Sales'!$H$2,BM$1,$B$1) -> 72844 | BN11: =OFFSET('CalMnth Sales'!$H$2,BN$1,$B$1) -> 80338 | BO11: =OFFSET('CalMnth Sales'!$H$2,BO$1,$B$1) -> 80932 | BP11: =OFFSET('CalMnth Sales'!$H$2,BP$1,$B$1) -> 83905 | BQ11: =OFFSET('CalMnth Sales'!$H$2,BQ$1,$B$1) -> 81037 | BR11: =OFFSET('CalMnth Sales'!$H$2,BR$1,$B$1) -> 76124 | BS11: =OFFSET('CalMnth Sales'!$H$2,BS$1,$B$1) -> 78407 | BT11: =OFFSET('CalMnth Sales'!$H$2,BT$1,$B$1) -> 73825 | BU11: =OFFSET('CalMnth Sales'!$H$2,BU$1,$B$1) -> 78318 | BV11: =OFFSET('CalMnth Sales'!$H$2,BV$1,$B$1) -> 83469 | BW11: =OFFSET('CalMnth Sales'!$H$2,BW$1,$B$1) -> 72306 | BX11: =OFFSET('CalMnth Sales'!$H$2,BX$1,$B$1) -> 78060 | BY11: =OFFSET('CalMnth Sales'!$H$2,BY$1,$B$1) -> 74417 | BZ11: =OFFSET('CalMnth Sales'!$H$2,BZ$1,$B$1) -> 82030 | CA11: =OFFSET('CalMnth Sales'!$H$2,CA$1,$B$1) -> 82542 | CB11: =OFFSET('CalMnth Sales'!$H$2,CB$1,$B$1) -> 85512 | CC11: =OFFSET('CalMnth Sales'!$H$2,CC$1,$B$1) -> 82636 | CD11: =OFFSET('CalMnth Sales'!$H$2,CD$1,$B$1) -> 77714 | CE11: =OFFSET('CalMnth Sales'!$H$2,CE$1,$B$1) -> 80046 | CF11: =OFFSET('CalMnth Sales'!$H$2,CF$1,$B$1) -> 75389 | CG11: =OFFSET('CalMnth Sales'!$H$2,CG$1,$B$1) -> 79916 | CH11: =OFFSET('CalMnth Sales'!$H$2,CH$1,$B$1) -> 84999 | CI11: =OFFSET('CalMnth Sales'!$H$2,CI$1,$B$1) -> 76570 | CJ11: =OFFSET('CalMnth Sales'!$H$2,CJ$1,$B$1) -> 79547 | CK11: =OFFSET('CalMnth Sales'!$H$2,CK$1,$B$1) -> 75882 | CL11: =OFFSET('CalMnth Sales'!$H$2,CL$1,$B$1) -> 83616 | CM11: =OFFSET('CalMnth Sales'!$H$2,CM$1,$B$1) -> 84063 | CN11: =OFFSET('CalMnth Sales'!$H$2,CN$1,$B$1) -> 87034 | CO11: =OFFSET('CalMnth Sales'!$H$2,CO$1,$B$1) -> 84153 | CP11: =OFFSET('CalMnth Sales'!$H$2,CP$1,$B$1) -> 79224 | CQ11: =OFFSET('CalMnth Sales'!$H$2,CQ$1,$B$1) -> 81605 | CR11: =OFFSET('CalMnth Sales'!$H$2,CR$1,$B$1) -> 76885 | CS11: =OFFSET('CalMnth Sales'!$H$2,CS$1,$B$1) -> 81444
A12: LARGE USER | B12: =OFFSET('CalMnth Sales'!$I$2,B$1,$B$1) -> 53038 | C12: =OFFSET('CalMnth Sales'!$I$2,C$1,$B$1) -> 47543 | D12: =OFFSET('CalMnth Sales'!$I$2,D$1,$B$1) -> 49475 | E12: =OFFSET('CalMnth Sales'!$I$2,E$1,$B$1) -> 50440 | F12: =OFFSET('CalMnth Sales'!$I$2,F$1,$B$1) -> 57869 | G12: =OFFSET('CalMnth Sales'!$I$2,G$1,$B$1) -> 56344 | H12: =OFFSET('CalMnth Sales'!$I$2,H$1,$B$1) -> 58394 | I12: =OFFSET('CalMnth Sales'!$I$2,I$1,$B$1) -> 55348 | J12: =OFFSET('CalMnth Sales'!$I$2,J$1,$B$1) -> 51705 | K12: =OFFSET('CalMnth Sales'!$I$2,K$1,$B$1) -> 53384 | L12: =OFFSET('CalMnth Sales'!$I$2,L$1,$B$1) -> 45925 | M12: =OFFSET('CalMnth Sales'!$I$2,M$1,$B$1) -> 45243 | N12: =OFFSET('CalMnth Sales'!$I$2,N$1,$B$1) -> 52360 | O12: =OFFSET('CalMnth Sales'!$I$2,O$1,$B$1) -> 45650 | P12: =OFFSET('CalMnth Sales'!$I$2,P$1,$B$1) -> 48914 | Q12: =OFFSET('CalMnth Sales'!$I$2,Q$1,$B$1) -> 48775 | R12: =OFFSET('CalMnth Sales'!$I$2,R$1,$B$1) -> 54077 | S12: =OFFSET('CalMnth Sales'!$I$2,S$1,$B$1) -> 54589 | T12: =OFFSET('CalMnth Sales'!$I$2,T$1,$B$1) -> 55927 | U12: =OFFSET('CalMnth Sales'!$I$2,U$1,$B$1) -> 53387 | V12: =OFFSET('CalMnth Sales'!$I$2,V$1,$B$1) -> 52066 | W12: =OFFSET('CalMnth Sales'!$I$2,W$1,$B$1) -> 53379 | X12: =OFFSET('CalMnth Sales'!$I$2,X$1,$B$1) -> 46029 | Y12: =OFFSET('CalMnth Sales'!$I$2,Y$1,$B$1) -> 50498 | Z12: =OFFSET('CalMnth Sales'!$I$2,Z$1,$B$1) -> 51996 | AA12: =OFFSET('CalMnth Sales'!$I$2,AA$1,$B$1) -> 46163 | AB12: =OFFSET('CalMnth Sales'!$I$2,AB$1,$B$1) -> 49304 | AC12: =OFFSET('CalMnth Sales'!$I$2,AC$1,$B$1) -> 49264 | AD12: =OFFSET('CalMnth Sales'!$I$2,AD$1,$B$1) -> 55971 | AE12: =OFFSET('CalMnth Sales'!$I$2,AE$1,$B$1) -> 55757 | AF12: =OFFSET('CalMnth Sales'!$I$2,AF$1,$B$1) -> 56208 | AG12: =OFFSET('CalMnth Sales'!$I$2,AG$1,$B$1) -> 54027 | AH12: =OFFSET('CalMnth Sales'!$I$2,AH$1,$B$1) -> 51903 | AI12: =OFFSET('CalMnth Sales'!$I$2,AI$1,$B$1) -> 53297 | AJ12: =OFFSET('CalMnth Sales'!$I$2,AJ$1,$B$1) -> 45968 | AK12: =OFFSET('CalMnth Sales'!$I$2,AK$1,$B$1) -> 50447 | AL12: =OFFSET('CalMnth Sales'!$I$2,AL$1,$B$1) -> 51946 | AM12: =OFFSET('CalMnth Sales'!$I$2,AM$1,$B$1) -> 46377 | AN12: =OFFSET('CalMnth Sales'!$I$2,AN$1,$B$1) -> 49263 | AO12: =OFFSET('CalMnth Sales'!$I$2,AO$1,$B$1) -> 49246 | AP12: =OFFSET('CalMnth Sales'!$I$2,AP$1,$B$1) -> 55950 | AQ12: =OFFSET('CalMnth Sales'!$I$2,AQ$1,$B$1) -> 55730 | AR12: =OFFSET('CalMnth Sales'!$I$2,AR$1,$B$1) -> 56176 | AS12: =OFFSET('CalMnth Sales'!$I$2,AS$1,$B$1) -> 54002 | AT12: =OFFSET('CalMnth Sales'!$I$2,AT$1,$B$1) -> 51889 | AU12: =OFFSET('CalMnth Sales'!$I$2,AU$1,$B$1) -> 53284 | AV12: =OFFSET('CalMnth Sales'!$I$2,AV$1,$B$1) -> 45942 | AW12: =OFFSET('CalMnth Sales'!$I$2,AW$1,$B$1) -> 50413 | AX12: =OFFSET('CalMnth Sales'!$I$2,AX$1,$B$1) -> 51893 | AY12: =OFFSET('CalMnth Sales'!$I$2,AY$1,$B$1) -> 46075 | AZ12: =OFFSET('CalMnth Sales'!$I$2,AZ$1,$B$1) -> 49207 | BA12: =OFFSET('CalMnth Sales'!$I$2,BA$1,$B$1) -> 49206 | BB12: =OFFSET('CalMnth Sales'!$I$2,BB$1,$B$1) -> 55896 | BC12: =OFFSET('CalMnth Sales'!$I$2,BC$1,$B$1) -> 55663 | BD12: =OFFSET('CalMnth Sales'!$I$2,BD$1,$B$1) -> 56099 | BE12: =OFFSET('CalMnth Sales'!$I$2,BE$1,$B$1) -> 53932 | BF12: =OFFSET('CalMnth Sales'!$I$2,BF$1,$B$1) -> 51833 | BG12: =OFFSET('CalMnth Sales'!$I$2,BG$1,$B$1) -> 53228 | BH12: =OFFSET('CalMnth Sales'!$I$2,BH$1,$B$1) -> 45871 | BI12: =OFFSET('CalMnth Sales'!$I$2,BI$1,$B$1) -> 50350 | BJ12: =OFFSET('CalMnth Sales'!$I$2,BJ$1,$B$1) -> 51810 | BK12: =OFFSET('CalMnth Sales'!$I$2,BK$1,$B$1) -> 46010 | BL12: =OFFSET('CalMnth Sales'!$I$2,BL$1,$B$1) -> 49151 | BM12: =OFFSET('CalMnth Sales'!$I$2,BM$1,$B$1) -> 49166 | BN12: =OFFSET('CalMnth Sales'!$I$2,BN$1,$B$1) -> 55836 | BO12: =OFFSET('CalMnth Sales'!$I$2,BO$1,$B$1) -> 55578 | BP12: =OFFSET('CalMnth Sales'!$I$2,BP$1,$B$1) -> 56011 | BQ12: =OFFSET('CalMnth Sales'!$I$2,BQ$1,$B$1) -> 53860 | BR12: =OFFSET('CalMnth Sales'!$I$2,BR$1,$B$1) -> 51777 | BS12: =OFFSET('CalMnth Sales'!$I$2,BS$1,$B$1) -> 53179 | BT12: =OFFSET('CalMnth Sales'!$I$2,BT$1,$B$1) -> 45805 | BU12: =OFFSET('CalMnth Sales'!$I$2,BU$1,$B$1) -> 50284 | BV12: =OFFSET('CalMnth Sales'!$I$2,BV$1,$B$1) -> 51710 | BW12: =OFFSET('CalMnth Sales'!$I$2,BW$1,$B$1) -> 45925 | BX12: =OFFSET('CalMnth Sales'!$I$2,BX$1,$B$1) -> 49069 | BY12: =OFFSET('CalMnth Sales'!$I$2,BY$1,$B$1) -> 49092 | BZ12: =OFFSET('CalMnth Sales'!$I$2,BZ$1,$B$1) -> 55729 | CA12: =OFFSET('CalMnth Sales'!$I$2,CA$1,$B$1) -> 55444 | CB12: =OFFSET('CalMnth Sales'!$I$2,CB$1,$B$1) -> 55870 | CC12: =OFFSET('CalMnth Sales'!$I$2,CC$1,$B$1) -> 53727 | CD12: =OFFSET('CalMnth Sales'!$I$2,CD$1,$B$1) -> 51649 | CE12: =OFFSET('CalMnth Sales'!$I$2,CE$1,$B$1) -> 53047 | CF12: =OFFSET('CalMnth Sales'!$I$2,CF$1,$B$1) -> 45646 | CG12: =OFFSET('CalMnth Sales'!$I$2,CG$1,$B$1) -> 50128 | CH12: =OFFSET('CalMnth Sales'!$I$2,CH$1,$B$1) -> 51534 | CI12: =OFFSET('CalMnth Sales'!$I$2,CI$1,$B$1) -> 46000 | CJ12: =OFFSET('CalMnth Sales'!$I$2,CJ$1,$B$1) -> 48916 | CK12: =OFFSET('CalMnth Sales'!$I$2,CK$1,$B$1) -> 48954 | CL12: =OFFSET('CalMnth Sales'!$I$2,CL$1,$B$1) -> 55566 | CM12: =OFFSET('CalMnth Sales'!$I$2,CM$1,$B$1) -> 55258 | CN12: =OFFSET('CalMnth Sales'!$I$2,CN$1,$B$1) -> 55679 | CO12: =OFFSET('CalMnth Sales'!$I$2,CO$1,$B$1) -> 53547 | CP12: =OFFSET('CalMnth Sales'!$I$2,CP$1,$B$1) -> 51480 | CQ12: =OFFSET('CalMnth Sales'!$I$2,CQ$1,$B$1) -> 52876 | CR12: =OFFSET('CalMnth Sales'!$I$2,CR$1,$B$1) -> 45452 | CS12: =OFFSET('CalMnth Sales'!$I$2,CS$1,$B$1) -> 49933
A13: STREETLIGHTING - Tier One | B13: =OFFSET('CalMnth Sales'!$J$2,B$1,$B$1) -> 4957 | C13: =OFFSET('CalMnth Sales'!$J$2,C$1,$B$1) -> 3926 | D13: =OFFSET('CalMnth Sales'!$J$2,D$1,$B$1) -> 3758 | E13: =OFFSET('CalMnth Sales'!$J$2,E$1,$B$1) -> 3158 | F13: =OFFSET('CalMnth Sales'!$J$2,F$1,$B$1) -> 3391 | G13: =OFFSET('CalMnth Sales'!$J$2,G$1,$B$1) -> 2501 | H13: =OFFSET('CalMnth Sales'!$J$2,H$1,$B$1) -> 2854 | I13: =OFFSET('CalMnth Sales'!$J$2,I$1,$B$1) -> 3189 | J13: =OFFSET('CalMnth Sales'!$J$2,J$1,$B$1) -> 3536 | K13: =OFFSET('CalMnth Sales'!$J$2,K$1,$B$1) -> 4231 | L13: =OFFSET('CalMnth Sales'!$J$2,L$1,$B$1) -> 4406 | M13: =OFFSET('CalMnth Sales'!$J$2,M$1,$B$1) -> 4869 | N13: =OFFSET('CalMnth Sales'!$J$2,N$1,$B$1) -> 4884 | O13: =OFFSET('CalMnth Sales'!$J$2,O$1,$B$1) -> 4318 | P13: =OFFSET('CalMnth Sales'!$J$2,P$1,$B$1) -> 3035 | Q13: =OFFSET('CalMnth Sales'!$J$2,Q$1,$B$1) -> 3089 | R13: =OFFSET('CalMnth Sales'!$J$2,R$1,$B$1) -> 2927 | S13: =OFFSET('CalMnth Sales'!$J$2,S$1,$B$1) -> 2768 | T13: =OFFSET('CalMnth Sales'!$J$2,T$1,$B$1) -> 2893 | U13: =OFFSET('CalMnth Sales'!$J$2,U$1,$B$1) -> 3096 | V13: =OFFSET('CalMnth Sales'!$J$2,V$1,$B$1) -> 3590 | W13: =OFFSET('CalMnth Sales'!$J$2,W$1,$B$1) -> 4278 | X13: =OFFSET('CalMnth Sales'!$J$2,X$1,$B$1) -> 4631 | Y13: =OFFSET('CalMnth Sales'!$J$2,Y$1,$B$1) -> 4908 | Z13: =OFFSET('CalMnth Sales'!$J$2,Z$1,$B$1) -> 4982 | AA13: =OFFSET('CalMnth Sales'!$J$2,AA$1,$B$1) -> 4092 | AB13: =OFFSET('CalMnth Sales'!$J$2,AB$1,$B$1) -> 3763 | AC13: =OFFSET('CalMnth Sales'!$J$2,AC$1,$B$1) -> 3131 | AD13: =OFFSET('CalMnth Sales'!$J$2,AD$1,$B$1) -> 3063 | AE13: =OFFSET('CalMnth Sales'!$J$2,AE$1,$B$1) -> 2494 | AF13: =OFFSET('CalMnth Sales'!$J$2,AF$1,$B$1) -> 2433 | AG13: =OFFSET('CalMnth Sales'!$J$2,AG$1,$B$1) -> 2672 | AH13: =OFFSET('CalMnth Sales'!$J$2,AH$1,$B$1) -> 3335 | AI13: =OFFSET('CalMnth Sales'!$J$2,AI$1,$B$1) -> 4127 | AJ13: =OFFSET('CalMnth Sales'!$J$2,AJ$1,$B$1) -> 4547 | AK13: =OFFSET('CalMnth Sales'!$J$2,AK$1,$B$1) -> 4862 | AL13: =OFFSET('CalMnth Sales'!$J$2,AL$1,$B$1) -> 4958 | AM13: =OFFSET('CalMnth Sales'!$J$2,AM$1,$B$1) -> 4105 | AN13: =OFFSET('CalMnth Sales'!$J$2,AN$1,$B$1) -> 3760 | AO13: =OFFSET('CalMnth Sales'!$J$2,AO$1,$B$1) -> 3133 | AP13: =OFFSET('CalMnth Sales'!$J$2,AP$1,$B$1) -> 3066 | AQ13: =OFFSET('CalMnth Sales'!$J$2,AQ$1,$B$1) -> 2497 | AR13: =OFFSET('CalMnth Sales'!$J$2,AR$1,$B$1) -> 2437 | AS13: =OFFSET('CalMnth Sales'!$J$2,AS$1,$B$1) -> 2678 | AT13: =OFFSET('CalMnth Sales'!$J$2,AT$1,$B$1) -> 3344 | AU13: =OFFSET('CalMnth Sales'!$J$2,AU$1,$B$1) -> 4138 | AV13: =OFFSET('CalMnth Sales'!$J$2,AV$1,$B$1) -> 4560 | AW13: =OFFSET('CalMnth Sales'!$J$2,AW$1,$B$1) -> 4876 | AX13: =OFFSET('CalMnth Sales'!$J$2,AX$1,$B$1) -> 4972 | AY13: =OFFSET('CalMnth Sales'!$J$2,AY$1,$B$1) -> 4096 | AZ13: =OFFSET('CalMnth Sales'!$J$2,AZ$1,$B$1) -> 3771 | BA13: =OFFSET('CalMnth Sales'!$J$2,BA$1,$B$1) -> 3143 | BB13: =OFFSET('CalMnth Sales'!$J$2,BB$1,$B$1) -> 3075 | BC13: =OFFSET('CalMnth Sales'!$J$2,BC$1,$B$1) -> 2503 | BD13: =OFFSET('CalMnth Sales'!$J$2,BD$1,$B$1) -> 2442 | BE13: =OFFSET('CalMnth Sales'!$J$2,BE$1,$B$1) -> 2684 | BF13: =OFFSET('CalMnth Sales'!$J$2,BF$1,$B$1) -> 3354 | BG13: =OFFSET('CalMnth Sales'!$J$2,BG$1,$B$1) -> 4150 | BH13: =OFFSET('CalMnth Sales'!$J$2,BH$1,$B$1) -> 4574 | BI13: =OFFSET('CalMnth Sales'!$J$2,BI$1,$B$1) -> 4889 | BJ13: =OFFSET('CalMnth Sales'!$J$2,BJ$1,$B$1) -> 4984 | BK13: =OFFSET('CalMnth Sales'!$J$2,BK$1,$B$1) -> 4108 | BL13: =OFFSET('CalMnth Sales'!$J$2,BL$1,$B$1) -> 3782 | BM13: =OFFSET('CalMnth Sales'!$J$2,BM$1,$B$1) -> 3152 | BN13: =OFFSET('CalMnth Sales'!$J$2,BN$1,$B$1) -> 3082 | BO13: =OFFSET('CalMnth Sales'!$J$2,BO$1,$B$1) -> 2508 | BP13: =OFFSET('CalMnth Sales'!$J$2,BP$1,$B$1) -> 2447 | BQ13: =OFFSET('CalMnth Sales'!$J$2,BQ$1,$B$1) -> 2690 | BR13: =OFFSET('CalMnth Sales'!$J$2,BR$1,$B$1) -> 3362 | BS13: =OFFSET('CalMnth Sales'!$J$2,BS$1,$B$1) -> 4162 | BT13: =OFFSET('CalMnth Sales'!$J$2,BT$1,$B$1) -> 4586 | BU13: =OFFSET('CalMnth Sales'!$J$2,BU$1,$B$1) -> 4902 | BV13: =OFFSET('CalMnth Sales'!$J$2,BV$1,$B$1) -> 4994 | BW13: =OFFSET('CalMnth Sales'!$J$2,BW$1,$B$1) -> 4119 | BX13: =OFFSET('CalMnth Sales'!$J$2,BX$1,$B$1) -> 3791 | BY13: =OFFSET('CalMnth Sales'!$J$2,BY$1,$B$1) -> 3162 | BZ13: =OFFSET('CalMnth Sales'!$J$2,BZ$1,$B$1) -> 3090 | CA13: =OFFSET('CalMnth Sales'!$J$2,CA$1,$B$1) -> 2513 | CB13: =OFFSET('CalMnth Sales'!$J$2,CB$1,$B$1) -> 2452 | CC13: =OFFSET('CalMnth Sales'!$J$2,CC$1,$B$1) -> 2696 | CD13: =OFFSET('CalMnth Sales'!$J$2,CD$1,$B$1) -> 3372 | CE13: =OFFSET('CalMnth Sales'!$J$2,CE$1,$B$1) -> 4173 | CF13: =OFFSET('CalMnth Sales'!$J$2,CF$1,$B$1) -> 4599 | CG13: =OFFSET('CalMnth Sales'!$J$2,CG$1,$B$1) -> 4915 | CH13: =OFFSET('CalMnth Sales'!$J$2,CH$1,$B$1) -> 5006 | CI13: =OFFSET('CalMnth Sales'!$J$2,CI$1,$B$1) -> 4152 | CJ13: =OFFSET('CalMnth Sales'!$J$2,CJ$1,$B$1) -> 3802 | CK13: =OFFSET('CalMnth Sales'!$J$2,CK$1,$B$1) -> 3172 | CL13: =OFFSET('CalMnth Sales'!$J$2,CL$1,$B$1) -> 3098 | CM13: =OFFSET('CalMnth Sales'!$J$2,CM$1,$B$1) -> 2519 | CN13: =OFFSET('CalMnth Sales'!$J$2,CN$1,$B$1) -> 2457 | CO13: =OFFSET('CalMnth Sales'!$J$2,CO$1,$B$1) -> 2703 | CP13: =OFFSET('CalMnth Sales'!$J$2,CP$1,$B$1) -> 3381 | CQ13: =OFFSET('CalMnth Sales'!$J$2,CQ$1,$B$1) -> 4185 | CR13: =OFFSET('CalMnth Sales'!$J$2,CR$1,$B$1) -> 4612 | CS13: =OFFSET('CalMnth Sales'!$J$2,CS$1,$B$1) -> 4928
A14: STREETLIGHTING - Tier Two | B14: - | C14: - | D14: - | E14: - | F14: - | G14: - | H14: - | I14: - | J14: - | K14: - | L14: - | M14: - | N14: - | O14: - | P14: - | Q14: - | R14: - | S14: - | T14: - | U14: - | V14: - | W14: - | X14: - | Y14: - | Z14: - | AA14: - | AB14: - | AC14: - | AD14: - | AE14: - | AF14: - | AG14: - | AH14: - | AI14: - | AJ14: - | AK14: - | AL14: - | AM14: - | AN14: - | AO14: - | AP14: - | AQ14: - | AR14: - | AS14: - | AT14: - | AU14: - | AV14: - | AW14: - | AX14: - | AY14: - | AZ14: - | BA14: - | BB14: - | BC14: - | BD14: - | BE14: - | BF14: - | BG14: - | BH14: - | BI14: - | BJ14: - | BK14: - | BL14: - | BM14: - | BN14: - | BO14: - | BP14: - | BQ14: - | BR14: - | BS14: - | BT14: - | BU14: - | BV14: - | BW14: - | BX14: - | BY14: - | BZ14: - | CA14: - | CB14: - | CC14: - | CD14: - | CE14: - | CF14: - | CG14: - | CH14: - | CI14: - | CJ14: - | CK14: - | CL14: - | CM14: - | CN14: - | CO14: - | CP14: - | CQ14: - | CR14: - | CS14: -
A15: MU | B15: =OFFSET('CalMnth Sales'!$K$2,B$1,$B$1) -> 1482 | C15: =OFFSET('CalMnth Sales'!$K$2,C$1,$B$1) -> 1426 | D15: =OFFSET('CalMnth Sales'!$K$2,D$1,$B$1) -> 1385 | E15: =OFFSET('CalMnth Sales'!$K$2,E$1,$B$1) -> 1398 | F15: =OFFSET('CalMnth Sales'!$K$2,F$1,$B$1) -> 1483 | G15: =OFFSET('CalMnth Sales'!$K$2,G$1,$B$1) -> 1487 | H15: =OFFSET('CalMnth Sales'!$K$2,H$1,$B$1) -> 1422 | I15: =OFFSET('CalMnth Sales'!$K$2,I$1,$B$1) -> 1425 | J15: =OFFSET('CalMnth Sales'!$K$2,J$1,$B$1) -> 1394 | K15: =OFFSET('CalMnth Sales'!$K$2,K$1,$B$1) -> 1386 | L15: =OFFSET('CalMnth Sales'!$K$2,L$1,$B$1) -> 1372 | M15: =OFFSET('CalMnth Sales'!$K$2,M$1,$B$1) -> 1425 | N15: =OFFSET('CalMnth Sales'!$K$2,N$1,$B$1) -> 1277 | O15: =OFFSET('CalMnth Sales'!$K$2,O$1,$B$1) -> 1351 | P15: =OFFSET('CalMnth Sales'!$K$2,P$1,$B$1) -> 1254 | Q15: =OFFSET('CalMnth Sales'!$K$2,Q$1,$B$1) -> 1358 | R15: =OFFSET('CalMnth Sales'!$K$2,R$1,$B$1) -> 1383 | S15: =OFFSET('CalMnth Sales'!$K$2,S$1,$B$1) -> 1450 | T15: =OFFSET('CalMnth Sales'!$K$2,T$1,$B$1) -> 1396 | U15: =OFFSET('CalMnth Sales'!$K$2,U$1,$B$1) -> 1386 | V15: =OFFSET('CalMnth Sales'!$K$2,V$1,$B$1) -> 1390 | W15: =OFFSET('CalMnth Sales'!$K$2,W$1,$B$1) -> 1396 | X15: =OFFSET('CalMnth Sales'!$K$2,X$1,$B$1) -> 1379 | Y15: =OFFSET('CalMnth Sales'!$K$2,Y$1,$B$1) -> 1370 | Z15: =OFFSET('CalMnth Sales'!$K$2,Z$1,$B$1) -> 1293 | AA15: =OFFSET('CalMnth Sales'!$K$2,AA$1,$B$1) -> 1391 | AB15: =OFFSET('CalMnth Sales'!$K$2,AB$1,$B$1) -> 1296 | AC15: =OFFSET('CalMnth Sales'!$K$2,AC$1,$B$1) -> 1395 | AD15: =OFFSET('CalMnth Sales'!$K$2,AD$1,$B$1) -> 1444 | AE15: =OFFSET('CalMnth Sales'!$K$2,AE$1,$B$1) -> 1486 | AF15: =OFFSET('CalMnth Sales'!$K$2,AF$1,$B$1) -> 1353 | AG15: =OFFSET('CalMnth Sales'!$K$2,AG$1,$B$1) -> 1382 | AH15: =OFFSET('CalMnth Sales'!$K$2,AH$1,$B$1) -> 1394 | AI15: =OFFSET('CalMnth Sales'!$K$2,AI$1,$B$1) -> 1400 | AJ15: =OFFSET('CalMnth Sales'!$K$2,AJ$1,$B$1) -> 1385 | AK15: =OFFSET('CalMnth Sales'!$K$2,AK$1,$B$1) -> 1375 | AL15: =OFFSET('CalMnth Sales'!$K$2,AL$1,$B$1) -> 1298 | AM15: =OFFSET('CalMnth Sales'!$K$2,AM$1,$B$1) -> 1404 | AN15: =OFFSET('CalMnth Sales'!$K$2,AN$1,$B$1) -> 1300 | AO15: =OFFSET('CalMnth Sales'!$K$2,AO$1,$B$1) -> 1400 | AP15: =OFFSET('CalMnth Sales'!$K$2,AP$1,$B$1) -> 1448 | AQ15: =OFFSET('CalMnth Sales'!$K$2,AQ$1,$B$1) -> 1490 | AR15: =OFFSET('CalMnth Sales'!$K$2,AR$1,$B$1) -> 1357 | AS15: =OFFSET('CalMnth Sales'!$K$2,AS$1,$B$1) -> 1385 | AT15: =OFFSET('CalMnth Sales'!$K$2,AT$1,$B$1) -> 1397 | AU15: =OFFSET('CalMnth Sales'!$K$2,AU$1,$B$1) -> 1404 | AV15: =OFFSET('CalMnth Sales'!$K$2,AV$1,$B$1) -> 1389 | AW15: =OFFSET('CalMnth Sales'!$K$2,AW$1,$B$1) -> 1379 | AX15: =OFFSET('CalMnth Sales'!$K$2,AX$1,$B$1) -> 1301 | AY15: =OFFSET('CalMnth Sales'!$K$2,AY$1,$B$1) -> 1401 | AZ15: =OFFSET('CalMnth Sales'!$K$2,AZ$1,$B$1) -> 1303 | BA15: =OFFSET('CalMnth Sales'!$K$2,BA$1,$B$1) -> 1405 | BB15: =OFFSET('CalMnth Sales'!$K$2,BB$1,$B$1) -> 1452 | BC15: =OFFSET('CalMnth Sales'!$K$2,BC$1,$B$1) -> 1494 | BD15: =OFFSET('CalMnth Sales'!$K$2,BD$1,$B$1) -> 1360 | BE15: =OFFSET('CalMnth Sales'!$K$2,BE$1,$B$1) -> 1388 | BF15: =OFFSET('CalMnth Sales'!$K$2,BF$1,$B$1) -> 1402 | BG15: =OFFSET('CalMnth Sales'!$K$2,BG$1,$B$1) -> 1408 | BH15: =OFFSET('CalMnth Sales'!$K$2,BH$1,$B$1) -> 1393 | BI15: =OFFSET('CalMnth Sales'!$K$2,BI$1,$B$1) -> 1383 | BJ15: =OFFSET('CalMnth Sales'!$K$2,BJ$1,$B$1) -> 1304 | BK15: =OFFSET('CalMnth Sales'!$K$2,BK$1,$B$1) -> 1405 | BL15: =OFFSET('CalMnth Sales'!$K$2,BL$1,$B$1) -> 1307 | BM15: =OFFSET('CalMnth Sales'!$K$2,BM$1,$B$1) -> 1409 | BN15: =OFFSET('CalMnth Sales'!$K$2,BN$1,$B$1) -> 1456 | BO15: =OFFSET('CalMnth Sales'!$K$2,BO$1,$B$1) -> 1497 | BP15: =OFFSET('CalMnth Sales'!$K$2,BP$1,$B$1) -> 1362 | BQ15: =OFFSET('CalMnth Sales'!$K$2,BQ$1,$B$1) -> 1391 | BR15: =OFFSET('CalMnth Sales'!$K$2,BR$1,$B$1) -> 1405 | BS15: =OFFSET('CalMnth Sales'!$K$2,BS$1,$B$1) -> 1412 | BT15: =OFFSET('CalMnth Sales'!$K$2,BT$1,$B$1) -> 1397 | BU15: =OFFSET('CalMnth Sales'!$K$2,BU$1,$B$1) -> 1386 | BV15: =OFFSET('CalMnth Sales'!$K$2,BV$1,$B$1) -> 1307 | BW15: =OFFSET('CalMnth Sales'!$K$2,BW$1,$B$1) -> 1408 | BX15: =OFFSET('CalMnth Sales'!$K$2,BX$1,$B$1) -> 1310 | BY15: =OFFSET('CalMnth Sales'!$K$2,BY$1,$B$1) -> 1413 | BZ15: =OFFSET('CalMnth Sales'!$K$2,BZ$1,$B$1) -> 1459 | CA15: =OFFSET('CalMnth Sales'!$K$2,CA$1,$B$1) -> 1500 | CB15: =OFFSET('CalMnth Sales'!$K$2,CB$1,$B$1) -> 1365 | CC15: =OFFSET('CalMnth Sales'!$K$2,CC$1,$B$1) -> 1394 | CD15: =OFFSET('CalMnth Sales'!$K$2,CD$1,$B$1) -> 1409 | CE15: =OFFSET('CalMnth Sales'!$K$2,CE$1,$B$1) -> 1416 | CF15: =OFFSET('CalMnth Sales'!$K$2,CF$1,$B$1) -> 1401 | CG15: =OFFSET('CalMnth Sales'!$K$2,CG$1,$B$1) -> 1390 | CH15: =OFFSET('CalMnth Sales'!$K$2,CH$1,$B$1) -> 1310 | CI15: =OFFSET('CalMnth Sales'!$K$2,CI$1,$B$1) -> 1420 | CJ15: =OFFSET('CalMnth Sales'!$K$2,CJ$1,$B$1) -> 1314 | CK15: =OFFSET('CalMnth Sales'!$K$2,CK$1,$B$1) -> 1418 | CL15: =OFFSET('CalMnth Sales'!$K$2,CL$1,$B$1) -> 1463 | CM15: =OFFSET('CalMnth Sales'!$K$2,CM$1,$B$1) -> 1504 | CN15: =OFFSET('CalMnth Sales'!$K$2,CN$1,$B$1) -> 1368 | CO15: =OFFSET('CalMnth Sales'!$K$2,CO$1,$B$1) -> 1398 | CP15: =OFFSET('CalMnth Sales'!$K$2,CP$1,$B$1) -> 1413 | CQ15: =OFFSET('CalMnth Sales'!$K$2,CQ$1,$B$1) -> 1420 | CR15: =OFFSET('CalMnth Sales'!$K$2,CR$1,$B$1) -> 1405 | CS15: =OFFSET('CalMnth Sales'!$K$2,CS$1,$B$1) -> 1394
A16: DCL | B16: =OFFSET('CalMnth Sales'!$L$2,B$1,$B$1) -> 290 | C16: =OFFSET('CalMnth Sales'!$L$2,C$1,$B$1) -> 280 | D16: =OFFSET('CalMnth Sales'!$L$2,D$1,$B$1) -> 271 | E16: =OFFSET('CalMnth Sales'!$L$2,E$1,$B$1) -> 277 | F16: =OFFSET('CalMnth Sales'!$L$2,F$1,$B$1) -> 297 | G16: =OFFSET('CalMnth Sales'!$L$2,G$1,$B$1) -> 298 | H16: =OFFSET('CalMnth Sales'!$L$2,H$1,$B$1) -> 285 | I16: =OFFSET('CalMnth Sales'!$L$2,I$1,$B$1) -> 287 | J16: =OFFSET('CalMnth Sales'!$L$2,J$1,$B$1) -> 281 | K16: =OFFSET('CalMnth Sales'!$L$2,K$1,$B$1) -> 281 | L16: =OFFSET('CalMnth Sales'!$L$2,L$1,$B$1) -> 278 | M16: =OFFSET('CalMnth Sales'!$L$2,M$1,$B$1) -> 289 | N16: =OFFSET('CalMnth Sales'!$L$2,N$1,$B$1) -> 290 | O16: =OFFSET('CalMnth Sales'!$L$2,O$1,$B$1) -> 274 | P16: =OFFSET('CalMnth Sales'!$L$2,P$1,$B$1) -> 272 | Q16: =OFFSET('CalMnth Sales'!$L$2,Q$1,$B$1) -> 272 | R16: =OFFSET('CalMnth Sales'!$L$2,R$1,$B$1) -> 285 | S16: =OFFSET('CalMnth Sales'!$L$2,S$1,$B$1) -> 284 | T16: =OFFSET('CalMnth Sales'!$L$2,T$1,$B$1) -> 291 | U16: =OFFSET('CalMnth Sales'!$L$2,U$1,$B$1) -> 281 | V16: =OFFSET('CalMnth Sales'!$L$2,V$1,$B$1) -> 285 | W16: =OFFSET('CalMnth Sales'!$L$2,W$1,$B$1) -> 286 | X16: =OFFSET('CalMnth Sales'!$L$2,X$1,$B$1) -> 284 | Y16: =OFFSET('CalMnth Sales'!$L$2,Y$1,$B$1) -> 283 | Z16: =OFFSET('CalMnth Sales'!$L$2,Z$1,$B$1) -> 292 | AA16: =OFFSET('CalMnth Sales'!$L$2,AA$1,$B$1) -> 280 | AB16: =OFFSET('CalMnth Sales'!$L$2,AB$1,$B$1) -> 277 | AC16: =OFFSET('CalMnth Sales'!$L$2,AC$1,$B$1) -> 277 | AD16: =OFFSET('CalMnth Sales'!$L$2,AD$1,$B$1) -> 295 | AE16: =OFFSET('CalMnth Sales'!$L$2,AE$1,$B$1) -> 292 | AF16: =OFFSET('CalMnth Sales'!$L$2,AF$1,$B$1) -> 282 | AG16: =OFFSET('CalMnth Sales'!$L$2,AG$1,$B$1) -> 280 | AH16: =OFFSET('CalMnth Sales'!$L$2,AH$1,$B$1) -> 286 | AI16: =OFFSET('CalMnth Sales'!$L$2,AI$1,$B$1) -> 287 | AJ16: =OFFSET('CalMnth Sales'!$L$2,AJ$1,$B$1) -> 286 | AK16: =OFFSET('CalMnth Sales'!$L$2,AK$1,$B$1) -> 284 | AL16: =OFFSET('CalMnth Sales'!$L$2,AL$1,$B$1) -> 293 | AM16: =OFFSET('CalMnth Sales'!$L$2,AM$1,$B$1) -> 282 | AN16: =OFFSET('CalMnth Sales'!$L$2,AN$1,$B$1) -> 278 | AO16: =OFFSET('CalMnth Sales'!$L$2,AO$1,$B$1) -> 277 | AP16: =OFFSET('CalMnth Sales'!$L$2,AP$1,$B$1) -> 296 | AQ16: =OFFSET('CalMnth Sales'!$L$2,AQ$1,$B$1) -> 293 | AR16: =OFFSET('CalMnth Sales'!$L$2,AR$1,$B$1) -> 283 | AS16: =OFFSET('CalMnth Sales'!$L$2,AS$1,$B$1) -> 280 | AT16: =OFFSET('CalMnth Sales'!$L$2,AT$1,$B$1) -> 287 | AU16: =OFFSET('CalMnth Sales'!$L$2,AU$1,$B$1) -> 288 | AV16: =OFFSET('CalMnth Sales'!$L$2,AV$1,$B$1) -> 286 | AW16: =OFFSET('CalMnth Sales'!$L$2,AW$1,$B$1) -> 285 | AX16: =OFFSET('CalMnth Sales'!$L$2,AX$1,$B$1) -> 294 | AY16: =OFFSET('CalMnth Sales'!$L$2,AY$1,$B$1) -> 282 | AZ16: =OFFSET('CalMnth Sales'!$L$2,AZ$1,$B$1) -> 279 | BA16: =OFFSET('CalMnth Sales'!$L$2,BA$1,$B$1) -> 278 | BB16: =OFFSET('CalMnth Sales'!$L$2,BB$1,$B$1) -> 297 | BC16: =OFFSET('CalMnth Sales'!$L$2,BC$1,$B$1) -> 294 | BD16: =OFFSET('CalMnth Sales'!$L$2,BD$1,$B$1) -> 284 | BE16: =OFFSET('CalMnth Sales'!$L$2,BE$1,$B$1) -> 281 | BF16: =OFFSET('CalMnth Sales'!$L$2,BF$1,$B$1) -> 287 | BG16: =OFFSET('CalMnth Sales'!$L$2,BG$1,$B$1) -> 289 | BH16: =OFFSET('CalMnth Sales'!$L$2,BH$1,$B$1) -> 287 | BI16: =OFFSET('CalMnth Sales'!$L$2,BI$1,$B$1) -> 286 | BJ16: =OFFSET('CalMnth Sales'!$L$2,BJ$1,$B$1) -> 294 | BK16: =OFFSET('CalMnth Sales'!$L$2,BK$1,$B$1) -> 283 | BL16: =OFFSET('CalMnth Sales'!$L$2,BL$1,$B$1) -> 279 | BM16: =OFFSET('CalMnth Sales'!$L$2,BM$1,$B$1) -> 279 | BN16: =OFFSET('CalMnth Sales'!$L$2,BN$1,$B$1) -> 298 | BO16: =OFFSET('CalMnth Sales'!$L$2,BO$1,$B$1) -> 295 | BP16: =OFFSET('CalMnth Sales'!$L$2,BP$1,$B$1) -> 284 | BQ16: =OFFSET('CalMnth Sales'!$L$2,BQ$1,$B$1) -> 282 | BR16: =OFFSET('CalMnth Sales'!$L$2,BR$1,$B$1) -> 288 | BS16: =OFFSET('CalMnth Sales'!$L$2,BS$1,$B$1) -> 290 | BT16: =OFFSET('CalMnth Sales'!$L$2,BT$1,$B$1) -> 288 | BU16: =OFFSET('CalMnth Sales'!$L$2,BU$1,$B$1) -> 287 | BV16: =OFFSET('CalMnth Sales'!$L$2,BV$1,$B$1) -> 295 | BW16: =OFFSET('CalMnth Sales'!$L$2,BW$1,$B$1) -> 283 | BX16: =OFFSET('CalMnth Sales'!$L$2,BX$1,$B$1) -> 280 | BY16: =OFFSET('CalMnth Sales'!$L$2,BY$1,$B$1) -> 280 | BZ16: =OFFSET('CalMnth Sales'!$L$2,BZ$1,$B$1) -> 298 | CA16: =OFFSET('CalMnth Sales'!$L$2,CA$1,$B$1) -> 295 | CB16: =OFFSET('CalMnth Sales'!$L$2,CB$1,$B$1) -> 285 | CC16: =OFFSET('CalMnth Sales'!$L$2,CC$1,$B$1) -> 282 | CD16: =OFFSET('CalMnth Sales'!$L$2,CD$1,$B$1) -> 289 | CE16: =OFFSET('CalMnth Sales'!$L$2,CE$1,$B$1) -> 291 | CF16: =OFFSET('CalMnth Sales'!$L$2,CF$1,$B$1) -> 289 | CG16: =OFFSET('CalMnth Sales'!$L$2,CG$1,$B$1) -> 287 | CH16: =OFFSET('CalMnth Sales'!$L$2,CH$1,$B$1) -> 296 | CI16: =OFFSET('CalMnth Sales'!$L$2,CI$1,$B$1) -> 286 | CJ16: =OFFSET('CalMnth Sales'!$L$2,CJ$1,$B$1) -> 281 | CK16: =OFFSET('CalMnth Sales'!$L$2,CK$1,$B$1) -> 281 | CL16: =OFFSET('CalMnth Sales'!$L$2,CL$1,$B$1) -> 299 | CM16: =OFFSET('CalMnth Sales'!$L$2,CM$1,$B$1) -> 296 | CN16: =OFFSET('CalMnth Sales'!$L$2,CN$1,$B$1) -> 285 | CO16: =OFFSET('CalMnth Sales'!$L$2,CO$1,$B$1) -> 283 | CP16: =OFFSET('CalMnth Sales'!$L$2,CP$1,$B$1) -> 290 | CQ16: =OFFSET('CalMnth Sales'!$L$2,CQ$1,$B$1) -> 291 | CR16: =OFFSET('CalMnth Sales'!$L$2,CR$1,$B$1) -> 290 | CS16: =OFFSET('CalMnth Sales'!$L$2,CS$1,$B$1) -> 288
A17: TOTAL MWH-SALES | B17: =SUM(B4:B16) -> 710199 | C17: =SUM(C4:C16) -> 635823 | D17: =SUM(D4:D16) -> 632967 | E17: 572540 | F17: 580693 | G17: 587671 | H17: 692709 | I17: 628376 | J17: 551500 | K17: 574962 | L17: 613171 | M17: 705743 | N17: 725027 | O17: 631977 | P17: 662648 | Q17: 562137 | R17: 552713 | S17: 601527 | T17: 634439 | U17: 613238 | V17: 565537 | W17: 584814 | X17: 608996 | Y17: 669422 | Z17: 715790 | AA17: 632790 | AB17: 641533 | AC17: 563603 | AD17: 566653 | AE17: 611553 | AF17: 667480 | AG17: 636794 | AH17: 565511 | AI17: 584581 | AJ17: 608468 | AK17: 668729 | AL17: 713048 | AM17: 642295 | AN17: 639105 | AO17: 561518 | AP17: 564849 | AQ17: 609490 | AR17: 665383 | AS17: 634615 | AT17: 562993 | AU17: 581649 | AV17: 604787 | AW17: 664272 | AX17: 707815 | AY17: 624637 | AZ17: 634485 | BA17: 557435 | BB17: 561285 | BC17: 605977 | BD17: 662139 | BE17: 631445 | BF17: 559603 | BG17: 578013 | BH17: 600597 | BI17: 659603 | BJ17: 705480 | BK17: 622081 | BL17: 632677 | BM17: 555848 | BN17: 560215 | BO17: =SUM(BO4:BO16) -> 605215 | BP17: 661975 | BQ17: 631252 | BR17: 558934 | BS17: 577361 | BT17: 599696 | BU17: 658669 | BV17: 705359 | BW17: 621417 | BX17: 632508 | BY17: 555517 | BZ17: 560136 | CA17: 605351 | CB17: 662633 | CC17: 631664 | CD17: 558649 | CE17: 577011 | CF17: 599086 | CG17: 658146 | CH17: =SUM(CH4:CH16) -> 704119 | CI17: 632720 | CJ17: 631278 | CK17: 554152 | CL17: 559031 | CM17: 604624 | CN17: 662498 | CO17: 631287 | CP17: 557542 | CQ17: 575842 | CR17: 597762 | CS17: 656961
A19: Demand (kW)
A20: GENERAL SERVICE 50-1000KW Non Interval | B20: =OFFSET(Demand!$C$2,B$1,$B$1) -> 387717 | C20: =OFFSET(Demand!$C$2,C$1,$B$1) -> 303229 | D20: =OFFSET(Demand!$C$2,D$1,$B$1) -> 310285 | E20: =OFFSET(Demand!$C$2,E$1,$B$1) -> 341987 | F20: =OFFSET(Demand!$C$2,F$1,$B$1) -> 345238 | G20: =OFFSET(Demand!$C$2,G$1,$B$1) -> 302796 | H20: =OFFSET(Demand!$C$2,H$1,$B$1) -> 349778 | I20: =OFFSET(Demand!$C$2,I$1,$B$1) -> 265764 | J20: =OFFSET(Demand!$C$2,J$1,$B$1) -> 311107 | K20: =OFFSET(Demand!$C$2,K$1,$B$1) -> 351710 | L20: =OFFSET(Demand!$C$2,L$1,$B$1) -> 309510 | M20: =OFFSET(Demand!$C$2,M$1,$B$1) -> 352336 | N20: =OFFSET(Demand!$C$2,N$1,$B$1) -> 346845 | O20: =OFFSET(Demand!$C$2,O$1,$B$1) -> 325614 | P20: =OFFSET(Demand!$C$2,P$1,$B$1) -> 215991 | Q20: =OFFSET(Demand!$C$2,Q$1,$B$1) -> 357675 | R20: =OFFSET(Demand!$C$2,R$1,$B$1) -> 332677 | S20: =OFFSET(Demand!$C$2,S$1,$B$1) -> 289718 | T20: =OFFSET(Demand!$C$2,T$1,$B$1) -> 351455 | U20: =OFFSET(Demand!$C$2,U$1,$B$1) -> 276105 | V20: =OFFSET(Demand!$C$2,V$1,$B$1) -> 267324 | W20: =OFFSET(Demand!$C$2,W$1,$B$1) -> 298919 | X20: =OFFSET(Demand!$C$2,X$1,$B$1) -> 345059 | Y20: =OFFSET(Demand!$C$2,Y$1,$B$1) -> 365768 | Z20: =OFFSET(Demand!$C$2,Z$1,$B$1) -> 367285 | AA20: =OFFSET(Demand!$C$2,AA$1,$B$1) -> 293078 | AB20: =OFFSET(Demand!$C$2,AB$1,$B$1) -> 295259 | AC20: =OFFSET(Demand!$C$2,AC$1,$B$1) -> 264059 | AD20: =OFFSET(Demand!$C$2,AD$1,$B$1) -> 260382 | AE20: =OFFSET(Demand!$C$2,AE$1,$B$1) -> 325741 | AF20: =OFFSET(Demand!$C$2,AF$1,$B$1) -> 340721 | AG20: =OFFSET(Demand!$C$2,AG$1,$B$1) -> 297411 | AH20: =OFFSET(Demand!$C$2,AH$1,$B$1) -> 260276 | AI20: =OFFSET(Demand!$C$2,AI$1,$B$1) -> 291971 | AJ20: =OFFSET(Demand!$C$2,AJ$1,$B$1) -> 337906 | AK20: =OFFSET(Demand!$C$2,AK$1,$B$1) -> 358959 | AL20: =OFFSET(Demand!$C$2,AL$1,$B$1) -> 360355 | AM20: =OFFSET(Demand!$C$2,AM$1,$B$1) -> 296341 | AN20: =OFFSET(Demand!$C$2,AN$1,$B$1) -> 288581 | AO20: =OFFSET(Demand!$C$2,AO$1,$B$1) -> 256887 | AP20: =OFFSET(Demand!$C$2,AP$1,$B$1) -> 252330 | AQ20: =OFFSET(Demand!$C$2,AQ$1,$B$1) -> 316758 | AR20: =OFFSET(Demand!$C$2,AR$1,$B$1) -> 332058 | AS20: =OFFSET(Demand!$C$2,AS$1,$B$1) -> 289231 | AT20: =OFFSET(Demand!$C$2,AT$1,$B$1) -> 251786 | AU20: =OFFSET(Demand!$C$2,AU$1,$B$1) -> 283073 | AV20: =OFFSET(Demand!$C$2,AV$1,$B$1) -> 328265 | AW20: =OFFSET(Demand!$C$2,AW$1,$B$1) -> 349509 | AX20: =OFFSET(Demand!$C$2,AX$1,$B$1) -> 350591 | AY20: =OFFSET(Demand!$C$2,AY$1,$B$1) -> 276779 | AZ20: =OFFSET(Demand!$C$2,AZ$1,$B$1) -> 279734 | BA20: =OFFSET(Demand!$C$2,BA$1,$B$1) -> 247741 | BB20: =OFFSET(Demand!$C$2,BB$1,$B$1) -> 242452 | BC20: =OFFSET(Demand!$C$2,BC$1,$B$1) -> 306020 | BD20: =OFFSET(Demand!$C$2,BD$1,$B$1) -> 321902 | BE20: =OFFSET(Demand!$C$2,BE$1,$B$1) -> 279881 | BF20: =OFFSET(Demand!$C$2,BF$1,$B$1) -> 242362 | BG20: =OFFSET(Demand!$C$2,BG$1,$B$1) -> 273356 | BH20: =OFFSET(Demand!$C$2,BH$1,$B$1) -> 317881 | BI20: =OFFSET(Demand!$C$2,BI$1,$B$1) -> 339475 | BJ20: =OFFSET(Demand!$C$2,BJ$1,$B$1) -> 341289 | BK20: =OFFSET(Demand!$C$2,BK$1,$B$1) -> 267878 | BL20: =OFFSET(Demand!$C$2,BL$1,$B$1) -> 271538 | BM20: =OFFSET(Demand!$C$2,BM$1,$B$1) -> 239293 | BN20: =OFFSET(Demand!$C$2,BN$1,$B$1) -> 233415 | BO20: =OFFSET(Demand!$C$2,BO$1,$B$1) -> 296293 | BP20: =OFFSET(Demand!$C$2,BP$1,$B$1) -> 312926 | BQ20: =OFFSET(Demand!$C$2,BQ$1,$B$1) -> 271682 | BR20: =OFFSET(Demand!$C$2,BR$1,$B$1) -> 234042 | BS20: =OFFSET(Demand!$C$2,BS$1,$B$1) -> 264879 | BT20: =OFFSET(Demand!$C$2,BT$1,$B$1) -> 308836 | BU20: =OFFSET(Demand!$C$2,BU$1,$B$1) -> 330813 | BV20: =OFFSET(Demand!$C$2,BV$1,$B$1) -> 333957 | BW20: =OFFSET(Demand!$C$2,BW$1,$B$1) -> 260586 | BX20: =OFFSET(Demand!$C$2,BX$1,$B$1) -> 264784 | BY20: =OFFSET(Demand!$C$2,BY$1,$B$1) -> 232049 | BZ20: =OFFSET(Demand!$C$2,BZ$1,$B$1) -> 225488 | CA20: =OFFSET(Demand!$C$2,CA$1,$B$1) -> 287709 | CB20: =OFFSET(Demand!$C$2,CB$1,$B$1) -> 305027 | CC20: =OFFSET(Demand!$C$2,CC$1,$B$1) -> 264306 | CD20: =OFFSET(Demand!$C$2,CD$1,$B$1) -> 226318 | CE20: =OFFSET(Demand!$C$2,CE$1,$B$1) -> 256968 | CF20: =OFFSET(Demand!$C$2,CF$1,$B$1) -> 300383 | CG20: =OFFSET(Demand!$C$2,CG$1,$B$1) -> 322827 | CH20: =OFFSET(Demand!$C$2,CH$1,$B$1) -> 326370 | CI20: =OFFSET(Demand!$C$2,CI$1,$B$1) -> 263820 | CJ20: =OFFSET(Demand!$C$2,CJ$1,$B$1) -> 257716 | CK20: =OFFSET(Demand!$C$2,CK$1,$B$1) -> 224420 | CL20: =OFFSET(Demand!$C$2,CL$1,$B$1) -> 217082 | CM20: =OFFSET(Demand!$C$2,CM$1,$B$1) -> 278722 | CN20: =OFFSET(Demand!$C$2,CN$1,$B$1) -> 296793 | CO20: =OFFSET(Demand!$C$2,CO$1,$B$1) -> 256604 | CP20: =OFFSET(Demand!$C$2,CP$1,$B$1) -> 218248 | CQ20: =OFFSET(Demand!$C$2,CQ$1,$B$1) -> 248753 | CR20: =OFFSET(Demand!$C$2,CR$1,$B$1) -> 291775 | CS20: =OFFSET(Demand!$C$2,CS$1,$B$1) -> 314808
A21: GENERAL SERVICE 50-1000KW Interval | B21: =OFFSET(Demand!$D$2,B$1,$B$1) -> 210331 | C21: =OFFSET(Demand!$D$2,C$1,$B$1) -> 212578 | D21: =OFFSET(Demand!$D$2,D$1,$B$1) -> 200048 | E21: =OFFSET(Demand!$D$2,E$1,$B$1) -> 207313 | F21: =OFFSET(Demand!$D$2,F$1,$B$1) -> 206529 | G21: =OFFSET(Demand!$D$2,G$1,$B$1) -> 254033 | H21: =OFFSET(Demand!$D$2,H$1,$B$1) -> 239914 | I21: =OFFSET(Demand!$D$2,I$1,$B$1) -> 225593 | J21: =OFFSET(Demand!$D$2,J$1,$B$1) -> 219886 | K21: =OFFSET(Demand!$D$2,K$1,$B$1) -> 211650 | L21: =OFFSET(Demand!$D$2,L$1,$B$1) -> 205740 | M21: =OFFSET(Demand!$D$2,M$1,$B$1) -> 209461 | N21: =OFFSET(Demand!$D$2,N$1,$B$1) -> 212855 | O21: =OFFSET(Demand!$D$2,O$1,$B$1) -> 212587 | P21: =OFFSET(Demand!$D$2,P$1,$B$1) -> 196230 | Q21: =OFFSET(Demand!$D$2,Q$1,$B$1) -> 198743 | R21: =OFFSET(Demand!$D$2,R$1,$B$1) -> 226694 | S21: =OFFSET(Demand!$D$2,S$1,$B$1) -> 232563 | T21: =OFFSET(Demand!$D$2,T$1,$B$1) -> 231979 | U21: =OFFSET(Demand!$D$2,U$1,$B$1) -> 220299 | V21: =OFFSET(Demand!$D$2,V$1,$B$1) -> 201084 | W21: =OFFSET(Demand!$D$2,W$1,$B$1) -> 209727 | X21: =OFFSET(Demand!$D$2,X$1,$B$1) -> 212654 | Y21: =OFFSET(Demand!$D$2,Y$1,$B$1) -> 220388 | Z21: =OFFSET(Demand!$D$2,Z$1,$B$1) -> 224432 | AA21: =OFFSET(Demand!$D$2,AA$1,$B$1) -> 200082 | AB21: =OFFSET(Demand!$D$2,AB$1,$B$1) -> 201003 | AC21: =OFFSET(Demand!$D$2,AC$1,$B$1) -> 190144 | AD21: =OFFSET(Demand!$D$2,AD$1,$B$1) -> 211874 | AE21: =OFFSET(Demand!$D$2,AE$1,$B$1) -> 241668 | AF21: =OFFSET(Demand!$D$2,AF$1,$B$1) -> 257729 | AG21: =OFFSET(Demand!$D$2,AG$1,$B$1) -> 227148 | AH21: =OFFSET(Demand!$D$2,AH$1,$B$1) -> 207762 | AI21: =OFFSET(Demand!$D$2,AI$1,$B$1) -> 215082 | AJ21: =OFFSET(Demand!$D$2,AJ$1,$B$1) -> 217285 | AK21: =OFFSET(Demand!$D$2,AK$1,$B$1) -> 224561 | AL21: =OFFSET(Demand!$D$2,AL$1,$B$1) -> 228206 | AM21: =OFFSET(Demand!$D$2,AM$1,$B$1) -> 207337 | AN21: =OFFSET(Demand!$D$2,AN$1,$B$1) -> 204093 | AO21: =OFFSET(Demand!$D$2,AO$1,$B$1) -> 193143 | AP21: =OFFSET(Demand!$D$2,AP$1,$B$1) -> 215309 | AQ21: =OFFSET(Demand!$D$2,AQ$1,$B$1) -> 244975 | AR21: =OFFSET(Demand!$D$2,AR$1,$B$1) -> 260605 | AS21: =OFFSET(Demand!$D$2,AS$1,$B$1) -> 229683 | AT21: =OFFSET(Demand!$D$2,AT$1,$B$1) -> 210272 | AU21: =OFFSET(Demand!$D$2,AU$1,$B$1) -> 217526 | AV21: =OFFSET(Demand!$D$2,AV$1,$B$1) -> 219436 | AW21: =OFFSET(Demand!$D$2,AW$1,$B$1) -> 226450 | AX21: =OFFSET(Demand!$D$2,AX$1,$B$1) -> 229742 | AY21: =OFFSET(Demand!$D$2,AY$1,$B$1) -> 204562 | AZ21: =OFFSET(Demand!$D$2,AZ$1,$B$1) -> 205434 | BA21: =OFFSET(Demand!$D$2,BA$1,$B$1) -> 194582 | BB21: =OFFSET(Demand!$D$2,BB$1,$B$1) -> 217286 | BC21: =OFFSET(Demand!$D$2,BC$1,$B$1) -> 246899 | BD21: =OFFSET(Demand!$D$2,BD$1,$B$1) -> 262278 | BE21: =OFFSET(Demand!$D$2,BE$1,$B$1) -> 231264 | BF21: =OFFSET(Demand!$D$2,BF$1,$B$1) -> 212038 | BG21: =OFFSET(Demand!$D$2,BG$1,$B$1) -> 219381 | BH21: =OFFSET(Demand!$D$2,BH$1,$B$1) -> 221147 | BI21: =OFFSET(Demand!$D$2,BI$1,$B$1) -> 228044 | BJ21: =OFFSET(Demand!$D$2,BJ$1,$B$1) -> 231401 | BK21: =OFFSET(Demand!$D$2,BK$1,$B$1) -> 205976 | BL21: =OFFSET(Demand!$D$2,BL$1,$B$1) -> 207058 | BM21: =OFFSET(Demand!$D$2,BM$1,$B$1) -> 196349 | BN21: =OFFSET(Demand!$D$2,BN$1,$B$1) -> 219654 | BO21: =OFFSET(Demand!$D$2,BO$1,$B$1) -> 249303 | BP21: =OFFSET(Demand!$D$2,BP$1,$B$1) -> 264563 | BQ21: =OFFSET(Demand!$D$2,BQ$1,$B$1) -> 233491 | BR21: =OFFSET(Demand!$D$2,BR$1,$B$1) -> 214446 | BS21: =OFFSET(Demand!$D$2,BS$1,$B$1) -> 221954 | BT21: =OFFSET(Demand!$D$2,BT$1,$B$1) -> 223603 | BU21: =OFFSET(Demand!$D$2,BU$1,$B$1) -> 230429 | BV21: =OFFSET(Demand!$D$2,BV$1,$B$1) -> 234038 | BW21: =OFFSET(Demand!$D$2,BW$1,$B$1) -> 208261 | BX21: =OFFSET(Demand!$D$2,BX$1,$B$1) -> 209474 | BY21: =OFFSET(Demand!$D$2,BY$1,$B$1) -> 198798 | BZ21: =OFFSET(Demand!$D$2,BZ$1,$B$1) -> 222660 | CA21: =OFFSET(Demand!$D$2,CA$1,$B$1) -> 252369 | CB21: =OFFSET(Demand!$D$2,CB$1,$B$1) -> 267483 | CC21: =OFFSET(Demand!$D$2,CC$1,$B$1) -> 236218 | CD21: =OFFSET(Demand!$D$2,CD$1,$B$1) -> 217221 | CE21: =OFFSET(Demand!$D$2,CE$1,$B$1) -> 224834 | CF21: =OFFSET(Demand!$D$2,CF$1,$B$1) -> 226328 | CG21: =OFFSET(Demand!$D$2,CG$1,$B$1) -> 233058 | CH21: =OFFSET(Demand!$D$2,CH$1,$B$1) -> 236631 | CI21: =OFFSET(Demand!$D$2,CI$1,$B$1) -> 214840 | CJ21: =OFFSET(Demand!$D$2,CJ$1,$B$1) -> 211814 | CK21: =OFFSET(Demand!$D$2,CK$1,$B$1) -> 201165 | CL21: =OFFSET(Demand!$D$2,CL$1,$B$1) -> 225578 | CM21: =OFFSET(Demand!$D$2,CM$1,$B$1) -> 255384 | CN21: =OFFSET(Demand!$D$2,CN$1,$B$1) -> 270365 | CO21: =OFFSET(Demand!$D$2,CO$1,$B$1) -> 238888 | CP21: =OFFSET(Demand!$D$2,CP$1,$B$1) -> 219925 | CQ21: =OFFSET(Demand!$D$2,CQ$1,$B$1) -> 227640 | CR21: =OFFSET(Demand!$D$2,CR$1,$B$1) -> 229021 | CS21: =OFFSET(Demand!$D$2,CS$1,$B$1) -> 235677
A22: GENERAL SERVICE 1000-1500KW | B22: =OFFSET(Demand!$E$2,B$1,$B$1) -> 59237 | C22: =OFFSET(Demand!$E$2,C$1,$B$1) -> 61246 | D22: =OFFSET(Demand!$E$2,D$1,$B$1) -> 57918 | E22: =OFFSET(Demand!$E$2,E$1,$B$1) -> 60588 | F22: =OFFSET(Demand!$E$2,F$1,$B$1) -> 61057 | G22: =OFFSET(Demand!$E$2,G$1,$B$1) -> 70296 | H22: =OFFSET(Demand!$E$2,H$1,$B$1) -> 68842 | I22: =OFFSET(Demand!$E$2,I$1,$B$1) -> 65974 | J22: =OFFSET(Demand!$E$2,J$1,$B$1) -> 66094 | K22: =OFFSET(Demand!$E$2,K$1,$B$1) -> 62986 | L22: =OFFSET(Demand!$E$2,L$1,$B$1) -> 63191 | M22: =OFFSET(Demand!$E$2,M$1,$B$1) -> 61010 | N22: =OFFSET(Demand!$E$2,N$1,$B$1) -> 59049 | O22: =OFFSET(Demand!$E$2,O$1,$B$1) -> 59228 | P22: =OFFSET(Demand!$E$2,P$1,$B$1) -> 57567 | Q22: =OFFSET(Demand!$E$2,Q$1,$B$1) -> 58107 | R22: =OFFSET(Demand!$E$2,R$1,$B$1) -> 60700 | S22: =OFFSET(Demand!$E$2,S$1,$B$1) -> 62958 | T22: =OFFSET(Demand!$E$2,T$1,$B$1) -> 64565 | U22: =OFFSET(Demand!$E$2,U$1,$B$1) -> 63320 | V22: =OFFSET(Demand!$E$2,V$1,$B$1) -> 60581 | W22: =OFFSET(Demand!$E$2,W$1,$B$1) -> 61452 | X22: =OFFSET(Demand!$E$2,X$1,$B$1) -> 63612 | Y22: =OFFSET(Demand!$E$2,Y$1,$B$1) -> 63906 | Z22: =OFFSET(Demand!$E$2,Z$1,$B$1) -> 63939 | AA22: =OFFSET(Demand!$E$2,AA$1,$B$1) -> 57742 | AB22: =OFFSET(Demand!$E$2,AB$1,$B$1) -> 60519 | AC22: =OFFSET(Demand!$E$2,AC$1,$B$1) -> 54859 | AD22: =OFFSET(Demand!$E$2,AD$1,$B$1) -> 67243 | AE22: =OFFSET(Demand!$E$2,AE$1,$B$1) -> 70055 | AF22: =OFFSET(Demand!$E$2,AF$1,$B$1) -> 69903 | AG22: =OFFSET(Demand!$E$2,AG$1,$B$1) -> 64657 | AH22: =OFFSET(Demand!$E$2,AH$1,$B$1) -> 60653 | AI22: =OFFSET(Demand!$E$2,AI$1,$B$1) -> 61595 | AJ22: =OFFSET(Demand!$E$2,AJ$1,$B$1) -> 63760 | AK22: =OFFSET(Demand!$E$2,AK$1,$B$1) -> 64038 | AL22: =OFFSET(Demand!$E$2,AL$1,$B$1) -> 64013 | AM22: =OFFSET(Demand!$E$2,AM$1,$B$1) -> 59163 | AN22: =OFFSET(Demand!$E$2,AN$1,$B$1) -> 60472 | AO22: =OFFSET(Demand!$E$2,AO$1,$B$1) -> 54766 | AP22: =OFFSET(Demand!$E$2,AP$1,$B$1) -> 67149 | AQ22: =OFFSET(Demand!$E$2,AQ$1,$B$1) -> 69869 | AR22: =OFFSET(Demand!$E$2,AR$1,$B$1) -> 69654 | AS22: =OFFSET(Demand!$E$2,AS$1,$B$1) -> 64372 | AT22: =OFFSET(Demand!$E$2,AT$1,$B$1) -> 60332 | AU22: =OFFSET(Demand!$E$2,AU$1,$B$1) -> 61248 | AV22: =OFFSET(Demand!$E$2,AV$1,$B$1) -> 63327 | AW22: =OFFSET(Demand!$E$2,AW$1,$B$1) -> 63581 | AX22: =OFFSET(Demand!$E$2,AX$1,$B$1) -> 63485 | AY22: =OFFSET(Demand!$E$2,AY$1,$B$1) -> 57108 | AZ22: =OFFSET(Demand!$E$2,AZ$1,$B$1) -> 59935 | BA22: =OFFSET(Demand!$E$2,BA$1,$B$1) -> 54242 | BB22: =OFFSET(Demand!$E$2,BB$1,$B$1) -> 66625 | BC22: =OFFSET(Demand!$E$2,BC$1,$B$1) -> 69300 | BD22: =OFFSET(Demand!$E$2,BD$1,$B$1) -> 69088 | BE22: =OFFSET(Demand!$E$2,BE$1,$B$1) -> 63830 | BF22: =OFFSET(Demand!$E$2,BF$1,$B$1) -> 59804 | BG22: =OFFSET(Demand!$E$2,BG$1,$B$1) -> 60742 | BH22: =OFFSET(Demand!$E$2,BH$1,$B$1) -> 62774 | BI22: =OFFSET(Demand!$E$2,BI$1,$B$1) -> 63052 | BJ22: =OFFSET(Demand!$E$2,BJ$1,$B$1) -> 63010 | BK22: =OFFSET(Demand!$E$2,BK$1,$B$1) -> 56579 | BL22: =OFFSET(Demand!$E$2,BL$1,$B$1) -> 59498 | BM22: =OFFSET(Demand!$E$2,BM$1,$B$1) -> 53830 | BN22: =OFFSET(Demand!$E$2,BN$1,$B$1) -> 66242 | BO22: =OFFSET(Demand!$E$2,BO$1,$B$1) -> 68890 | BP22: =OFFSET(Demand!$E$2,BP$1,$B$1) -> 68711 | BQ22: =OFFSET(Demand!$E$2,BQ$1,$B$1) -> 63488 | BR22: =OFFSET(Demand!$E$2,BR$1,$B$1) -> 59480 | BS22: =OFFSET(Demand!$E$2,BS$1,$B$1) -> 60458 | BT22: =OFFSET(Demand!$E$2,BT$1,$B$1) -> 62459 | BU22: =OFFSET(Demand!$E$2,BU$1,$B$1) -> 62770 | BV22: =OFFSET(Demand!$E$2,BV$1,$B$1) -> 62824 | BW22: =OFFSET(Demand!$E$2,BW$1,$B$1) -> 56311 | BX22: =OFFSET(Demand!$E$2,BX$1,$B$1) -> 59302 | BY22: =OFFSET(Demand!$E$2,BY$1,$B$1) -> 53623 | BZ22: =OFFSET(Demand!$E$2,BZ$1,$B$1) -> 66070 | CA22: =OFFSET(Demand!$E$2,CA$1,$B$1) -> 68685 | CB22: =OFFSET(Demand!$E$2,CB$1,$B$1) -> 68522 | CC22: =OFFSET(Demand!$E$2,CC$1,$B$1) -> 63299 | CD22: =OFFSET(Demand!$E$2,CD$1,$B$1) -> 59272 | CE22: =OFFSET(Demand!$E$2,CE$1,$B$1) -> 60269 | CF22: =OFFSET(Demand!$E$2,CF$1,$B$1) -> 62227 | CG22: =OFFSET(Demand!$E$2,CG$1,$B$1) -> 62558 | CH22: =OFFSET(Demand!$E$2,CH$1,$B$1) -> 62602 | CI22: =OFFSET(Demand!$E$2,CI$1,$B$1) -> 57568 | CJ22: =OFFSET(Demand!$E$2,CJ$1,$B$1) -> 59065 | CK22: =OFFSET(Demand!$E$2,CK$1,$B$1) -> 53379 | CL22: =OFFSET(Demand!$E$2,CL$1,$B$1) -> 65857 | CM22: =OFFSET(Demand!$E$2,CM$1,$B$1) -> 68455 | CN22: =OFFSET(Demand!$E$2,CN$1,$B$1) -> 68314 | CO22: =OFFSET(Demand!$E$2,CO$1,$B$1) -> 63086 | CP22: =OFFSET(Demand!$E$2,CP$1,$B$1) -> 59035 | CQ22: =OFFSET(Demand!$E$2,CQ$1,$B$1) -> 60049 | CR22: =OFFSET(Demand!$E$2,CR$1,$B$1) -> 61975 | CS22: =OFFSET(Demand!$E$2,CS$1,$B$1) -> 62331
A23: GENERAL SERVICE 1500-5000 KW | B23: =OFFSET(Demand!$F$2,B$1,$B$1) -> 149552 | C23: =OFFSET(Demand!$F$2,C$1,$B$1) -> 132813 | D23: =OFFSET(Demand!$F$2,D$1,$B$1) -> 141685 | E23: =OFFSET(Demand!$F$2,E$1,$B$1) -> 145715 | F23: =OFFSET(Demand!$F$2,F$1,$B$1) -> 145717 | G23: =OFFSET(Demand!$F$2,G$1,$B$1) -> 191749 | H23: =OFFSET(Demand!$F$2,H$1,$B$1) -> 179004 | I23: =OFFSET(Demand!$F$2,I$1,$B$1) -> 166323 | J23: =OFFSET(Demand!$F$2,J$1,$B$1) -> 164605 | K23: =OFFSET(Demand!$F$2,K$1,$B$1) -> 157586 | L23: =OFFSET(Demand!$F$2,L$1,$B$1) -> 147288 | M23: =OFFSET(Demand!$F$2,M$1,$B$1) -> 144835 | N23: =OFFSET(Demand!$F$2,N$1,$B$1) -> 146860 | O23: =OFFSET(Demand!$F$2,O$1,$B$1) -> 151622 | P23: =OFFSET(Demand!$F$2,P$1,$B$1) -> 137500 | Q23: =OFFSET(Demand!$F$2,Q$1,$B$1) -> 138480 | R23: =OFFSET(Demand!$F$2,R$1,$B$1) -> 155673 | S23: =OFFSET(Demand!$F$2,S$1,$B$1) -> 166541 | T23: =OFFSET(Demand!$F$2,T$1,$B$1) -> 165814 | U23: =OFFSET(Demand!$F$2,U$1,$B$1) -> 163697 | V23: =OFFSET(Demand!$F$2,V$1,$B$1) -> 155239 | W23: =OFFSET(Demand!$F$2,W$1,$B$1) -> 156389 | X23: =OFFSET(Demand!$F$2,X$1,$B$1) -> 150091 | Y23: =OFFSET(Demand!$F$2,Y$1,$B$1) -> 148139 | Z23: =OFFSET(Demand!$F$2,Z$1,$B$1) -> 155872 | AA23: =OFFSET(Demand!$F$2,AA$1,$B$1) -> 136723 | AB23: =OFFSET(Demand!$F$2,AB$1,$B$1) -> 146566 | AC23: =OFFSET(Demand!$F$2,AC$1,$B$1) -> 140411 | AD23: =OFFSET(Demand!$F$2,AD$1,$B$1) -> 164525 | AE23: =OFFSET(Demand!$F$2,AE$1,$B$1) -> 174377 | AF23: =OFFSET(Demand!$F$2,AF$1,$B$1) -> 176387 | AG23: =OFFSET(Demand!$F$2,AG$1,$B$1) -> 169673 | AH23: =OFFSET(Demand!$F$2,AH$1,$B$1) -> 157870 | AI23: =OFFSET(Demand!$F$2,AI$1,$B$1) -> 159253 | AJ23: =OFFSET(Demand!$F$2,AJ$1,$B$1) -> 153002 | AK23: =OFFSET(Demand!$F$2,AK$1,$B$1) -> 150903 | AL23: =OFFSET(Demand!$F$2,AL$1,$B$1) -> 158712 | AM23: =OFFSET(Demand!$F$2,AM$1,$B$1) -> 144796 | AN23: =OFFSET(Demand!$F$2,AN$1,$B$1) -> 149316 | AO23: =OFFSET(Demand!$F$2,AO$1,$B$1) -> 143165 | AP23: =OFFSET(Demand!$F$2,AP$1,$B$1) -> 167720 | AQ23: =OFFSET(Demand!$F$2,AQ$1,$B$1) -> 177584 | AR23: =OFFSET(Demand!$F$2,AR$1,$B$1) -> 179473 | AS23: =OFFSET(Demand!$F$2,AS$1,$B$1) -> 172770 | AT23: =OFFSET(Demand!$F$2,AT$1,$B$1) -> 160999 | AU23: =OFFSET(Demand!$F$2,AU$1,$B$1) -> 162442 | AV23: =OFFSET(Demand!$F$2,AV$1,$B$1) -> 156152 | AW23: =OFFSET(Demand!$F$2,AW$1,$B$1) -> 153880 | AX23: =OFFSET(Demand!$F$2,AX$1,$B$1) -> 161557 | AY23: =OFFSET(Demand!$F$2,AY$1,$B$1) -> 141864 | AZ23: =OFFSET(Demand!$F$2,AZ$1,$B$1) -> 152088 | BA23: =OFFSET(Demand!$F$2,BA$1,$B$1) -> 145943 | BB23: =OFFSET(Demand!$F$2,BB$1,$B$1) -> 170934 | BC23: =OFFSET(Demand!$F$2,BC$1,$B$1) -> 180780 | BD23: =OFFSET(Demand!$F$2,BD$1,$B$1) -> 182529 | BE23: =OFFSET(Demand!$F$2,BE$1,$B$1) -> 175840 | BF23: =OFFSET(Demand!$F$2,BF$1,$B$1) -> 164110 | BG23: =OFFSET(Demand!$F$2,BG$1,$B$1) -> 165607 | BH23: =OFFSET(Demand!$F$2,BH$1,$B$1) -> 159260 | BI23: =OFFSET(Demand!$F$2,BI$1,$B$1) -> 156823 | BJ23: =OFFSET(Demand!$F$2,BJ$1,$B$1) -> 164569 | BK23: =OFFSET(Demand!$F$2,BK$1,$B$1) -> 144594 | BL23: =OFFSET(Demand!$F$2,BL$1,$B$1) -> 155075 | BM23: =OFFSET(Demand!$F$2,BM$1,$B$1) -> 148925 | BN23: =OFFSET(Demand!$F$2,BN$1,$B$1) -> 174365 | BO23: =OFFSET(Demand!$F$2,BO$1,$B$1) -> 184186 | BP23: =OFFSET(Demand!$F$2,BP$1,$B$1) -> 185831 | BQ23: =OFFSET(Demand!$F$2,BQ$1,$B$1) -> 179160 | BR23: =OFFSET(Demand!$F$2,BR$1,$B$1) -> 167443 | BS23: =OFFSET(Demand!$F$2,BS$1,$B$1) -> 169003 | BT23: =OFFSET(Demand!$F$2,BT$1,$B$1) -> 162581 | BU23: =OFFSET(Demand!$F$2,BU$1,$B$1) -> 159956 | BV23: =OFFSET(Demand!$F$2,BV$1,$B$1) -> 167897 | BW23: =OFFSET(Demand!$F$2,BW$1,$B$1) -> 147594 | BX23: =OFFSET(Demand!$F$2,BX$1,$B$1) -> 158330 | BY23: =OFFSET(Demand!$F$2,BY$1,$B$1) -> 152141 | BZ23: =OFFSET(Demand!$F$2,BZ$1,$B$1) -> 178036 | CA23: =OFFSET(Demand!$F$2,CA$1,$B$1) -> 187850 | CB23: =OFFSET(Demand!$F$2,CB$1,$B$1) -> 189389 | CC23: =OFFSET(Demand!$F$2,CC$1,$B$1) -> 182696 | CD23: =OFFSET(Demand!$F$2,CD$1,$B$1) -> 170940 | CE23: =OFFSET(Demand!$F$2,CE$1,$B$1) -> 172536 | CF23: =OFFSET(Demand!$F$2,CF$1,$B$1) -> 166025 | CG23: =OFFSET(Demand!$F$2,CG$1,$B$1) -> 163219 | CH23: =OFFSET(Demand!$F$2,CH$1,$B$1) -> 170974 | CI23: =OFFSET(Demand!$F$2,CI$1,$B$1) -> 156297 | CJ23: =OFFSET(Demand!$F$2,CJ$1,$B$1) -> 161346 | CK23: =OFFSET(Demand!$F$2,CK$1,$B$1) -> 155137 | CL23: =OFFSET(Demand!$F$2,CL$1,$B$1) -> 181478 | CM23: =OFFSET(Demand!$F$2,CM$1,$B$1) -> 191313 | CN23: =OFFSET(Demand!$F$2,CN$1,$B$1) -> 192761 | CO23: =OFFSET(Demand!$F$2,CO$1,$B$1) -> 186050 | CP23: =OFFSET(Demand!$F$2,CP$1,$B$1) -> 174261 | CQ23: =OFFSET(Demand!$F$2,CQ$1,$B$1) -> 175894 | CR23: =OFFSET(Demand!$F$2,CR$1,$B$1) -> 169319 | CS23: =OFFSET(Demand!$F$2,CS$1,$B$1) -> 166339
A24: LARGE USER | B24: =OFFSET(Demand!$G$2,B$1,$B$1) -> 121622 | C24: =OFFSET(Demand!$G$2,C$1,$B$1) -> 59452 | D24: =OFFSET(Demand!$G$2,D$1,$B$1) -> 88071 | E24: =OFFSET(Demand!$G$2,E$1,$B$1) -> 83943 | F24: =OFFSET(Demand!$G$2,F$1,$B$1) -> 100994 | G24: =OFFSET(Demand!$G$2,G$1,$B$1) -> 116529 | H24: =OFFSET(Demand!$G$2,H$1,$B$1) -> 109272 | I24: =OFFSET(Demand!$G$2,I$1,$B$1) -> 101855 | J24: =OFFSET(Demand!$G$2,J$1,$B$1) -> 89927 | K24: =OFFSET(Demand!$G$2,K$1,$B$1) -> 101280 | L24: =OFFSET(Demand!$G$2,L$1,$B$1) -> 86893 | M24: =OFFSET(Demand!$G$2,M$1,$B$1) -> 75503 | N24: =OFFSET(Demand!$G$2,N$1,$B$1) -> 91983 | O24: =OFFSET(Demand!$G$2,O$1,$B$1) -> 76181 | P24: =OFFSET(Demand!$G$2,P$1,$B$1) -> 79598 | Q24: =OFFSET(Demand!$G$2,Q$1,$B$1) -> 102647 | R24: =OFFSET(Demand!$G$2,R$1,$B$1) -> 97922 | S24: =OFFSET(Demand!$G$2,S$1,$B$1) -> 99618 | T24: =OFFSET(Demand!$G$2,T$1,$B$1) -> 99434 | U24: =OFFSET(Demand!$G$2,U$1,$B$1) -> 98383 | V24: =OFFSET(Demand!$G$2,V$1,$B$1) -> 97501 | W24: =OFFSET(Demand!$G$2,W$1,$B$1) -> 97414 | X24: =OFFSET(Demand!$G$2,X$1,$B$1) -> 84282 | Y24: =OFFSET(Demand!$G$2,Y$1,$B$1) -> 87891 | Z24: =OFFSET(Demand!$G$2,Z$1,$B$1) -> 91702 | AA24: =OFFSET(Demand!$G$2,AA$1,$B$1) -> 78494 | AB24: =OFFSET(Demand!$G$2,AB$1,$B$1) -> 85945 | AC24: =OFFSET(Demand!$G$2,AC$1,$B$1) -> 84546 | AD24: =OFFSET(Demand!$G$2,AD$1,$B$1) -> 98024 | AE24: =OFFSET(Demand!$G$2,AE$1,$B$1) -> 108056 | AF24: =OFFSET(Demand!$G$2,AF$1,$B$1) -> 105345 | AG24: =OFFSET(Demand!$G$2,AG$1,$B$1) -> 103087 | AH24: =OFFSET(Demand!$G$2,AH$1,$B$1) -> 97195 | AI24: =OFFSET(Demand!$G$2,AI$1,$B$1) -> 97264 | AJ24: =OFFSET(Demand!$G$2,AJ$1,$B$1) -> 84170 | AK24: =OFFSET(Demand!$G$2,AK$1,$B$1) -> 87801 | AL24: =OFFSET(Demand!$G$2,AL$1,$B$1) -> 91614 | AM24: =OFFSET(Demand!$G$2,AM$1,$B$1) -> 78857 | AN24: =OFFSET(Demand!$G$2,AN$1,$B$1) -> 85874 | AO24: =OFFSET(Demand!$G$2,AO$1,$B$1) -> 84515 | AP24: =OFFSET(Demand!$G$2,AP$1,$B$1) -> 97985 | AQ24: =OFFSET(Demand!$G$2,AQ$1,$B$1) -> 108005 | AR24: =OFFSET(Demand!$G$2,AR$1,$B$1) -> 105285 | AS24: =OFFSET(Demand!$G$2,AS$1,$B$1) -> 103040 | AT24: =OFFSET(Demand!$G$2,AT$1,$B$1) -> 97170 | AU24: =OFFSET(Demand!$G$2,AU$1,$B$1) -> 97240 | AV24: =OFFSET(Demand!$G$2,AV$1,$B$1) -> 84122 | AW24: =OFFSET(Demand!$G$2,AW$1,$B$1) -> 87742 | AX24: =OFFSET(Demand!$G$2,AX$1,$B$1) -> 91521 | AY24: =OFFSET(Demand!$G$2,AY$1,$B$1) -> 78344 | AZ24: =OFFSET(Demand!$G$2,AZ$1,$B$1) -> 85775 | BA24: =OFFSET(Demand!$G$2,BA$1,$B$1) -> 84446 | BB24: =OFFSET(Demand!$G$2,BB$1,$B$1) -> 97892 | BC24: =OFFSET(Demand!$G$2,BC$1,$B$1) -> 107875 | BD24: =OFFSET(Demand!$G$2,BD$1,$B$1) -> 105140 | BE24: =OFFSET(Demand!$G$2,BE$1,$B$1) -> 102906 | BF24: =OFFSET(Demand!$G$2,BF$1,$B$1) -> 97064 | BG24: =OFFSET(Demand!$G$2,BG$1,$B$1) -> 97138 | BH24: =OFFSET(Demand!$G$2,BH$1,$B$1) -> 83992 | BI24: =OFFSET(Demand!$G$2,BI$1,$B$1) -> 87633 | BJ24: =OFFSET(Demand!$G$2,BJ$1,$B$1) -> 91373 | BK24: =OFFSET(Demand!$G$2,BK$1,$B$1) -> 78232 | BL24: =OFFSET(Demand!$G$2,BL$1,$B$1) -> 85678 | BM24: =OFFSET(Demand!$G$2,BM$1,$B$1) -> 84377 | BN24: =OFFSET(Demand!$G$2,BN$1,$B$1) -> 97786 | BO24: =OFFSET(Demand!$G$2,BO$1,$B$1) -> 107711 | BP24: =OFFSET(Demand!$G$2,BP$1,$B$1) -> 104976 | BQ24: =OFFSET(Demand!$G$2,BQ$1,$B$1) -> 102769 | BR24: =OFFSET(Demand!$G$2,BR$1,$B$1) -> 96961 | BS24: =OFFSET(Demand!$G$2,BS$1,$B$1) -> 97049 | BT24: =OFFSET(Demand!$G$2,BT$1,$B$1) -> 83870 | BU24: =OFFSET(Demand!$G$2,BU$1,$B$1) -> 87518 | BV24: =OFFSET(Demand!$G$2,BV$1,$B$1) -> 91198 | BW24: =OFFSET(Demand!$G$2,BW$1,$B$1) -> 78088 | BX24: =OFFSET(Demand!$G$2,BX$1,$B$1) -> 85535 | BY24: =OFFSET(Demand!$G$2,BY$1,$B$1) -> 84251 | BZ24: =OFFSET(Demand!$G$2,BZ$1,$B$1) -> 97599 | CA24: =OFFSET(Demand!$G$2,CA$1,$B$1) -> 107450 | CB24: =OFFSET(Demand!$G$2,CB$1,$B$1) -> 104711 | CC24: =OFFSET(Demand!$G$2,CC$1,$B$1) -> 102514 | CD24: =OFFSET(Demand!$G$2,CD$1,$B$1) -> 96721 | CE24: =OFFSET(Demand!$G$2,CE$1,$B$1) -> 96809 | CF24: =OFFSET(Demand!$G$2,CF$1,$B$1) -> 83580 | CG24: =OFFSET(Demand!$G$2,CG$1,$B$1) -> 87246 | CH24: =OFFSET(Demand!$G$2,CH$1,$B$1) -> 90887 | CI24: =OFFSET(Demand!$G$2,CI$1,$B$1) -> 78215 | CJ24: =OFFSET(Demand!$G$2,CJ$1,$B$1) -> 85268 | CK24: =OFFSET(Demand!$G$2,CK$1,$B$1) -> 84014 | CL24: =OFFSET(Demand!$G$2,CL$1,$B$1) -> 97314 | CM24: =OFFSET(Demand!$G$2,CM$1,$B$1) -> 107090 | CN24: =OFFSET(Demand!$G$2,CN$1,$B$1) -> 104354 | CO24: =OFFSET(Demand!$G$2,CO$1,$B$1) -> 102170 | CP24: =OFFSET(Demand!$G$2,CP$1,$B$1) -> 96403 | CQ24: =OFFSET(Demand!$G$2,CQ$1,$B$1) -> 96496 | CR24: =OFFSET(Demand!$G$2,CR$1,$B$1) -> 83224 | CS24: =OFFSET(Demand!$G$2,CS$1,$B$1) -> 86907
A25: STREETLIGHTING | B25: =OFFSET(Demand!$H$2,B$1,$B$1) -> 10302 | C25: =OFFSET(Demand!$H$2,C$1,$B$1) -> 10320 | D25: =OFFSET(Demand!$H$2,D$1,$B$1) -> 10341 | E25: =OFFSET(Demand!$H$2,E$1,$B$1) -> 10344 | F25: =OFFSET(Demand!$H$2,F$1,$B$1) -> 10344 | G25: =OFFSET(Demand!$H$2,G$1,$B$1) -> 10334 | H25: =OFFSET(Demand!$H$2,H$1,$B$1) -> 10339 | I25: =OFFSET(Demand!$H$2,I$1,$B$1) -> 10338 | J25: =OFFSET(Demand!$H$2,J$1,$B$1) -> 10338 | K25: =OFFSET(Demand!$H$2,K$1,$B$1) -> 10332 | L25: =OFFSET(Demand!$H$2,L$1,$B$1) -> 10332 | M25: =OFFSET(Demand!$H$2,M$1,$B$1) -> 10282 | N25: =OFFSET(Demand!$H$2,N$1,$B$1) -> 10283 | O25: =OFFSET(Demand!$H$2,O$1,$B$1) -> 9887 | P25: =OFFSET(Demand!$H$2,P$1,$B$1) -> 10220 | Q25: =OFFSET(Demand!$H$2,Q$1,$B$1) -> 10262 | R25: =OFFSET(Demand!$H$2,R$1,$B$1) -> 10262 | S25: =OFFSET(Demand!$H$2,S$1,$B$1) -> 10262 | T25: =OFFSET(Demand!$H$2,T$1,$B$1) -> 10262 | U25: =OFFSET(Demand!$H$2,U$1,$B$1) -> 10262 | V25: =OFFSET(Demand!$H$2,V$1,$B$1) -> 10262 | W25: =OFFSET(Demand!$H$2,W$1,$B$1) -> 10262 | X25: =OFFSET(Demand!$H$2,X$1,$B$1) -> 10262 | Y25: =OFFSET(Demand!$H$2,Y$1,$B$1) -> 10262 | Z25: =OFFSET(Demand!$H$2,Z$1,$B$1) -> 10262 | AA25: =OFFSET(Demand!$H$2,AA$1,$B$1) -> 10262 | AB25: =OFFSET(Demand!$H$2,AB$1,$B$1) -> 10262 | AC25: =OFFSET(Demand!$H$2,AC$1,$B$1) -> 10262 | AD25: =OFFSET(Demand!$H$2,AD$1,$B$1) -> 10262 | AE25: =OFFSET(Demand!$H$2,AE$1,$B$1) -> 10262 | AF25: =OFFSET(Demand!$H$2,AF$1,$B$1) -> 10262 | AG25: =OFFSET(Demand!$H$2,AG$1,$B$1) -> 10262 | AH25: =OFFSET(Demand!$H$2,AH$1,$B$1) -> 10262 | AI25: =OFFSET(Demand!$H$2,AI$1,$B$1) -> 10262 | AJ25: =OFFSET(Demand!$H$2,AJ$1,$B$1) -> 10262 | AK25: =OFFSET(Demand!$H$2,AK$1,$B$1) -> 10262 | AL25: =OFFSET(Demand!$H$2,AL$1,$B$1) -> 10262 | AM25: =OFFSET(Demand!$H$2,AM$1,$B$1) -> 10262 | AN25: =OFFSET(Demand!$H$2,AN$1,$B$1) -> 10262 | AO25: =OFFSET(Demand!$H$2,AO$1,$B$1) -> 10262 | AP25: =OFFSET(Demand!$H$2,AP$1,$B$1) -> 10262 | AQ25: =OFFSET(Demand!$H$2,AQ$1,$B$1) -> 10262 | AR25: =OFFSET(Demand!$H$2,AR$1,$B$1) -> 10262 | AS25: =OFFSET(Demand!$H$2,AS$1,$B$1) -> 10262 | AT25: =OFFSET(Demand!$H$2,AT$1,$B$1) -> 10262 | AU25: =OFFSET(Demand!$H$2,AU$1,$B$1) -> 10262 | AV25: =OFFSET(Demand!$H$2,AV$1,$B$1) -> 10262 | AW25: =OFFSET(Demand!$H$2,AW$1,$B$1) -> 10262 | AX25: =OFFSET(Demand!$H$2,AX$1,$B$1) -> 10262 | AY25: =OFFSET(Demand!$H$2,AY$1,$B$1) -> 10262 | AZ25: =OFFSET(Demand!$H$2,AZ$1,$B$1) -> 10262 | BA25: =OFFSET(Demand!$H$2,BA$1,$B$1) -> 10262 | BB25: =OFFSET(Demand!$H$2,BB$1,$B$1) -> 10262 | BC25: =OFFSET(Demand!$H$2,BC$1,$B$1) -> 10262 | BD25: =OFFSET(Demand!$H$2,BD$1,$B$1) -> 10262 | BE25: =OFFSET(Demand!$H$2,BE$1,$B$1) -> 10262 | BF25: =OFFSET(Demand!$H$2,BF$1,$B$1) -> 10262 | BG25: =OFFSET(Demand!$H$2,BG$1,$B$1) -> 10262 | BH25: =OFFSET(Demand!$H$2,BH$1,$B$1) -> 10262 | BI25: =OFFSET(Demand!$H$2,BI$1,$B$1) -> 10262 | BJ25: =OFFSET(Demand!$H$2,BJ$1,$B$1) -> 10262 | BK25: =OFFSET(Demand!$H$2,BK$1,$B$1) -> 10262 | BL25: =OFFSET(Demand!$H$2,BL$1,$B$1) -> 10262 | BM25: =OFFSET(Demand!$H$2,BM$1,$B$1) -> 10262 | BN25: =OFFSET(Demand!$H$2,BN$1,$B$1) -> 10262 | BO25: =OFFSET(Demand!$H$2,BO$1,$B$1) -> 10262 | BP25: =OFFSET(Demand!$H$2,BP$1,$B$1) -> 10262 | BQ25: =OFFSET(Demand!$H$2,BQ$1,$B$1) -> 10262 | BR25: =OFFSET(Demand!$H$2,BR$1,$B$1) -> 10262 | BS25: =OFFSET(Demand!$H$2,BS$1,$B$1) -> 10262 | BT25: =OFFSET(Demand!$H$2,BT$1,$B$1) -> 10262 | BU25: =OFFSET(Demand!$H$2,BU$1,$B$1) -> 10262 | BV25: =OFFSET(Demand!$H$2,BV$1,$B$1) -> 10262 | BW25: =OFFSET(Demand!$H$2,BW$1,$B$1) -> 10262 | BX25: =OFFSET(Demand!$H$2,BX$1,$B$1) -> 10262 | BY25: =OFFSET(Demand!$H$2,BY$1,$B$1) -> 10262 | BZ25: =OFFSET(Demand!$H$2,BZ$1,$B$1) -> 10262 | CA25: =OFFSET(Demand!$H$2,CA$1,$B$1) -> 10262 | CB25: =OFFSET(Demand!$H$2,CB$1,$B$1) -> 10262 | CC25: =OFFSET(Demand!$H$2,CC$1,$B$1) -> 10262 | CD25: =OFFSET(Demand!$H$2,CD$1,$B$1) -> 10262 | CE25: =OFFSET(Demand!$H$2,CE$1,$B$1) -> 10262 | CF25: =OFFSET(Demand!$H$2,CF$1,$B$1) -> 10262 | CG25: =OFFSET(Demand!$H$2,CG$1,$B$1) -> 10262 | CH25: =OFFSET(Demand!$H$2,CH$1,$B$1) -> 10262 | CI25: =OFFSET(Demand!$H$2,CI$1,$B$1) -> 10262 | CJ25: =OFFSET(Demand!$H$2,CJ$1,$B$1) -> 10262 | CK25: =OFFSET(Demand!$H$2,CK$1,$B$1) -> 10262 | CL25: =OFFSET(Demand!$H$2,CL$1,$B$1) -> 10262 | CM25: =OFFSET(Demand!$H$2,CM$1,$B$1) -> 10262 | CN25: =OFFSET(Demand!$H$2,CN$1,$B$1) -> 10262 | CO25: =OFFSET(Demand!$H$2,CO$1,$B$1) -> 10262 | CP25: =OFFSET(Demand!$H$2,CP$1,$B$1) -> 10262 | CQ25: =OFFSET(Demand!$H$2,CQ$1,$B$1) -> 10262 | CR25: =OFFSET(Demand!$H$2,CR$1,$B$1) -> 10262 | CS25: =OFFSET(Demand!$H$2,CS$1,$B$1) -> 10262
A26: TOTAL | B26: =SUM(B20:B25) -> 938761 | C26: =SUM(C20:C25) -> 779638 | D26: 808348 | E26: 849890 | F26: 869879 | G26: 945737 | H26: 957149 | I26: 835847 | J26: 861957 | K26: 895544 | L26: 822954 | M26: 853427 | N26: 867875 | O26: 835119 | P26: 697106 | Q26: 865914 | R26: 883928 | S26: 861660 | T26: 923509 | U26: 832066 | V26: 791991 | W26: 834163 | X26: 865960 | Y26: 896354 | Z26: 913492 | AA26: 776381 | AB26: =SUM(AB20:AB25) -> 799554 | AC26: 744281 | AD26: 812310 | AE26: 930159 | AF26: 960347 | AG26: 872238 | AH26: 794018 | AI26: 835427 | AJ26: 866385 | AK26: 896524 | AL26: 913162 | AM26: 796756 | AN26: 798598 | AO26: 742738 | AP26: 810755 | AQ26: 927453 | AR26: 957337 | AS26: 869358 | AT26: 790821 | AU26: 831791 | AV26: 861564 | AW26: 891424 | AX26: 907158 | AY26: 768919 | AZ26: 793228 | BA26: 737216 | BB26: 805451 | BC26: 921136 | BD26: 951199 | BE26: 863983 | BF26: 785640 | BG26: 826486 | BH26: 855316 | BI26: 885289 | BJ26: 901904 | BK26: 763521 | BL26: 789109 | BM26: 733036 | BN26: 801724 | BO26: =SUM(BO20:BO25) -> 916645 | BP26: 947269 | BQ26: 860852 | BR26: 782634 | BS26: 823605 | BT26: 851611 | BU26: 881748 | BV26: 900176 | BW26: 761102 | BX26: 787687 | BY26: 731124 | BZ26: 800115 | CA26: 914325 | CB26: 945394 | CC26: 859295 | CD26: 780734 | CE26: 821678 | CF26: 848805 | CG26: 879170 | CH26: =SUM(CH20:CH25) -> 897726 | CI26: 781002 | CJ26: 785471 | CK26: 728377 | CL26: 797571 | CM26: 911226 | CN26: 942849 | CO26: 857060 | CP26: 778134 | CQ26: 819094 | CR26: 845576 | CS26: 876324
A29: System Model (MWh) | B29: =OFFSET('CalMnth Sales'!$N$2,B$1,$B$1) -> 732741 | C29: =OFFSET('CalMnth Sales'!$N$2,C$1,$B$1) -> 656001 | D29: =OFFSET('CalMnth Sales'!$N$2,D$1,$B$1) -> 652995 | E29: =OFFSET('CalMnth Sales'!$N$2,E$1,$B$1) -> 590500 | F29: =OFFSET('CalMnth Sales'!$N$2,F$1,$B$1) -> 598724 | G29: =OFFSET('CalMnth Sales'!$N$2,G$1,$B$1) -> 605978 | H29: =OFFSET('CalMnth Sales'!$N$2,H$1,$B$1) -> 714509 | I29: =OFFSET('CalMnth Sales'!$N$2,I$1,$B$1) -> 648088 | J29: =OFFSET('CalMnth Sales'!$N$2,J$1,$B$1) -> 568713 | K29: =OFFSET('CalMnth Sales'!$N$2,K$1,$B$1) -> 592923 | L29: =OFFSET('CalMnth Sales'!$N$2,L$1,$B$1) -> 632629 | M29: =OFFSET('CalMnth Sales'!$N$2,M$1,$B$1) -> 728350 | N29: =OFFSET('CalMnth Sales'!$N$2,N$1,$B$1) -> 748087 | O29: =OFFSET('CalMnth Sales'!$N$2,O$1,$B$1) -> 652080 | P29: =OFFSET('CalMnth Sales'!$N$2,P$1,$B$1) -> 683695 | Q29: =OFFSET('CalMnth Sales'!$N$2,Q$1,$B$1) -> 579791 | R29: =OFFSET('CalMnth Sales'!$N$2,R$1,$B$1) -> 569902 | S29: =OFFSET('CalMnth Sales'!$N$2,S$1,$B$1) -> 620352 | T29: =OFFSET('CalMnth Sales'!$N$2,T$1,$B$1) -> 654341 | U29: =OFFSET('CalMnth Sales'!$N$2,U$1,$B$1) -> 632492 | V29: =OFFSET('CalMnth Sales'!$N$2,V$1,$B$1) -> 583215 | W29: =OFFSET('CalMnth Sales'!$N$2,W$1,$B$1) -> 603107 | X29: =OFFSET('CalMnth Sales'!$N$2,X$1,$B$1) -> 628311 | Y29: =OFFSET('CalMnth Sales'!$N$2,Y$1,$B$1) -> 690654 | Z29: =OFFSET('CalMnth Sales'!$N$2,Z$1,$B$1) -> 738548 | AA29: =OFFSET('CalMnth Sales'!$N$2,AA$1,$B$1) -> 652905 | AB29: =OFFSET('CalMnth Sales'!$N$2,AB$1,$B$1) -> 661856 | AC29: =OFFSET('CalMnth Sales'!$N$2,AC$1,$B$1) -> 581293 | AD29: =OFFSET('CalMnth Sales'!$N$2,AD$1,$B$1) -> 584261 | AE29: =OFFSET('CalMnth Sales'!$N$2,AE$1,$B$1) -> 630685 | AF29: =OFFSET('CalMnth Sales'!$N$2,AF$1,$B$1) -> 688492 | AG29: =OFFSET('CalMnth Sales'!$N$2,AG$1,$B$1) -> 656827 | AH29: =OFFSET('CalMnth Sales'!$N$2,AH$1,$B$1) -> 583192 | AI29: =OFFSET('CalMnth Sales'!$N$2,AI$1,$B$1) -> 602870 | AJ29: =OFFSET('CalMnth Sales'!$N$2,AJ$1,$B$1) -> 627765 | AK29: =OFFSET('CalMnth Sales'!$N$2,AK$1,$B$1) -> 689939 | AL29: =OFFSET('CalMnth Sales'!$N$2,AL$1,$B$1) -> 735715 | AM29: =OFFSET('CalMnth Sales'!$N$2,AM$1,$B$1) -> 662726 | AN29: =OFFSET('CalMnth Sales'!$N$2,AN$1,$B$1) -> 659347 | AO29: =OFFSET('CalMnth Sales'!$N$2,AO$1,$B$1) -> 579137 | AP29: =OFFSET('CalMnth Sales'!$N$2,AP$1,$B$1) -> 582395 | AQ29: =OFFSET('CalMnth Sales'!$N$2,AQ$1,$B$1) -> 628554 | AR29: =OFFSET('CalMnth Sales'!$N$2,AR$1,$B$1) -> 686324 | AS29: =OFFSET('CalMnth Sales'!$N$2,AS$1,$B$1) -> 654575 | AT29: =OFFSET('CalMnth Sales'!$N$2,AT$1,$B$1) -> 580591 | AU29: =OFFSET('CalMnth Sales'!$N$2,AU$1,$B$1) -> 599838 | AV29: =OFFSET('CalMnth Sales'!$N$2,AV$1,$B$1) -> 623961 | AW29: =OFFSET('CalMnth Sales'!$N$2,AW$1,$B$1) -> 685332 | AX29: =OFFSET('CalMnth Sales'!$N$2,AX$1,$B$1) -> 730307 | AY29: =OFFSET('CalMnth Sales'!$N$2,AY$1,$B$1) -> 644477 | AZ29: =OFFSET('CalMnth Sales'!$N$2,AZ$1,$B$1) -> 654573 | BA29: =OFFSET('CalMnth Sales'!$N$2,BA$1,$B$1) -> 574918 | BB29: =OFFSET('CalMnth Sales'!$N$2,BB$1,$B$1) -> 578714 | BC29: =OFFSET('CalMnth Sales'!$N$2,BC$1,$B$1) -> 624924 | BD29: =OFFSET('CalMnth Sales'!$N$2,BD$1,$B$1) -> 682971 | BE29: =OFFSET('CalMnth Sales'!$N$2,BE$1,$B$1) -> 651301 | BF29: =OFFSET('CalMnth Sales'!$N$2,BF$1,$B$1) -> 577086 | BG29: =OFFSET('CalMnth Sales'!$N$2,BG$1,$B$1) -> 596082 | BH29: =OFFSET('CalMnth Sales'!$N$2,BH$1,$B$1) -> 619631 | BI29: =OFFSET('CalMnth Sales'!$N$2,BI$1,$B$1) -> 680509 | BJ29: =OFFSET('CalMnth Sales'!$N$2,BJ$1,$B$1) -> 727896 | BK29: =OFFSET('CalMnth Sales'!$N$2,BK$1,$B$1) -> 641836 | BL29: =OFFSET('CalMnth Sales'!$N$2,BL$1,$B$1) -> 652705 | BM29: =OFFSET('CalMnth Sales'!$N$2,BM$1,$B$1) -> 573279 | BN29: =OFFSET('CalMnth Sales'!$N$2,BN$1,$B$1) -> 577609 | BO29: =OFFSET('CalMnth Sales'!$N$2,BO$1,$B$1) -> 624138 | BP29: =OFFSET('CalMnth Sales'!$N$2,BP$1,$B$1) -> 682805 | BQ29: =OFFSET('CalMnth Sales'!$N$2,BQ$1,$B$1) -> 651102 | BR29: =OFFSET('CalMnth Sales'!$N$2,BR$1,$B$1) -> 576400 | BS29: =OFFSET('CalMnth Sales'!$N$2,BS$1,$B$1) -> 595407 | BT29: =OFFSET('CalMnth Sales'!$N$2,BT$1,$B$1) -> 618700 | BU29: =OFFSET('CalMnth Sales'!$N$2,BU$1,$B$1) -> 679544 | BV29: =OFFSET('CalMnth Sales'!$N$2,BV$1,$B$1) -> 727774 | BW29: =OFFSET('CalMnth Sales'!$N$2,BW$1,$B$1) -> 641153 | BX29: =OFFSET('CalMnth Sales'!$N$2,BX$1,$B$1) -> 652535 | BY29: =OFFSET('CalMnth Sales'!$N$2,BY$1,$B$1) -> 572937 | BZ29: =OFFSET('CalMnth Sales'!$N$2,BZ$1,$B$1) -> 577531 | CA29: =OFFSET('CalMnth Sales'!$N$2,CA$1,$B$1) -> 624283 | CB29: =OFFSET('CalMnth Sales'!$N$2,CB$1,$B$1) -> 683487 | CC29: =OFFSET('CalMnth Sales'!$N$2,CC$1,$B$1) -> 651533 | CD29: =OFFSET('CalMnth Sales'!$N$2,CD$1,$B$1) -> 576105 | CE29: =OFFSET('CalMnth Sales'!$N$2,CE$1,$B$1) -> 595051 | CF29: =OFFSET('CalMnth Sales'!$N$2,CF$1,$B$1) -> 618075 | CG29: =OFFSET('CalMnth Sales'!$N$2,CG$1,$B$1) -> 679007 | CH29: =OFFSET('CalMnth Sales'!$N$2,CH$1,$B$1) -> 726496 | CI29: =OFFSET('CalMnth Sales'!$N$2,CI$1,$B$1) -> 652834 | CJ29: =OFFSET('CalMnth Sales'!$N$2,CJ$1,$B$1) -> 651265 | CK29: =OFFSET('CalMnth Sales'!$N$2,CK$1,$B$1) -> 571531 | CL29: =OFFSET('CalMnth Sales'!$N$2,CL$1,$B$1) -> 576394 | CM29: =OFFSET('CalMnth Sales'!$N$2,CM$1,$B$1) -> 623536 | CN29: =OFFSET('CalMnth Sales'!$N$2,CN$1,$B$1) -> 683354 | CO29: =OFFSET('CalMnth Sales'!$N$2,CO$1,$B$1) -> 651147 | CP29: =OFFSET('CalMnth Sales'!$N$2,CP$1,$B$1) -> 574967 | CQ29: =OFFSET('CalMnth Sales'!$N$2,CQ$1,$B$1) -> 593847 | CR29: =OFFSET('CalMnth Sales'!$N$2,CR$1,$B$1) -> 616712 | CS29: =OFFSET('CalMnth Sales'!$N$2,CS$1,$B$1) -> 677787
A30: System Model (MW) | B30: =OFFSET('CalMnth Sales'!$O$2,B$1,$B$1) -> 1283 | C30: =OFFSET('CalMnth Sales'!$O$2,C$1,$B$1) -> 1209 | D30: =OFFSET('CalMnth Sales'!$O$2,D$1,$B$1) -> 1038 | E30: =OFFSET('CalMnth Sales'!$O$2,E$1,$B$1) -> 996 | F30: =OFFSET('CalMnth Sales'!$O$2,F$1,$B$1) -> 1264 | G30: =OFFSET('CalMnth Sales'!$O$2,G$1,$B$1) -> 1274 | H30: =OFFSET('CalMnth Sales'!$O$2,H$1,$B$1) -> 1427 | I30: =OFFSET('CalMnth Sales'!$O$2,I$1,$B$1) -> 1283 | J30: =OFFSET('CalMnth Sales'!$O$2,J$1,$B$1) -> 1108 | K30: =OFFSET('CalMnth Sales'!$O$2,K$1,$B$1) -> 962 | L30: =OFFSET('CalMnth Sales'!$O$2,L$1,$B$1) -> 1084 | M30: =OFFSET('CalMnth Sales'!$O$2,M$1,$B$1) -> 1220 | N30: =OFFSET('CalMnth Sales'!$O$2,N$1,$B$1) -> 1254 | O30: =OFFSET('CalMnth Sales'!$O$2,O$1,$B$1) -> 1146 | P30: =OFFSET('CalMnth Sales'!$O$2,P$1,$B$1) -> 1111 | Q30: =OFFSET('CalMnth Sales'!$O$2,Q$1,$B$1) -> 947 | R30: =OFFSET('CalMnth Sales'!$O$2,R$1,$B$1) -> 1038 | S30: =OFFSET('CalMnth Sales'!$O$2,S$1,$B$1) -> 1304 | T30: =OFFSET('CalMnth Sales'!$O$2,T$1,$B$1) -> 1283 | U30: =OFFSET('CalMnth Sales'!$O$2,U$1,$B$1) -> 1242 | V30: =OFFSET('CalMnth Sales'!$O$2,V$1,$B$1) -> 1098 | W30: =OFFSET('CalMnth Sales'!$O$2,W$1,$B$1) -> 965 | X30: =OFFSET('CalMnth Sales'!$O$2,X$1,$B$1) -> 1094 | Y30: =OFFSET('CalMnth Sales'!$O$2,Y$1,$B$1) -> 1201 | Z30: =OFFSET('CalMnth Sales'!$O$2,Z$1,$B$1) -> 1231 | AA30: =OFFSET('CalMnth Sales'!$O$2,AA$1,$B$1) -> 1194 | AB30: =OFFSET('CalMnth Sales'!$O$2,AB$1,$B$1) -> 1105 | AC30: =OFFSET('CalMnth Sales'!$O$2,AC$1,$B$1) -> 950 | AD30: =OFFSET('CalMnth Sales'!$O$2,AD$1,$B$1) -> 1215 | AE30: =OFFSET('CalMnth Sales'!$O$2,AE$1,$B$1) -> 1315 | AF30: =OFFSET('CalMnth Sales'!$O$2,AF$1,$B$1) -> 1380 | AG30: =OFFSET('CalMnth Sales'!$O$2,AG$1,$B$1) -> 1310 | AH30: =OFFSET('CalMnth Sales'!$O$2,AH$1,$B$1) -> 1098 | AI30: =OFFSET('CalMnth Sales'!$O$2,AI$1,$B$1) -> 966 | AJ30: =OFFSET('CalMnth Sales'!$O$2,AJ$1,$B$1) -> 1094 | AK30: =OFFSET('CalMnth Sales'!$O$2,AK$1,$B$1) -> 1200 | AL30: =OFFSET('CalMnth Sales'!$O$2,AL$1,$B$1) -> 1228 | AM30: =OFFSET('CalMnth Sales'!$O$2,AM$1,$B$1) -> 1174 | AN30: =OFFSET('CalMnth Sales'!$O$2,AN$1,$B$1) -> 1103 | AO30: =OFFSET('CalMnth Sales'!$O$2,AO$1,$B$1) -> 948 | AP30: =OFFSET('CalMnth Sales'!$O$2,AP$1,$B$1) -> 1211 | AQ30: =OFFSET('CalMnth Sales'!$O$2,AQ$1,$B$1) -> 1310 | AR30: =OFFSET('CalMnth Sales'!$O$2,AR$1,$B$1) -> 1375 | AS30: =OFFSET('CalMnth Sales'!$O$2,AS$1,$B$1) -> 1305 | AT30: =OFFSET('CalMnth Sales'!$O$2,AT$1,$B$1) -> 1093 | AU30: =OFFSET('CalMnth Sales'!$O$2,AU$1,$B$1) -> 962 | AV30: =OFFSET('CalMnth Sales'!$O$2,AV$1,$B$1) -> 1089 | AW30: =OFFSET('CalMnth Sales'!$O$2,AW$1,$B$1) -> 1194 | AX30: =OFFSET('CalMnth Sales'!$O$2,AX$1,$B$1) -> 1221 | AY30: =OFFSET('CalMnth Sales'!$O$2,AY$1,$B$1) -> 1182 | AZ30: =OFFSET('CalMnth Sales'!$O$2,AZ$1,$B$1) -> 1096 | BA30: =OFFSET('CalMnth Sales'!$O$2,BA$1,$B$1) -> 943 | BB30: =OFFSET('CalMnth Sales'!$O$2,BB$1,$B$1) -> 1203 | BC30: =OFFSET('CalMnth Sales'!$O$2,BC$1,$B$1) -> 1302 | BD30: =OFFSET('CalMnth Sales'!$O$2,BD$1,$B$1) -> 1367 | BE30: =OFFSET('CalMnth Sales'!$O$2,BE$1,$B$1) -> 1298 | BF30: =OFFSET('CalMnth Sales'!$O$2,BF$1,$B$1) -> 1087 | BG30: =OFFSET('CalMnth Sales'!$O$2,BG$1,$B$1) -> 958 | BH30: =OFFSET('CalMnth Sales'!$O$2,BH$1,$B$1) -> 1083 | BI30: =OFFSET('CalMnth Sales'!$O$2,BI$1,$B$1) -> 1187 | BJ30: =OFFSET('CalMnth Sales'!$O$2,BJ$1,$B$1) -> 1218 | BK30: =OFFSET('CalMnth Sales'!$O$2,BK$1,$B$1) -> 1179 | BL30: =OFFSET('CalMnth Sales'!$O$2,BL$1,$B$1) -> 1095 | BM30: =OFFSET('CalMnth Sales'!$O$2,BM$1,$B$1) -> 942 | BN30: =OFFSET('CalMnth Sales'!$O$2,BN$1,$B$1) -> 1199 | BO30: =OFFSET('CalMnth Sales'!$O$2,BO$1,$B$1) -> 1300 | BP30: =OFFSET('CalMnth Sales'!$O$2,BP$1,$B$1) -> 1367 | BQ30: =OFFSET('CalMnth Sales'!$O$2,BQ$1,$B$1) -> 1298 | BR30: =OFFSET('CalMnth Sales'!$O$2,BR$1,$B$1) -> 1086 | BS30: =OFFSET('CalMnth Sales'!$O$2,BS$1,$B$1) -> 958 | BT30: =OFFSET('CalMnth Sales'!$O$2,BT$1,$B$1) -> 1082 | BU30: =OFFSET('CalMnth Sales'!$O$2,BU$1,$B$1) -> 1187 | BV30: =OFFSET('CalMnth Sales'!$O$2,BV$1,$B$1) -> 1219 | BW30: =OFFSET('CalMnth Sales'!$O$2,BW$1,$B$1) -> 1179 | BX30: =OFFSET('CalMnth Sales'!$O$2,BX$1,$B$1) -> 1095 | BY30: =OFFSET('CalMnth Sales'!$O$2,BY$1,$B$1) -> 943 | BZ30: =OFFSET('CalMnth Sales'!$O$2,BZ$1,$B$1) -> 1198 | CA30: =OFFSET('CalMnth Sales'!$O$2,CA$1,$B$1) -> 1300 | CB30: =OFFSET('CalMnth Sales'!$O$2,CB$1,$B$1) -> 1368 | CC30: =OFFSET('CalMnth Sales'!$O$2,CC$1,$B$1) -> 1298 | CD30: =OFFSET('CalMnth Sales'!$O$2,CD$1,$B$1) -> 1086 | CE30: =OFFSET('CalMnth Sales'!$O$2,CE$1,$B$1) -> 959 | CF30: =OFFSET('CalMnth Sales'!$O$2,CF$1,$B$1) -> 1082 | CG30: =OFFSET('CalMnth Sales'!$O$2,CG$1,$B$1) -> 1186 | CH30: =OFFSET('CalMnth Sales'!$O$2,CH$1,$B$1) -> 1217 | CI30: =OFFSET('CalMnth Sales'!$O$2,CI$1,$B$1) -> 1162 | CJ30: =OFFSET('CalMnth Sales'!$O$2,CJ$1,$B$1) -> 1094 | CK30: =OFFSET('CalMnth Sales'!$O$2,CK$1,$B$1) -> 941 | CL30: =OFFSET('CalMnth Sales'!$O$2,CL$1,$B$1) -> 1195 | CM30: =OFFSET('CalMnth Sales'!$O$2,CM$1,$B$1) -> 1298 | CN30: =OFFSET('CalMnth Sales'!$O$2,CN$1,$B$1) -> 1368 | CO30: =OFFSET('CalMnth Sales'!$O$2,CO$1,$B$1) -> 1297 | CP30: =OFFSET('CalMnth Sales'!$O$2,CP$1,$B$1) -> 1084 | CQ30: =OFFSET('CalMnth Sales'!$O$2,CQ$1,$B$1) -> 958 | CR30: =OFFSET('CalMnth Sales'!$O$2,CR$1,$B$1) -> 1080 | CS30: =OFFSET('CalMnth Sales'!$O$2,CS$1,$B$1) -> 1185
A32: System Model (MWh) Wthr Norm | B32: =OFFSET(System!$E$2,B$1,$B$1) -> 740186 | C32: =OFFSET(System!$E$2,C$1,$B$1) -> 660494 | D32: =OFFSET(System!$E$2,D$1,$B$1) -> 653942 | E32: =OFFSET(System!$E$2,E$1,$B$1) -> 586920 | F32: =OFFSET(System!$E$2,F$1,$B$1) -> 594572 | G32: =OFFSET(System!$E$2,G$1,$B$1) -> 636350 | H32: =OFFSET(System!$E$2,H$1,$B$1) -> 703934 | I32: =OFFSET(System!$E$2,I$1,$B$1) -> 673394 | J32: =OFFSET(System!$E$2,J$1,$B$1) -> 578566 | K32: =OFFSET(System!$E$2,K$1,$B$1) -> 597433 | L32: =OFFSET(System!$E$2,L$1,$B$1) -> 620846 | M32: =OFFSET(System!$E$2,M$1,$B$1) -> 706027 | N32: =OFFSET(System!$E$2,N$1,$B$1) -> 740263 | O32: =OFFSET(System!$E$2,O$1,$B$1) -> 645207 | P32: =OFFSET(System!$E$2,P$1,$B$1) -> 654619 | Q32: =OFFSET(System!$E$2,Q$1,$B$1) -> 575810 | R32: =OFFSET(System!$E$2,R$1,$B$1) -> 576967 | S32: =OFFSET(System!$E$2,S$1,$B$1) -> 618274 | T32: =OFFSET(System!$E$2,T$1,$B$1) -> 698898 | U32: =OFFSET(System!$E$2,U$1,$B$1) -> 655144 | V32: =OFFSET(System!$E$2,V$1,$B$1) -> 0 | W32: =OFFSET(System!$E$2,W$1,$B$1) -> 0 | X32: =OFFSET(System!$E$2,X$1,$B$1) -> 0 | Y32: =OFFSET(System!$E$2,Y$1,$B$1) -> 0 | Z32: =OFFSET(System!$E$2,Z$1,$B$1) -> 0 | AA32: =OFFSET(System!$E$2,AA$1,$B$1) -> 0 | AB32: =OFFSET(System!$E$2,AB$1,$B$1) -> 0 | AC32: =OFFSET(System!$E$2,AC$1,$B$1) -> 0 | AD32: =OFFSET(System!$E$2,AD$1,$B$1) -> 0 | AE32: =OFFSET(System!$E$2,AE$1,$B$1) -> 0 | AF32: =OFFSET(System!$E$2,AF$1,$B$1) -> 0 | AG32: =OFFSET(System!$E$2,AG$1,$B$1) -> 0 | AH32: =OFFSET(System!$E$2,AH$1,$B$1) -> 0 | AI32: =OFFSET(System!$E$2,AI$1,$B$1) -> 0 | AJ32: =OFFSET(System!$E$2,AJ$1,$B$1) -> 0 | AK32: =OFFSET(System!$E$2,AK$1,$B$1) -> 0 | AL32: =OFFSET(System!$E$2,AL$1,$B$1) -> 0 | AM32: =OFFSET(System!$E$2,AM$1,$B$1) -> 0 | AN32: =OFFSET(System!$E$2,AN$1,$B$1) -> 0 | AO32: =OFFSET(System!$E$2,AO$1,$B$1) -> 0 | AP32: =OFFSET(System!$E$2,AP$1,$B$1) -> 0 | AQ32: =OFFSET(System!$E$2,AQ$1,$B$1) -> 0 | AR32: =OFFSET(System!$E$2,AR$1,$B$1) -> 0 | AS32: =OFFSET(System!$E$2,AS$1,$B$1) -> 0 | AT32: =OFFSET(System!$E$2,AT$1,$B$1) -> 0 | AU32: =OFFSET(System!$E$2,AU$1,$B$1) -> 0 | AV32: =OFFSET(System!$E$2,AV$1,$B$1) -> 0 | AW32: =OFFSET(System!$E$2,AW$1,$B$1) -> 0 | AX32: =OFFSET(System!$E$2,AX$1,$B$1) -> 0 | AY32: =OFFSET(System!$E$2,AY$1,$B$1) -> 0 | AZ32: =OFFSET(System!$E$2,AZ$1,$B$1) -> 0 | BA32: =OFFSET(System!$E$2,BA$1,$B$1) -> 0 | BB32: =OFFSET(System!$E$2,BB$1,$B$1) -> 0 | BC32: =OFFSET(System!$E$2,BC$1,$B$1) -> 0 | BD32: =OFFSET(System!$E$2,BD$1,$B$1) -> 0 | BE32: =OFFSET(System!$E$2,BE$1,$B$1) -> 0 | BF32: =OFFSET(System!$E$2,BF$1,$B$1) -> 0 | BG32: =OFFSET(System!$E$2,BG$1,$B$1) -> 0 | BH32: =OFFSET(System!$E$2,BH$1,$B$1) -> 0 | BI32: =OFFSET(System!$E$2,BI$1,$B$1) -> 0 | BJ32: =OFFSET(System!$E$2,BJ$1,$B$1) -> 0 | BK32: =OFFSET(System!$E$2,BK$1,$B$1) -> 0 | BL32: =OFFSET(System!$E$2,BL$1,$B$1) -> 0 | BM32: =OFFSET(System!$E$2,BM$1,$B$1) -> 0 | BN32: =OFFSET(System!$E$2,BN$1,$B$1) -> 0 | BO32: =OFFSET(System!$E$2,BO$1,$B$1) -> 0 | BP32: =OFFSET(System!$E$2,BP$1,$B$1) -> 0 | BQ32: =OFFSET(System!$E$2,BQ$1,$B$1) -> 0 | BR32: =OFFSET(System!$E$2,BR$1,$B$1) -> 0 | BS32: =OFFSET(System!$E$2,BS$1,$B$1) -> 0 | BT32: =OFFSET(System!$E$2,BT$1,$B$1) -> 0 | BU32: =OFFSET(System!$E$2,BU$1,$B$1) -> 0 | BV32: =OFFSET(System!$E$2,BV$1,$B$1) -> 0 | BW32: =OFFSET(System!$E$2,BW$1,$B$1) -> 0 | BX32: =OFFSET(System!$E$2,BX$1,$B$1) -> 0 | BY32: =OFFSET(System!$E$2,BY$1,$B$1) -> 0 | BZ32: =OFFSET(System!$E$2,BZ$1,$B$1) -> 0 | CA32: =OFFSET(System!$E$2,CA$1,$B$1) -> 0 | CB32: =OFFSET(System!$E$2,CB$1,$B$1) -> 0 | CC32: =OFFSET(System!$E$2,CC$1,$B$1) -> 0 | CD32: =OFFSET(System!$E$2,CD$1,$B$1) -> 0 | CE32: =OFFSET(System!$E$2,CE$1,$B$1) -> 0 | CF32: =OFFSET(System!$E$2,CF$1,$B$1) -> 0 | CG32: =OFFSET(System!$E$2,CG$1,$B$1) -> 0 | CH32: =OFFSET(System!$E$2,CH$1,$B$1) -> 0 | CI32: =OFFSET(System!$E$2,CI$1,$B$1) -> 0 | CJ32: =OFFSET(System!$E$2,CJ$1,$B$1) -> 0 | CK32: =OFFSET(System!$E$2,CK$1,$B$1) -> 0 | CL32: =OFFSET(System!$E$2,CL$1,$B$1) -> 0 | CM32: =OFFSET(System!$E$2,CM$1,$B$1) -> 0 | CN32: =OFFSET(System!$E$2,CN$1,$B$1) -> 0 | CO32: =OFFSET(System!$E$2,CO$1,$B$1) -> 0 | CP32: =OFFSET(System!$E$2,CP$1,$B$1) -> 0 | CQ32: =OFFSET(System!$E$2,CQ$1,$B$1) -> 0 | CR32: =OFFSET(System!$E$2,CR$1,$B$1) -> 0 | CS32: =OFFSET(System!$E$2,CS$1,$B$1) -> 0

Sheet Monthly Customer
A1: Row Offset | B1: 0 | C1: =B1+1 -> 1 | D1: =C1+1 -> 2 | E1: 3 | F1: 4 | G1: 5 | H1: 6 | I1: 7 | J1: 8 | K1: 9 | L1: 10 | M1: =L1+1 -> 11 | N1: 12 | O1: 13 | P1: 14 | Q1: 15 | R1: 16 | S1: 17 | T1: 18 | U1: 19 | V1: 20 | W1: 21 | X1: 22 | Y1: 23 | Z1: 24 | AA1: 25 | AB1: 26 | AC1: =AB1+1 -> 27 | AD1: 28 | AE1: 29 | AF1: 30 | AG1: 31 | AH1: 32 | AI1: 33 | AJ1: 34 | AK1: 35 | AL1: 36 | AM1: 37 | AN1: 38 | AO1: 39 | AP1: 40 | AQ1: 41 | AR1: 42 | AS1: 43 | AT1: 44 | AU1: 45 | AV1: 46 | AW1: 47 | AX1: 48 | AY1: 49 | AZ1: 50 | BA1: 51 | BB1: 52 | BC1: 53 | BD1: 54 | BE1: 55 | BF1: 56 | BG1: 57 | BH1: 58 | BI1: 59 | BJ1: 60 | BK1: 61 | BL1: 62 | BM1: 63 | BN1: 64 | BO1: 65 | BP1: 66 | BQ1: 67 | BR1: 68 | BS1: 69 | BT1: 70 | BU1: 71 | BV1: 72 | BW1: 73 | BX1: 74 | BY1: 75 | BZ1: 76 | CA1: 77 | CB1: 78 | CC1: 79 | CD1: 80 | CE1: 81 | CF1: 82 | CG1: 83 | CH1: 84 | CI1: 85 | CJ1: 86 | CK1: 87 | CL1: 88 | CM1: 89 | CN1: 90 | CO1: =CN1+1 -> 91 | CP1: 92 | CQ1: 93 | CR1: 94 | CS1: 95 | CT1: 96 | CU1: 97 | CV1: 98 | CW1: 99 | CX1: 100 | CY1: 101 | CZ1: 102 | DA1: 103 | DB1: 104 | DC1: 105 | DD1: 106 | DE1: 107 | DF1: 108 | DG1: 109 | DH1: 110 | DI1: 111 | DJ1: 112 | DK1: 113 | DL1: 114 | DM1: 115 | DN1: 116 | DO1: 117 | DP1: 118 | DQ1: 119 | DR1: 120
A2: Year | B2: =OFFSET(Customers!$A$2,B$1,$B$1) -> 2013 | C2: =OFFSET(Customers!$A$2,C$1,$B$1) -> 2013 | D2: =OFFSET(Customers!$A$2,D$1,$B$1) -> 2013 | E2: =OFFSET(Customers!$A$2,E$1,$B$1) -> 2013 | F2: =OFFSET(Customers!$A$2,F$1,$B$1) -> 2013 | G2: =OFFSET(Customers!$A$2,G$1,$B$1) -> 2013 | H2: =OFFSET(Customers!$A$2,H$1,$B$1) -> 2013 | I2: =OFFSET(Customers!$A$2,I$1,$B$1) -> 2013 | J2: =OFFSET(Customers!$A$2,J$1,$B$1) -> 2013 | K2: =OFFSET(Customers!$A$2,K$1,$B$1) -> 2013 | L2: =OFFSET(Customers!$A$2,L$1,$B$1) -> 2013 | M2: =OFFSET(Customers!$A$2,M$1,$B$1) -> 2013 | N2: =OFFSET(Customers!$A$2,N$1,$B$1) -> 2014 | O2: =OFFSET(Customers!$A$2,O$1,$B$1) -> 2014 | P2: =OFFSET(Customers!$A$2,P$1,$B$1) -> 2014 | Q2: =OFFSET(Customers!$A$2,Q$1,$B$1) -> 2014 | R2: =OFFSET(Customers!$A$2,R$1,$B$1) -> 2014 | S2: =OFFSET(Customers!$A$2,S$1,$B$1) -> 2014 | T2: =OFFSET(Customers!$A$2,T$1,$B$1) -> 2014 | U2: =OFFSET(Customers!$A$2,U$1,$B$1) -> 2014 | V2: =OFFSET(Customers!$A$2,V$1,$B$1) -> 2014 | W2: =OFFSET(Customers!$A$2,W$1,$B$1) -> 2014 | X2: =OFFSET(Customers!$A$2,X$1,$B$1) -> 2014 | Y2: =OFFSET(Customers!$A$2,Y$1,$B$1) -> 2014 | Z2: =OFFSET(Customers!$A$2,Z$1,$B$1) -> 2015 | AA2: =OFFSET(Customers!$A$2,AA$1,$B$1) -> 2015 | AB2: =OFFSET(Customers!$A$2,AB$1,$B$1) -> 2015 | AC2: =OFFSET(Customers!$A$2,AC$1,$B$1) -> 2015 | AD2: =OFFSET(Customers!$A$2,AD$1,$B$1) -> 2015 | AE2: =OFFSET(Customers!$A$2,AE$1,$B$1) -> 2015 | AF2: =OFFSET(Customers!$A$2,AF$1,$B$1) -> 2015 | AG2: =OFFSET(Customers!$A$2,AG$1,$B$1) -> 2015 | AH2: =OFFSET(Customers!$A$2,AH$1,$B$1) -> 2015 | AI2: =OFFSET(Customers!$A$2,AI$1,$B$1) -> 2015 | AJ2: =OFFSET(Customers!$A$2,AJ$1,$B$1) -> 2015 | AK2: =OFFSET(Customers!$A$2,AK$1,$B$1) -> 2015 | AL2: =OFFSET(Customers!$A$2,AL$1,$B$1) -> 2016 | AM2: =OFFSET(Customers!$A$2,AM$1,$B$1) -> 2016 | AN2: =OFFSET(Customers!$A$2,AN$1,$B$1) -> 2016 | AO2: =OFFSET(Customers!$A$2,AO$1,$B$1) -> 2016 | AP2: =OFFSET(Customers!$A$2,AP$1,$B$1) -> 2016 | AQ2: =OFFSET(Customers!$A$2,AQ$1,$B$1) -> 2016 | AR2: =OFFSET(Customers!$A$2,AR$1,$B$1) -> 2016 | AS2: =OFFSET(Customers!$A$2,AS$1,$B$1) -> 2016 | AT2: =OFFSET(Customers!$A$2,AT$1,$B$1) -> 2016 | AU2: =OFFSET(Customers!$A$2,AU$1,$B$1) -> 2016 | AV2: =OFFSET(Customers!$A$2,AV$1,$B$1) -> 2016 | AW2: =OFFSET(Customers!$A$2,AW$1,$B$1) -> 2016 | AX2: =OFFSET(Customers!$A$2,AX$1,$B$1) -> 2017 | AY2: =OFFSET(Customers!$A$2,AY$1,$B$1) -> 2017 | AZ2: =OFFSET(Customers!$A$2,AZ$1,$B$1) -> 2017 | BA2: =OFFSET(Customers!$A$2,BA$1,$B$1) -> 2017 | BB2: =OFFSET(Customers!$A$2,BB$1,$B$1) -> 2017 | BC2: =OFFSET(Customers!$A$2,BC$1,$B$1) -> 2017 | BD2: =OFFSET(Customers!$A$2,BD$1,$B$1) -> 2017 | BE2: =OFFSET(Customers!$A$2,BE$1,$B$1) -> 2017 | BF2: =OFFSET(Customers!$A$2,BF$1,$B$1) -> 2017 | BG2: =OFFSET(Customers!$A$2,BG$1,$B$1) -> 2017 | BH2: =OFFSET(Customers!$A$2,BH$1,$B$1) -> 2017 | BI2: =OFFSET(Customers!$A$2,BI$1,$B$1) -> 2017 | BJ2: =OFFSET(Customers!$A$2,BJ$1,$B$1) -> 2018 | BK2: =OFFSET(Customers!$A$2,BK$1,$B$1) -> 2018 | BL2: =OFFSET(Customers!$A$2,BL$1,$B$1) -> 2018 | BM2: =OFFSET(Customers!$A$2,BM$1,$B$1) -> 2018 | BN2: =OFFSET(Customers!$A$2,BN$1,$B$1) -> 2018 | BO2: =OFFSET(Customers!$A$2,BO$1,$B$1) -> 2018 | BP2: =OFFSET(Customers!$A$2,BP$1,$B$1) -> 2018 | BQ2: =OFFSET(Customers!$A$2,BQ$1,$B$1) -> 2018 | BR2: =OFFSET(Customers!$A$2,BR$1,$B$1) -> 2018 | BS2: =OFFSET(Customers!$A$2,BS$1,$B$1) -> 2018 | BT2: =OFFSET(Customers!$A$2,BT$1,$B$1) -> 2018 | BU2: =OFFSET(Customers!$A$2,BU$1,$B$1) -> 2018 | BV2: =OFFSET(Customers!$A$2,BV$1,$B$1) -> 2019 | BW2: =OFFSET(Customers!$A$2,BW$1,$B$1) -> 2019 | BX2: =OFFSET(Customers!$A$2,BX$1,$B$1) -> 2019 | BY2: =OFFSET(Customers!$A$2,BY$1,$B$1) -> 2019 | BZ2: =OFFSET(Customers!$A$2,BZ$1,$B$1) -> 2019 | CA2: =OFFSET(Customers!$A$2,CA$1,$B$1) -> 2019 | CB2: =OFFSET(Customers!$A$2,CB$1,$B$1) -> 2019 | CC2: =OFFSET(Customers!$A$2,CC$1,$B$1) -> 2019 | CD2: =OFFSET(Customers!$A$2,CD$1,$B$1) -> 2019 | CE2: =OFFSET(Customers!$A$2,CE$1,$B$1) -> 2019 | CF2: =OFFSET(Customers!$A$2,CF$1,$B$1) -> 2019 | CG2: =OFFSET(Customers!$A$2,CG$1,$B$1) -> 2019 | CH2: =OFFSET(Customers!$A$2,CH$1,$B$1) -> 2020 | CI2: =OFFSET(Customers!$A$2,CI$1,$B$1) -> 2020 | CJ2: =OFFSET(Customers!$A$2,CJ$1,$B$1) -> 2020 | CK2: =OFFSET(Customers!$A$2,CK$1,$B$1) -> 2020 | CL2: =OFFSET(Customers!$A$2,CL$1,$B$1) -> 2020 | CM2: =OFFSET(Customers!$A$2,CM$1,$B$1) -> 2020 | CN2: =OFFSET(Customers!$A$2,CN$1,$B$1) -> 2020 | CO2: =OFFSET(Customers!$A$2,CO$1,$B$1) -> 2020 | CP2: =OFFSET(Customers!$A$2,CP$1,$B$1) -> 2020 | CQ2: =OFFSET(Customers!$A$2,CQ$1,$B$1) -> 2020 | CR2: =OFFSET(Customers!$A$2,CR$1,$B$1) -> 2020 | CS2: =OFFSET(Customers!$A$2,CS$1,$B$1) -> 2020
A3: Month | B3: =OFFSET(Customers!$B$2,B1,$B$1) -> 1 | C3: =OFFSET(Customers!$B$2,C1,$B$1) -> 2 | D3: =OFFSET(Customers!$B$2,D1,$B$1) -> 3 | E3: =OFFSET(Customers!$B$2,E1,$B$1) -> 4 | F3: =OFFSET(Customers!$B$2,F1,$B$1) -> 5 | G3: =OFFSET(Customers!$B$2,G1,$B$1) -> 6 | H3: =OFFSET(Customers!$B$2,H1,$B$1) -> 7 | I3: =OFFSET(Customers!$B$2,I1,$B$1) -> 8 | J3: =OFFSET(Customers!$B$2,J1,$B$1) -> 9 | K3: =OFFSET(Customers!$B$2,K1,$B$1) -> 10 | L3: =OFFSET(Customers!$B$2,L1,$B$1) -> 11 | M3: =OFFSET(Customers!$B$2,M1,$B$1) -> 12 | N3: =OFFSET(Customers!$B$2,N1,$B$1) -> 1 | O3: =OFFSET(Customers!$B$2,O1,$B$1) -> 2 | P3: =OFFSET(Customers!$B$2,P1,$B$1) -> 3 | Q3: =OFFSET(Customers!$B$2,Q1,$B$1) -> 4 | R3: =OFFSET(Customers!$B$2,R1,$B$1) -> 5 | S3: =OFFSET(Customers!$B$2,S1,$B$1) -> 6 | T3: =OFFSET(Customers!$B$2,T1,$B$1) -> 7 | U3: =OFFSET(Customers!$B$2,U1,$B$1) -> 8 | V3: =OFFSET(Customers!$B$2,V1,$B$1) -> 9 | W3: =OFFSET(Customers!$B$2,W1,$B$1) -> 10 | X3: =OFFSET(Customers!$B$2,X1,$B$1) -> 11 | Y3: =OFFSET(Customers!$B$2,Y1,$B$1) -> 12 | Z3: =OFFSET(Customers!$B$2,Z1,$B$1) -> 1 | AA3: =OFFSET(Customers!$B$2,AA1,$B$1) -> 2 | AB3: =OFFSET(Customers!$B$2,AB1,$B$1) -> 3 | AC3: =OFFSET(Customers!$B$2,AC1,$B$1) -> 4 | AD3: =OFFSET(Customers!$B$2,AD1,$B$1) -> 5 | AE3: =OFFSET(Customers!$B$2,AE1,$B$1) -> 6 | AF3: =OFFSET(Customers!$B$2,AF1,$B$1) -> 7 | AG3: =OFFSET(Customers!$B$2,AG1,$B$1) -> 8 | AH3: =OFFSET(Customers!$B$2,AH1,$B$1) -> 9 | AI3: =OFFSET(Customers!$B$2,AI1,$B$1) -> 10 | AJ3: =OFFSET(Customers!$B$2,AJ1,$B$1) -> 11 | AK3: =OFFSET(Customers!$B$2,AK1,$B$1) -> 12 | AL3: =OFFSET(Customers!$B$2,AL1,$B$1) -> 1 | AM3: =OFFSET(Customers!$B$2,AM1,$B$1) -> 2 | AN3: =OFFSET(Customers!$B$2,AN1,$B$1) -> 3 | AO3: =OFFSET(Customers!$B$2,AO1,$B$1) -> 4 | AP3: =OFFSET(Customers!$B$2,AP1,$B$1) -> 5 | AQ3: =OFFSET(Customers!$B$2,AQ1,$B$1) -> 6 | AR3: =OFFSET(Customers!$B$2,AR1,$B$1) -> 7 | AS3: =OFFSET(Customers!$B$2,AS1,$B$1) -> 8 | AT3: =OFFSET(Customers!$B$2,AT1,$B$1) -> 9 | AU3: =OFFSET(Customers!$B$2,AU1,$B$1) -> 10 | AV3: =OFFSET(Customers!$B$2,AV1,$B$1) -> 11 | AW3: =OFFSET(Customers!$B$2,AW1,$B$1) -> 12 | AX3: =OFFSET(Customers!$B$2,AX1,$B$1) -> 1 | AY3: =OFFSET(Customers!$B$2,AY1,$B$1) -> 2 | AZ3: =OFFSET(Customers!$B$2,AZ1,$B$1) -> 3 | BA3: =OFFSET(Customers!$B$2,BA1,$B$1) -> 4 | BB3: =OFFSET(Customers!$B$2,BB1,$B$1) -> 5 | BC3: =OFFSET(Customers!$B$2,BC1,$B$1) -> 6 | BD3: =OFFSET(Customers!$B$2,BD1,$B$1) -> 7 | BE3: =OFFSET(Customers!$B$2,BE1,$B$1) -> 8 | BF3: =OFFSET(Customers!$B$2,BF1,$B$1) -> 9 | BG3: =OFFSET(Customers!$B$2,BG1,$B$1) -> 10 | BH3: =OFFSET(Customers!$B$2,BH1,$B$1) -> 11 | BI3: =OFFSET(Customers!$B$2,BI1,$B$1) -> 12 | BJ3: =OFFSET(Customers!$B$2,BJ1,$B$1) -> 1 | BK3: =OFFSET(Customers!$B$2,BK1,$B$1) -> 2 | BL3: =OFFSET(Customers!$B$2,BL1,$B$1) -> 3 | BM3: =OFFSET(Customers!$B$2,BM1,$B$1) -> 4 | BN3: =OFFSET(Customers!$B$2,BN1,$B$1) -> 5 | BO3: =OFFSET(Customers!$B$2,BO1,$B$1) -> 6 | BP3: =OFFSET(Customers!$B$2,BP1,$B$1) -> 7 | BQ3: =OFFSET(Customers!$B$2,BQ1,$B$1) -> 8 | BR3: =OFFSET(Customers!$B$2,BR1,$B$1) -> 9 | BS3: =OFFSET(Customers!$B$2,BS1,$B$1) -> 10 | BT3: =OFFSET(Customers!$B$2,BT1,$B$1) -> 11 | BU3: =OFFSET(Customers!$B$2,BU1,$B$1) -> 12 | BV3: =OFFSET(Customers!$B$2,BV1,$B$1) -> 1 | BW3: =OFFSET(Customers!$B$2,BW1,$B$1) -> 2 | BX3: =OFFSET(Customers!$B$2,BX1,$B$1) -> 3 | BY3: =OFFSET(Customers!$B$2,BY1,$B$1) -> 4 | BZ3: =OFFSET(Customers!$B$2,BZ1,$B$1) -> 5 | CA3: =OFFSET(Customers!$B$2,CA1,$B$1) -> 6 | CB3: =OFFSET(Customers!$B$2,CB1,$B$1) -> 7 | CC3: =OFFSET(Customers!$B$2,CC1,$B$1) -> 8 | CD3: =OFFSET(Customers!$B$2,CD1,$B$1) -> 9 | CE3: =OFFSET(Customers!$B$2,CE1,$B$1) -> 10 | CF3: =OFFSET(Customers!$B$2,CF1,$B$1) -> 11 | CG3: =OFFSET(Customers!$B$2,CG1,$B$1) -> 12 | CH3: =OFFSET(Customers!$B$2,CH1,$B$1) -> 1 | CI3: =OFFSET(Customers!$B$2,CI1,$B$1) -> 2 | CJ3: =OFFSET(Customers!$B$2,CJ1,$B$1) -> 3 | CK3: =OFFSET(Customers!$B$2,CK1,$B$1) -> 4 | CL3: =OFFSET(Customers!$B$2,CL1,$B$1) -> 5 | CM3: =OFFSET(Customers!$B$2,CM1,$B$1) -> 6 | CN3: =OFFSET(Customers!$B$2,CN1,$B$1) -> 7 | CO3: =OFFSET(Customers!$B$2,CO1,$B$1) -> 8 | CP3: =OFFSET(Customers!$B$2,CP1,$B$1) -> 9 | CQ3: =OFFSET(Customers!$B$2,CQ1,$B$1) -> 10 | CR3: =OFFSET(Customers!$B$2,CR1,$B$1) -> 11 | CS3: =OFFSET(Customers!$B$2,CS1,$B$1) -> 12
A4: RESIDENTIAL | B4: =OFFSET(Customers!$C$2,B$1,$B$1) -> 283254 | C4: =OFFSET(Customers!$C$2,C$1,$B$1) -> 283551 | D4: =OFFSET(Customers!$C$2,D$1,$B$1) -> 283751 | E4: =OFFSET(Customers!$C$2,E$1,$B$1) -> 283995 | F4: =OFFSET(Customers!$C$2,F$1,$B$1) -> 284272 | G4: =OFFSET(Customers!$C$2,G$1,$B$1) -> 284644 | H4: =OFFSET(Customers!$C$2,H$1,$B$1) -> 284786 | I4: =OFFSET(Customers!$C$2,I$1,$B$1) -> 285346 | J4: =OFFSET(Customers!$C$2,J$1,$B$1) -> 285551 | K4: =OFFSET(Customers!$C$2,K$1,$B$1) -> 286390 | L4: =OFFSET(Customers!$C$2,L$1,$B$1) -> 286840 | M4: =OFFSET(Customers!$C$2,M$1,$B$1) -> 287191 | N4: =OFFSET(Customers!$C$2,N$1,$B$1) -> 287933 | O4: =OFFSET(Customers!$C$2,O$1,$B$1) -> 288065 | P4: =OFFSET(Customers!$C$2,P$1,$B$1) -> 288094 | Q4: =OFFSET(Customers!$C$2,Q$1,$B$1) -> 288163 | R4: =OFFSET(Customers!$C$2,R$1,$B$1) -> 288360 | S4: =OFFSET(Customers!$C$2,S$1,$B$1) -> 288837 | T4: =OFFSET(Customers!$C$2,T$1,$B$1) -> 289221 | U4: =OFFSET(Customers!$C$2,U$1,$B$1) -> 289602 | V4: =OFFSET(Customers!$C$2,V$1,$B$1) -> 289798 | W4: =OFFSET(Customers!$C$2,W$1,$B$1) -> 290616 | X4: =OFFSET(Customers!$C$2,X$1,$B$1) -> 291038 | Y4: =OFFSET(Customers!$C$2,Y$1,$B$1) -> 291372 | Z4: =OFFSET(Customers!$C$2,Z$1,$B$1) -> 292048 | AA4: =OFFSET(Customers!$C$2,AA$1,$B$1) -> 292192 | AB4: =OFFSET(Customers!$C$2,AB$1,$B$1) -> 292247 | AC4: =OFFSET(Customers!$C$2,AC$1,$B$1) -> 292336 | AD4: =OFFSET(Customers!$C$2,AD$1,$B$1) -> 292538 | AE4: =OFFSET(Customers!$C$2,AE$1,$B$1) -> 292983 | AF4: =OFFSET(Customers!$C$2,AF$1,$B$1) -> 293347 | AG4: =OFFSET(Customers!$C$2,AG$1,$B$1) -> 293709 | AH4: =OFFSET(Customers!$C$2,AH$1,$B$1) -> 293911 | AI4: =OFFSET(Customers!$C$2,AI$1,$B$1) -> 294654 | AJ4: =OFFSET(Customers!$C$2,AJ$1,$B$1) -> 295051 | AK4: =OFFSET(Customers!$C$2,AK$1,$B$1) -> 295377 | AL4: =OFFSET(Customers!$C$2,AL$1,$B$1) -> 295999 | AM4: =OFFSET(Customers!$C$2,AM$1,$B$1) -> 296159 | AN4: =OFFSET(Customers!$C$2,AN$1,$B$1) -> 296242 | AO4: =OFFSET(Customers!$C$2,AO$1,$B$1) -> 296355 | AP4: =OFFSET(Customers!$C$2,AP$1,$B$1) -> 296566 | AQ4: =OFFSET(Customers!$C$2,AQ$1,$B$1) -> 296990 | AR4: =OFFSET(Customers!$C$2,AR$1,$B$1) -> 297343 | AS4: =OFFSET(Customers!$C$2,AS$1,$B$1) -> 297694 | AT4: =OFFSET(Customers!$C$2,AT$1,$B$1) -> 297908 | AU4: =OFFSET(Customers!$C$2,AU$1,$B$1) -> 298592 | AV4: =OFFSET(Customers!$C$2,AV$1,$B$1) -> 298975 | AW4: =OFFSET(Customers!$C$2,AW$1,$B$1) -> 299296 | AX4: =OFFSET(Customers!$C$2,AX$1,$B$1) -> 299875 | AY4: =OFFSET(Customers!$C$2,AY$1,$B$1) -> 300052 | AZ4: =OFFSET(Customers!$C$2,AZ$1,$B$1) -> 300163 | BA4: =OFFSET(Customers!$C$2,BA$1,$B$1) -> 300300 | BB4: =OFFSET(Customers!$C$2,BB$1,$B$1) -> 300522 | BC4: =OFFSET(Customers!$C$2,BC$1,$B$1) -> 300930 | BD4: =OFFSET(Customers!$C$2,BD$1,$B$1) -> 301276 | BE4: =OFFSET(Customers!$C$2,BE$1,$B$1) -> 301621 | BF4: =OFFSET(Customers!$C$2,BF$1,$B$1) -> 301846 | BG4: =OFFSET(Customers!$C$2,BG$1,$B$1) -> 302481 | BH4: =OFFSET(Customers!$C$2,BH$1,$B$1) -> 302854 | BI4: =OFFSET(Customers!$C$2,BI$1,$B$1) -> 303174 | BJ4: =OFFSET(Customers!$C$2,BJ$1,$B$1) -> 303718 | BK4: =OFFSET(Customers!$C$2,BK$1,$B$1) -> 303912 | BL4: =OFFSET(Customers!$C$2,BL$1,$B$1) -> 304049 | BM4: =OFFSET(Customers!$C$2,BM$1,$B$1) -> 304209 | BN4: =OFFSET(Customers!$C$2,BN$1,$B$1) -> 304442 | BO4: =OFFSET(Customers!$C$2,BO$1,$B$1) -> 304838 | BP4: =OFFSET(Customers!$C$2,BP$1,$B$1) -> 305180 | BQ4: =OFFSET(Customers!$C$2,BQ$1,$B$1) -> 305521 | BR4: =OFFSET(Customers!$C$2,BR$1,$B$1) -> 305758 | BS4: =OFFSET(Customers!$C$2,BS$1,$B$1) -> 306352 | BT4: =OFFSET(Customers!$C$2,BT$1,$B$1) -> 306718 | BU4: =OFFSET(Customers!$C$2,BU$1,$B$1) -> 307033 | BV4: =OFFSET(Customers!$C$2,BV$1,$B$1) -> 307543 | BW4: =OFFSET(Customers!$C$2,BW$1,$B$1) -> 307749 | BX4: =OFFSET(Customers!$C$2,BX$1,$B$1) -> 307906 | BY4: =OFFSET(Customers!$C$2,BY$1,$B$1) -> 308082 | BZ4: =OFFSET(Customers!$C$2,BZ$1,$B$1) -> 308323 | CA4: =OFFSET(Customers!$C$2,CA$1,$B$1) -> 308704 | CB4: =OFFSET(Customers!$C$2,CB$1,$B$1) -> 309040 | CC4: =OFFSET(Customers!$C$2,CC$1,$B$1) -> 309374 | CD4: =OFFSET(Customers!$C$2,CD$1,$B$1) -> 309617 | CE4: =OFFSET(Customers!$C$2,CE$1,$B$1) -> 310171 | CF4: =OFFSET(Customers!$C$2,CF$1,$B$1) -> 310527 | CG4: =OFFSET(Customers!$C$2,CG$1,$B$1) -> 310839 | CH4: =OFFSET(Customers!$C$2,CH$1,$B$1) -> 311321 | CI4: =OFFSET(Customers!$C$2,CI$1,$B$1) -> 311537 | CJ4: =OFFSET(Customers!$C$2,CJ$1,$B$1) -> 311711 | CK4: =OFFSET(Customers!$C$2,CK$1,$B$1) -> 311902 | CL4: =OFFSET(Customers!$C$2,CL$1,$B$1) -> 312149 | CM4: =OFFSET(Customers!$C$2,CM$1,$B$1) -> 312519 | CN4: =OFFSET(Customers!$C$2,CN$1,$B$1) -> 312849 | CO4: =OFFSET(Customers!$C$2,CO$1,$B$1) -> 313177 | CP4: =OFFSET(Customers!$C$2,CP$1,$B$1) -> 313427 | CQ4: =OFFSET(Customers!$C$2,CQ$1,$B$1) -> 313947 | CR4: =OFFSET(Customers!$C$2,CR$1,$B$1) -> 314294 | CS4: =OFFSET(Customers!$C$2,CS$1,$B$1) -> 314604
A5: GENERAL SERVICE <50KW | B5: =OFFSET(Customers!$D$2,B$1,$B$1) -> 23938 | C5: =OFFSET(Customers!$D$2,C$1,$B$1) -> 23948 | D5: =OFFSET(Customers!$D$2,D$1,$B$1) -> 23956 | E5: =OFFSET(Customers!$D$2,E$1,$B$1) -> 23962 | F5: =OFFSET(Customers!$D$2,F$1,$B$1) -> 23886 | G5: =OFFSET(Customers!$D$2,G$1,$B$1) -> 23900 | H5: =OFFSET(Customers!$D$2,H$1,$B$1) -> 23918 | I5: =OFFSET(Customers!$D$2,I$1,$B$1) -> 23935 | J5: =OFFSET(Customers!$D$2,J$1,$B$1) -> 23926 | K5: =OFFSET(Customers!$D$2,K$1,$B$1) -> 23947 | L5: =OFFSET(Customers!$D$2,L$1,$B$1) -> 23947 | M5: =OFFSET(Customers!$D$2,M$1,$B$1) -> 23972 | N5: =OFFSET(Customers!$D$2,N$1,$B$1) -> 23927 | O5: =OFFSET(Customers!$D$2,O$1,$B$1) -> 23877 | P5: =OFFSET(Customers!$D$2,P$1,$B$1) -> 23891 | Q5: =OFFSET(Customers!$D$2,Q$1,$B$1) -> 23866 | R5: =OFFSET(Customers!$D$2,R$1,$B$1) -> 23893 | S5: =OFFSET(Customers!$D$2,S$1,$B$1) -> 23923 | T5: =OFFSET(Customers!$D$2,T$1,$B$1) -> 23923 | U5: =OFFSET(Customers!$D$2,U$1,$B$1) -> 23979 | V5: =OFFSET(Customers!$D$2,V$1,$B$1) -> 23984 | W5: =OFFSET(Customers!$D$2,W$1,$B$1) -> 24010 | X5: =OFFSET(Customers!$D$2,X$1,$B$1) -> 24024 | Y5: =OFFSET(Customers!$D$2,Y$1,$B$1) -> 24035 | Z5: =OFFSET(Customers!$D$2,Z$1,$B$1) -> 24056 | AA5: =OFFSET(Customers!$D$2,AA$1,$B$1) -> 24062 | AB5: =OFFSET(Customers!$D$2,AB$1,$B$1) -> 24064 | AC5: =OFFSET(Customers!$D$2,AC$1,$B$1) -> 24068 | AD5: =OFFSET(Customers!$D$2,AD$1,$B$1) -> 24075 | AE5: =OFFSET(Customers!$D$2,AE$1,$B$1) -> 24088 | AF5: =OFFSET(Customers!$D$2,AF$1,$B$1) -> 24099 | AG5: =OFFSET(Customers!$D$2,AG$1,$B$1) -> 24110 | AH5: =OFFSET(Customers!$D$2,AH$1,$B$1) -> 24117 | AI5: =OFFSET(Customers!$D$2,AI$1,$B$1) -> 24139 | AJ5: =OFFSET(Customers!$D$2,AJ$1,$B$1) -> 24151 | AK5: =OFFSET(Customers!$D$2,AK$1,$B$1) -> 24160 | AL5: =OFFSET(Customers!$D$2,AL$1,$B$1) -> 24179 | AM5: =OFFSET(Customers!$D$2,AM$1,$B$1) -> 24183 | AN5: =OFFSET(Customers!$D$2,AN$1,$B$1) -> 24186 | AO5: =OFFSET(Customers!$D$2,AO$1,$B$1) -> 24189 | AP5: =OFFSET(Customers!$D$2,AP$1,$B$1) -> 24196 | AQ5: =OFFSET(Customers!$D$2,AQ$1,$B$1) -> 24208 | AR5: =OFFSET(Customers!$D$2,AR$1,$B$1) -> 24218 | AS5: =OFFSET(Customers!$D$2,AS$1,$B$1) -> 24229 | AT5: =OFFSET(Customers!$D$2,AT$1,$B$1) -> 24235 | AU5: =OFFSET(Customers!$D$2,AU$1,$B$1) -> 24255 | AV5: =OFFSET(Customers!$D$2,AV$1,$B$1) -> 24266 | AW5: =OFFSET(Customers!$D$2,AW$1,$B$1) -> 24275 | AX5: =OFFSET(Customers!$D$2,AX$1,$B$1) -> 24292 | AY5: =OFFSET(Customers!$D$2,AY$1,$B$1) -> 24297 | AZ5: =OFFSET(Customers!$D$2,AZ$1,$B$1) -> 24300 | BA5: =OFFSET(Customers!$D$2,BA$1,$B$1) -> 24304 | BB5: =OFFSET(Customers!$D$2,BB$1,$B$1) -> 24311 | BC5: =OFFSET(Customers!$D$2,BC$1,$B$1) -> 24323 | BD5: =OFFSET(Customers!$D$2,BD$1,$B$1) -> 24333 | BE5: =OFFSET(Customers!$D$2,BE$1,$B$1) -> 24343 | BF5: =OFFSET(Customers!$D$2,BF$1,$B$1) -> 24349 | BG5: =OFFSET(Customers!$D$2,BG$1,$B$1) -> 24368 | BH5: =OFFSET(Customers!$D$2,BH$1,$B$1) -> 24378 | BI5: =OFFSET(Customers!$D$2,BI$1,$B$1) -> 24388 | BJ5: =OFFSET(Customers!$D$2,BJ$1,$B$1) -> 24403 | BK5: =OFFSET(Customers!$D$2,BK$1,$B$1) -> 24409 | BL5: =OFFSET(Customers!$D$2,BL$1,$B$1) -> 24413 | BM5: =OFFSET(Customers!$D$2,BM$1,$B$1) -> 24418 | BN5: =OFFSET(Customers!$D$2,BN$1,$B$1) -> 24424 | BO5: =OFFSET(Customers!$D$2,BO$1,$B$1) -> 24436 | BP5: =OFFSET(Customers!$D$2,BP$1,$B$1) -> 24446 | BQ5: =OFFSET(Customers!$D$2,BQ$1,$B$1) -> 24456 | BR5: =OFFSET(Customers!$D$2,BR$1,$B$1) -> 24462 | BS5: =OFFSET(Customers!$D$2,BS$1,$B$1) -> 24479 | BT5: =OFFSET(Customers!$D$2,BT$1,$B$1) -> 24490 | BU5: =OFFSET(Customers!$D$2,BU$1,$B$1) -> 24499 | BV5: =OFFSET(Customers!$D$2,BV$1,$B$1) -> 24514 | BW5: =OFFSET(Customers!$D$2,BW$1,$B$1) -> 24520 | BX5: =OFFSET(Customers!$D$2,BX$1,$B$1) -> 24524 | BY5: =OFFSET(Customers!$D$2,BY$1,$B$1) -> 24529 | BZ5: =OFFSET(Customers!$D$2,BZ$1,$B$1) -> 24536 | CA5: =OFFSET(Customers!$D$2,CA$1,$B$1) -> 24547 | CB5: =OFFSET(Customers!$D$2,CB$1,$B$1) -> 24557 | CC5: =OFFSET(Customers!$D$2,CC$1,$B$1) -> 24567 | CD5: =OFFSET(Customers!$D$2,CD$1,$B$1) -> 24574 | CE5: =OFFSET(Customers!$D$2,CE$1,$B$1) -> 24590 | CF5: =OFFSET(Customers!$D$2,CF$1,$B$1) -> 24600 | CG5: =OFFSET(Customers!$D$2,CG$1,$B$1) -> 24609 | CH5: =OFFSET(Customers!$D$2,CH$1,$B$1) -> 24623 | CI5: =OFFSET(Customers!$D$2,CI$1,$B$1) -> 24629 | CJ5: =OFFSET(Customers!$D$2,CJ$1,$B$1) -> 24634 | CK5: =OFFSET(Customers!$D$2,CK$1,$B$1) -> 24640 | CL5: =OFFSET(Customers!$D$2,CL$1,$B$1) -> 24647 | CM5: =OFFSET(Customers!$D$2,CM$1,$B$1) -> 24658 | CN5: =OFFSET(Customers!$D$2,CN$1,$B$1) -> 24667 | CO5: =OFFSET(Customers!$D$2,CO$1,$B$1) -> 24677 | CP5: =OFFSET(Customers!$D$2,CP$1,$B$1) -> 24684 | CQ5: =OFFSET(Customers!$D$2,CQ$1,$B$1) -> 24699 | CR5: =OFFSET(Customers!$D$2,CR$1,$B$1) -> 24709 | CS5: =OFFSET(Customers!$D$2,CS$1,$B$1) -> 24718
A6: GENERAL SERVICE 50-1000KW Non Interval | B6: =OFFSET(Customers!$E$2,B$1,$B$1) -> 2651 | C6: =OFFSET(Customers!$E$2,C$1,$B$1) -> 2658 | D6: =OFFSET(Customers!$E$2,D$1,$B$1) -> 2658 | E6: =OFFSET(Customers!$E$2,E$1,$B$1) -> 2670 | F6: =OFFSET(Customers!$E$2,F$1,$B$1) -> 2666 | G6: =OFFSET(Customers!$E$2,G$1,$B$1) -> 2678 | H6: =OFFSET(Customers!$E$2,H$1,$B$1) -> 2703 | I6: =OFFSET(Customers!$E$2,I$1,$B$1) -> 2729 | J6: =OFFSET(Customers!$E$2,J$1,$B$1) -> 2732 | K6: =OFFSET(Customers!$E$2,K$1,$B$1) -> 2720 | L6: =OFFSET(Customers!$E$2,L$1,$B$1) -> 2726 | M6: =OFFSET(Customers!$E$2,M$1,$B$1) -> 2745 | N6: =OFFSET(Customers!$E$2,N$1,$B$1) -> 2748 | O6: =OFFSET(Customers!$E$2,O$1,$B$1) -> 2756 | P6: =OFFSET(Customers!$E$2,P$1,$B$1) -> 2768 | Q6: =OFFSET(Customers!$E$2,Q$1,$B$1) -> 2766 | R6: =OFFSET(Customers!$E$2,R$1,$B$1) -> 2779 | S6: =OFFSET(Customers!$E$2,S$1,$B$1) -> 2783 | T6: =OFFSET(Customers!$E$2,T$1,$B$1) -> 2772 | U6: =OFFSET(Customers!$E$2,U$1,$B$1) -> 2774 | V6: =OFFSET(Customers!$E$2,V$1,$B$1) -> 2775 | W6: =OFFSET(Customers!$E$2,W$1,$B$1) -> 2775 | X6: =OFFSET(Customers!$E$2,X$1,$B$1) -> 2775 | Y6: =OFFSET(Customers!$E$2,Y$1,$B$1) -> 2775 | Z6: =OFFSET(Customers!$E$2,Z$1,$B$1) -> 2775 | AA6: =OFFSET(Customers!$E$2,AA$1,$B$1) -> 2775 | AB6: =OFFSET(Customers!$E$2,AB$1,$B$1) -> 2775 | AC6: =OFFSET(Customers!$E$2,AC$1,$B$1) -> 2775 | AD6: =OFFSET(Customers!$E$2,AD$1,$B$1) -> 2775 | AE6: =OFFSET(Customers!$E$2,AE$1,$B$1) -> 2775 | AF6: =OFFSET(Customers!$E$2,AF$1,$B$1) -> 2775 | AG6: =OFFSET(Customers!$E$2,AG$1,$B$1) -> 2775 | AH6: =OFFSET(Customers!$E$2,AH$1,$B$1) -> 2775 | AI6: =OFFSET(Customers!$E$2,AI$1,$B$1) -> 2775 | AJ6: =OFFSET(Customers!$E$2,AJ$1,$B$1) -> 2775 | AK6: =OFFSET(Customers!$E$2,AK$1,$B$1) -> 2775 | AL6: =OFFSET(Customers!$E$2,AL$1,$B$1) -> 2775 | AM6: =OFFSET(Customers!$E$2,AM$1,$B$1) -> 2775 | AN6: =OFFSET(Customers!$E$2,AN$1,$B$1) -> 2775 | AO6: =OFFSET(Customers!$E$2,AO$1,$B$1) -> 2775 | AP6: =OFFSET(Customers!$E$2,AP$1,$B$1) -> 2775 | AQ6: =OFFSET(Customers!$E$2,AQ$1,$B$1) -> 2775 | AR6: =OFFSET(Customers!$E$2,AR$1,$B$1) -> 2775 | AS6: =OFFSET(Customers!$E$2,AS$1,$B$1) -> 2775 | AT6: =OFFSET(Customers!$E$2,AT$1,$B$1) -> 2775 | AU6: =OFFSET(Customers!$E$2,AU$1,$B$1) -> 2775 | AV6: =OFFSET(Customers!$E$2,AV$1,$B$1) -> 2775 | AW6: =OFFSET(Customers!$E$2,AW$1,$B$1) -> 2775 | AX6: =OFFSET(Customers!$E$2,AX$1,$B$1) -> 2775 | AY6: =OFFSET(Customers!$E$2,AY$1,$B$1) -> 2775 | AZ6: =OFFSET(Customers!$E$2,AZ$1,$B$1) -> 2775 | BA6: =OFFSET(Customers!$E$2,BA$1,$B$1) -> 2775 | BB6: =OFFSET(Customers!$E$2,BB$1,$B$1) -> 2775 | BC6: =OFFSET(Customers!$E$2,BC$1,$B$1) -> 2775 | BD6: =OFFSET(Customers!$E$2,BD$1,$B$1) -> 2775 | BE6: =OFFSET(Customers!$E$2,BE$1,$B$1) -> 2775 | BF6: =OFFSET(Customers!$E$2,BF$1,$B$1) -> 2775 | BG6: =OFFSET(Customers!$E$2,BG$1,$B$1) -> 2775 | BH6: =OFFSET(Customers!$E$2,BH$1,$B$1) -> 2775 | BI6: =OFFSET(Customers!$E$2,BI$1,$B$1) -> 2775 | BJ6: =OFFSET(Customers!$E$2,BJ$1,$B$1) -> 2775 | BK6: =OFFSET(Customers!$E$2,BK$1,$B$1) -> 2775 | BL6: =OFFSET(Customers!$E$2,BL$1,$B$1) -> 2775 | BM6: =OFFSET(Customers!$E$2,BM$1,$B$1) -> 2775 | BN6: =OFFSET(Customers!$E$2,BN$1,$B$1) -> 2775 | BO6: =OFFSET(Customers!$E$2,BO$1,$B$1) -> 2775 | BP6: =OFFSET(Customers!$E$2,BP$1,$B$1) -> 2775 | BQ6: =OFFSET(Customers!$E$2,BQ$1,$B$1) -> 2775 | BR6: =OFFSET(Customers!$E$2,BR$1,$B$1) -> 2775 | BS6: =OFFSET(Customers!$E$2,BS$1,$B$1) -> 2775 | BT6: =OFFSET(Customers!$E$2,BT$1,$B$1) -> 2775 | BU6: =OFFSET(Customers!$E$2,BU$1,$B$1) -> 2775 | BV6: =OFFSET(Customers!$E$2,BV$1,$B$1) -> 2775 | BW6: =OFFSET(Customers!$E$2,BW$1,$B$1) -> 2775 | BX6: =OFFSET(Customers!$E$2,BX$1,$B$1) -> 2775 | BY6: =OFFSET(Customers!$E$2,BY$1,$B$1) -> 2775 | BZ6: =OFFSET(Customers!$E$2,BZ$1,$B$1) -> 2775 | CA6: =OFFSET(Customers!$E$2,CA$1,$B$1) -> 2775 | CB6: =OFFSET(Customers!$E$2,CB$1,$B$1) -> 2775 | CC6: =OFFSET(Customers!$E$2,CC$1,$B$1) -> 2775 | CD6: =OFFSET(Customers!$E$2,CD$1,$B$1) -> 2775 | CE6: =OFFSET(Customers!$E$2,CE$1,$B$1) -> 2775 | CF6: =OFFSET(Customers!$E$2,CF$1,$B$1) -> 2775 | CG6: =OFFSET(Customers!$E$2,CG$1,$B$1) -> 2775 | CH6: =OFFSET(Customers!$E$2,CH$1,$B$1) -> 2775 | CI6: =OFFSET(Customers!$E$2,CI$1,$B$1) -> 2775 | CJ6: =OFFSET(Customers!$E$2,CJ$1,$B$1) -> 2775 | CK6: =OFFSET(Customers!$E$2,CK$1,$B$1) -> 2775 | CL6: =OFFSET(Customers!$E$2,CL$1,$B$1) -> 2775 | CM6: =OFFSET(Customers!$E$2,CM$1,$B$1) -> 2775 | CN6: =OFFSET(Customers!$E$2,CN$1,$B$1) -> 2775 | CO6: =OFFSET(Customers!$E$2,CO$1,$B$1) -> 2775 | CP6: =OFFSET(Customers!$E$2,CP$1,$B$1) -> 2775 | CQ6: =OFFSET(Customers!$E$2,CQ$1,$B$1) -> 2775 | CR6: =OFFSET(Customers!$E$2,CR$1,$B$1) -> 2775 | CS6: =OFFSET(Customers!$E$2,CS$1,$B$1) -> 2775
A7: GENERAL SERVICE 50-1000KW Interval | B7: =OFFSET(Customers!$F$2,B$1,$B$1) -> 638 | C7: =OFFSET(Customers!$F$2,C$1,$B$1) -> 649 | D7: =OFFSET(Customers!$F$2,D$1,$B$1) -> 649 | E7: =OFFSET(Customers!$F$2,E$1,$B$1) -> 651 | F7: =OFFSET(Customers!$F$2,F$1,$B$1) -> 652 | G7: =OFFSET(Customers!$F$2,G$1,$B$1) -> 654 | H7: =OFFSET(Customers!$F$2,H$1,$B$1) -> 654 | I7: =OFFSET(Customers!$F$2,I$1,$B$1) -> 655 | J7: =OFFSET(Customers!$F$2,J$1,$B$1) -> 659 | K7: =OFFSET(Customers!$F$2,K$1,$B$1) -> 661 | L7: =OFFSET(Customers!$F$2,L$1,$B$1) -> 663 | M7: =OFFSET(Customers!$F$2,M$1,$B$1) -> 663 | N7: =OFFSET(Customers!$F$2,N$1,$B$1) -> 667 | O7: =OFFSET(Customers!$F$2,O$1,$B$1) -> 669 | P7: =OFFSET(Customers!$F$2,P$1,$B$1) -> 679 | Q7: =OFFSET(Customers!$F$2,Q$1,$B$1) -> 682 | R7: =OFFSET(Customers!$F$2,R$1,$B$1) -> 681 | S7: =OFFSET(Customers!$F$2,S$1,$B$1) -> 687 | T7: =OFFSET(Customers!$F$2,T$1,$B$1) -> 688 | U7: =OFFSET(Customers!$F$2,U$1,$B$1) -> 688 | V7: =OFFSET(Customers!$F$2,V$1,$B$1) -> 690 | W7: =OFFSET(Customers!$F$2,W$1,$B$1) -> 692 | X7: =OFFSET(Customers!$F$2,X$1,$B$1) -> 695 | Y7: =OFFSET(Customers!$F$2,Y$1,$B$1) -> 697 | Z7: =OFFSET(Customers!$F$2,Z$1,$B$1) -> 699 | AA7: =OFFSET(Customers!$F$2,AA$1,$B$1) -> 701 | AB7: =OFFSET(Customers!$F$2,AB$1,$B$1) -> 704 | AC7: =OFFSET(Customers!$F$2,AC$1,$B$1) -> 706 | AD7: =OFFSET(Customers!$F$2,AD$1,$B$1) -> 708 | AE7: =OFFSET(Customers!$F$2,AE$1,$B$1) -> 711 | AF7: =OFFSET(Customers!$F$2,AF$1,$B$1) -> 713 | AG7: =OFFSET(Customers!$F$2,AG$1,$B$1) -> 715 | AH7: =OFFSET(Customers!$F$2,AH$1,$B$1) -> 717 | AI7: =OFFSET(Customers!$F$2,AI$1,$B$1) -> 720 | AJ7: =OFFSET(Customers!$F$2,AJ$1,$B$1) -> 722 | AK7: =OFFSET(Customers!$F$2,AK$1,$B$1) -> 724 | AL7: =OFFSET(Customers!$F$2,AL$1,$B$1) -> 727 | AM7: =OFFSET(Customers!$F$2,AM$1,$B$1) -> 729 | AN7: =OFFSET(Customers!$F$2,AN$1,$B$1) -> 731 | AO7: =OFFSET(Customers!$F$2,AO$1,$B$1) -> 734 | AP7: =OFFSET(Customers!$F$2,AP$1,$B$1) -> 736 | AQ7: =OFFSET(Customers!$F$2,AQ$1,$B$1) -> 738 | AR7: =OFFSET(Customers!$F$2,AR$1,$B$1) -> 741 | AS7: =OFFSET(Customers!$F$2,AS$1,$B$1) -> 743 | AT7: =OFFSET(Customers!$F$2,AT$1,$B$1) -> 745 | AU7: =OFFSET(Customers!$F$2,AU$1,$B$1) -> 748 | AV7: =OFFSET(Customers!$F$2,AV$1,$B$1) -> 750 | AW7: =OFFSET(Customers!$F$2,AW$1,$B$1) -> 752 | AX7: =OFFSET(Customers!$F$2,AX$1,$B$1) -> 754 | AY7: =OFFSET(Customers!$F$2,AY$1,$B$1) -> 757 | AZ7: =OFFSET(Customers!$F$2,AZ$1,$B$1) -> 759 | BA7: =OFFSET(Customers!$F$2,BA$1,$B$1) -> 761 | BB7: =OFFSET(Customers!$F$2,BB$1,$B$1) -> 764 | BC7: =OFFSET(Customers!$F$2,BC$1,$B$1) -> 766 | BD7: =OFFSET(Customers!$F$2,BD$1,$B$1) -> 768 | BE7: =OFFSET(Customers!$F$2,BE$1,$B$1) -> 771 | BF7: =OFFSET(Customers!$F$2,BF$1,$B$1) -> 773 | BG7: =OFFSET(Customers!$F$2,BG$1,$B$1) -> 775 | BH7: =OFFSET(Customers!$F$2,BH$1,$B$1) -> 778 | BI7: =OFFSET(Customers!$F$2,BI$1,$B$1) -> 780 | BJ7: =OFFSET(Customers!$F$2,BJ$1,$B$1) -> 782 | BK7: =OFFSET(Customers!$F$2,BK$1,$B$1) -> 785 | BL7: =OFFSET(Customers!$F$2,BL$1,$B$1) -> 787 | BM7: =OFFSET(Customers!$F$2,BM$1,$B$1) -> 789 | BN7: =OFFSET(Customers!$F$2,BN$1,$B$1) -> 792 | BO7: =OFFSET(Customers!$F$2,BO$1,$B$1) -> 794 | BP7: =OFFSET(Customers!$F$2,BP$1,$B$1) -> 796 | BQ7: =OFFSET(Customers!$F$2,BQ$1,$B$1) -> 799 | BR7: =OFFSET(Customers!$F$2,BR$1,$B$1) -> 801 | BS7: =OFFSET(Customers!$F$2,BS$1,$B$1) -> 803 | BT7: =OFFSET(Customers!$F$2,BT$1,$B$1) -> 806 | BU7: =OFFSET(Customers!$F$2,BU$1,$B$1) -> 808 | BV7: =OFFSET(Customers!$F$2,BV$1,$B$1) -> 810 | BW7: =OFFSET(Customers!$F$2,BW$1,$B$1) -> 812 | BX7: =OFFSET(Customers!$F$2,BX$1,$B$1) -> 815 | BY7: =OFFSET(Customers!$F$2,BY$1,$B$1) -> 817 | BZ7: =OFFSET(Customers!$F$2,BZ$1,$B$1) -> 819 | CA7: =OFFSET(Customers!$F$2,CA$1,$B$1) -> 822 | CB7: =OFFSET(Customers!$F$2,CB$1,$B$1) -> 824 | CC7: =OFFSET(Customers!$F$2,CC$1,$B$1) -> 826 | CD7: =OFFSET(Customers!$F$2,CD$1,$B$1) -> 829 | CE7: =OFFSET(Customers!$F$2,CE$1,$B$1) -> 831 | CF7: =OFFSET(Customers!$F$2,CF$1,$B$1) -> 833 | CG7: =OFFSET(Customers!$F$2,CG$1,$B$1) -> 836 | CH7: =OFFSET(Customers!$F$2,CH$1,$B$1) -> 838 | CI7: =OFFSET(Customers!$F$2,CI$1,$B$1) -> 840 | CJ7: =OFFSET(Customers!$F$2,CJ$1,$B$1) -> 843 | CK7: =OFFSET(Customers!$F$2,CK$1,$B$1) -> 845 | CL7: =OFFSET(Customers!$F$2,CL$1,$B$1) -> 847 | CM7: =OFFSET(Customers!$F$2,CM$1,$B$1) -> 850 | CN7: =OFFSET(Customers!$F$2,CN$1,$B$1) -> 852 | CO7: =OFFSET(Customers!$F$2,CO$1,$B$1) -> 854 | CP7: =OFFSET(Customers!$F$2,CP$1,$B$1) -> 857 | CQ7: =OFFSET(Customers!$F$2,CQ$1,$B$1) -> 859 | CR7: =OFFSET(Customers!$F$2,CR$1,$B$1) -> 861 | CS7: =OFFSET(Customers!$F$2,CS$1,$B$1) -> 864
A8: GENERAL SERVICE 1000-1500KW | B8: =OFFSET(Customers!$G$2,B$1,$B$1) -> 56 | C8: =OFFSET(Customers!$G$2,C$1,$B$1) -> 57 | D8: =OFFSET(Customers!$G$2,D$1,$B$1) -> 58 | E8: =OFFSET(Customers!$G$2,E$1,$B$1) -> 58 | F8: =OFFSET(Customers!$G$2,F$1,$B$1) -> 58 | G8: =OFFSET(Customers!$G$2,G$1,$B$1) -> 58 | H8: =OFFSET(Customers!$G$2,H$1,$B$1) -> 59 | I8: =OFFSET(Customers!$G$2,I$1,$B$1) -> 60 | J8: =OFFSET(Customers!$G$2,J$1,$B$1) -> 61 | K8: =OFFSET(Customers!$G$2,K$1,$B$1) -> 61 | L8: =OFFSET(Customers!$G$2,L$1,$B$1) -> 61 | M8: =OFFSET(Customers!$G$2,M$1,$B$1) -> 60 | N8: =OFFSET(Customers!$G$2,N$1,$B$1) -> 60 | O8: =OFFSET(Customers!$G$2,O$1,$B$1) -> 60 | P8: =OFFSET(Customers!$G$2,P$1,$B$1) -> 60 | Q8: =OFFSET(Customers!$G$2,Q$1,$B$1) -> 61 | R8: =OFFSET(Customers!$G$2,R$1,$B$1) -> 61 | S8: =OFFSET(Customers!$G$2,S$1,$B$1) -> 61 | T8: =OFFSET(Customers!$G$2,T$1,$B$1) -> 61 | U8: =OFFSET(Customers!$G$2,U$1,$B$1) -> 62 | V8: =OFFSET(Customers!$G$2,V$1,$B$1) -> 62 | W8: =OFFSET(Customers!$G$2,W$1,$B$1) -> 62 | X8: =OFFSET(Customers!$G$2,X$1,$B$1) -> 62 | Y8: =OFFSET(Customers!$G$2,Y$1,$B$1) -> 62 | Z8: =OFFSET(Customers!$G$2,Z$1,$B$1) -> 62 | AA8: =OFFSET(Customers!$G$2,AA$1,$B$1) -> 62 | AB8: =OFFSET(Customers!$G$2,AB$1,$B$1) -> 62 | AC8: =OFFSET(Customers!$G$2,AC$1,$B$1) -> 62 | AD8: =OFFSET(Customers!$G$2,AD$1,$B$1) -> 62 | AE8: =OFFSET(Customers!$G$2,AE$1,$B$1) -> 62 | AF8: =OFFSET(Customers!$G$2,AF$1,$B$1) -> 62 | AG8: =OFFSET(Customers!$G$2,AG$1,$B$1) -> 62 | AH8: =OFFSET(Customers!$G$2,AH$1,$B$1) -> 62 | AI8: =OFFSET(Customers!$G$2,AI$1,$B$1) -> 62 | AJ8: =OFFSET(Customers!$G$2,AJ$1,$B$1) -> 62 | AK8: =OFFSET(Customers!$G$2,AK$1,$B$1) -> 62 | AL8: =OFFSET(Customers!$G$2,AL$1,$B$1) -> 62 | AM8: =OFFSET(Customers!$G$2,AM$1,$B$1) -> 63 | AN8: =OFFSET(Customers!$G$2,AN$1,$B$1) -> 63 | AO8: =OFFSET(Customers!$G$2,AO$1,$B$1) -> 63 | AP8: =OFFSET(Customers!$G$2,AP$1,$B$1) -> 63 | AQ8: =OFFSET(Customers!$G$2,AQ$1,$B$1) -> 63 | AR8: =OFFSET(Customers!$G$2,AR$1,$B$1) -> 63 | AS8: =OFFSET(Customers!$G$2,AS$1,$B$1) -> 63 | AT8: =OFFSET(Customers!$G$2,AT$1,$B$1) -> 63 | AU8: =OFFSET(Customers!$G$2,AU$1,$B$1) -> 63 | AV8: =OFFSET(Customers!$G$2,AV$1,$B$1) -> 63 | AW8: =OFFSET(Customers!$G$2,AW$1,$B$1) -> 63 | AX8: =OFFSET(Customers!$G$2,AX$1,$B$1) -> 63 | AY8: =OFFSET(Customers!$G$2,AY$1,$B$1) -> 63 | AZ8: =OFFSET(Customers!$G$2,AZ$1,$B$1) -> 63 | BA8: =OFFSET(Customers!$G$2,BA$1,$B$1) -> 63 | BB8: =OFFSET(Customers!$G$2,BB$1,$B$1) -> 63 | BC8: =OFFSET(Customers!$G$2,BC$1,$B$1) -> 63 | BD8: =OFFSET(Customers!$G$2,BD$1,$B$1) -> 63 | BE8: =OFFSET(Customers!$G$2,BE$1,$B$1) -> 63 | BF8: =OFFSET(Customers!$G$2,BF$1,$B$1) -> 63 | BG8: =OFFSET(Customers!$G$2,BG$1,$B$1) -> 63 | BH8: =OFFSET(Customers!$G$2,BH$1,$B$1) -> 63 | BI8: =OFFSET(Customers!$G$2,BI$1,$B$1) -> 63 | BJ8: =OFFSET(Customers!$G$2,BJ$1,$B$1) -> 63 | BK8: =OFFSET(Customers!$G$2,BK$1,$B$1) -> 63 | BL8: =OFFSET(Customers!$G$2,BL$1,$B$1) -> 63 | BM8: =OFFSET(Customers!$G$2,BM$1,$B$1) -> 63 | BN8: =OFFSET(Customers!$G$2,BN$1,$B$1) -> 63 | BO8: =OFFSET(Customers!$G$2,BO$1,$B$1) -> 63 | BP8: =OFFSET(Customers!$G$2,BP$1,$B$1) -> 63 | BQ8: =OFFSET(Customers!$G$2,BQ$1,$B$1) -> 63 | BR8: =OFFSET(Customers!$G$2,BR$1,$B$1) -> 63 | BS8: =OFFSET(Customers!$G$2,BS$1,$B$1) -> 63 | BT8: =OFFSET(Customers!$G$2,BT$1,$B$1) -> 64 | BU8: =OFFSET(Customers!$G$2,BU$1,$B$1) -> 64 | BV8: =OFFSET(Customers!$G$2,BV$1,$B$1) -> 64 | BW8: =OFFSET(Customers!$G$2,BW$1,$B$1) -> 64 | BX8: =OFFSET(Customers!$G$2,BX$1,$B$1) -> 64 | BY8: =OFFSET(Customers!$G$2,BY$1,$B$1) -> 64 | BZ8: =OFFSET(Customers!$G$2,BZ$1,$B$1) -> 64 | CA8: =OFFSET(Customers!$G$2,CA$1,$B$1) -> 64 | CB8: =OFFSET(Customers!$G$2,CB$1,$B$1) -> 64 | CC8: =OFFSET(Customers!$G$2,CC$1,$B$1) -> 64 | CD8: =OFFSET(Customers!$G$2,CD$1,$B$1) -> 64 | CE8: =OFFSET(Customers!$G$2,CE$1,$B$1) -> 64 | CF8: =OFFSET(Customers!$G$2,CF$1,$B$1) -> 64 | CG8: =OFFSET(Customers!$G$2,CG$1,$B$1) -> 64 | CH8: =OFFSET(Customers!$G$2,CH$1,$B$1) -> 64 | CI8: =OFFSET(Customers!$G$2,CI$1,$B$1) -> 64 | CJ8: =OFFSET(Customers!$G$2,CJ$1,$B$1) -> 64 | CK8: =OFFSET(Customers!$G$2,CK$1,$B$1) -> 64 | CL8: =OFFSET(Customers!$G$2,CL$1,$B$1) -> 64 | CM8: =OFFSET(Customers!$G$2,CM$1,$B$1) -> 64 | CN8: =OFFSET(Customers!$G$2,CN$1,$B$1) -> 64 | CO8: =OFFSET(Customers!$G$2,CO$1,$B$1) -> 64 | CP8: =OFFSET(Customers!$G$2,CP$1,$B$1) -> 64 | CQ8: =OFFSET(Customers!$G$2,CQ$1,$B$1) -> 64 | CR8: =OFFSET(Customers!$G$2,CR$1,$B$1) -> 64 | CS8: =OFFSET(Customers!$G$2,CS$1,$B$1) -> 64
A9: GENERAL SERVICE 1500-5000 KW | B9: =OFFSET(Customers!$H$2,B$1,$B$1) -> 76 | C9: =OFFSET(Customers!$H$2,C$1,$B$1) -> 70 | D9: =OFFSET(Customers!$H$2,D$1,$B$1) -> 70 | E9: =OFFSET(Customers!$H$2,E$1,$B$1) -> 72 | F9: =OFFSET(Customers!$H$2,F$1,$B$1) -> 74 | G9: =OFFSET(Customers!$H$2,G$1,$B$1) -> 75 | H9: =OFFSET(Customers!$H$2,H$1,$B$1) -> 75 | I9: =OFFSET(Customers!$H$2,I$1,$B$1) -> 79 | J9: =OFFSET(Customers!$H$2,J$1,$B$1) -> 79 | K9: =OFFSET(Customers!$H$2,K$1,$B$1) -> 80 | L9: =OFFSET(Customers!$H$2,L$1,$B$1) -> 80 | M9: =OFFSET(Customers!$H$2,M$1,$B$1) -> 80 | N9: =OFFSET(Customers!$H$2,N$1,$B$1) -> 83 | O9: =OFFSET(Customers!$H$2,O$1,$B$1) -> 85 | P9: =OFFSET(Customers!$H$2,P$1,$B$1) -> 85 | Q9: =OFFSET(Customers!$H$2,Q$1,$B$1) -> 85 | R9: =OFFSET(Customers!$H$2,R$1,$B$1) -> 86 | S9: =OFFSET(Customers!$H$2,S$1,$B$1) -> 88 | T9: =OFFSET(Customers!$H$2,T$1,$B$1) -> 88 | U9: =OFFSET(Customers!$H$2,U$1,$B$1) -> 88 | V9: =OFFSET(Customers!$H$2,V$1,$B$1) -> 88 | W9: =OFFSET(Customers!$H$2,W$1,$B$1) -> 88 | X9: =OFFSET(Customers!$H$2,X$1,$B$1) -> 88 | Y9: =OFFSET(Customers!$H$2,Y$1,$B$1) -> 88 | Z9: =OFFSET(Customers!$H$2,Z$1,$B$1) -> 88 | AA9: =OFFSET(Customers!$H$2,AA$1,$B$1) -> 88 | AB9: =OFFSET(Customers!$H$2,AB$1,$B$1) -> 88 | AC9: =OFFSET(Customers!$H$2,AC$1,$B$1) -> 88 | AD9: =OFFSET(Customers!$H$2,AD$1,$B$1) -> 88 | AE9: =OFFSET(Customers!$H$2,AE$1,$B$1) -> 88 | AF9: =OFFSET(Customers!$H$2,AF$1,$B$1) -> 88 | AG9: =OFFSET(Customers!$H$2,AG$1,$B$1) -> 88 | AH9: =OFFSET(Customers!$H$2,AH$1,$B$1) -> 88 | AI9: =OFFSET(Customers!$H$2,AI$1,$B$1) -> 88 | AJ9: =OFFSET(Customers!$H$2,AJ$1,$B$1) -> 88 | AK9: =OFFSET(Customers!$H$2,AK$1,$B$1) -> 88 | AL9: =OFFSET(Customers!$H$2,AL$1,$B$1) -> 88 | AM9: =OFFSET(Customers!$H$2,AM$1,$B$1) -> 88 | AN9: =OFFSET(Customers!$H$2,AN$1,$B$1) -> 88 | AO9: =OFFSET(Customers!$H$2,AO$1,$B$1) -> 88 | AP9: =OFFSET(Customers!$H$2,AP$1,$B$1) -> 88 | AQ9: =OFFSET(Customers!$H$2,AQ$1,$B$1) -> 88 | AR9: =OFFSET(Customers!$H$2,AR$1,$B$1) -> 88 | AS9: =OFFSET(Customers!$H$2,AS$1,$B$1) -> 88 | AT9: =OFFSET(Customers!$H$2,AT$1,$B$1) -> 88 | AU9: =OFFSET(Customers!$H$2,AU$1,$B$1) -> 88 | AV9: =OFFSET(Customers!$H$2,AV$1,$B$1) -> 88 | AW9: =OFFSET(Customers!$H$2,AW$1,$B$1) -> 88 | AX9: =OFFSET(Customers!$H$2,AX$1,$B$1) -> 88 | AY9: =OFFSET(Customers!$H$2,AY$1,$B$1) -> 88 | AZ9: =OFFSET(Customers!$H$2,AZ$1,$B$1) -> 88 | BA9: =OFFSET(Customers!$H$2,BA$1,$B$1) -> 88 | BB9: =OFFSET(Customers!$H$2,BB$1,$B$1) -> 88 | BC9: =OFFSET(Customers!$H$2,BC$1,$B$1) -> 88 | BD9: =OFFSET(Customers!$H$2,BD$1,$B$1) -> 88 | BE9: =OFFSET(Customers!$H$2,BE$1,$B$1) -> 88 | BF9: =OFFSET(Customers!$H$2,BF$1,$B$1) -> 88 | BG9: =OFFSET(Customers!$H$2,BG$1,$B$1) -> 88 | BH9: =OFFSET(Customers!$H$2,BH$1,$B$1) -> 88 | BI9: =OFFSET(Customers!$H$2,BI$1,$B$1) -> 88 | BJ9: =OFFSET(Customers!$H$2,BJ$1,$B$1) -> 88 | BK9: =OFFSET(Customers!$H$2,BK$1,$B$1) -> 88 | BL9: =OFFSET(Customers!$H$2,BL$1,$B$1) -> 88 | BM9: =OFFSET(Customers!$H$2,BM$1,$B$1) -> 88 | BN9: =OFFSET(Customers!$H$2,BN$1,$B$1) -> 88 | BO9: =OFFSET(Customers!$H$2,BO$1,$B$1) -> 88 | BP9: =OFFSET(Customers!$H$2,BP$1,$B$1) -> 88 | BQ9: =OFFSET(Customers!$H$2,BQ$1,$B$1) -> 88 | BR9: =OFFSET(Customers!$H$2,BR$1,$B$1) -> 88 | BS9: =OFFSET(Customers!$H$2,BS$1,$B$1) -> 88 | BT9: =OFFSET(Customers!$H$2,BT$1,$B$1) -> 88 | BU9: =OFFSET(Customers!$H$2,BU$1,$B$1) -> 88 | BV9: =OFFSET(Customers!$H$2,BV$1,$B$1) -> 88 | BW9: =OFFSET(Customers!$H$2,BW$1,$B$1) -> 88 | BX9: =OFFSET(Customers!$H$2,BX$1,$B$1) -> 88 | BY9: =OFFSET(Customers!$H$2,BY$1,$B$1) -> 88 | BZ9: =OFFSET(Customers!$H$2,BZ$1,$B$1) -> 88 | CA9: =OFFSET(Customers!$H$2,CA$1,$B$1) -> 88 | CB9: =OFFSET(Customers!$H$2,CB$1,$B$1) -> 88 | CC9: =OFFSET(Customers!$H$2,CC$1,$B$1) -> 88 | CD9: =OFFSET(Customers!$H$2,CD$1,$B$1) -> 88 | CE9: =OFFSET(Customers!$H$2,CE$1,$B$1) -> 88 | CF9: =OFFSET(Customers!$H$2,CF$1,$B$1) -> 88 | CG9: =OFFSET(Customers!$H$2,CG$1,$B$1) -> 88 | CH9: =OFFSET(Customers!$H$2,CH$1,$B$1) -> 88 | CI9: =OFFSET(Customers!$H$2,CI$1,$B$1) -> 88 | CJ9: =OFFSET(Customers!$H$2,CJ$1,$B$1) -> 88 | CK9: =OFFSET(Customers!$H$2,CK$1,$B$1) -> 88 | CL9: =OFFSET(Customers!$H$2,CL$1,$B$1) -> 88 | CM9: =OFFSET(Customers!$H$2,CM$1,$B$1) -> 88 | CN9: =OFFSET(Customers!$H$2,CN$1,$B$1) -> 88 | CO9: =OFFSET(Customers!$H$2,CO$1,$B$1) -> 88 | CP9: =OFFSET(Customers!$H$2,CP$1,$B$1) -> 88 | CQ9: =OFFSET(Customers!$H$2,CQ$1,$B$1) -> 88 | CR9: =OFFSET(Customers!$H$2,CR$1,$B$1) -> 88 | CS9: =OFFSET(Customers!$H$2,CS$1,$B$1) -> 88
A10: LARGE USER | B10: =OFFSET(Customers!$I$2,B$1,$B$1) -> 11 | C10: =OFFSET(Customers!$I$2,C$1,$B$1) -> 11 | D10: =OFFSET(Customers!$I$2,D$1,$B$1) -> 11 | E10: =OFFSET(Customers!$I$2,E$1,$B$1) -> 11 | F10: =OFFSET(Customers!$I$2,F$1,$B$1) -> 11 | G10: =OFFSET(Customers!$I$2,G$1,$B$1) -> 11 | H10: =OFFSET(Customers!$I$2,H$1,$B$1) -> 11 | I10: =OFFSET(Customers!$I$2,I$1,$B$1) -> 11 | J10: =OFFSET(Customers!$I$2,J$1,$B$1) -> 11 | K10: =OFFSET(Customers!$I$2,K$1,$B$1) -> 11 | L10: =OFFSET(Customers!$I$2,L$1,$B$1) -> 11 | M10: =OFFSET(Customers!$I$2,M$1,$B$1) -> 11 | N10: =OFFSET(Customers!$I$2,N$1,$B$1) -> 11 | O10: =OFFSET(Customers!$I$2,O$1,$B$1) -> 11 | P10: =OFFSET(Customers!$I$2,P$1,$B$1) -> 11 | Q10: =OFFSET(Customers!$I$2,Q$1,$B$1) -> 11 | R10: =OFFSET(Customers!$I$2,R$1,$B$1) -> 11 | S10: =OFFSET(Customers!$I$2,S$1,$B$1) -> 11 | T10: =OFFSET(Customers!$I$2,T$1,$B$1) -> 11 | U10: =OFFSET(Customers!$I$2,U$1,$B$1) -> 11 | V10: =OFFSET(Customers!$I$2,V$1,$B$1) -> 11 | W10: =OFFSET(Customers!$I$2,W$1,$B$1) -> 11 | X10: =OFFSET(Customers!$I$2,X$1,$B$1) -> 11 | Y10: =OFFSET(Customers!$I$2,Y$1,$B$1) -> 11 | Z10: =OFFSET(Customers!$I$2,Z$1,$B$1) -> 11 | AA10: =OFFSET(Customers!$I$2,AA$1,$B$1) -> 11 | AB10: =OFFSET(Customers!$I$2,AB$1,$B$1) -> 11 | AC10: =OFFSET(Customers!$I$2,AC$1,$B$1) -> 11 | AD10: =OFFSET(Customers!$I$2,AD$1,$B$1) -> 11 | AE10: =OFFSET(Customers!$I$2,AE$1,$B$1) -> 11 | AF10: =OFFSET(Customers!$I$2,AF$1,$B$1) -> 11 | AG10: =OFFSET(Customers!$I$2,AG$1,$B$1) -> 11 | AH10: =OFFSET(Customers!$I$2,AH$1,$B$1) -> 11 | AI10: =OFFSET(Customers!$I$2,AI$1,$B$1) -> 11 | AJ10: =OFFSET(Customers!$I$2,AJ$1,$B$1) -> 11 | AK10: =OFFSET(Customers!$I$2,AK$1,$B$1) -> 11 | AL10: =OFFSET(Customers!$I$2,AL$1,$B$1) -> 11 | AM10: =OFFSET(Customers!$I$2,AM$1,$B$1) -> 11 | AN10: =OFFSET(Customers!$I$2,AN$1,$B$1) -> 11 | AO10: =OFFSET(Customers!$I$2,AO$1,$B$1) -> 11 | AP10: =OFFSET(Customers!$I$2,AP$1,$B$1) -> 11 | AQ10: =OFFSET(Customers!$I$2,AQ$1,$B$1) -> 11 | AR10: =OFFSET(Customers!$I$2,AR$1,$B$1) -> 11 | AS10: =OFFSET(Customers!$I$2,AS$1,$B$1) -> 11 | AT10: =OFFSET(Customers!$I$2,AT$1,$B$1) -> 11 | AU10: =OFFSET(Customers!$I$2,AU$1,$B$1) -> 11 | AV10: =OFFSET(Customers!$I$2,AV$1,$B$1) -> 11 | AW10: =OFFSET(Customers!$I$2,AW$1,$B$1) -> 11 | AX10: =OFFSET(Customers!$I$2,AX$1,$B$1) -> 11 | AY10: =OFFSET(Customers!$I$2,AY$1,$B$1) -> 11 | AZ10: =OFFSET(Customers!$I$2,AZ$1,$B$1) -> 11 | BA10: =OFFSET(Customers!$I$2,BA$1,$B$1) -> 11 | BB10: =OFFSET(Customers!$I$2,BB$1,$B$1) -> 11 | BC10: =OFFSET(Customers!$I$2,BC$1,$B$1) -> 11 | BD10: =OFFSET(Customers!$I$2,BD$1,$B$1) -> 11 | BE10: =OFFSET(Customers!$I$2,BE$1,$B$1) -> 11 | BF10: =OFFSET(Customers!$I$2,BF$1,$B$1) -> 11 | BG10: =OFFSET(Customers!$I$2,BG$1,$B$1) -> 11 | BH10: =OFFSET(Customers!$I$2,BH$1,$B$1) -> 11 | BI10: =OFFSET(Customers!$I$2,BI$1,$B$1) -> 11 | BJ10: =OFFSET(Customers!$I$2,BJ$1,$B$1) -> 11 | BK10: =OFFSET(Customers!$I$2,BK$1,$B$1) -> 11 | BL10: =OFFSET(Customers!$I$2,BL$1,$B$1) -> 11 | BM10: =OFFSET(Customers!$I$2,BM$1,$B$1) -> 11 | BN10: =OFFSET(Customers!$I$2,BN$1,$B$1) -> 11 | BO10: =OFFSET(Customers!$I$2,BO$1,$B$1) -> 11 | BP10: =OFFSET(Customers!$I$2,BP$1,$B$1) -> 11 | BQ10: =OFFSET(Customers!$I$2,BQ$1,$B$1) -> 11 | BR10: =OFFSET(Customers!$I$2,BR$1,$B$1) -> 11 | BS10: =OFFSET(Customers!$I$2,BS$1,$B$1) -> 11 | BT10: =OFFSET(Customers!$I$2,BT$1,$B$1) -> 11 | BU10: =OFFSET(Customers!$I$2,BU$1,$B$1) -> 11 | BV10: =OFFSET(Customers!$I$2,BV$1,$B$1) -> 11 | BW10: =OFFSET(Customers!$I$2,BW$1,$B$1) -> 11 | BX10: =OFFSET(Customers!$I$2,BX$1,$B$1) -> 11 | BY10: =OFFSET(Customers!$I$2,BY$1,$B$1) -> 11 | BZ10: =OFFSET(Customers!$I$2,BZ$1,$B$1) -> 11 | CA10: =OFFSET(Customers!$I$2,CA$1,$B$1) -> 11 | CB10: =OFFSET(Customers!$I$2,CB$1,$B$1) -> 11 | CC10: =OFFSET(Customers!$I$2,CC$1,$B$1) -> 11 | CD10: =OFFSET(Customers!$I$2,CD$1,$B$1) -> 11 | CE10: =OFFSET(Customers!$I$2,CE$1,$B$1) -> 11 | CF10: =OFFSET(Customers!$I$2,CF$1,$B$1) -> 11 | CG10: =OFFSET(Customers!$I$2,CG$1,$B$1) -> 11 | CH10: =OFFSET(Customers!$I$2,CH$1,$B$1) -> 11 | CI10: =OFFSET(Customers!$I$2,CI$1,$B$1) -> 11 | CJ10: =OFFSET(Customers!$I$2,CJ$1,$B$1) -> 11 | CK10: =OFFSET(Customers!$I$2,CK$1,$B$1) -> 11 | CL10: =OFFSET(Customers!$I$2,CL$1,$B$1) -> 11 | CM10: =OFFSET(Customers!$I$2,CM$1,$B$1) -> 11 | CN10: =OFFSET(Customers!$I$2,CN$1,$B$1) -> 11 | CO10: =OFFSET(Customers!$I$2,CO$1,$B$1) -> 11 | CP10: =OFFSET(Customers!$I$2,CP$1,$B$1) -> 11 | CQ10: =OFFSET(Customers!$I$2,CQ$1,$B$1) -> 11 | CR10: =OFFSET(Customers!$I$2,CR$1,$B$1) -> 11 | CS10: =OFFSET(Customers!$I$2,CS$1,$B$1) -> 11
A11: STREET LIGHTING | B11: =OFFSET(Customers!$J$2,B$1,$B$1) -> 55708 | C11: =OFFSET(Customers!$J$2,C$1,$B$1) -> 55673 | D11: =OFFSET(Customers!$J$2,D$1,$B$1) -> 55748 | E11: =OFFSET(Customers!$J$2,E$1,$B$1) -> 55833 | F11: =OFFSET(Customers!$J$2,F$1,$B$1) -> 55833 | G11: =OFFSET(Customers!$J$2,G$1,$B$1) -> 55802 | H11: =OFFSET(Customers!$J$2,H$1,$B$1) -> 55800 | I11: =OFFSET(Customers!$J$2,I$1,$B$1) -> 55798 | J11: =OFFSET(Customers!$J$2,J$1,$B$1) -> 55793 | K11: =OFFSET(Customers!$J$2,K$1,$B$1) -> 55764 | L11: =OFFSET(Customers!$J$2,L$1,$B$1) -> 55763 | M11: =OFFSET(Customers!$J$2,M$1,$B$1) -> 55571 | N11: =OFFSET(Customers!$J$2,N$1,$B$1) -> 55571 | O11: =OFFSET(Customers!$J$2,O$1,$B$1) -> 55521 | P11: =OFFSET(Customers!$J$2,P$1,$B$1) -> 55492 | Q11: =OFFSET(Customers!$J$2,Q$1,$B$1) -> 55495 | R11: =OFFSET(Customers!$J$2,R$1,$B$1) -> 55517 | S11: =OFFSET(Customers!$J$2,S$1,$B$1) -> 55517 | T11: =OFFSET(Customers!$J$2,T$1,$B$1) -> 55517 | U11: =OFFSET(Customers!$J$2,U$1,$B$1) -> 55517 | V11: =OFFSET(Customers!$J$2,V$1,$B$1) -> 55516 | W11: =OFFSET(Customers!$J$2,W$1,$B$1) -> 55516 | X11: =OFFSET(Customers!$J$2,X$1,$B$1) -> 55516 | Y11: =OFFSET(Customers!$J$2,Y$1,$B$1) -> 55516 | Z11: =OFFSET(Customers!$J$2,Z$1,$B$1) -> 55516 | AA11: =OFFSET(Customers!$J$2,AA$1,$B$1) -> 55516 | AB11: =OFFSET(Customers!$J$2,AB$1,$B$1) -> 55516 | AC11: =OFFSET(Customers!$J$2,AC$1,$B$1) -> 55516 | AD11: =OFFSET(Customers!$J$2,AD$1,$B$1) -> 55516 | AE11: =OFFSET(Customers!$J$2,AE$1,$B$1) -> 55516 | AF11: =OFFSET(Customers!$J$2,AF$1,$B$1) -> 55516 | AG11: =OFFSET(Customers!$J$2,AG$1,$B$1) -> 55516 | AH11: =OFFSET(Customers!$J$2,AH$1,$B$1) -> 55516 | AI11: =OFFSET(Customers!$J$2,AI$1,$B$1) -> 55516 | AJ11: =OFFSET(Customers!$J$2,AJ$1,$B$1) -> 55516 | AK11: =OFFSET(Customers!$J$2,AK$1,$B$1) -> 55516 | AL11: =OFFSET(Customers!$J$2,AL$1,$B$1) -> 55516 | AM11: =OFFSET(Customers!$J$2,AM$1,$B$1) -> 55516 | AN11: =OFFSET(Customers!$J$2,AN$1,$B$1) -> 55516 | AO11: =OFFSET(Customers!$J$2,AO$1,$B$1) -> 55516 | AP11: =OFFSET(Customers!$J$2,AP$1,$B$1) -> 55516 | AQ11: =OFFSET(Customers!$J$2,AQ$1,$B$1) -> 55516 | AR11: =OFFSET(Customers!$J$2,AR$1,$B$1) -> 55516 | AS11: =OFFSET(Customers!$J$2,AS$1,$B$1) -> 55516 | AT11: =OFFSET(Customers!$J$2,AT$1,$B$1) -> 55516 | AU11: =OFFSET(Customers!$J$2,AU$1,$B$1) -> 55516 | AV11: =OFFSET(Customers!$J$2,AV$1,$B$1) -> 55516 | AW11: =OFFSET(Customers!$J$2,AW$1,$B$1) -> 55516 | AX11: =OFFSET(Customers!$J$2,AX$1,$B$1) -> 55516 | AY11: =OFFSET(Customers!$J$2,AY$1,$B$1) -> 55516 | AZ11: =OFFSET(Customers!$J$2,AZ$1,$B$1) -> 55516 | BA11: =OFFSET(Customers!$J$2,BA$1,$B$1) -> 55516 | BB11: =OFFSET(Customers!$J$2,BB$1,$B$1) -> 55516 | BC11: =OFFSET(Customers!$J$2,BC$1,$B$1) -> 55516 | BD11: =OFFSET(Customers!$J$2,BD$1,$B$1) -> 55516 | BE11: =OFFSET(Customers!$J$2,BE$1,$B$1) -> 55516 | BF11: =OFFSET(Customers!$J$2,BF$1,$B$1) -> 55516 | BG11: =OFFSET(Customers!$J$2,BG$1,$B$1) -> 55516 | BH11: =OFFSET(Customers!$J$2,BH$1,$B$1) -> 55516 | BI11: =OFFSET(Customers!$J$2,BI$1,$B$1) -> 55516 | BJ11: =OFFSET(Customers!$J$2,BJ$1,$B$1) -> 55516 | BK11: =OFFSET(Customers!$J$2,BK$1,$B$1) -> 55516 | BL11: =OFFSET(Customers!$J$2,BL$1,$B$1) -> 55516 | BM11: =OFFSET(Customers!$J$2,BM$1,$B$1) -> 55516 | BN11: =OFFSET(Customers!$J$2,BN$1,$B$1) -> 55516 | BO11: =OFFSET(Customers!$J$2,BO$1,$B$1) -> 55516 | BP11: =OFFSET(Customers!$J$2,BP$1,$B$1) -> 55516 | BQ11: =OFFSET(Customers!$J$2,BQ$1,$B$1) -> 55516 | BR11: =OFFSET(Customers!$J$2,BR$1,$B$1) -> 55516 | BS11: =OFFSET(Customers!$J$2,BS$1,$B$1) -> 55516 | BT11: =OFFSET(Customers!$J$2,BT$1,$B$1) -> 55516 | BU11: =OFFSET(Customers!$J$2,BU$1,$B$1) -> 55516 | BV11: =OFFSET(Customers!$J$2,BV$1,$B$1) -> 55516 | BW11: =OFFSET(Customers!$J$2,BW$1,$B$1) -> 55516 | BX11: =OFFSET(Customers!$J$2,BX$1,$B$1) -> 55516 | BY11: =OFFSET(Customers!$J$2,BY$1,$B$1) -> 55516 | BZ11: =OFFSET(Customers!$J$2,BZ$1,$B$1) -> 55516 | CA11: =OFFSET(Customers!$J$2,CA$1,$B$1) -> 55516 | CB11: =OFFSET(Customers!$J$2,CB$1,$B$1) -> 55516 | CC11: =OFFSET(Customers!$J$2,CC$1,$B$1) -> 55516 | CD11: =OFFSET(Customers!$J$2,CD$1,$B$1) -> 55516 | CE11: =OFFSET(Customers!$J$2,CE$1,$B$1) -> 55516 | CF11: =OFFSET(Customers!$J$2,CF$1,$B$1) -> 55516 | CG11: =OFFSET(Customers!$J$2,CG$1,$B$1) -> 55516 | CH11: =OFFSET(Customers!$J$2,CH$1,$B$1) -> 55516 | CI11: =OFFSET(Customers!$J$2,CI$1,$B$1) -> 55516 | CJ11: =OFFSET(Customers!$J$2,CJ$1,$B$1) -> 55516 | CK11: =OFFSET(Customers!$J$2,CK$1,$B$1) -> 55516 | CL11: =OFFSET(Customers!$J$2,CL$1,$B$1) -> 55516 | CM11: =OFFSET(Customers!$J$2,CM$1,$B$1) -> 55516 | CN11: =OFFSET(Customers!$J$2,CN$1,$B$1) -> 55516 | CO11: =OFFSET(Customers!$J$2,CO$1,$B$1) -> 55516 | CP11: =OFFSET(Customers!$J$2,CP$1,$B$1) -> 55516 | CQ11: =OFFSET(Customers!$J$2,CQ$1,$B$1) -> 55516 | CR11: =OFFSET(Customers!$J$2,CR$1,$B$1) -> 55516 | CS11: =OFFSET(Customers!$J$2,CS$1,$B$1) -> 55516
A12: MU | B12: =OFFSET(Customers!$K$2,B$1,$B$1) -> 3370 | C12: =OFFSET(Customers!$K$2,C$1,$B$1) -> 3370 | D12: =OFFSET(Customers!$K$2,D$1,$B$1) -> 3375 | E12: =OFFSET(Customers!$K$2,E$1,$B$1) -> 3374 | F12: =OFFSET(Customers!$K$2,F$1,$B$1) -> 3373 | G12: =OFFSET(Customers!$K$2,G$1,$B$1) -> 3367 | H12: =OFFSET(Customers!$K$2,H$1,$B$1) -> 3369 | I12: =OFFSET(Customers!$K$2,I$1,$B$1) -> 3368 | J12: =OFFSET(Customers!$K$2,J$1,$B$1) -> 3369 | K12: =OFFSET(Customers!$K$2,K$1,$B$1) -> 3384 | L12: =OFFSET(Customers!$K$2,L$1,$B$1) -> 3393 | M12: =OFFSET(Customers!$K$2,M$1,$B$1) -> 3402 | N12: =OFFSET(Customers!$K$2,N$1,$B$1) -> 3404 | O12: =OFFSET(Customers!$K$2,O$1,$B$1) -> 3439 | P12: =OFFSET(Customers!$K$2,P$1,$B$1) -> 3439 | Q12: =OFFSET(Customers!$K$2,Q$1,$B$1) -> 3452 | R12: =OFFSET(Customers!$K$2,R$1,$B$1) -> 3452 | S12: =OFFSET(Customers!$K$2,S$1,$B$1) -> 3441 | T12: =OFFSET(Customers!$K$2,T$1,$B$1) -> 3441 | U12: =OFFSET(Customers!$K$2,U$1,$B$1) -> 3448 | V12: =OFFSET(Customers!$K$2,V$1,$B$1) -> 3444 | W12: =OFFSET(Customers!$K$2,W$1,$B$1) -> 3444 | X12: =OFFSET(Customers!$K$2,X$1,$B$1) -> 3444 | Y12: =OFFSET(Customers!$K$2,Y$1,$B$1) -> 3444 | Z12: =OFFSET(Customers!$K$2,Z$1,$B$1) -> 3444 | AA12: =OFFSET(Customers!$K$2,AA$1,$B$1) -> 3444 | AB12: =OFFSET(Customers!$K$2,AB$1,$B$1) -> 3444 | AC12: =OFFSET(Customers!$K$2,AC$1,$B$1) -> 3444 | AD12: =OFFSET(Customers!$K$2,AD$1,$B$1) -> 3444 | AE12: =OFFSET(Customers!$K$2,AE$1,$B$1) -> 3444 | AF12: =OFFSET(Customers!$K$2,AF$1,$B$1) -> 3444 | AG12: =OFFSET(Customers!$K$2,AG$1,$B$1) -> 3444 | AH12: =OFFSET(Customers!$K$2,AH$1,$B$1) -> 3444 | AI12: =OFFSET(Customers!$K$2,AI$1,$B$1) -> 3444 | AJ12: =OFFSET(Customers!$K$2,AJ$1,$B$1) -> 3444 | AK12: =OFFSET(Customers!$K$2,AK$1,$B$1) -> 3444 | AL12: =OFFSET(Customers!$K$2,AL$1,$B$1) -> 3444 | AM12: =OFFSET(Customers!$K$2,AM$1,$B$1) -> 3444 | AN12: =OFFSET(Customers!$K$2,AN$1,$B$1) -> 3444 | AO12: =OFFSET(Customers!$K$2,AO$1,$B$1) -> 3444 | AP12: =OFFSET(Customers!$K$2,AP$1,$B$1) -> 3444 | AQ12: =OFFSET(Customers!$K$2,AQ$1,$B$1) -> 3444 | AR12: =OFFSET(Customers!$K$2,AR$1,$B$1) -> 3444 | AS12: =OFFSET(Customers!$K$2,AS$1,$B$1) -> 3444 | AT12: =OFFSET(Customers!$K$2,AT$1,$B$1) -> 3444 | AU12: =OFFSET(Customers!$K$2,AU$1,$B$1) -> 3444 | AV12: =OFFSET(Customers!$K$2,AV$1,$B$1) -> 3444 | AW12: =OFFSET(Customers!$K$2,AW$1,$B$1) -> 3444 | AX12: =OFFSET(Customers!$K$2,AX$1,$B$1) -> 3444 | AY12: =OFFSET(Customers!$K$2,AY$1,$B$1) -> 3444 | AZ12: =OFFSET(Customers!$K$2,AZ$1,$B$1) -> 3444 | BA12: =OFFSET(Customers!$K$2,BA$1,$B$1) -> 3444 | BB12: =OFFSET(Customers!$K$2,BB$1,$B$1) -> 3444 | BC12: =OFFSET(Customers!$K$2,BC$1,$B$1) -> 3444 | BD12: =OFFSET(Customers!$K$2,BD$1,$B$1) -> 3444 | BE12: =OFFSET(Customers!$K$2,BE$1,$B$1) -> 3444 | BF12: =OFFSET(Customers!$K$2,BF$1,$B$1) -> 3444 | BG12: =OFFSET(Customers!$K$2,BG$1,$B$1) -> 3444 | BH12: =OFFSET(Customers!$K$2,BH$1,$B$1) -> 3444 | BI12: =OFFSET(Customers!$K$2,BI$1,$B$1) -> 3444 | BJ12: =OFFSET(Customers!$K$2,BJ$1,$B$1) -> 3444 | BK12: =OFFSET(Customers!$K$2,BK$1,$B$1) -> 3444 | BL12: =OFFSET(Customers!$K$2,BL$1,$B$1) -> 3444 | BM12: =OFFSET(Customers!$K$2,BM$1,$B$1) -> 3444 | BN12: =OFFSET(Customers!$K$2,BN$1,$B$1) -> 3444 | BO12: =OFFSET(Customers!$K$2,BO$1,$B$1) -> 3444 | BP12: =OFFSET(Customers!$K$2,BP$1,$B$1) -> 3444 | BQ12: =OFFSET(Customers!$K$2,BQ$1,$B$1) -> 3444 | BR12: =OFFSET(Customers!$K$2,BR$1,$B$1) -> 3444 | BS12: =OFFSET(Customers!$K$2,BS$1,$B$1) -> 3444 | BT12: =OFFSET(Customers!$K$2,BT$1,$B$1) -> 3444 | BU12: =OFFSET(Customers!$K$2,BU$1,$B$1) -> 3444 | BV12: =OFFSET(Customers!$K$2,BV$1,$B$1) -> 3444 | BW12: =OFFSET(Customers!$K$2,BW$1,$B$1) -> 3444 | BX12: =OFFSET(Customers!$K$2,BX$1,$B$1) -> 3444 | BY12: =OFFSET(Customers!$K$2,BY$1,$B$1) -> 3444 | BZ12: =OFFSET(Customers!$K$2,BZ$1,$B$1) -> 3444 | CA12: =OFFSET(Customers!$K$2,CA$1,$B$1) -> 3444 | CB12: =OFFSET(Customers!$K$2,CB$1,$B$1) -> 3444 | CC12: =OFFSET(Customers!$K$2,CC$1,$B$1) -> 3444 | CD12: =OFFSET(Customers!$K$2,CD$1,$B$1) -> 3444 | CE12: =OFFSET(Customers!$K$2,CE$1,$B$1) -> 3444 | CF12: =OFFSET(Customers!$K$2,CF$1,$B$1) -> 3444 | CG12: =OFFSET(Customers!$K$2,CG$1,$B$1) -> 3444 | CH12: =OFFSET(Customers!$K$2,CH$1,$B$1) -> 3444 | CI12: =OFFSET(Customers!$K$2,CI$1,$B$1) -> 3444 | CJ12: =OFFSET(Customers!$K$2,CJ$1,$B$1) -> 3444 | CK12: =OFFSET(Customers!$K$2,CK$1,$B$1) -> 3444 | CL12: =OFFSET(Customers!$K$2,CL$1,$B$1) -> 3444 | CM12: =OFFSET(Customers!$K$2,CM$1,$B$1) -> 3444 | CN12: =OFFSET(Customers!$K$2,CN$1,$B$1) -> 3444 | CO12: =OFFSET(Customers!$K$2,CO$1,$B$1) -> 3444 | CP12: =OFFSET(Customers!$K$2,CP$1,$B$1) -> 3444 | CQ12: =OFFSET(Customers!$K$2,CQ$1,$B$1) -> 3444 | CR12: =OFFSET(Customers!$K$2,CR$1,$B$1) -> 3444 | CS12: =OFFSET(Customers!$K$2,CS$1,$B$1) -> 3444
A13: TOTAL CUSTOMERS | B13: =SUM(B4:B12) -> 369702 | C13: 369987 | D13: 370276 | E13: 370626 | F13: 370825 | G13: 371189 | H13: 371375 | I13: 371981 | J13: 372181 | K13: 373018 | L13: 373484 | M13: 373695 | N13: 374404 | O13: 374483 | P13: 374519 | Q13: 374581 | R13: 374840 | S13: 375348 | T13: 375722 | U13: 376169 | V13: 376368 | W13: 377214 | X13: 377653 | Y13: 378000 | Z13: 378699 | AA13: 378851 | AB13: 378911 | AC13: 379006 | AD13: 379217 | AE13: 379678 | AF13: 380055 | AG13: 380430 | AH13: =SUM(AH4:AH12) -> 380641 | AI13: 381409 | AJ13: 381820 | AK13: 382157 | AL13: 382801 | AM13: 382968 | AN13: 383056 | AO13: 383175 | AP13: 383395 | AQ13: 383833 | AR13: 384199 | AS13: 384563 | AT13: 384785 | AU13: 385492 | AV13: 385888 | AW13: 386220 | AX13: 386818 | AY13: 387003 | AZ13: 387119 | BA13: 387262 | BB13: 387494 | BC13: 387916 | BD13: 388274 | BE13: 388632 | BF13: 388865 | BG13: 389521 | BH13: 389907 | BI13: 390239 | BJ13: 390800 | BK13: 391003 | BL13: 391146 | BM13: 391313 | BN13: =SUM(BN4:BN12) -> 391555 | BO13: 391965 | BP13: 392319 | BQ13: 392673 | BR13: 392918 | BS13: 393531 | BT13: 393912 | BU13: 394238 | BV13: 394765 | BW13: 394979 | BX13: 395143 | BY13: 395326 | BZ13: 395576 | CA13: 395971 | CB13: 396319 | CC13: 396665 | CD13: 396918 | CE13: 397490 | CF13: 397858 | CG13: 398182 | CH13: =SUM(CH4:CH12) -> 398680 | CI13: 398904 | CJ13: 399086 | CK13: 399285 | CL13: 399541 | CM13: 399925 | CN13: 400266 | CO13: 400606 | CP13: 400866 | CQ13: 401403 | CR13: 401762 | CS13: 402084

Sheet Annual Sales & Demand
A1: Sales MWh
A2: Year | B2: RESIDENTIAL | C2: GS <50KW | D2: GS 50-1000KW Non Interval | E2: GS 50-1000KW Interval | F2: GS 1000-1500KW | G2: GS 1500-5000 KW | H2: LARGE USER | I2: STREETLIGHTING | J2: MU | K2: DCL | L2: SalesAddUP | N2: Purchases
A3: ='Monthly Sales & Demand'!B2 -> 2013 | B3: =SUMIFS('CalMnth Sales'!C$2:C$97,'CalMnth Sales'!$A$2:$A$97,'Annual Sales & Demand'!$A3) -> 2244263 | C3: =SUMIFS('CalMnth Sales'!D$2:D$97,'CalMnth Sales'!$A$2:$A$97,'Annual Sales & Demand'!$A3) -> 714660 | D3: =SUMIFS('CalMnth Sales'!E$2:E$97,'CalMnth Sales'!$A$2:$A$97,'Annual Sales & Demand'!$A3) -> 1514760 | E3: =SUMIFS('CalMnth Sales'!F$2:F$97,'CalMnth Sales'!$A$2:$A$97,'Annual Sales & Demand'!$A3) -> 1118047 | F3: =SUMIFS('CalMnth Sales'!G$2:G$97,'CalMnth Sales'!$A$2:$A$97,'Annual Sales & Demand'!$A3) -> 343749 | G3: =SUMIFS('CalMnth Sales'!H$2:H$97,'CalMnth Sales'!$A$2:$A$97,'Annual Sales & Demand'!$A3) -> 860893 | H3: =SUMIFS('CalMnth Sales'!I$2:I$97,'CalMnth Sales'!$A$2:$A$97,'Annual Sales & Demand'!$A3) -> 624709 | I3: =SUMIFS('CalMnth Sales'!J$2:J$97,'CalMnth Sales'!$A$2:$A$97,'Annual Sales & Demand'!$A3) -> 44775 | J3: =SUMIFS('CalMnth Sales'!K$2:K$97,'CalMnth Sales'!$A$2:$A$97,'Annual Sales & Demand'!$A3) -> 17085 | K3: =SUMIFS('CalMnth Sales'!L$2:L$97,'CalMnth Sales'!$A$2:$A$97,'Annual Sales & Demand'!$A3) -> 3413 | L3: =SUM(B3:K3) -> 7486354 | N3: =SUMIFS('CalMnth Sales'!$N$2:$N$97, 'CalMnth Sales'!$A$2:$A$97,'Annual Sales & Demand'!$A3) -> 7722152
A4: =A3+1 -> 2014 | B4: =SUMIFS('CalMnth Sales'!C$2:C$97,'CalMnth Sales'!$A$2:$A$97,'Annual Sales & Demand'!$A4) -> 2208503 | C4: =SUMIFS('CalMnth Sales'!D$2:D$97,'CalMnth Sales'!$A$2:$A$97,'Annual Sales & Demand'!$A4) -> 705819 | D4: =SUMIFS('CalMnth Sales'!E$2:E$97,'CalMnth Sales'!$A$2:$A$97,'Annual Sales & Demand'!$A4) -> 1487331 | E4: =SUMIFS('CalMnth Sales'!F$2:F$97,'CalMnth Sales'!$A$2:$A$97,'Annual Sales & Demand'!$A4) -> 1132841 | F4: =SUMIFS('CalMnth Sales'!G$2:G$97,'CalMnth Sales'!$A$2:$A$97,'Annual Sales & Demand'!$A4) -> 337596 | G4: =SUMIFS('CalMnth Sales'!H$2:H$97,'CalMnth Sales'!$A$2:$A$97,'Annual Sales & Demand'!$A4) -> 860536 | H4: =SUMIFS('CalMnth Sales'!I$2:I$97,'CalMnth Sales'!$A$2:$A$97,'Annual Sales & Demand'!$A4) -> 615653 | I4: =SUMIFS('CalMnth Sales'!J$2:J$97,'CalMnth Sales'!$A$2:$A$97,'Annual Sales & Demand'!$A4) -> 44419 | J4: =SUMIFS('CalMnth Sales'!K$2:K$97,'CalMnth Sales'!$A$2:$A$97,'Annual Sales & Demand'!$A4) -> 16392 | K4: =SUMIFS('CalMnth Sales'!L$2:L$97,'CalMnth Sales'!$A$2:$A$97,'Annual Sales & Demand'!$A4) -> 3387 | L4: =SUM(B4:K4) -> 7412477 | N4: =SUMIFS('CalMnth Sales'!$N$2:$N$97, 'CalMnth Sales'!$A$2:$A$97,'Annual Sales & Demand'!$A4) -> 7646027
A5: =A4+1 -> 2015 | B5: =SUMIFS('CalMnth Sales'!C$2:C$97,'CalMnth Sales'!$A$2:$A$97,'Annual Sales & Demand'!$A5) -> 2233420 | C5: =SUMIFS('CalMnth Sales'!D$2:D$97,'CalMnth Sales'!$A$2:$A$97,'Annual Sales & Demand'!$A5) -> 705280 | D5: =SUMIFS('CalMnth Sales'!E$2:E$97,'CalMnth Sales'!$A$2:$A$97,'Annual Sales & Demand'!$A5) -> 1446533 | E5: =SUMIFS('CalMnth Sales'!F$2:F$97,'CalMnth Sales'!$A$2:$A$97,'Annual Sales & Demand'!$A5) -> 1165427 | F5: =SUMIFS('CalMnth Sales'!G$2:G$97,'CalMnth Sales'!$A$2:$A$97,'Annual Sales & Demand'!$A5) -> 345766 | G5: =SUMIFS('CalMnth Sales'!H$2:H$97,'CalMnth Sales'!$A$2:$A$97,'Annual Sales & Demand'!$A5) -> 883241 | H5: =SUMIFS('CalMnth Sales'!I$2:I$97,'CalMnth Sales'!$A$2:$A$97,'Annual Sales & Demand'!$A5) -> 620305 | I5: =SUMIFS('CalMnth Sales'!J$2:J$97,'CalMnth Sales'!$A$2:$A$97,'Annual Sales & Demand'!$A5) -> 43504 | J5: =SUMIFS('CalMnth Sales'!K$2:K$97,'CalMnth Sales'!$A$2:$A$97,'Annual Sales & Demand'!$A5) -> 16594 | K5: =SUMIFS('CalMnth Sales'!L$2:L$97,'CalMnth Sales'!$A$2:$A$97,'Annual Sales & Demand'!$A5) -> 3418 | L5: 7463488 | N5: =SUMIFS('CalMnth Sales'!$N$2:$N$97, 'CalMnth Sales'!$A$2:$A$97,'Annual Sales & Demand'!$A5) -> 7698635
A6: 2016 | B6: =SUMIFS('CalMnth Sales'!C$2:C$97,'CalMnth Sales'!$A$2:$A$97,'Annual Sales & Demand'!$A6) -> 2216044 | C6: =SUMIFS('CalMnth Sales'!D$2:D$97,'CalMnth Sales'!$A$2:$A$97,'Annual Sales & Demand'!$A6) -> 700607 | D6: =SUMIFS('CalMnth Sales'!E$2:E$97,'CalMnth Sales'!$A$2:$A$97,'Annual Sales & Demand'!$A6) -> 1412731 | E6: =SUMIFS('CalMnth Sales'!F$2:F$97,'CalMnth Sales'!$A$2:$A$97,'Annual Sales & Demand'!$A6) -> 1182652 | F6: =SUMIFS('CalMnth Sales'!G$2:G$97,'CalMnth Sales'!$A$2:$A$97,'Annual Sales & Demand'!$A6) -> 345345 | G6: =SUMIFS('CalMnth Sales'!H$2:H$97,'CalMnth Sales'!$A$2:$A$97,'Annual Sales & Demand'!$A6) -> 902777 | H6: =SUMIFS('CalMnth Sales'!I$2:I$97,'CalMnth Sales'!$A$2:$A$97,'Annual Sales & Demand'!$A6) -> 620219 | I6: =SUMIFS('CalMnth Sales'!J$2:J$97,'CalMnth Sales'!$A$2:$A$97,'Annual Sales & Demand'!$A6) -> 43550 | J6: =SUMIFS('CalMnth Sales'!K$2:K$97,'CalMnth Sales'!$A$2:$A$97,'Annual Sales & Demand'!$A6) -> 16650 | K6: =SUMIFS('CalMnth Sales'!L$2:L$97,'CalMnth Sales'!$A$2:$A$97,'Annual Sales & Demand'!$A6) -> 3429 | L6: 7444004 | N6: =SUMIFS('CalMnth Sales'!$N$2:$N$97, 'CalMnth Sales'!$A$2:$A$97,'Annual Sales & Demand'!$A6) -> 7678495
A7: 2017 | B7: =SUMIFS('CalMnth Sales'!C$2:C$97,'CalMnth Sales'!$A$2:$A$97,'Annual Sales & Demand'!$A7) -> 2198259 | C7: =SUMIFS('CalMnth Sales'!D$2:D$97,'CalMnth Sales'!$A$2:$A$97,'Annual Sales & Demand'!$A7) -> 691144 | D7: =SUMIFS('CalMnth Sales'!E$2:E$97,'CalMnth Sales'!$A$2:$A$97,'Annual Sales & Demand'!$A7) -> 1362581 | E7: =SUMIFS('CalMnth Sales'!F$2:F$97,'CalMnth Sales'!$A$2:$A$97,'Annual Sales & Demand'!$A7) -> 1189466 | F7: =SUMIFS('CalMnth Sales'!G$2:G$97,'CalMnth Sales'!$A$2:$A$97,'Annual Sales & Demand'!$A7) -> 341685 | G7: =SUMIFS('CalMnth Sales'!H$2:H$97,'CalMnth Sales'!$A$2:$A$97,'Annual Sales & Demand'!$A7) -> 916868 | H7: =SUMIFS('CalMnth Sales'!I$2:I$97,'CalMnth Sales'!$A$2:$A$97,'Annual Sales & Demand'!$A7) -> 619254 | I7: =SUMIFS('CalMnth Sales'!J$2:J$97,'CalMnth Sales'!$A$2:$A$97,'Annual Sales & Demand'!$A7) -> 43654 | J7: =SUMIFS('CalMnth Sales'!K$2:K$97,'CalMnth Sales'!$A$2:$A$97,'Annual Sales & Demand'!$A7) -> 16690 | K7: =SUMIFS('CalMnth Sales'!L$2:L$97,'CalMnth Sales'!$A$2:$A$97,'Annual Sales & Demand'!$A7) -> 3437 | L7: 7383038 | N7: =SUMIFS('CalMnth Sales'!$N$2:$N$97, 'CalMnth Sales'!$A$2:$A$97,'Annual Sales & Demand'!$A7) -> 7615493
A8: 2018 | B8: =SUMIFS('CalMnth Sales'!C$2:C$97,'CalMnth Sales'!$A$2:$A$97,'Annual Sales & Demand'!$A8) -> 2206412 | C8: =SUMIFS('CalMnth Sales'!D$2:D$97,'CalMnth Sales'!$A$2:$A$97,'Annual Sales & Demand'!$A8) -> 684039 | D8: =SUMIFS('CalMnth Sales'!E$2:E$97,'CalMnth Sales'!$A$2:$A$97,'Annual Sales & Demand'!$A8) -> 1321314 | E8: =SUMIFS('CalMnth Sales'!F$2:F$97,'CalMnth Sales'!$A$2:$A$97,'Annual Sales & Demand'!$A8) -> 1200798 | F8: =SUMIFS('CalMnth Sales'!G$2:G$97,'CalMnth Sales'!$A$2:$A$97,'Annual Sales & Demand'!$A8) -> 339592 | G8: =SUMIFS('CalMnth Sales'!H$2:H$97,'CalMnth Sales'!$A$2:$A$97,'Annual Sales & Demand'!$A8) -> 934838 | H8: =SUMIFS('CalMnth Sales'!I$2:I$97,'CalMnth Sales'!$A$2:$A$97,'Annual Sales & Demand'!$A8) -> 618467 | I8: =SUMIFS('CalMnth Sales'!J$2:J$97,'CalMnth Sales'!$A$2:$A$97,'Annual Sales & Demand'!$A8) -> 43765 | J8: =SUMIFS('CalMnth Sales'!K$2:K$97,'CalMnth Sales'!$A$2:$A$97,'Annual Sales & Demand'!$A8) -> 16732 | K8: =SUMIFS('CalMnth Sales'!L$2:L$97,'CalMnth Sales'!$A$2:$A$97,'Annual Sales & Demand'!$A8) -> 3446 | L8: 7369403 | N8: =SUMIFS('CalMnth Sales'!$N$2:$N$97, 'CalMnth Sales'!$A$2:$A$97,'Annual Sales & Demand'!$A8) -> 7601419
A9: 2019 | B9: =SUMIFS('CalMnth Sales'!C$2:C$97,'CalMnth Sales'!$A$2:$A$97,'Annual Sales & Demand'!$A9) -> 2214984 | C9: =SUMIFS('CalMnth Sales'!D$2:D$97,'CalMnth Sales'!$A$2:$A$97,'Annual Sales & Demand'!$A9) -> 678442 | D9: =SUMIFS('CalMnth Sales'!E$2:E$97,'CalMnth Sales'!$A$2:$A$97,'Annual Sales & Demand'!$A9) -> 1285150 | E9: =SUMIFS('CalMnth Sales'!F$2:F$97,'CalMnth Sales'!$A$2:$A$97,'Annual Sales & Demand'!$A9) -> 1215257 | F9: =SUMIFS('CalMnth Sales'!G$2:G$97,'CalMnth Sales'!$A$2:$A$97,'Annual Sales & Demand'!$A9) -> 338471 | G9: =SUMIFS('CalMnth Sales'!H$2:H$97,'CalMnth Sales'!$A$2:$A$97,'Annual Sales & Demand'!$A9) -> 954038 | H9: =SUMIFS('CalMnth Sales'!I$2:I$97,'CalMnth Sales'!$A$2:$A$97,'Annual Sales & Demand'!$A9) -> 617036 | I9: =SUMIFS('CalMnth Sales'!J$2:J$97,'CalMnth Sales'!$A$2:$A$97,'Annual Sales & Demand'!$A9) -> 43875 | J9: =SUMIFS('CalMnth Sales'!K$2:K$97,'CalMnth Sales'!$A$2:$A$97,'Annual Sales & Demand'!$A9) -> 16773 | K9: =SUMIFS('CalMnth Sales'!L$2:L$97,'CalMnth Sales'!$A$2:$A$97,'Annual Sales & Demand'!$A9) -> 3455 | L9: 7367481 | N9: =SUMIFS('CalMnth Sales'!$N$2:$N$97, 'CalMnth Sales'!$A$2:$A$97,'Annual Sales & Demand'!$A9) -> 7599471
A10: 2020 | B10: =SUMIFS('CalMnth Sales'!C$2:C$97,'CalMnth Sales'!$A$2:$A$97,'Annual Sales & Demand'!$A10) -> 2217629 | C10: =SUMIFS('CalMnth Sales'!D$2:D$97,'CalMnth Sales'!$A$2:$A$97,'Annual Sales & Demand'!$A10) -> 673992 | D10: =SUMIFS('CalMnth Sales'!E$2:E$97,'CalMnth Sales'!$A$2:$A$97,'Annual Sales & Demand'!$A10) -> 1252266 | E10: =SUMIFS('CalMnth Sales'!F$2:F$97,'CalMnth Sales'!$A$2:$A$97,'Annual Sales & Demand'!$A10) -> 1231479 | F10: =SUMIFS('CalMnth Sales'!G$2:G$97,'CalMnth Sales'!$A$2:$A$97,'Annual Sales & Demand'!$A10) -> 337928 | G10: =SUMIFS('CalMnth Sales'!H$2:H$97,'CalMnth Sales'!$A$2:$A$97,'Annual Sales & Demand'!$A10) -> 975022 | H10: =SUMIFS('CalMnth Sales'!I$2:I$97,'CalMnth Sales'!$A$2:$A$97,'Annual Sales & Demand'!$A10) -> 615194 | I10: =SUMIFS('CalMnth Sales'!J$2:J$97,'CalMnth Sales'!$A$2:$A$97,'Annual Sales & Demand'!$A10) -> 44015 | J10: =SUMIFS('CalMnth Sales'!K$2:K$97,'CalMnth Sales'!$A$2:$A$97,'Annual Sales & Demand'!$A10) -> 16826 | K10: =SUMIFS('CalMnth Sales'!L$2:L$97,'CalMnth Sales'!$A$2:$A$97,'Annual Sales & Demand'!$A10) -> 3465 | L10: 7367816 | N10: =SUMIFS('CalMnth Sales'!$N$2:$N$97, 'CalMnth Sales'!$A$2:$A$97,'Annual Sales & Demand'!$A10) -> 7599868
A11: % Change
A12: =A4 -> 2014 | B12: =B4/B3-1 -> -0.016 | C12: =C4/C3-1 -> -0.012 | D12: -0.018 | E12: 0.013 | F12: -0.018 | G12: 0 | H12: -0.014 | I12: -0.008 | J12: -0.041 | K12: -0.008 | L12: =L4/L3-1 -> -0.01 | N12: =N4/N3-1 -> -0.01
A13: =A5 -> 2015 | B13: =B5/B4-1 -> 0.011 | C13: -0.001 | D13: -0.027 | E13: 0.029 | F13: 0.024 | G13: 0.026 | H13: 0.008 | I13: -0.021 | J13: 0.012 | K13: 0.009 | L13: =L5/L4-1 -> 0.007 | N13: =N5/N4-1 -> 0.007
A14: 2016 | B14: -0.008 | C14: -0.007 | D14: -0.023 | E14: 0.015 | F14: -0.001 | G14: 0.022 | H14: 0 | I14: 0.001 | J14: 0.003 | K14: 0.003 | L14: =L6/L5-1 -> -0.003 | N14: -0.003
A15: 2017 | B15: -0.008 | C15: -0.014 | D15: -0.035 | E15: 0.006 | F15: -0.011 | G15: 0.016 | H15: -0.002 | I15: 0.002 | J15: 0.002 | K15: 0.002 | L15: =L7/L6-1 -> -0.008 | N15: -0.008
A16: 2018 | B16: 0.004 | C16: -0.01 | D16: -0.03 | E16: 0.01 | F16: -0.006 | G16: 0.02 | H16: -0.001 | I16: 0.003 | J16: 0.003 | K16: 0.003 | L16: =L8/L7-1 -> -0.002 | N16: -0.002
A17: 2019 | B17: 0.004 | C17: -0.008 | D17: -0.027 | E17: 0.012 | F17: -0.003 | G17: 0.021 | H17: -0.002 | I17: 0.003 | J17: 0.002 | K17: 0.003 | L17: =L9/L8-1 -> 0 | N17: 0
A18: =A10 -> 2020 | B18: 0.001 | C18: -0.007 | D18: -0.026 | E18: 0.013 | F18: -0.002 | G18: 0.022 | H18: -0.003 | I18: 0.003 | J18: 0.003 | K18: 0.003 | L18: =L10/L9-1 -> 0 | N18: 0
A19: 2014-2020 | B19: =AVERAGE(B13:B18) -> 0.001 | C19: -0.008 | D19: -0.028 | E19: 0.014 | F19: 0 | G19: 0.021 | H19: 0 | I19: -0.002 | J19: 0.004 | K19: 0.004 | L19: =AVERAGE(L13:L18) -> -0.001 | N19: =AVERAGE(N13:N18) -> -0.001
A22: Demand KW
A23: Year | D23: GS 50-1000KW Non Interval | E23: GS 50-1000KW Interval | F23: GS 1000-1500KW | G23: GS 1500-5000 KW | H23: LARGE USER | I23: STREETLIGHTING | J23: MU | K23: DCL | N23: System (MW)
A24: =A3 -> 2013 | D24: =MAX((Demand!$A$2:$A$97='Annual Sales & Demand'!$A24)*(Demand!C$2:C$97)) -> 387717 | E24: =MAX((Demand!$A$2:$A$97='Annual Sales & Demand'!$A24)*(Demand!D$2:D$97)) -> 254033 | F24: =MAX((Demand!$A$2:$A$97='Annual Sales & Demand'!$A24)*(Demand!E$2:E$97)) -> 70296 | G24: =MAX((Demand!$A$2:$A$97='Annual Sales & Demand'!$A24)*(Demand!F$2:F$97)) -> 191749 | H24: =MAX((Demand!$A$2:$A$97='Annual Sales & Demand'!$A24)*(Demand!G$2:G$97)) -> 121622 | I24: =MAX((Demand!$A$2:$A$97='Annual Sales & Demand'!$A24)*(Demand!H$2:H$97)) -> 10344 | N24: =MAX(('CalMnth Sales'!$A$2:$A$97='Annual Sales & Demand'!$A24)*('CalMnth Sales'!$O$2:$O$97)) -> 1427
A25: 2014 | D25: =MAX((Demand!$A$2:$A$97='Annual Sales & Demand'!$A25)*(Demand!C$2:C$97)) -> 365768 | E25: =MAX((Demand!$A$2:$A$97='Annual Sales & Demand'!$A25)*(Demand!D$2:D$97)) -> 232563 | F25: =MAX((Demand!$A$2:$A$97='Annual Sales & Demand'!$A25)*(Demand!E$2:E$97)) -> 64565 | G25: =MAX((Demand!$A$2:$A$97='Annual Sales & Demand'!$A25)*(Demand!F$2:F$97)) -> 166541 | H25: =MAX((Demand!$A$2:$A$97='Annual Sales & Demand'!$A25)*(Demand!G$2:G$97)) -> 102647 | I25: =MAX((Demand!$A$2:$A$97='Annual Sales & Demand'!$A25)*(Demand!H$2:H$97)) -> 10283 | N25: =MAX(('CalMnth Sales'!$A$2:$A$97='Annual Sales & Demand'!$A25)*('CalMnth Sales'!$O$2:$O$97)) -> 1304
A26: 2015 | D26: =MAX((Demand!$A$2:$A$97='Annual Sales & Demand'!$A26)*(Demand!C$2:C$97)) -> 367285 | E26: =MAX((Demand!$A$2:$A$97='Annual Sales & Demand'!$A26)*(Demand!D$2:D$97)) -> 257729 | F26: =MAX((Demand!$A$2:$A$97='Annual Sales & Demand'!$A26)*(Demand!E$2:E$97)) -> 70055 | G26: =MAX((Demand!$A$2:$A$97='Annual Sales & Demand'!$A26)*(Demand!F$2:F$97)) -> 176387 | H26: =MAX((Demand!$A$2:$A$97='Annual Sales & Demand'!$A26)*(Demand!G$2:G$97)) -> 108056 | I26: =MAX((Demand!$A$2:$A$97='Annual Sales & Demand'!$A26)*(Demand!H$2:H$97)) -> 10262 | N26: =MAX(('CalMnth Sales'!$A$2:$A$97='Annual Sales & Demand'!$A26)*('CalMnth Sales'!$O$2:$O$97)) -> 1380
A27: 2016 | D27: =MAX((Demand!$A$2:$A$97='Annual Sales & Demand'!$A27)*(Demand!C$2:C$97)) -> 360355 | E27: =MAX((Demand!$A$2:$A$97='Annual Sales & Demand'!$A27)*(Demand!D$2:D$97)) -> 260605 | F27: =MAX((Demand!$A$2:$A$97='Annual Sales & Demand'!$A27)*(Demand!E$2:E$97)) -> 69869 | G27: =MAX((Demand!$A$2:$A$97='Annual Sales & Demand'!$A27)*(Demand!F$2:F$97)) -> 179473 | H27: =MAX((Demand!$A$2:$A$97='Annual Sales & Demand'!$A27)*(Demand!G$2:G$97)) -> 108005 | I27: =MAX((Demand!$A$2:$A$97='Annual Sales & Demand'!$A27)*(Demand!H$2:H$97)) -> 10262 | N27: =MAX(('CalMnth Sales'!$A$2:$A$97='Annual Sales & Demand'!$A27)*('CalMnth Sales'!$O$2:$O$97)) -> 1375
A28: 2017 | D28: =MAX((Demand!$A$2:$A$97='Annual Sales & Demand'!$A28)*(Demand!C$2:C$97)) -> 350591 | E28: =MAX((Demand!$A$2:$A$97='Annual Sales & Demand'!$A28)*(Demand!D$2:D$97)) -> 262278 | F28: =MAX((Demand!$A$2:$A$97='Annual Sales & Demand'!$A28)*(Demand!E$2:E$97)) -> 69300 | G28: =MAX((Demand!$A$2:$A$97='Annual Sales & Demand'!$A28)*(Demand!F$2:F$97)) -> 182529 | H28: =MAX((Demand!$A$2:$A$97='Annual Sales & Demand'!$A28)*(Demand!G$2:G$97)) -> 107875 | I28: =MAX((Demand!$A$2:$A$97='Annual Sales & Demand'!$A28)*(Demand!H$2:H$97)) -> 10262 | N28: =MAX(('CalMnth Sales'!$A$2:$A$97='Annual Sales & Demand'!$A28)*('CalMnth Sales'!$O$2:$O$97)) -> 1367
A29: 2018 | D29: =MAX((Demand!$A$2:$A$97='Annual Sales & Demand'!$A29)*(Demand!C$2:C$97)) -> 341289 | E29: =MAX((Demand!$A$2:$A$97='Annual Sales & Demand'!$A29)*(Demand!D$2:D$97)) -> 264563 | F29: =MAX((Demand!$A$2:$A$97='Annual Sales & Demand'!$A29)*(Demand!E$2:E$97)) -> 68890 | G29: =MAX((Demand!$A$2:$A$97='Annual Sales & Demand'!$A29)*(Demand!F$2:F$97)) -> 185831 | H29: =MAX((Demand!$A$2:$A$97='Annual Sales & Demand'!$A29)*(Demand!G$2:G$97)) -> 107711 | I29: =MAX((Demand!$A$2:$A$97='Annual Sales & Demand'!$A29)*(Demand!H$2:H$97)) -> 10262 | N29: =MAX(('CalMnth Sales'!$A$2:$A$97='Annual Sales & Demand'!$A29)*('CalMnth Sales'!$O$2:$O$97)) -> 1367
A30: 2019 | D30: =MAX((Demand!$A$2:$A$97='Annual Sales & Demand'!$A30)*(Demand!C$2:C$97)) -> 333957 | E30: =MAX((Demand!$A$2:$A$97='Annual Sales & Demand'!$A30)*(Demand!D$2:D$97)) -> 267483 | F30: =MAX((Demand!$A$2:$A$97='Annual Sales & Demand'!$A30)*(Demand!E$2:E$97)) -> 68685 | G30: =MAX((Demand!$A$2:$A$97='Annual Sales & Demand'!$A30)*(Demand!F$2:F$97)) -> 189389 | H30: =MAX((Demand!$A$2:$A$97='Annual Sales & Demand'!$A30)*(Demand!G$2:G$97)) -> 107450 | I30: =MAX((Demand!$A$2:$A$97='Annual Sales & Demand'!$A30)*(Demand!H$2:H$97)) -> 10262 | N30: =MAX(('CalMnth Sales'!$A$2:$A$97='Annual Sales & Demand'!$A30)*('CalMnth Sales'!$O$2:$O$97)) -> 1368
A31: 2020 | D31: =MAX((Demand!$A$2:$A$97='Annual Sales & Demand'!$A31)*(Demand!C$2:C$97)) -> 326370 | E31: =MAX((Demand!$A$2:$A$97='Annual Sales & Demand'!$A31)*(Demand!D$2:D$97)) -> 270365 | F31: =MAX((Demand!$A$2:$A$97='Annual Sales & Demand'!$A31)*(Demand!E$2:E$97)) -> 68455 | G31: =MAX((Demand!$A$2:$A$97='Annual Sales & Demand'!$A31)*(Demand!F$2:F$97)) -> 192761 | H31: =MAX((Demand!$A$2:$A$97='Annual Sales & Demand'!$A31)*(Demand!G$2:G$97)) -> 107090 | I31: =MAX((Demand!$A$2:$A$97='Annual Sales & Demand'!$A31)*(Demand!H$2:H$97)) -> 10262 | N31: =MAX(('CalMnth Sales'!$A$2:$A$97='Annual Sales & Demand'!$A31)*('CalMnth Sales'!$O$2:$O$97)) -> 1368
A32: % Change
A33: =A25 -> 2014 | D33: =D25/D24-1 -> -0.057 | E33: =E25/E24-1 -> -0.085 | F33: -0.082 | G33: -0.131 | H33: -0.156 | I33: =I25/I24-1 -> -0.006 | N33: =N25/N24-1 -> -0.086
A34: =A26 -> 2015 | D34: =D26/D25-1 -> 0.004 | E34: 0.108 | F34: 0.085 | G34: 0.059 | H34: 0.053 | I34: -0.002 | N34: =N26/N25-1 -> 0.058
A35: 2016 | D35: =D27/D26-1 -> -0.019 | E35: 0.011 | F35: -0.003 | G35: 0.017 | H35: 0 | I35: 0 | N35: -0.004
A36: 2017 | D36: =D28/D27-1 -> -0.027 | E36: 0.006 | F36: -0.008 | G36: 0.017 | H36: -0.001 | I36: 0 | N36: -0.006
A37: 2018 | D37: =D29/D28-1 -> -0.027 | E37: 0.009 | F37: -0.006 | G37: 0.018 | H37: -0.002 | I37: 0 | N37: 0
A38: 2019 | D38: =D30/D29-1 -> -0.021 | E38: 0.011 | F38: -0.003 | G38: 0.019 | H38: -0.002 | I38: 0 | N38: 0.001
A39: 2020 | D39: =D31/D30-1 -> -0.023 | E39: 0.011 | F39: -0.003 | G39: 0.018 | H39: -0.003 | I39: 0 | N39: 0
A40: 2014-2020 | D40: =AVERAGE(D34:D39) -> -0.019 | E40: =AVERAGE(E34:E39) -> 0.026 | F40: 0.01 | G40: 0.025 | H40: 0.008 | I40: 0 | N40: =AVERAGE(N34:N39) -> 0.008

Sheet Annual Customer
A1: Customer Count
A2: Year | B2: RESIDENTIAL | C2: GS <50KW | D2: GS 50-1000KW Non Interval | E2: GS 50-1000KW Interval | F2: GS 1000-1500KW | G2: GS 1500-5000 KW | H2: LARGE USER | I2: STREET LIGHTING | J2: MU
A3: ='Monthly Customer'!B2 -> 2013 | B3: =AVERAGEIFS(Customers!C$2:C$97,Customers!$A$2:$A$97,'Annual Customer'!$A3) -> 284964 | C3: =AVERAGEIFS(Customers!D$2:D$97,Customers!$A$2:$A$97,'Annual Customer'!$A3) -> 23936 | D3: =AVERAGEIFS(Customers!E$2:E$97,Customers!$A$2:$A$97,'Annual Customer'!$A3) -> 2695 | E3: =AVERAGEIFS(Customers!F$2:F$97,Customers!$A$2:$A$97,'Annual Customer'!$A3) -> 654 | F3: =AVERAGEIFS(Customers!G$2:G$97,Customers!$A$2:$A$97,'Annual Customer'!$A3) -> 59 | G3: =AVERAGEIFS(Customers!H$2:H$97,Customers!$A$2:$A$97,'Annual Customer'!$A3) -> 76 | H3: =AVERAGEIFS(Customers!I$2:I$97,Customers!$A$2:$A$97,'Annual Customer'!$A3) -> 11 | I3: =AVERAGEIFS(Customers!J$2:J$97,Customers!$A$2:$A$97,'Annual Customer'!$A3) -> 55757 | J3: =AVERAGEIFS(Customers!K$2:K$97,Customers!$A$2:$A$97,'Annual Customer'!$A3) -> 3376
A4: =A3+1 -> 2014 | B4: =AVERAGEIFS(Customers!C$2:C$97,Customers!$A$2:$A$97,'Annual Customer'!$A4) -> 289258 | C4: =AVERAGEIFS(Customers!D$2:D$97,Customers!$A$2:$A$97,'Annual Customer'!$A4) -> 23944 | D4: =AVERAGEIFS(Customers!E$2:E$97,Customers!$A$2:$A$97,'Annual Customer'!$A4) -> 2770 | E4: =AVERAGEIFS(Customers!F$2:F$97,Customers!$A$2:$A$97,'Annual Customer'!$A4) -> 685 | F4: =AVERAGEIFS(Customers!G$2:G$97,Customers!$A$2:$A$97,'Annual Customer'!$A4) -> 61 | G4: =AVERAGEIFS(Customers!H$2:H$97,Customers!$A$2:$A$97,'Annual Customer'!$A4) -> 87 | H4: =AVERAGEIFS(Customers!I$2:I$97,Customers!$A$2:$A$97,'Annual Customer'!$A4) -> 11 | I4: =AVERAGEIFS(Customers!J$2:J$97,Customers!$A$2:$A$97,'Annual Customer'!$A4) -> 55518 | J4: =AVERAGEIFS(Customers!K$2:K$97,Customers!$A$2:$A$97,'Annual Customer'!$A4) -> 3441
A5: =A4+1 -> 2015 | B5: =AVERAGEIFS(Customers!C$2:C$97,Customers!$A$2:$A$97,'Annual Customer'!$A5) -> 293366 | C5: =AVERAGEIFS(Customers!D$2:D$97,Customers!$A$2:$A$97,'Annual Customer'!$A5) -> 24099 | D5: =AVERAGEIFS(Customers!E$2:E$97,Customers!$A$2:$A$97,'Annual Customer'!$A5) -> 2775 | E5: =AVERAGEIFS(Customers!F$2:F$97,Customers!$A$2:$A$97,'Annual Customer'!$A5) -> 712 | F5: =AVERAGEIFS(Customers!G$2:G$97,Customers!$A$2:$A$97,'Annual Customer'!$A5) -> 62 | G5: =AVERAGEIFS(Customers!H$2:H$97,Customers!$A$2:$A$97,'Annual Customer'!$A5) -> 88 | H5: =AVERAGEIFS(Customers!I$2:I$97,Customers!$A$2:$A$97,'Annual Customer'!$A5) -> 11 | I5: =AVERAGEIFS(Customers!J$2:J$97,Customers!$A$2:$A$97,'Annual Customer'!$A5) -> 55516 | J5: =AVERAGEIFS(Customers!K$2:K$97,Customers!$A$2:$A$97,'Annual Customer'!$A5) -> 3444
A6: 2016 | B6: =AVERAGEIFS(Customers!C$2:C$97,Customers!$A$2:$A$97,'Annual Customer'!$A6) -> 297343 | C6: =AVERAGEIFS(Customers!D$2:D$97,Customers!$A$2:$A$97,'Annual Customer'!$A6) -> 24218 | D6: =AVERAGEIFS(Customers!E$2:E$97,Customers!$A$2:$A$97,'Annual Customer'!$A6) -> 2775 | E6: =AVERAGEIFS(Customers!F$2:F$97,Customers!$A$2:$A$97,'Annual Customer'!$A6) -> 739 | F6: =AVERAGEIFS(Customers!G$2:G$97,Customers!$A$2:$A$97,'Annual Customer'!$A6) -> 63 | G6: =AVERAGEIFS(Customers!H$2:H$97,Customers!$A$2:$A$97,'Annual Customer'!$A6) -> 88 | H6: =AVERAGEIFS(Customers!I$2:I$97,Customers!$A$2:$A$97,'Annual Customer'!$A6) -> 11 | I6: =AVERAGEIFS(Customers!J$2:J$97,Customers!$A$2:$A$97,'Annual Customer'!$A6) -> 55516 | J6: =AVERAGEIFS(Customers!K$2:K$97,Customers!$A$2:$A$97,'Annual Customer'!$A6) -> 3444
A7: 2017 | B7: =AVERAGEIFS(Customers!C$2:C$97,Customers!$A$2:$A$97,'Annual Customer'!$A7) -> 301258 | C7: =AVERAGEIFS(Customers!D$2:D$97,Customers!$A$2:$A$97,'Annual Customer'!$A7) -> 24332 | D7: =AVERAGEIFS(Customers!E$2:E$97,Customers!$A$2:$A$97,'Annual Customer'!$A7) -> 2775 | E7: =AVERAGEIFS(Customers!F$2:F$97,Customers!$A$2:$A$97,'Annual Customer'!$A7) -> 767 | F7: =AVERAGEIFS(Customers!G$2:G$97,Customers!$A$2:$A$97,'Annual Customer'!$A7) -> 63 | G7: =AVERAGEIFS(Customers!H$2:H$97,Customers!$A$2:$A$97,'Annual Customer'!$A7) -> 88 | H7: =AVERAGEIFS(Customers!I$2:I$97,Customers!$A$2:$A$97,'Annual Customer'!$A7) -> 11 | I7: =AVERAGEIFS(Customers!J$2:J$97,Customers!$A$2:$A$97,'Annual Customer'!$A7) -> 55516 | J7: =AVERAGEIFS(Customers!K$2:K$97,Customers!$A$2:$A$97,'Annual Customer'!$A7) -> 3444
A8: 2018 | B8: =AVERAGEIFS(Customers!C$2:C$97,Customers!$A$2:$A$97,'Annual Customer'!$A8) -> 305144 | C8: =AVERAGEIFS(Customers!D$2:D$97,Customers!$A$2:$A$97,'Annual Customer'!$A8) -> 24445 | D8: =AVERAGEIFS(Customers!E$2:E$97,Customers!$A$2:$A$97,'Annual Customer'!$A8) -> 2775 | E8: =AVERAGEIFS(Customers!F$2:F$97,Customers!$A$2:$A$97,'Annual Customer'!$A8) -> 795 | F8: =AVERAGEIFS(Customers!G$2:G$97,Customers!$A$2:$A$97,'Annual Customer'!$A8) -> 63 | G8: =AVERAGEIFS(Customers!H$2:H$97,Customers!$A$2:$A$97,'Annual Customer'!$A8) -> 88 | H8: =AVERAGEIFS(Customers!I$2:I$97,Customers!$A$2:$A$97,'Annual Customer'!$A8) -> 11 | I8: =AVERAGEIFS(Customers!J$2:J$97,Customers!$A$2:$A$97,'Annual Customer'!$A8) -> 55516 | J8: =AVERAGEIFS(Customers!K$2:K$97,Customers!$A$2:$A$97,'Annual Customer'!$A8) -> 3444
A9: 2019 | B9: =AVERAGEIFS(Customers!C$2:C$97,Customers!$A$2:$A$97,'Annual Customer'!$A9) -> 308990 | C9: =AVERAGEIFS(Customers!D$2:D$97,Customers!$A$2:$A$97,'Annual Customer'!$A9) -> 24556 | D9: =AVERAGEIFS(Customers!E$2:E$97,Customers!$A$2:$A$97,'Annual Customer'!$A9) -> 2775 | E9: =AVERAGEIFS(Customers!F$2:F$97,Customers!$A$2:$A$97,'Annual Customer'!$A9) -> 823 | F9: =AVERAGEIFS(Customers!G$2:G$97,Customers!$A$2:$A$97,'Annual Customer'!$A9) -> 64 | G9: =AVERAGEIFS(Customers!H$2:H$97,Customers!$A$2:$A$97,'Annual Customer'!$A9) -> 88 | H9: =AVERAGEIFS(Customers!I$2:I$97,Customers!$A$2:$A$97,'Annual Customer'!$A9) -> 11 | I9: =AVERAGEIFS(Customers!J$2:J$97,Customers!$A$2:$A$97,'Annual Customer'!$A9) -> 55516 | J9: =AVERAGEIFS(Customers!K$2:K$97,Customers!$A$2:$A$97,'Annual Customer'!$A9) -> 3444
A10: 2020 | B10: =AVERAGEIFS(Customers!C$2:C$97,Customers!$A$2:$A$97,'Annual Customer'!$A10) -> 312786 | C10: =AVERAGEIFS(Customers!D$2:D$97,Customers!$A$2:$A$97,'Annual Customer'!$A10) -> 24665 | D10: =AVERAGEIFS(Customers!E$2:E$97,Customers!$A$2:$A$97,'Annual Customer'!$A10) -> 2775 | E10: =AVERAGEIFS(Customers!F$2:F$97,Customers!$A$2:$A$97,'Annual Customer'!$A10) -> 851 | F10: =AVERAGEIFS(Customers!G$2:G$97,Customers!$A$2:$A$97,'Annual Customer'!$A10) -> 64 | G10: =AVERAGEIFS(Customers!H$2:H$97,Customers!$A$2:$A$97,'Annual Customer'!$A10) -> 88 | H10: =AVERAGEIFS(Customers!I$2:I$97,Customers!$A$2:$A$97,'Annual Customer'!$A10) -> 11 | I10: =AVERAGEIFS(Customers!J$2:J$97,Customers!$A$2:$A$97,'Annual Customer'!$A10) -> 55516 | J10: =AVERAGEIFS(Customers!K$2:K$97,Customers!$A$2:$A$97,'Annual Customer'!$A10) -> 3444
A11: % Change
A12: =A4 -> 2014 | B12: =B4/B3-1 -> 0.015 | C12: =C4/C3-1 -> 0 | D12: 0.028 | E12: 0.047 | F12: 0.034 | G12: 0.145 | H12: 0 | I12: -0.004 | J12: 0.019
A13: =A5 -> 2015 | B13: =B5/B4-1 -> 0.014 | C13: 0.006 | D13: 0.002 | E13: 0.039 | F13: 0.016 | G13: 0.011 | H13: 0 | I13: 0 | J13: 0.001
A14: 2016 | B14: 0.014 | C14: 0.005 | D14: 0 | E14: 0.038 | F14: 0.016 | G14: 0 | H14: 0 | I14: 0 | J14: 0
A15: 2017 | B15: 0.013 | C15: 0.005 | D15: 0 | E15: 0.038 | F15: 0 | G15: 0 | H15: 0 | I15: 0 | J15: 0
A16: 2018 | B16: 0.013 | C16: 0.005 | D16: 0 | E16: 0.037 | F16: 0 | G16: 0 | H16: 0 | I16: 0 | J16: 0
A17: 2019 | B17: 0.013 | C17: 0.005 | D17: 0 | E17: 0.035 | F17: 0.016 | G17: 0 | H17: 0 | I17: 0 | J17: 0
A18: 2020 | B18: 0.012 | C18: 0.004 | D18: 0 | E18: 0.034 | F18: 0 | G18: 0 | H18: 0 | I18: 0 | J18: 0
A19: 2014-2020 | B19: =AVERAGE(B13:B18) -> 0.013 | C19: 0.005 | D19: 0 | E19: 0.037 | F19: 0.008 | G19: 0.002 | H19: 0 | I19: 0 | J19: =AVERAGE(J13:J18) -> 0
